Workbook

Sheet Portada
E2: Modelo Empresa Eficiente Móvil | Q2: Desarrollado por:
E3: Portada
C5: Diagrama de Modelo
C52: Contenidos
D54: Hoja | E54: Descripción
D55: Portada | E55: Presentación del Modelo
D56: Demanda | E56: Proyecciones de Demanda
D57: Proyección | E57: Proyecciones de Demanda
D58: RRHH | E58: Detalle de los recursos humanos
D59: BBSS | E59: Detalle de los bienes y servicios
D60: TI | E60: Tecnologías de Información
D61: Sitios | E61: Costos operación Sitios móviles
D62: Edificios | E62: Diseño de los edificios
D63: Param.Red.M | E63: Parámetros de diseño Red Móvil
D64: Fact.Util | E64: Factores de utilización de la red
D65: Tablas Erlang | E65: Tablas erlang
D66: Dda.Red.M | E66: Diseño de la red móvil
D67: Sal.Red | E67: Salida de elementos de red
D68: BD.Costos | E68: Base de datos de costos
D69: Asignadores | E69: Criterios de asignación
D70: Cálculo Tarifario | E70: Calculo tarifario
D71: LRIC_Puro | E71: Long Run Incremental Costs
D72: Cálculo CMLP | E72: Cálculo de costo marginal de largo plazo
D73: Control | E73: Panel de control del modelo
D74: Estilos | E74: Formatos utilizados en el modelo

Sheet Control
H2: Modelo Empresa Eficiente Móvil
H3: Control de Resultados del Modelo
N5: 1 | O5: 2 | P5: 3 | Q5: 4
B6: Resultados Ilustrativos, No corresponden a los resultados con la información real
B8: Nota: Este modelo ha sido cargado con información no real, es sólo para referencia ilustrativa para entender el funcionamiento del modelo
I9: Actual | J9: 2022-05-01 | K9: 2023-01-01 | L9: 2024-01-01
E10: Voz | N10: Var 1 | O10: Var 2 | P10: Var 3
G11: Cacc, Establecidos | I11: 13.34 | J11: =+I11*($L11/$I11)^(1/3) -> 8.382888362 | K11: =+J11*($L11/$I11)^(1/3) -> 5.267827383 | L11: =LRIC_Puro!O1402 -> 3.310315507 | N11: =J11/I11-1 -> -0.3715975741 | O11: -0.3715975741 | P11: =L11/K11-1 -> -0.3715975741
G12: Cacc, Entrantes | I12: 28.68 | J12: =I11 -> 13.34 | K12: =J11 -> 8.382888362 | L12: =K11 -> 5.267827383 | N12: =J12/I12-1 -> -0.5348675035 | O12: =K12/J12-1 -> -0.3715975741 | P12: =L12/K12-1 -> -0.3715975741
G14: E1, Establecidos | I14: 5186330.25 | J14: =+I14*($L14/$I14)^(1/3) -> 4238932.862 | K14: =+J14*($L14/$I14)^(1/3) -> 3464598.462 | L14: =LRIC_Puro!O1407 -> 2831713.286 | N14: =J14/I14-1 -> -0.1826720133 | O14: =K14/J14-1 -> -0.1826720133 | P14: =L14/K14-1 -> -0.1826720133
G15: E1, Entrantes | I15: 11492673.95 | J15: =I14 -> 5186330.25 | K15: =J14 -> 4238932.862 | L15: =K14 -> 3464598.462 | N15: -0.5487272786 | O15: -0.1826720133 | P15: -0.1826720133
G17: SIP, Establecidos | I17: 2206851396 | J17: =+I17*($L17/$I17)^(1/3) -> 1783016721 | K17: =+J17*($L17/$I17)^(1/3) -> 1440581197 | L17: =LRIC_Puro!O1406 -> 1163911791 | N17: =J17/I17-1 -> -0.192054017 | O17: =K17/J17-1 -> -0.192054017 | P17: =L17/K17-1 -> -0.192054017
G18: SIP, Entrantes | I18: 2206851396 | J18: =I18 -> 2206851396 | K18: =J17 -> 1783016721 | L18: =K17 -> 1440581197 | N18: 0 | O18: -0.192054017 | P18: -0.192054017
E20: Datos
G21: RAN Internet Móvil, Establecidos | I21: 13.85 | J21: ='Cálculo Tarifario'!Q4931 -> 2.476039033 | K21: =+J21*(1+O21) -> 2.476039033 | L21: 2.476039033 | N21: =J21/I21-1 -> -0.8212246185 | O21: 0 | P21: 0
G22: RAN Internet Móvil, Entrante | I22: 7.47 | J22: =LRIC_Puro!W1402 -> 2.182621228 | K22: 2.182621228 | L22: 2.182621228 | N22: -0.7078150967 | O22: 0 | P22: 0
E24: SMS
G25: Cacc, Establecidos | I25: 1.17 | J25: =+I25*($L25/$I25)^(1/3) -> 0.4634249231 | K25: 0.1835578285 | L25: =LRIC_Puro!R1402 -> 0.07270536114 | N25: =J25/I25-1 -> -0.6039103222 | O25: =K25/J25-1 -> -0.6039103222 | P25: =L25/K25-1 -> -0.6039103222
G26: Cacc, Entrantes | I26: 4.8 | J26: =I25 -> 1.17 | K26: =J25 -> 0.4634249231 | L26: =K25 -> 0.1835578285 | N26: -0.75625 | O26: -0.6039103222 | P26: -0.6039103222
B27: KPI
I31: 1 | J31: 2 | K31: 3 | L31: 4 | M31: 5 | N31: 6
I32: =INDEX(años,I$31) -> 0 | J32: 1 | K32: 2 | L32: 3 | M32: 4 | N32: 5
G33: Sitios GSM | H33: Todos | I33: =SUM('Dis.Red.M'!I303:I312) -> 5380 | J33: =SUM('Dis.Red.M'!J303:J312) -> 5292 | K33: =SUM('Dis.Red.M'!K303:K312) -> 5154 | L33: =SUM('Dis.Red.M'!L303:L312) -> 5079 | M33: =SUM('Dis.Red.M'!M303:M312) -> 5028 | N33: =SUM('Dis.Red.M'!N303:N312) -> 4984
G34: Sitios UMTS | H34: Todos | I34: =SUM('Dis.Red.M'!I834:I843) -> 6287 | J34: =SUM('Dis.Red.M'!J834:J843) -> 6719 | K34: =SUM('Dis.Red.M'!K834:K843) -> 6624 | L34: =SUM('Dis.Red.M'!L834:L843) -> 6371 | M34: =SUM('Dis.Red.M'!M834:M843) -> 6215 | N34: =SUM('Dis.Red.M'!N834:N843) -> 5985
G35: Sitios LTE | H35: Todos | I35: =SUM('Dis.Red.M'!I1148:I1157) -> 5299 | J35: =SUM('Dis.Red.M'!J1148:J1157) -> 6105 | K35: =SUM('Dis.Red.M'!K1148:K1157) -> 6952 | L35: =SUM('Dis.Red.M'!L1148:L1157) -> 7996 | M35: =SUM('Dis.Red.M'!M1148:M1157) -> 9088 | N35: =SUM('Dis.Red.M'!N1148:N1157) -> 10276
G36: Estaciones SRAN | H36: Todos | I36: =SUM('Dis.Red.M'!I1413:I1422) -> 9837 | J36: =SUM('Dis.Red.M'!J1413:J1422) -> 10671 | K36: =SUM('Dis.Red.M'!K1413:K1422) -> 10505 | L36: =SUM('Dis.Red.M'!L1413:L1422) -> 9990 | M36: =SUM('Dis.Red.M'!M1413:M1422) -> 9768 | N36: =SUM('Dis.Red.M'!N1413:N1422) -> 10579
G37: Sitios SRAN | H37: Todos | I37: =SUM('Dis.Red.M'!I2065:I2074) -> 6287 | J37: =SUM('Dis.Red.M'!J2065:J2074) -> 6719 | K37: =SUM('Dis.Red.M'!K2065:K2074) -> 7207 | L37: =SUM('Dis.Red.M'!L2065:L2074) -> 8251 | M37: =SUM('Dis.Red.M'!M2065:M2074) -> 9343 | N37: =SUM('Dis.Red.M'!N2065:N2074) -> 10531
G40: GSM Tráfico Sitio | H40: Tráfico Voz (BHErlang) | I40: =SUM('Dis.Red.M'!I132:I141)/I33 -> 29.12588385 | J40: =SUM('Dis.Red.M'!J132:J141)/J33 -> 24.3843025 | K40: =SUM('Dis.Red.M'!K132:K141)/K33 -> 15.4222922 | L40: =SUM('Dis.Red.M'!L132:L141)/L33 -> 9.445335688 | M40: =SUM('Dis.Red.M'!M132:M141)/M33 -> 5.034927758 | N40: =SUM('Dis.Red.M'!N132:N141)/N33 -> 2.678371349
G41: UMTS Tráfico Sitio | H41: Tráfico Voz (BHErlang) | I41: =SUM('Dis.Red.M'!I351:I360)/I34 -> 119.6318659 | J41: =SUM('Dis.Red.M'!J351:J360)/J34 -> 86.42270916 | K41: =SUM('Dis.Red.M'!K351:K360)/K34 -> 89.13961695 | L41: =SUM('Dis.Red.M'!L351:L360)/L34 -> 69.65053359 | M41: =SUM('Dis.Red.M'!M351:M360)/M34 -> 46.84258873 | N41: =SUM('Dis.Red.M'!N351:N360)/N34 -> 28.99501505
I45: =INDEX(años,I$31) -> 0 | J45: 1 | K45: 2 | L45: 3 | M45: 4 | N45: 5
G46: Sitios GSM | H46: Cobertura | I46: =SUM('Dis.Red.M'!I91:I100) -> 4971 | J46: =SUM('Dis.Red.M'!J91:J100) -> 4971 | K46: =SUM('Dis.Red.M'!K91:K100) -> 4971 | L46: =SUM('Dis.Red.M'!L91:L100) -> 4971 | M46: =SUM('Dis.Red.M'!M91:M100) -> 4971 | N46: =SUM('Dis.Red.M'!N91:N100) -> 4971
G47: Sitios GSM | H47: Capacidad Voz | I47: =SUM('Dis.Red.M'!I209:I218) -> 409 | J47: =SUM('Dis.Red.M'!J209:J218) -> 321 | K47: =SUM('Dis.Red.M'!K209:K218) -> 183 | L47: =SUM('Dis.Red.M'!L209:L218) -> 108 | M47: =SUM('Dis.Red.M'!M209:M218) -> 57 | N47: =SUM('Dis.Red.M'!N209:N218) -> 13
G48: Sitios GSM | H48: Capacidad Datos | I48: =SUM('Dis.Red.M'!I281:I290) -> 0 | J48: =SUM('Dis.Red.M'!J281:J290) -> 0 | K48: =SUM('Dis.Red.M'!K281:K290) -> 0 | L48: =SUM('Dis.Red.M'!L281:L290) -> 0 | M48: =SUM('Dis.Red.M'!M281:M290) -> 0 | N48: =SUM('Dis.Red.M'!N281:N290) -> 0
H49: % sitios Cobertura 2G | I49: =I46/I33 -> 0.9239776952 | J49: 0.9393424036 | K49: 0.9644935972 | L49: 0.9787359716 | M49: 0.9886634845 | N49: 0.9973916533
G50: Sitios UMTS | H50: Cobertura | I50: =SUM('Dis.Red.M'!I102:I111) -> 4971 | J50: =SUM('Dis.Red.M'!J102:J111) -> 4971 | K50: =SUM('Dis.Red.M'!K102:K111) -> 4971 | L50: =SUM('Dis.Red.M'!L102:L111) -> 4971 | M50: =SUM('Dis.Red.M'!M102:M111) -> 4971 | N50: =SUM('Dis.Red.M'!N102:N111) -> 4971
G51: Sitios UMTS | H51: Capacidad R99 | I51: =SUM('Dis.Red.M'!I878:I887) -> 744.5 | J51: =SUM('Dis.Red.M'!J878:J887) -> 505 | K51: =SUM('Dis.Red.M'!K878:K887) -> 514.5 | L51: =SUM('Dis.Red.M'!L878:L887) -> 368.5 | M51: =SUM('Dis.Red.M'!M878:M887) -> 226 | N51: =SUM('Dis.Red.M'!N878:N887) -> 113.5
G52: Sitios UMTS | H52: Capacidad HSPA | I52: =SUM('Dis.Red.M'!I889:I898) -> 1291 | J52: =SUM('Dis.Red.M'!J889:J898) -> 1709.5 | K52: =SUM('Dis.Red.M'!K889:K898) -> 1617 | L52: =SUM('Dis.Red.M'!L889:L898) -> 1372.5 | M52: =SUM('Dis.Red.M'!M889:M898) -> 1220 | N52: =SUM('Dis.Red.M'!N889:N898) -> 997.5
H53: % sitios Cobertura 3G | I53: =I50/I34 -> 0.7906791793 | J53: 0.7398422384 | K53: 0.7504528986 | L53: 0.7802542772 | M53: 0.799839099 | N53: 0.8305764411
G54: Sitios LTE | H54: Cobertura | I54: =SUM('Dis.Red.M'!I113:I122) -> 4521 | J54: =SUM('Dis.Red.M'!J113:J122) -> 4521 | K54: =SUM('Dis.Red.M'!K113:K122) -> 4521 | L54: =SUM('Dis.Red.M'!L113:L122) -> 4521 | M54: =SUM('Dis.Red.M'!M113:M122) -> 4521 | N54: =SUM('Dis.Red.M'!N113:N122) -> 4521
G55: Sitios LTE | H55: Capacidad | I55: =SUM('Dis.Red.M'!I1137:I1146) -> 778 | J55: =SUM('Dis.Red.M'!J1137:J1146) -> 1584 | K55: =SUM('Dis.Red.M'!K1137:K1146) -> 2431 | L55: =SUM('Dis.Red.M'!L1137:L1146) -> 3475 | M55: =SUM('Dis.Red.M'!M1137:M1146) -> 4567 | N55: =SUM('Dis.Red.M'!N1137:N1146) -> 5755
H56: % sitios Cobertura 4G | I56: =I54/I35 -> 0.8531798453 | J56: 0.7405405405 | K56: 0.6503164557 | L56: 0.5654077039 | M56: 0.4974691901 | N56: 0.4399571818
G58: Erlangs | I58: ='Dda.Red.M'!K710 -> 1044601.761 | J58: ='Dda.Red.M'!L710 -> 1075308.042 | K58: ='Dda.Red.M'!M710 -> 1135490.187 | L58: ='Dda.Red.M'!N710 -> 1199298.467 | M58: ='Dda.Red.M'!O710 -> 1265760.933 | N58: ='Dda.Red.M'!P710 -> 1334877.585
G59: MBPS | I59: ='Dda.Red.M'!K712 -> 350831.3072 | J59: ='Dda.Red.M'!L712 -> 519001.9647 | K59: ='Dda.Red.M'!M712 -> 620089.7603 | L59: ='Dda.Red.M'!N712 -> 728243.8029 | M59: ='Dda.Red.M'!O712 -> 846107.2852 | N59: ='Dda.Red.M'!P712 -> 974143.0842
J61: =J58/I58-1 -> 0.02939520256 | K61: 0.05596735387 | L61: 0.05619447907 | M61: 0.05541778595 | N61: 0.05460482316
J62: 0.4793490606 | K62: 0.1947734353 | L62: 0.1744167531 | M62: 0.1618461864 | N62: 0.151323362
G64: Mbyte | I64: =Asignadores!I38+Asignadores!I39 -> 493806160.1 | J64: =Asignadores!J38+Asignadores!J39 -> 654242109.1 | K64: =Asignadores!K38+Asignadores!K39 -> 822524500.9 | L64: =Asignadores!L38+Asignadores!L39 -> 1011692855 | M64: =Asignadores!M38+Asignadores!M39 -> 1221344259 | N64: =Asignadores!N38+Asignadores!N39 -> 1451534070
J65: =J64/I64-1 -> 0.3248966133 | K65: =K64/J64-1 -> 0.2572173044 | L65: =L64/K64-1 -> 0.2299850696 | M65: =M64/L64-1 -> 0.2072283132 | N65: =N64/M64-1 -> 0.1884725034
J66: =J64/$I$64-1 -> 0.3248966133 | K66: =K64/$I$64-1 -> 0.6656829488 | L66: =L64/$I$64-1 -> 1.048765158 | M66: =M64/$I$64-1 -> 1.473327306 | N66: =N64/$I$64-1 -> 1.939481495
B72: Escenario
H74: 1 | I74: esc.sel
F77: ID | G77: Escenario
F78: 1 | G78: Esc1
F79: 2 | G79: Esc2
F80: 3 | G80: Esc3
F81: 4 | G81: Esc4
G82: esc.lis
B85: Asignaciones de Espectro
B87: Espectro Total Máximo BW Pareado
F89: ID | G89: Frecuencia | L89: BW Pareado | N89: Esc 1 | O89: Esc 2 | P89: Esc 3 | Q89: Esc 4 | R89: Esc 5 | S89: Esc 6
F90: 1 | G90: =INDEX(L.frec.nom,$F90) -> 700 | L90: =INDEX($N90:$S90,esc.sel) -> 10 | N90: 10 | O90: 10 | P90: 10 | Q90: 10 | R90: 10 | S90: 10
F91: 2 | G91: 850 | L91: 12.5 | N91: 12.5 | O91: 12.5 | P91: 12.5 | Q91: 12.5 | R91: 12.5 | S91: 12.5
F92: 3 | G92: 1900 | L92: 10 | N92: 10 | O92: 10 | P92: 10 | Q92: 10 | R92: 10 | S92: 10
F93: 4 | G93: 1700 | L93: 10 | N93: 10 | O93: 10 | P93: 10 | Q93: 10 | R93: 10 | S93: 10
F94: 5 | G94: 2500 | L94: 10 | N94: 10 | O94: 10 | P94: 10 | Q94: 10 | R94: 10 | S94: 10
F95: 6 | G95: libre | L95: 0 | N95: 0 | O95: 0 | P95: 0 | Q95: 0 | R95: 0 | S95: 0
B98: Espectro por Tecnología
E100: ID F | F100: ID | G100: Frecuencia | H100: Tecnología | L100: BW Pareado | N100: Esc 1 | O100: Esc 2 | P100: Esc 3 | Q100: Esc 4 | R100: Esc 5 | S100: Esc 6
E101: 1 | F101: 1 | G101: =INDEX(L.frec.nom,$E101) -> 700 | H101: =INDEX(L.tec.nom,F101) -> GSM | L101: =INDEX($N101:$S101,esc.sel) -> 0 | N101: 0 | O101: 0 | P101: 0 | Q101: 0 | R101: 0 | S101: 0
E102: 1 | F102: 2 | G102: 700 | H102: UMTS | L102: 0 | N102: 0 | O102: 0 | P102: 0 | Q102: 0 | R102: 0 | S102: 0
E103: 1 | F103: 3 | G103: 700 | H103: LTE | L103: 10 | N103: =INDEX(N$90:N$95,$E103)-N101-N102 -> 10 | O103: 10 | P103: =INDEX(P$90:P$95,$E103)-P101-P102 -> 10 | Q103: 10 | R103: 10 | S103: 10
E104: 1 | F104: 4 | G104: 700 | H104: libre | L104: 0 | N104: 0 | O104: 0 | P104: 0 | Q104: 0 | R104: 0 | S104: 0
E105: =E101+1 -> 2 | F105: =F101 -> 1 | G105: 850 | H105: GSM | L105: 7.5 | N105: 7.5 | O105: 7.5 | P105: 7.5 | Q105: 7.5 | R105: 7.5 | S105: 7.5
E106: 2 | F106: 2 | G106: 850 | H106: UMTS | L106: 5 | N106: 5 | O106: 5 | P106: 5 | Q106: 5 | R106: 5 | S106: 5
E107: 2 | F107: 3 | G107: 850 | H107: LTE | L107: 0 | N107: =INDEX(N$90:N$95,$E107)-N105-N106 -> 0 | O107: 0 | P107: =INDEX(P$90:P$95,$E107)-P105-P106 -> 0 | Q107: 0 | R107: 0 | S107: 0
E108: 2 | F108: 4 | G108: 850 | H108: libre | L108: 0 | N108: 0 | O108: 0 | P108: 0 | Q108: 0 | R108: 0 | S108: 0
E109: 3 | F109: 1 | G109: 1900 | H109: GSM | L109: 5 | N109: 5 | O109: 5 | P109: 5 | Q109: 5 | R109: 5 | S109: 5
E110: 3 | F110: 2 | G110: 1900 | H110: UMTS | L110: 5 | N110: 5 | O110: 5 | P110: 5 | Q110: 5 | R110: 5 | S110: 5
E111: 3 | F111: 3 | G111: 1900 | H111: LTE | L111: 0 | N111: =INDEX(N$90:N$95,$E111)-N109-N110 -> 0 | O111: 0 | P111: =INDEX(P$90:P$95,$E111)-P109-P110 -> 0 | Q111: 0 | R111: 0 | S111: 0
E112: 3 | F112: 4 | G112: 1900 | H112: libre | L112: 0 | N112: 0 | O112: 0 | P112: 0 | Q112: 0 | R112: 0 | S112: 0
E113: 4 | F113: 1 | G113: 1700 | H113: GSM | L113: 0 | N113: 0 | O113: 0 | P113: 0 | Q113: 0 | R113: 0 | S113: 0
E114: 4 | F114: 2 | G114: 1700 | H114: UMTS | L114: 10 | N114: 10 | O114: 10 | P114: 10 | Q114: 10 | R114: 10 | S114: 10
E115: 4 | F115: 3 | G115: 1700 | H115: LTE | L115: 0 | N115: =INDEX(N$90:N$95,$E115)-N113-N114 -> 0 | O115: 0 | P115: =INDEX(P$90:P$95,$E115)-P113-P114 -> 0 | Q115: 0 | R115: 0 | S115: 0
E116: 4 | F116: 4 | G116: 1700 | H116: libre | L116: 0 | N116: 0 | O116: 0 | P116: 0 | Q116: 0 | R116: 0 | S116: 0
E117: 5 | F117: 1 | G117: 2500 | H117: =INDEX(L.tec.nom,F117) -> GSM | L117: 0 | N117: 0 | O117: 0 | P117: 0 | Q117: 0 | R117: 0 | S117: 0
E118: 5 | F118: 2 | G118: 2500 | H118: UMTS | L118: 0 | N118: 0 | O118: 0 | P118: 0 | Q118: 0 | R118: 0 | S118: 0
E119: 5 | F119: 3 | G119: 2500 | H119: LTE | L119: 10 | N119: =INDEX(N$90:N$95,$E119)-N117-N118 -> 10 | O119: =INDEX(O$90:O$95,$E119)-O117-O118 -> 10 | P119: =INDEX(P$90:P$95,$E119)-P117-P118 -> 10 | Q119: 10 | R119: 10 | S119: 10
E120: 5 | F120: 4 | G120: 2500 | H120: libre | L120: 0 | N120: 0 | O120: 0 | P120: 0 | Q120: 0 | R120: 0 | S120: 0
E121: 6 | F121: 1 | G121: libre | H121: GSM | L121: 0 | N121: 0 | O121: 0 | P121: 0 | Q121: 0 | R121: 0 | S121: 0
E122: 6 | F122: 2 | G122: libre | H122: UMTS | L122: 0 | N122: 0 | O122: 0 | P122: 0 | Q122: 0 | R122: 0 | S122: 0
E123: 6 | F123: 3 | G123: libre | H123: LTE | L123: 0 | N123: =INDEX(N$90:N$95,$E123)-N121-N122 -> 0 | O123: =INDEX(O$90:O$95,$E123)-O121-O122 -> 0 | P123: =INDEX(P$90:P$95,$E123)-P121-P122 -> 0 | Q123: 0 | R123: 0 | S123: 0
E124: 6 | F124: 4 | G124: libre | H124: libre | L124: 0 | N124: 0 | O124: 0 | P124: 0 | Q124: 0 | R124: 0 | S124: 0
B127: Espectro por Geotipo
D130: ID T | E130: ID F | F130: ID | G130: Geotipo | H130: Frecuencia | I130: Tecnología | L130: BW Pareado | N130: Esc 1 | O130: Esc 2 | P130: Esc 3 | Q130: Esc 4 | R130: Esc 5 | S130: Esc 6
D131: 1 | E131: 1 | F131: 1 | G131: =INDEX(L.geo.nom,F131) -> Z1: Muy Denso | H131: =INDEX(L.frec.nom,$E131) -> 700 | I131: =INDEX(L.tec.nom,D131) -> GSM | L131: =INDEX($N131:$S131,esc.sel) -> 0 | N131: =IF($G131="libre",0,IF($F131=1,INDEX($N$101:$N$124,$D131+($E131-1)*4),N130)) -> 0 | O131: =IF($G131="libre",0,IF($F131=1,INDEX($O$101:$O$124,$D131+($E131-1)*4),O130)) -> 0 | P131: =IF($G131="libre",0,IF($F131=1,INDEX($P$101:$P$124,$D131+($E131-1)*4),P130)) -> 0 | Q131: =IF($G131="libre",0,IF($F131=1,INDEX($Q$101:$Q$124,$D131+($E131-1)*4),Q130)) -> 0 | R131: =IF($G131="libre",0,IF($F131=1,INDEX($R$101:$R$124,$D131+($E131-1)*4),R130)) -> 0 | S131: =IF($G131="libre",0,IF($F131=1,INDEX($S$101:$S$124,$D131+($E131-1)*4),S130)) -> 0
D132: 1 | E132: 1 | F132: 2 | G132: Z1: Denso | H132: 700 | I132: GSM | L132: 0 | N132: 0 | O132: 0 | P132: 0 | Q132: =IF($G132="libre",0,IF($F132=1,INDEX($Q$101:$Q$124,$D132+($E132-1)*4),Q131)) -> 0 | R132: =IF($G132="libre",0,IF($F132=1,INDEX($R$101:$R$124,$D132+($E132-1)*4),R131)) -> 0 | S132: 0
D133: 1 | E133: 1 | F133: 3 | G133: Z1: Poco Denso | H133: 700 | I133: GSM | L133: 0 | N133: 0 | O133: 0 | P133: 0 | Q133: =IF($G133="libre",0,IF($F133=1,INDEX($Q$101:$Q$124,$D133+($E133-1)*4),Q132)) -> 0 | R133: =IF($G133="libre",0,IF($F133=1,INDEX($R$101:$R$124,$D133+($E133-1)*4),R132)) -> 0 | S133: 0
D134: 1 | E134: 1 | F134: 4 | G134: Z1: Carreteras | H134: 700 | I134: GSM | L134: 0 | N134: 0 | O134: 0 | P134: 0 | Q134: =IF($G134="libre",0,IF($F134=1,INDEX($Q$101:$Q$124,$D134+($E134-1)*4),Q133)) -> 0 | R134: =IF($G134="libre",0,IF($F134=1,INDEX($R$101:$R$124,$D134+($E134-1)*4),R133)) -> 0 | S134: 0
D135: 1 | E135: 1 | F135: 5 | G135: Z1: Soluciones especiales | H135: 700 | I135: GSM | L135: 0 | N135: 0 | O135: 0 | P135: 0 | Q135: =IF($G135="libre",0,IF($F135=1,INDEX($Q$101:$Q$124,$D135+($E135-1)*4),Q134)) -> 0 | R135: =IF($G135="libre",0,IF($F135=1,INDEX($R$101:$R$124,$D135+($E135-1)*4),R134)) -> 0 | S135: 0
D136: 1 | E136: 1 | F136: 6 | G136: Z2: Muy Denso | H136: 700 | I136: GSM | L136: 0 | N136: 0 | O136: 0 | P136: 0 | Q136: =IF($G136="libre",0,IF($F136=1,INDEX($Q$101:$Q$124,$D136+($E136-1)*4),Q135)) -> 0 | R136: =IF($G136="libre",0,IF($F136=1,INDEX($R$101:$R$124,$D136+($E136-1)*4),R135)) -> 0 | S136: 0
D137: 1 | E137: 1 | F137: 7 | G137: Z2: Denso | H137: 700 | I137: GSM | L137: 0 | N137: 0 | O137: 0 | P137: 0 | Q137: =IF($G137="libre",0,IF($F137=1,INDEX($Q$101:$Q$124,$D137+($E137-1)*4),Q136)) -> 0 | R137: =IF($G137="libre",0,IF($F137=1,INDEX($R$101:$R$124,$D137+($E137-1)*4),R136)) -> 0 | S137: 0
D138: 1 | E138: 1 | F138: 8 | G138: Z2: Poco Denso | H138: 700 | I138: GSM | L138: 0 | N138: 0 | O138: 0 | P138: 0 | Q138: =IF($G138="libre",0,IF($F138=1,INDEX($Q$101:$Q$124,$D138+($E138-1)*4),Q137)) -> 0 | R138: =IF($G138="libre",0,IF($F138=1,INDEX($R$101:$R$124,$D138+($E138-1)*4),R137)) -> 0 | S138: 0
D139: 1 | E139: 1 | F139: 9 | G139: Z2: Carreteras | H139: 700 | I139: GSM | L139: 0 | N139: 0 | O139: 0 | P139: 0 | Q139: =IF($G139="libre",0,IF($F139=1,INDEX($Q$101:$Q$124,$D139+($E139-1)*4),Q138)) -> 0 | R139: =IF($G139="libre",0,IF($F139=1,INDEX($R$101:$R$124,$D139+($E139-1)*4),R138)) -> 0 | S139: 0
D140: 1 | E140: 1 | F140: 10 | G140: Z2: Soluciones especiales | H140: 700 | I140: GSM | L140: 0 | N140: 0 | O140: 0 | P140: 0 | Q140: =IF($G140="libre",0,IF($F140=1,INDEX($Q$101:$Q$124,$D140+($E140-1)*4),Q139)) -> 0 | R140: =IF($G140="libre",0,IF($F140=1,INDEX($R$101:$R$124,$D140+($E140-1)*4),R139)) -> 0 | S140: 0
D141: =D131+1 -> 2 | E141: =E131 -> 1 | F141: 1 | G141: Z1: Muy Denso | H141: 700 | I141: UMTS | L141: 0 | N141: 0 | O141: 0 | P141: 0 | Q141: =IF($G141="libre",0,IF($F141=1,INDEX($Q$101:$Q$124,$D141+($E141-1)*4),Q140)) -> 0 | R141: =IF($G141="libre",0,IF($F141=1,INDEX($R$101:$R$124,$D141+($E141-1)*4),R140)) -> 0 | S141: 0
D142: 2 | E142: 1 | F142: 2 | G142: Z1: Denso | H142: 700 | I142: UMTS | L142: 0 | N142: 0 | O142: 0 | P142: 0 | Q142: =IF($G142="libre",0,IF($F142=1,INDEX($Q$101:$Q$124,$D142+($E142-1)*4),Q141)) -> 0 | R142: =IF($G142="libre",0,IF($F142=1,INDEX($R$101:$R$124,$D142+($E142-1)*4),R141)) -> 0 | S142: 0
D143: 2 | E143: 1 | F143: 3 | G143: Z1: Poco Denso | H143: 700 | I143: UMTS | L143: 0 | N143: 0 | O143: 0 | P143: 0 | Q143: =IF($G143="libre",0,IF($F143=1,INDEX($Q$101:$Q$124,$D143+($E143-1)*4),Q142)) -> 0 | R143: =IF($G143="libre",0,IF($F143=1,INDEX($R$101:$R$124,$D143+($E143-1)*4),R142)) -> 0 | S143: 0
D144: 2 | E144: 1 | F144: 4 | G144: Z1: Carreteras | H144: 700 | I144: UMTS | L144: 0 | N144: 0 | O144: 0 | P144: 0 | Q144: =IF($G144="libre",0,IF($F144=1,INDEX($Q$101:$Q$124,$D144+($E144-1)*4),Q143)) -> 0 | R144: =IF($G144="libre",0,IF($F144=1,INDEX($R$101:$R$124,$D144+($E144-1)*4),R143)) -> 0 | S144: 0
D145: 2 | E145: 1 | F145: 5 | G145: Z1: Soluciones especiales | H145: 700 | I145: UMTS | L145: 0 | N145: 0 | O145: 0 | P145: 0 | Q145: =IF($G145="libre",0,IF($F145=1,INDEX($Q$101:$Q$124,$D145+($E145-1)*4),Q144)) -> 0 | R145: =IF($G145="libre",0,IF($F145=1,INDEX($R$101:$R$124,$D145+($E145-1)*4),R144)) -> 0 | S145: 0
D146: 2 | E146: 1 | F146: 6 | G146: Z2: Muy Denso | H146: 700 | I146: UMTS | L146: 0 | N146: 0 | O146: 0 | P146: 0 | Q146: =IF($G146="libre",0,IF($F146=1,INDEX($Q$101:$Q$124,$D146+($E146-1)*4),Q145)) -> 0 | R146: =IF($G146="libre",0,IF($F146=1,INDEX($R$101:$R$124,$D146+($E146-1)*4),R145)) -> 0 | S146: 0
D147: 2 | E147: 1 | F147: 7 | G147: Z2: Denso | H147: 700 | I147: UMTS | L147: 0 | N147: 0 | O147: 0 | P147: 0 | Q147: =IF($G147="libre",0,IF($F147=1,INDEX($Q$101:$Q$124,$D147+($E147-1)*4),Q146)) -> 0 | R147: =IF($G147="libre",0,IF($F147=1,INDEX($R$101:$R$124,$D147+($E147-1)*4),R146)) -> 0 | S147: 0
D148: 2 | E148: 1 | F148: 8 | G148: Z2: Poco Denso | H148: 700 | I148: UMTS | L148: 0 | N148: 0 | O148: 0 | P148: 0 | Q148: =IF($G148="libre",0,IF($F148=1,INDEX($Q$101:$Q$124,$D148+($E148-1)*4),Q147)) -> 0 | R148: =IF($G148="libre",0,IF($F148=1,INDEX($R$101:$R$124,$D148+($E148-1)*4),R147)) -> 0 | S148: 0
D149: 2 | E149: 1 | F149: 9 | G149: Z2: Carreteras | H149: 700 | I149: UMTS | L149: 0 | N149: 0 | O149: 0 | P149: 0 | Q149: =IF($G149="libre",0,IF($F149=1,INDEX($Q$101:$Q$124,$D149+($E149-1)*4),Q148)) -> 0 | R149: =IF($G149="libre",0,IF($F149=1,INDEX($R$101:$R$124,$D149+($E149-1)*4),R148)) -> 0 | S149: 0
D150: 2 | E150: 1 | F150: 10 | G150: Z2: Soluciones especiales | H150: 700 | I150: UMTS | L150: 0 | N150: 0 | O150: 0 | P150: 0 | Q150: =IF($G150="libre",0,IF($F150=1,INDEX($Q$101:$Q$124,$D150+($E150-1)*4),Q149)) -> 0 | R150: =IF($G150="libre",0,IF($F150=1,INDEX($R$101:$R$124,$D150+($E150-1)*4),R149)) -> 0 | S150: 0
D151: 3 | E151: 1 | F151: 1 | G151: Z1: Muy Denso | H151: 700 | I151: LTE | L151: 10 | N151: 10 | O151: 10 | P151: 10 | Q151: =IF($G151="libre",0,IF($F151=1,INDEX($Q$101:$Q$124,$D151+($E151-1)*4),Q150)) -> 10 | R151: =IF($G151="libre",0,IF($F151=1,INDEX($R$101:$R$124,$D151+($E151-1)*4),R150)) -> 10 | S151: 10
D152: 3 | E152: 1 | F152: 2 | G152: Z1: Denso | H152: 700 | I152: LTE | L152: 10 | N152: 10 | O152: 10 | P152: 10 | Q152: =IF($G152="libre",0,IF($F152=1,INDEX($Q$101:$Q$124,$D152+($E152-1)*4),Q151)) -> 10 | R152: =IF($G152="libre",0,IF($F152=1,INDEX($R$101:$R$124,$D152+($E152-1)*4),R151)) -> 10 | S152: 10
D153: 3 | E153: 1 | F153: 3 | G153: Z1: Poco Denso | H153: 700 | I153: LTE | L153: 10 | N153: 10 | O153: 10 | P153: 10 | Q153: =IF($G153="libre",0,IF($F153=1,INDEX($Q$101:$Q$124,$D153+($E153-1)*4),Q152)) -> 10 | R153: =IF($G153="libre",0,IF($F153=1,INDEX($R$101:$R$124,$D153+($E153-1)*4),R152)) -> 10 | S153: 10
D154: 3 | E154: 1 | F154: 4 | G154: Z1: Carreteras | H154: 700 | I154: LTE | L154: 10 | N154: 10 | O154: 10 | P154: 10 | Q154: =IF($G154="libre",0,IF($F154=1,INDEX($Q$101:$Q$124,$D154+($E154-1)*4),Q153)) -> 10 | R154: =IF($G154="libre",0,IF($F154=1,INDEX($R$101:$R$124,$D154+($E154-1)*4),R153)) -> 10 | S154: 10
D155: 3 | E155: 1 | F155: 5 | G155: Z1: Soluciones especiales | H155: 700 | I155: LTE | L155: 10 | N155: 10 | O155: 10 | P155: 10 | Q155: =IF($G155="libre",0,IF($F155=1,INDEX($Q$101:$Q$124,$D155+($E155-1)*4),Q154)) -> 10 | R155: =IF($G155="libre",0,IF($F155=1,INDEX($R$101:$R$124,$D155+($E155-1)*4),R154)) -> 10 | S155: 10
D156: 3 | E156: 1 | F156: 6 | G156: Z2: Muy Denso | H156: 700 | I156: LTE | L156: 10 | N156: 10 | O156: 10 | P156: 10 | Q156: =IF($G156="libre",0,IF($F156=1,INDEX($Q$101:$Q$124,$D156+($E156-1)*4),Q155)) -> 10 | R156: =IF($G156="libre",0,IF($F156=1,INDEX($R$101:$R$124,$D156+($E156-1)*4),R155)) -> 10 | S156: 10
D157: 3 | E157: 1 | F157: 7 | G157: Z2: Denso | H157: 700 | I157: LTE | L157: 10 | N157: 10 | O157: 10 | P157: 10 | Q157: =IF($G157="libre",0,IF($F157=1,INDEX($Q$101:$Q$124,$D157+($E157-1)*4),Q156)) -> 10 | R157: =IF($G157="libre",0,IF($F157=1,INDEX($R$101:$R$124,$D157+($E157-1)*4),R156)) -> 10 | S157: 10
D158: 3 | E158: 1 | F158: 8 | G158: Z2: Poco Denso | H158: 700 | I158: LTE | L158: 10 | N158: 10 | O158: 10 | P158: 10 | Q158: =IF($G158="libre",0,IF($F158=1,INDEX($Q$101:$Q$124,$D158+($E158-1)*4),Q157)) -> 10 | R158: =IF($G158="libre",0,IF($F158=1,INDEX($R$101:$R$124,$D158+($E158-1)*4),R157)) -> 10 | S158: 10
D159: 3 | E159: 1 | F159: 9 | G159: Z2: Carreteras | H159: 700 | I159: LTE | L159: 10 | N159: 10 | O159: 10 | P159: 10 | Q159: =IF($G159="libre",0,IF($F159=1,INDEX($Q$101:$Q$124,$D159+($E159-1)*4),Q158)) -> 10 | R159: =IF($G159="libre",0,IF($F159=1,INDEX($R$101:$R$124,$D159+($E159-1)*4),R158)) -> 10 | S159: 10
D160: 3 | E160: 1 | F160: 10 | G160: Z2: Soluciones especiales | H160: 700 | I160: LTE | L160: 10 | N160: 10 | O160: 10 | P160: 10 | Q160: =IF($G160="libre",0,IF($F160=1,INDEX($Q$101:$Q$124,$D160+($E160-1)*4),Q159)) -> 10 | R160: =IF($G160="libre",0,IF($F160=1,INDEX($R$101:$R$124,$D160+($E160-1)*4),R159)) -> 10 | S160: 10
D161: 4 | E161: 1 | F161: 1 | G161: Z1: Muy Denso | H161: 700 | I161: libre | L161: 0 | N161: 0 | O161: 0 | P161: 0 | Q161: =IF($G161="libre",0,IF($F161=1,INDEX($Q$101:$Q$124,$D161+($E161-1)*4),Q160)) -> 0 | R161: =IF($G161="libre",0,IF($F161=1,INDEX($R$101:$R$124,$D161+($E161-1)*4),R160)) -> 0 | S161: 0
D162: 4 | E162: 1 | F162: 2 | G162: Z1: Denso | H162: 700 | I162: libre | L162: 0 | N162: 0 | O162: 0 | P162: 0 | Q162: =IF($G162="libre",0,IF($F162=1,INDEX($Q$101:$Q$124,$D162+($E162-1)*4),Q161)) -> 0 | R162: =IF($G162="libre",0,IF($F162=1,INDEX($R$101:$R$124,$D162+($E162-1)*4),R161)) -> 0 | S162: 0
D163: 4 | E163: 1 | F163: 3 | G163: =INDEX(L.geo.nom,F163) -> Z1: Poco Denso | H163: =INDEX(L.frec.nom,$E163) -> 700 | I163: =INDEX(L.tec.nom,D163) -> libre | L163: 0 | N163: 0 | O163: 0 | P163: 0 | Q163: =IF($G163="libre",0,IF($F163=1,INDEX($Q$101:$Q$124,$D163+($E163-1)*4),Q162)) -> 0 | R163: =IF($G163="libre",0,IF($F163=1,INDEX($R$101:$R$124,$D163+($E163-1)*4),R162)) -> 0 | S163: 0
D164: 4 | E164: 1 | F164: 4 | G164: Z1: Carreteras | H164: 700 | I164: libre | L164: 0 | N164: 0 | O164: 0 | P164: 0 | Q164: =IF($G164="libre",0,IF($F164=1,INDEX($Q$101:$Q$124,$D164+($E164-1)*4),Q163)) -> 0 | R164: =IF($G164="libre",0,IF($F164=1,INDEX($R$101:$R$124,$D164+($E164-1)*4),R163)) -> 0 | S164: 0
D165: 4 | E165: 1 | F165: 5 | G165: Z1: Soluciones especiales | H165: 700 | I165: libre | L165: 0 | N165: 0 | O165: 0 | P165: 0 | Q165: =IF($G165="libre",0,IF($F165=1,INDEX($Q$101:$Q$124,$D165+($E165-1)*4),Q164)) -> 0 | R165: =IF($G165="libre",0,IF($F165=1,INDEX($R$101:$R$124,$D165+($E165-1)*4),R164)) -> 0 | S165: 0
D166: 4 | E166: 1 | F166: 6 | G166: Z2: Muy Denso | H166: 700 | I166: libre | L166: 0 | N166: 0 | O166: 0 | P166: 0 | Q166: =IF($G166="libre",0,IF($F166=1,INDEX($Q$101:$Q$124,$D166+($E166-1)*4),Q165)) -> 0 | R166: =IF($G166="libre",0,IF($F166=1,INDEX($R$101:$R$124,$D166+($E166-1)*4),R165)) -> 0 | S166: 0
D167: 4 | E167: 1 | F167: 7 | G167: Z2: Denso | H167: 700 | I167: libre | L167: 0 | N167: 0 | O167: 0 | P167: 0 | Q167: =IF($G167="libre",0,IF($F167=1,INDEX($Q$101:$Q$124,$D167+($E167-1)*4),Q166)) -> 0 | R167: =IF($G167="libre",0,IF($F167=1,INDEX($R$101:$R$124,$D167+($E167-1)*4),R166)) -> 0 | S167: 0
D168: 4 | E168: 1 | F168: 8 | G168: Z2: Poco Denso | H168: 700 | I168: libre | L168: 0 | N168: 0 | O168: 0 | P168: 0 | Q168: =IF($G168="libre",0,IF($F168=1,INDEX($Q$101:$Q$124,$D168+($E168-1)*4),Q167)) -> 0 | R168: =IF($G168="libre",0,IF($F168=1,INDEX($R$101:$R$124,$D168+($E168-1)*4),R167)) -> 0 | S168: 0
D169: 4 | E169: 1 | F169: 9 | G169: Z2: Carreteras | H169: 700 | I169: libre | L169: 0 | N169: 0 | O169: 0 | P169: 0 | Q169: =IF($G169="libre",0,IF($F169=1,INDEX($Q$101:$Q$124,$D169+($E169-1)*4),Q168)) -> 0 | R169: =IF($G169="libre",0,IF($F169=1,INDEX($R$101:$R$124,$D169+($E169-1)*4),R168)) -> 0 | S169: 0
D170: 4 | E170: 1 | F170: 10 | G170: Z2: Soluciones especiales | H170: 700 | I170: libre | L170: 0 | N170: 0 | O170: 0 | P170: 0 | Q170: =IF($G170="libre",0,IF($F170=1,INDEX($Q$101:$Q$124,$D170+($E170-1)*4),Q169)) -> 0 | R170: =IF($G170="libre",0,IF($F170=1,INDEX($R$101:$R$124,$D170+($E170-1)*4),R169)) -> 0 | S170: 0
D171: =D131 -> 1 | E171: =E131+1 -> 2 | F171: =F131 -> 1 | G171: Z1: Muy Denso | H171: 850 | I171: GSM | L171: 7.5 | N171: 7.5 | O171: 7.5 | P171: 7.5 | Q171: =IF($G171="libre",0,IF($F171=1,INDEX($Q$101:$Q$124,$D171+($E171-1)*4),Q170)) -> 7.5 | R171: =IF($G171="libre",0,IF($F171=1,INDEX($R$101:$R$124,$D171+($E171-1)*4),R170)) -> 7.5 | S171: 7.5
D172: 1 | E172: 2 | F172: 2 | G172: Z1: Denso | H172: 850 | I172: GSM | L172: 7.5 | N172: 7.5 | O172: 7.5 | P172: 7.5 | Q172: =IF($G172="libre",0,IF($F172=1,INDEX($Q$101:$Q$124,$D172+($E172-1)*4),Q171)) -> 7.5 | R172: =IF($G172="libre",0,IF($F172=1,INDEX($R$101:$R$124,$D172+($E172-1)*4),R171)) -> 7.5 | S172: 7.5
D173: 1 | E173: 2 | F173: 3 | G173: Z1: Poco Denso | H173: 850 | I173: GSM | L173: 7.5 | N173: 7.5 | O173: 7.5 | P173: 7.5 | Q173: =IF($G173="libre",0,IF($F173=1,INDEX($Q$101:$Q$124,$D173+($E173-1)*4),Q172)) -> 7.5 | R173: =IF($G173="libre",0,IF($F173=1,INDEX($R$101:$R$124,$D173+($E173-1)*4),R172)) -> 7.5 | S173: 7.5
D174: 1 | E174: 2 | F174: 4 | G174: Z1: Carreteras | H174: 850 | I174: GSM | L174: 7.5 | N174: 7.5 | O174: 7.5 | P174: 7.5 | Q174: =IF($G174="libre",0,IF($F174=1,INDEX($Q$101:$Q$124,$D174+($E174-1)*4),Q173)) -> 7.5 | R174: =IF($G174="libre",0,IF($F174=1,INDEX($R$101:$R$124,$D174+($E174-1)*4),R173)) -> 7.5 | S174: 7.5
D175: 1 | E175: 2 | F175: 5 | G175: Z1: Soluciones especiales | H175: 850 | I175: GSM | L175: 7.5 | N175: 7.5 | O175: 7.5 | P175: 7.5 | Q175: =IF($G175="libre",0,IF($F175=1,INDEX($Q$101:$Q$124,$D175+($E175-1)*4),Q174)) -> 7.5 | R175: =IF($G175="libre",0,IF($F175=1,INDEX($R$101:$R$124,$D175+($E175-1)*4),R174)) -> 7.5 | S175: 7.5
D176: 1 | E176: 2 | F176: 6 | G176: Z2: Muy Denso | H176: 850 | I176: GSM | L176: 7.5 | N176: 7.5 | O176: 7.5 | P176: 7.5 | Q176: =IF($G176="libre",0,IF($F176=1,INDEX($Q$101:$Q$124,$D176+($E176-1)*4),Q175)) -> 7.5 | R176: =IF($G176="libre",0,IF($F176=1,INDEX($R$101:$R$124,$D176+($E176-1)*4),R175)) -> 7.5 | S176: 7.5
D177: 1 | E177: 2 | F177: 7 | G177: Z2: Denso | H177: 850 | I177: GSM | L177: 7.5 | N177: 7.5 | O177: 7.5 | P177: 7.5 | Q177: =IF($G177="libre",0,IF($F177=1,INDEX($Q$101:$Q$124,$D177+($E177-1)*4),Q176)) -> 7.5 | R177: =IF($G177="libre",0,IF($F177=1,INDEX($R$101:$R$124,$D177+($E177-1)*4),R176)) -> 7.5 | S177: 7.5
D178: 1 | E178: 2 | F178: 8 | G178: Z2: Poco Denso | H178: 850 | I178: GSM | L178: 7.5 | N178: 7.5 | O178: 7.5 | P178: 7.5 | Q178: =IF($G178="libre",0,IF($F178=1,INDEX($Q$101:$Q$124,$D178+($E178-1)*4),Q177)) -> 7.5 | R178: =IF($G178="libre",0,IF($F178=1,INDEX($R$101:$R$124,$D178+($E178-1)*4),R177)) -> 7.5 | S178: 7.5
D179: 1 | E179: 2 | F179: 9 | G179: Z2: Carreteras | H179: 850 | I179: GSM | L179: 7.5 | N179: 7.5 | O179: 7.5 | P179: 7.5 | Q179: =IF($G179="libre",0,IF($F179=1,INDEX($Q$101:$Q$124,$D179+($E179-1)*4),Q178)) -> 7.5 | R179: =IF($G179="libre",0,IF($F179=1,INDEX($R$101:$R$124,$D179+($E179-1)*4),R178)) -> 7.5 | S179: 7.5
D180: 1 | E180: 2 | F180: 10 | G180: Z2: Soluciones especiales | H180: 850 | I180: GSM | L180: 7.5 | N180: 7.5 | O180: 7.5 | P180: 7.5 | Q180: =IF($G180="libre",0,IF($F180=1,INDEX($Q$101:$Q$124,$D180+($E180-1)*4),Q179)) -> 7.5 | R180: =IF($G180="libre",0,IF($F180=1,INDEX($R$101:$R$124,$D180+($E180-1)*4),R179)) -> 7.5 | S180: 7.5
D181: 2 | E181: 2 | F181: 1 | G181: Z1: Muy Denso | H181: 850 | I181: UMTS | L181: 5 | N181: 5 | O181: 5 | P181: 5 | Q181: =IF($G181="libre",0,IF($F181=1,INDEX($Q$101:$Q$124,$D181+($E181-1)*4),Q180)) -> 5 | R181: =IF($G181="libre",0,IF($F181=1,INDEX($R$101:$R$124,$D181+($E181-1)*4),R180)) -> 5 | S181: 5
D182: 2 | E182: 2 | F182: 2 | G182: Z1: Denso | H182: 850 | I182: UMTS | L182: 5 | N182: 5 | O182: 5 | P182: 5 | Q182: =IF($G182="libre",0,IF($F182=1,INDEX($Q$101:$Q$124,$D182+($E182-1)*4),Q181)) -> 5 | R182: =IF($G182="libre",0,IF($F182=1,INDEX($R$101:$R$124,$D182+($E182-1)*4),R181)) -> 5 | S182: 5
D183: 2 | E183: 2 | F183: 3 | G183: Z1: Poco Denso | H183: 850 | I183: UMTS | L183: 5 | N183: 5 | O183: 5 | P183: 5 | Q183: =IF($G183="libre",0,IF($F183=1,INDEX($Q$101:$Q$124,$D183+($E183-1)*4),Q182)) -> 5 | R183: =IF($G183="libre",0,IF($F183=1,INDEX($R$101:$R$124,$D183+($E183-1)*4),R182)) -> 5 | S183: 5
D184: 2 | E184: 2 | F184: 4 | G184: Z1: Carreteras | H184: 850 | I184: UMTS | L184: 5 | N184: 5 | O184: 5 | P184: 5 | Q184: =IF($G184="libre",0,IF($F184=1,INDEX($Q$101:$Q$124,$D184+($E184-1)*4),Q183)) -> 5 | R184: =IF($G184="libre",0,IF($F184=1,INDEX($R$101:$R$124,$D184+($E184-1)*4),R183)) -> 5 | S184: 5
D185: 2 | E185: 2 | F185: 5 | G185: Z1: Soluciones especiales | H185: 850 | I185: UMTS | L185: 5 | N185: 5 | O185: 5 | P185: 5 | Q185: =IF($G185="libre",0,IF($F185=1,INDEX($Q$101:$Q$124,$D185+($E185-1)*4),Q184)) -> 5 | R185: =IF($G185="libre",0,IF($F185=1,INDEX($R$101:$R$124,$D185+($E185-1)*4),R184)) -> 5 | S185: 5
D186: 2 | E186: 2 | F186: 6 | G186: Z2: Muy Denso | H186: 850 | I186: UMTS | L186: 5 | N186: 5 | O186: 5 | P186: 5 | Q186: =IF($G186="libre",0,IF($F186=1,INDEX($Q$101:$Q$124,$D186+($E186-1)*4),Q185)) -> 5 | R186: =IF($G186="libre",0,IF($F186=1,INDEX($R$101:$R$124,$D186+($E186-1)*4),R185)) -> 5 | S186: 5
D187: 2 | E187: 2 | F187: 7 | G187: Z2: Denso | H187: 850 | I187: UMTS | L187: 5 | N187: 5 | O187: 5 | P187: 5 | Q187: =IF($G187="libre",0,IF($F187=1,INDEX($Q$101:$Q$124,$D187+($E187-1)*4),Q186)) -> 5 | R187: =IF($G187="libre",0,IF($F187=1,INDEX($R$101:$R$124,$D187+($E187-1)*4),R186)) -> 5 | S187: 5
D188: 2 | E188: 2 | F188: 8 | G188: Z2: Poco Denso | H188: 850 | I188: UMTS | L188: 5 | N188: 5 | O188: 5 | P188: 5 | Q188: =IF($G188="libre",0,IF($F188=1,INDEX($Q$101:$Q$124,$D188+($E188-1)*4),Q187)) -> 5 | R188: =IF($G188="libre",0,IF($F188=1,INDEX($R$101:$R$124,$D188+($E188-1)*4),R187)) -> 5 | S188: 5
D189: 2 | E189: 2 | F189: 9 | G189: Z2: Carreteras | H189: 850 | I189: UMTS | L189: 5 | N189: 5 | O189: 5 | P189: 5 | Q189: =IF($G189="libre",0,IF($F189=1,INDEX($Q$101:$Q$124,$D189+($E189-1)*4),Q188)) -> 5 | R189: =IF($G189="libre",0,IF($F189=1,INDEX($R$101:$R$124,$D189+($E189-1)*4),R188)) -> 5 | S189: 5
D190: 2 | E190: 2 | F190: 10 | G190: Z2: Soluciones especiales | H190: 850 | I190: UMTS | L190: 5 | N190: 5 | O190: 5 | P190: 5 | Q190: =IF($G190="libre",0,IF($F190=1,INDEX($Q$101:$Q$124,$D190+($E190-1)*4),Q189)) -> 5 | R190: =IF($G190="libre",0,IF($F190=1,INDEX($R$101:$R$124,$D190+($E190-1)*4),R189)) -> 5 | S190: 5
D191: 3 | E191: 2 | F191: 1 | G191: Z1: Muy Denso | H191: 850 | I191: LTE | L191: 0 | N191: 0 | O191: 0 | P191: 0 | Q191: =IF($G191="libre",0,IF($F191=1,INDEX($Q$101:$Q$124,$D191+($E191-1)*4),Q190)) -> 0 | R191: =IF($G191="libre",0,IF($F191=1,INDEX($R$101:$R$124,$D191+($E191-1)*4),R190)) -> 0 | S191: 0
D192: 3 | E192: 2 | F192: 2 | G192: Z1: Denso | H192: 850 | I192: LTE | L192: 0 | N192: 0 | O192: 0 | P192: 0 | Q192: =IF($G192="libre",0,IF($F192=1,INDEX($Q$101:$Q$124,$D192+($E192-1)*4),Q191)) -> 0 | R192: =IF($G192="libre",0,IF($F192=1,INDEX($R$101:$R$124,$D192+($E192-1)*4),R191)) -> 0 | S192: 0
D193: 3 | E193: 2 | F193: 3 | G193: Z1: Poco Denso | H193: 850 | I193: LTE | L193: 0 | N193: 0 | O193: 0 | P193: 0 | Q193: =IF($G193="libre",0,IF($F193=1,INDEX($Q$101:$Q$124,$D193+($E193-1)*4),Q192)) -> 0 | R193: =IF($G193="libre",0,IF($F193=1,INDEX($R$101:$R$124,$D193+($E193-1)*4),R192)) -> 0 | S193: 0
D194: 3 | E194: 2 | F194: 4 | G194: Z1: Carreteras | H194: 850 | I194: LTE | L194: 0 | N194: 0 | O194: 0 | P194: 0 | Q194: =IF($G194="libre",0,IF($F194=1,INDEX($Q$101:$Q$124,$D194+($E194-1)*4),Q193)) -> 0 | R194: =IF($G194="libre",0,IF($F194=1,INDEX($R$101:$R$124,$D194+($E194-1)*4),R193)) -> 0 | S194: 0
D195: 3 | E195: 2 | F195: 5 | G195: =INDEX(L.geo.nom,F195) -> Z1: Soluciones especiales | H195: =INDEX(L.frec.nom,$E195) -> 850 | I195: =INDEX(L.tec.nom,D195) -> LTE | L195: =INDEX($N195:$S195,esc.sel) -> 0 | N195: =IF($G195="libre",0,IF($F195=1,INDEX($N$101:$N$124,$D195+($E195-1)*4),N194)) -> 0 | O195: =IF($G195="libre",0,IF($F195=1,INDEX($O$101:$O$124,$D195+($E195-1)*4),O194)) -> 0 | P195: =IF($G195="libre",0,IF($F195=1,INDEX($P$101:$P$124,$D195+($E195-1)*4),P194)) -> 0 | Q195: =IF($G195="libre",0,IF($F195=1,INDEX($Q$101:$Q$124,$D195+($E195-1)*4),Q194)) -> 0 | R195: =IF($G195="libre",0,IF($F195=1,INDEX($R$101:$R$124,$D195+($E195-1)*4),R194)) -> 0 | S195: =IF($G195="libre",0,IF($F195=1,INDEX($S$101:$S$124,$D195+($E195-1)*4),S194)) -> 0
D196: 3 | E196: 2 | F196: 6 | G196: Z2: Muy Denso | H196: 850 | I196: LTE | L196: 0 | N196: 0 | O196: 0 | P196: 0 | Q196: =IF($G196="libre",0,IF($F196=1,INDEX($Q$101:$Q$124,$D196+($E196-1)*4),Q195)) -> 0 | R196: =IF($G196="libre",0,IF($F196=1,INDEX($R$101:$R$124,$D196+($E196-1)*4),R195)) -> 0 | S196: 0
D197: 3 | E197: 2 | F197: 7 | G197: Z2: Denso | H197: 850 | I197: LTE | L197: 0 | N197: 0 | O197: 0 | P197: 0 | Q197: =IF($G197="libre",0,IF($F197=1,INDEX($Q$101:$Q$124,$D197+($E197-1)*4),Q196)) -> 0 | R197: =IF($G197="libre",0,IF($F197=1,INDEX($R$101:$R$124,$D197+($E197-1)*4),R196)) -> 0 | S197: 0
D198: 3 | E198: 2 | F198: 8 | G198: Z2: Poco Denso | H198: 850 | I198: LTE | L198: 0 | N198: 0 | O198: 0 | P198: 0 | Q198: =IF($G198="libre",0,IF($F198=1,INDEX($Q$101:$Q$124,$D198+($E198-1)*4),Q197)) -> 0 | R198: =IF($G198="libre",0,IF($F198=1,INDEX($R$101:$R$124,$D198+($E198-1)*4),R197)) -> 0 | S198: 0
D199: 3 | E199: 2 | F199: 9 | G199: Z2: Carreteras | H199: 850 | I199: LTE | L199: 0 | N199: 0 | O199: 0 | P199: 0 | Q199: =IF($G199="libre",0,IF($F199=1,INDEX($Q$101:$Q$124,$D199+($E199-1)*4),Q198)) -> 0 | R199: =IF($G199="libre",0,IF($F199=1,INDEX($R$101:$R$124,$D199+($E199-1)*4),R198)) -> 0 | S199: 0
D200: 3 | E200: 2 | F200: 10 | G200: Z2: Soluciones especiales | H200: 850 | I200: LTE | L200: 0 | N200: 0 | O200: 0 | P200: 0 | Q200: =IF($G200="libre",0,IF($F200=1,INDEX($Q$101:$Q$124,$D200+($E200-1)*4),Q199)) -> 0 | R200: =IF($G200="libre",0,IF($F200=1,INDEX($R$101:$R$124,$D200+($E200-1)*4),R199)) -> 0 | S200: 0
D201: 4 | E201: 2 | F201: 1 | G201: Z1: Muy Denso | H201: 850 | I201: libre | L201: 0 | N201: 0 | O201: 0 | P201: 0 | Q201: =IF($G201="libre",0,IF($F201=1,INDEX($Q$101:$Q$124,$D201+($E201-1)*4),Q200)) -> 0 | R201: =IF($G201="libre",0,IF($F201=1,INDEX($R$101:$R$124,$D201+($E201-1)*4),R200)) -> 0 | S201: 0
D202: 4 | E202: 2 | F202: 2 | G202: Z1: Denso | H202: 850 | I202: libre | L202: 0 | N202: 0 | O202: 0 | P202: 0 | Q202: =IF($G202="libre",0,IF($F202=1,INDEX($Q$101:$Q$124,$D202+($E202-1)*4),Q201)) -> 0 | R202: =IF($G202="libre",0,IF($F202=1,INDEX($R$101:$R$124,$D202+($E202-1)*4),R201)) -> 0 | S202: 0
D203: =D163 -> 4 | E203: =E163+1 -> 2 | F203: =F163 -> 3 | G203: Z1: Poco Denso | H203: 850 | I203: libre | L203: 0 | N203: 0 | O203: 0 | P203: 0 | Q203: =IF($G203="libre",0,IF($F203=1,INDEX($Q$101:$Q$124,$D203+($E203-1)*4),Q202)) -> 0 | R203: =IF($G203="libre",0,IF($F203=1,INDEX($R$101:$R$124,$D203+($E203-1)*4),R202)) -> 0 | S203: 0
D204: 4 | E204: 2 | F204: 4 | G204: Z1: Carreteras | H204: 850 | I204: libre | L204: 0 | N204: 0 | O204: 0 | P204: 0 | Q204: =IF($G204="libre",0,IF($F204=1,INDEX($Q$101:$Q$124,$D204+($E204-1)*4),Q203)) -> 0 | R204: =IF($G204="libre",0,IF($F204=1,INDEX($R$101:$R$124,$D204+($E204-1)*4),R203)) -> 0 | S204: 0
D205: 4 | E205: 2 | F205: 5 | G205: Z1: Soluciones especiales | H205: 850 | I205: libre | L205: 0 | N205: 0 | O205: 0 | P205: 0 | Q205: =IF($G205="libre",0,IF($F205=1,INDEX($Q$101:$Q$124,$D205+($E205-1)*4),Q204)) -> 0 | R205: =IF($G205="libre",0,IF($F205=1,INDEX($R$101:$R$124,$D205+($E205-1)*4),R204)) -> 0 | S205: 0
D206: 4 | E206: 2 | F206: 6 | G206: Z2: Muy Denso | H206: 850 | I206: libre | L206: 0 | N206: 0 | O206: 0 | P206: 0 | Q206: =IF($G206="libre",0,IF($F206=1,INDEX($Q$101:$Q$124,$D206+($E206-1)*4),Q205)) -> 0 | R206: =IF($G206="libre",0,IF($F206=1,INDEX($R$101:$R$124,$D206+($E206-1)*4),R205)) -> 0 | S206: 0
D207: 4 | E207: 2 | F207: 7 | G207: Z2: Denso | H207: 850 | I207: libre | L207: 0 | N207: 0 | O207: 0 | P207: 0 | Q207: =IF($G207="libre",0,IF($F207=1,INDEX($Q$101:$Q$124,$D207+($E207-1)*4),Q206)) -> 0 | R207: =IF($G207="libre",0,IF($F207=1,INDEX($R$101:$R$124,$D207+($E207-1)*4),R206)) -> 0 | S207: 0
D208: 4 | E208: 2 | F208: 8 | G208: Z2: Poco Denso | H208: 850 | I208: libre | L208: 0 | N208: 0 | O208: 0 | P208: 0 | Q208: =IF($G208="libre",0,IF($F208=1,INDEX($Q$101:$Q$124,$D208+($E208-1)*4),Q207)) -> 0 | R208: =IF($G208="libre",0,IF($F208=1,INDEX($R$101:$R$124,$D208+($E208-1)*4),R207)) -> 0 | S208: 0
D209: 4 | E209: 2 | F209: 9 | G209: Z2: Carreteras | H209: 850 | I209: libre | L209: 0 | N209: 0 | O209: 0 | P209: 0 | Q209: =IF($G209="libre",0,IF($F209=1,INDEX($Q$101:$Q$124,$D209+($E209-1)*4),Q208)) -> 0 | R209: =IF($G209="libre",0,IF($F209=1,INDEX($R$101:$R$124,$D209+($E209-1)*4),R208)) -> 0 | S209: 0
D210: 4 | E210: 2 | F210: 10 | G210: Z2: Soluciones especiales | H210: 850 | I210: libre | L210: 0 | N210: 0 | O210: 0 | P210: 0 | Q210: =IF($G210="libre",0,IF($F210=1,INDEX($Q$101:$Q$124,$D210+($E210-1)*4),Q209)) -> 0 | R210: =IF($G210="libre",0,IF($F210=1,INDEX($R$101:$R$124,$D210+($E210-1)*4),R209)) -> 0 | S210: 0
D211: 1 | E211: 3 | F211: 1 | G211: Z1: Muy Denso | H211: 1900 | I211: GSM | L211: 5 | N211: 5 | O211: 5 | P211: 5 | Q211: =IF($G211="libre",0,IF($F211=1,INDEX($Q$101:$Q$124,$D211+($E211-1)*4),Q210)) -> 5 | R211: =IF($G211="libre",0,IF($F211=1,INDEX($R$101:$R$124,$D211+($E211-1)*4),R210)) -> 5 | S211: 5
D212: 1 | E212: 3 | F212: 2 | G212: Z1: Denso | H212: 1900 | I212: GSM | L212: 5 | N212: 5 | O212: 5 | P212: 5 | Q212: =IF($G212="libre",0,IF($F212=1,INDEX($Q$101:$Q$124,$D212+($E212-1)*4),Q211)) -> 5 | R212: =IF($G212="libre",0,IF($F212=1,INDEX($R$101:$R$124,$D212+($E212-1)*4),R211)) -> 5 | S212: 5
D213: 1 | E213: 3 | F213: 3 | G213: Z1: Poco Denso | H213: 1900 | I213: GSM | L213: 5 | N213: 5 | O213: 5 | P213: 5 | Q213: =IF($G213="libre",0,IF($F213=1,INDEX($Q$101:$Q$124,$D213+($E213-1)*4),Q212)) -> 5 | R213: =IF($G213="libre",0,IF($F213=1,INDEX($R$101:$R$124,$D213+($E213-1)*4),R212)) -> 5 | S213: 5
D214: 1 | E214: 3 | F214: 4 | G214: Z1: Carreteras | H214: 1900 | I214: GSM | L214: 5 | N214: 5 | O214: 5 | P214: 5 | Q214: =IF($G214="libre",0,IF($F214=1,INDEX($Q$101:$Q$124,$D214+($E214-1)*4),Q213)) -> 5 | R214: =IF($G214="libre",0,IF($F214=1,INDEX($R$101:$R$124,$D214+($E214-1)*4),R213)) -> 5 | S214: 5
D215: 1 | E215: 3 | F215: 5 | G215: Z1: Soluciones especiales | H215: 1900 | I215: GSM | L215: 5 | N215: 5 | O215: 5 | P215: 5 | Q215: =IF($G215="libre",0,IF($F215=1,INDEX($Q$101:$Q$124,$D215+($E215-1)*4),Q214)) -> 5 | R215: =IF($G215="libre",0,IF($F215=1,INDEX($R$101:$R$124,$D215+($E215-1)*4),R214)) -> 5 | S215: 5
D216: 1 | E216: 3 | F216: 6 | G216: Z2: Muy Denso | H216: 1900 | I216: GSM | L216: 5 | N216: 5 | O216: 5 | P216: 5 | Q216: =IF($G216="libre",0,IF($F216=1,INDEX($Q$101:$Q$124,$D216+($E216-1)*4),Q215)) -> 5 | R216: =IF($G216="libre",0,IF($F216=1,INDEX($R$101:$R$124,$D216+($E216-1)*4),R215)) -> 5 | S216: 5
D217: 1 | E217: 3 | F217: 7 | G217: Z2: Denso | H217: 1900 | I217: GSM | L217: 5 | N217: 5 | O217: 5 | P217: 5 | Q217: =IF($G217="libre",0,IF($F217=1,INDEX($Q$101:$Q$124,$D217+($E217-1)*4),Q216)) -> 5 | R217: =IF($G217="libre",0,IF($F217=1,INDEX($R$101:$R$124,$D217+($E217-1)*4),R216)) -> 5 | S217: 5
D218: 1 | E218: 3 | F218: 8 | G218: Z2: Poco Denso | H218: 1900 | I218: GSM | L218: 5 | N218: 5 | O218: 5 | P218: 5 | Q218: =IF($G218="libre",0,IF($F218=1,INDEX($Q$101:$Q$124,$D218+($E218-1)*4),Q217)) -> 5 | R218: =IF($G218="libre",0,IF($F218=1,INDEX($R$101:$R$124,$D218+($E218-1)*4),R217)) -> 5 | S218: 5
D219: 1 | E219: 3 | F219: 9 | G219: Z2: Carreteras | H219: 1900 | I219: GSM | L219: 5 | N219: 5 | O219: 5 | P219: 5 | Q219: =IF($G219="libre",0,IF($F219=1,INDEX($Q$101:$Q$124,$D219+($E219-1)*4),Q218)) -> 5 | R219: =IF($G219="libre",0,IF($F219=1,INDEX($R$101:$R$124,$D219+($E219-1)*4),R218)) -> 5 | S219: 5
D220: 1 | E220: 3 | F220: 10 | G220: Z2: Soluciones especiales | H220: 1900 | I220: GSM | L220: 5 | N220: 5 | O220: 5 | P220: 5 | Q220: =IF($G220="libre",0,IF($F220=1,INDEX($Q$101:$Q$124,$D220+($E220-1)*4),Q219)) -> 5 | R220: =IF($G220="libre",0,IF($F220=1,INDEX($R$101:$R$124,$D220+($E220-1)*4),R219)) -> 5 | S220: 5
D221: 2 | E221: 3 | F221: 1 | G221: Z1: Muy Denso | H221: 1900 | I221: UMTS | L221: 5 | N221: 5 | O221: 5 | P221: 5 | Q221: =IF($G221="libre",0,IF($F221=1,INDEX($Q$101:$Q$124,$D221+($E221-1)*4),Q220)) -> 5 | R221: =IF($G221="libre",0,IF($F221=1,INDEX($R$101:$R$124,$D221+($E221-1)*4),R220)) -> 5 | S221: 5
D222: 2 | E222: 3 | F222: 2 | G222: Z1: Denso | H222: 1900 | I222: UMTS | L222: 5 | N222: 5 | O222: 5 | P222: 5 | Q222: =IF($G222="libre",0,IF($F222=1,INDEX($Q$101:$Q$124,$D222+($E222-1)*4),Q221)) -> 5 | R222: =IF($G222="libre",0,IF($F222=1,INDEX($R$101:$R$124,$D222+($E222-1)*4),R221)) -> 5 | S222: 5
D223: 2 | E223: 3 | F223: 3 | G223: Z1: Poco Denso | H223: 1900 | I223: UMTS | L223: 5 | N223: 5 | O223: 5 | P223: 5 | Q223: =IF($G223="libre",0,IF($F223=1,INDEX($Q$101:$Q$124,$D223+($E223-1)*4),Q222)) -> 5 | R223: =IF($G223="libre",0,IF($F223=1,INDEX($R$101:$R$124,$D223+($E223-1)*4),R222)) -> 5 | S223: 5
D224: 2 | E224: 3 | F224: 4 | G224: Z1: Carreteras | H224: 1900 | I224: UMTS | L224: 5 | N224: 5 | O224: 5 | P224: 5 | Q224: =IF($G224="libre",0,IF($F224=1,INDEX($Q$101:$Q$124,$D224+($E224-1)*4),Q223)) -> 5 | R224: =IF($G224="libre",0,IF($F224=1,INDEX($R$101:$R$124,$D224+($E224-1)*4),R223)) -> 5 | S224: 5
D225: 2 | E225: 3 | F225: 5 | G225: Z1: Soluciones especiales | H225: 1900 | I225: UMTS | L225: 5 | N225: 5 | O225: 5 | P225: 5 | Q225: =IF($G225="libre",0,IF($F225=1,INDEX($Q$101:$Q$124,$D225+($E225-1)*4),Q224)) -> 5 | R225: =IF($G225="libre",0,IF($F225=1,INDEX($R$101:$R$124,$D225+($E225-1)*4),R224)) -> 5 | S225: 5
D226: 2 | E226: 3 | F226: 6 | G226: Z2: Muy Denso | H226: 1900 | I226: UMTS | L226: 5 | N226: 5 | O226: 5 | P226: 5 | Q226: =IF($G226="libre",0,IF($F226=1,INDEX($Q$101:$Q$124,$D226+($E226-1)*4),Q225)) -> 5 | R226: =IF($G226="libre",0,IF($F226=1,INDEX($R$101:$R$124,$D226+($E226-1)*4),R225)) -> 5 | S226: 5
D227: 2 | E227: 3 | F227: 7 | G227: =INDEX(L.geo.nom,F227) -> Z2: Denso | H227: =INDEX(L.frec.nom,$E227) -> 1900 | I227: =INDEX(L.tec.nom,D227) -> UMTS | L227: 5 | N227: 5 | O227: 5 | P227: 5 | Q227: =IF($G227="libre",0,IF($F227=1,INDEX($Q$101:$Q$124,$D227+($E227-1)*4),Q226)) -> 5 | R227: =IF($G227="libre",0,IF($F227=1,INDEX($R$101:$R$124,$D227+($E227-1)*4),R226)) -> 5 | S227: 5
D228: 2 | E228: 3 | F228: 8 | G228: Z2: Poco Denso | H228: 1900 | I228: UMTS | L228: 5 | N228: 5 | O228: 5 | P228: 5 | Q228: =IF($G228="libre",0,IF($F228=1,INDEX($Q$101:$Q$124,$D228+($E228-1)*4),Q227)) -> 5 | R228: =IF($G228="libre",0,IF($F228=1,INDEX($R$101:$R$124,$D228+($E228-1)*4),R227)) -> 5 | S228: 5
D229: 2 | E229: 3 | F229: 9 | G229: Z2: Carreteras | H229: 1900 | I229: UMTS | L229: 5 | N229: 5 | O229: 5 | P229: 5 | Q229: =IF($G229="libre",0,IF($F229=1,INDEX($Q$101:$Q$124,$D229+($E229-1)*4),Q228)) -> 5 | R229: =IF($G229="libre",0,IF($F229=1,INDEX($R$101:$R$124,$D229+($E229-1)*4),R228)) -> 5 | S229: 5
D230: 2 | E230: 3 | F230: 10 | G230: Z2: Soluciones especiales | H230: 1900 | I230: UMTS | L230: 5 | N230: 5 | O230: 5 | P230: 5 | Q230: =IF($G230="libre",0,IF($F230=1,INDEX($Q$101:$Q$124,$D230+($E230-1)*4),Q229)) -> 5 | R230: =IF($G230="libre",0,IF($F230=1,INDEX($R$101:$R$124,$D230+($E230-1)*4),R229)) -> 5 | S230: 5
D231: 3 | E231: 3 | F231: 1 | G231: Z1: Muy Denso | H231: 1900 | I231: LTE | L231: 0 | N231: 0 | O231: 0 | P231: 0 | Q231: =IF($G231="libre",0,IF($F231=1,INDEX($Q$101:$Q$124,$D231+($E231-1)*4),Q230)) -> 0 | R231: =IF($G231="libre",0,IF($F231=1,INDEX($R$101:$R$124,$D231+($E231-1)*4),R230)) -> 0 | S231: 0
D232: 3 | E232: 3 | F232: 2 | G232: Z1: Denso | H232: 1900 | I232: LTE | L232: 0 | N232: 0 | O232: 0 | P232: 0 | Q232: =IF($G232="libre",0,IF($F232=1,INDEX($Q$101:$Q$124,$D232+($E232-1)*4),Q231)) -> 0 | R232: =IF($G232="libre",0,IF($F232=1,INDEX($R$101:$R$124,$D232+($E232-1)*4),R231)) -> 0 | S232: 0
D233: 3 | E233: 3 | F233: 3 | G233: Z1: Poco Denso | H233: 1900 | I233: LTE | L233: 0 | N233: 0 | O233: 0 | P233: 0 | Q233: =IF($G233="libre",0,IF($F233=1,INDEX($Q$101:$Q$124,$D233+($E233-1)*4),Q232)) -> 0 | R233: =IF($G233="libre",0,IF($F233=1,INDEX($R$101:$R$124,$D233+($E233-1)*4),R232)) -> 0 | S233: 0
D234: 3 | E234: 3 | F234: 4 | G234: Z1: Carreteras | H234: 1900 | I234: LTE | L234: 0 | N234: 0 | O234: 0 | P234: 0 | Q234: =IF($G234="libre",0,IF($F234=1,INDEX($Q$101:$Q$124,$D234+($E234-1)*4),Q233)) -> 0 | R234: =IF($G234="libre",0,IF($F234=1,INDEX($R$101:$R$124,$D234+($E234-1)*4),R233)) -> 0 | S234: 0
D235: =D195 -> 3 | E235: =E195+1 -> 3 | F235: =F195 -> 5 | G235: Z1: Soluciones especiales | H235: 1900 | I235: LTE | L235: 0 | N235: 0 | O235: 0 | P235: 0 | Q235: =IF($G235="libre",0,IF($F235=1,INDEX($Q$101:$Q$124,$D235+($E235-1)*4),Q234)) -> 0 | R235: =IF($G235="libre",0,IF($F235=1,INDEX($R$101:$R$124,$D235+($E235-1)*4),R234)) -> 0 | S235: 0
D236: 3 | E236: 3 | F236: 6 | G236: Z2: Muy Denso | H236: 1900 | I236: LTE | L236: 0 | N236: 0 | O236: 0 | P236: 0 | Q236: =IF($G236="libre",0,IF($F236=1,INDEX($Q$101:$Q$124,$D236+($E236-1)*4),Q235)) -> 0 | R236: =IF($G236="libre",0,IF($F236=1,INDEX($R$101:$R$124,$D236+($E236-1)*4),R235)) -> 0 | S236: 0
D237: 3 | E237: 3 | F237: 7 | G237: Z2: Denso | H237: 1900 | I237: LTE | L237: 0 | N237: 0 | O237: 0 | P237: 0 | Q237: =IF($G237="libre",0,IF($F237=1,INDEX($Q$101:$Q$124,$D237+($E237-1)*4),Q236)) -> 0 | R237: =IF($G237="libre",0,IF($F237=1,INDEX($R$101:$R$124,$D237+($E237-1)*4),R236)) -> 0 | S237: 0
... 133 more rows

Sheet Parámetros
E2: Modelo Empresa Eficiente Móvil
E3: Parámetros
B6: Parámetros financieros
C8: id | D8: Parámetro | F8: Valor | H8: 2020 | I8: 2021 | J8: 2022 | K8: 2023 | L8: 2024 | M8: 2025
C9: 1 | D9: Tasa de Costo de Capital | E9: [%] | F9: 0.1253 | G9: tcc
C10: 2 | D10: Tasa de Tributación | E10: [%] | F10: =-PMT(tcc,5,NPV(tcc,I10:M10)) -> 0.3400093766 | G10: tax | H10: 0.32 | I10: 0.31 | J10: 0.35 | K10: 0.35 | L10: 0.35 | M10: 0.35 | N10: tax.evo
C11: 3 | D11: Tipo de Cambio Dólar | E11: [$] | F11: 3951.28 | G11: tc.dolar
C12: 4 | D12: Contribución CRC | E12: [%] | F12: 0.001 | G12: p.contr
C14: id | D14: Parámetros
C15: 1 | D15: Días Año | E15: [días] | F15: 365
C16: 2 | D16: Dias de Facuturación | E16: [días] | F16: 60
C17: 3 | D17: Valor Proporción Costo Capital | E17: [%] | F17: =F16/F15 -> 0.1643835616 | G17: r.trab
C19: id | D19: Parámetros
C20: 1 | D20: Años Estudio Tarifario | F20: 0 | G20: 1 | H20: 2 | I20: 3 | J20: 4 | K20: 5 | L20: años
C21: 2 | D21: Años calendario | F21: 2020 | G21: 2021 | H21: 2022 | I21: 2023 | J21: 2024 | K21: 2025 | L21: años.calendario
C22: 3 | D22: Columnas | F22: 1 | G22: 2 | H22: 3 | I22: 4 | J22: 5 | K22: 6 | L22: columnas
B24: Lista de Departamentos
C26: id | D26: Departamento | F26: Capital | G26: Población | H26: Nombre | I26: % Población | J26: DP | K26: Año | L26: 2021
C27: 1 | D27: Antioquia | F27: Medellín | G27: =AA87 -> 6921884 | H27: Antioquia | I27: =G27/SUM($G$27:$G$59) -> 0.1345375887 | J27: 5
C28: 2 | D28: Atlántico | F28: Barranquilla | G28: =AA88 -> 2634813 | H28: Atlántico | I28: 0.05121169145 | J28: 8
C29: 3 | D29: Bogotá | F29: Bogotá | G29: 8481744 | H29: Bogotá | I29: 0.1648558955 | J29: 11
C30: 4 | D30: Bolívar | F30: Cartagena (Turbaco) | G30: 2242869 | H30: Bolívar | I30: 0.04359364979 | J30: 13
C31: 5 | D31: Boyacá | F31: Tunja | G31: 1289425 | H31: Boyacá | I31: 0.02506198172 | J31: 15
C32: 6 | D32: Caldas | F32: Manizales | G32: 999835 | H32: Caldas | I32: 0.01943334936 | J32: 17
C33: 7 | D33: Caquetá | F33: Florencia | G33: 514634 | H33: Caquetá | I33: 0.01000271276 | J33: 18
C34: 8 | D34: Cauca | F34: Popayán | G34: 1447035 | H34: Cauca | I34: 0.02812537737 | J34: 19
C35: 9 | D35: Cesar | F35: Valledupar | G35: 1102093 | H35: Cesar | I35: 0.02142089274 | J35: 20
C36: 10 | D36: Córdoba | F36: Montería | G36: 1863003 | H36: Córdoba | I36: 0.03621036286 | J36: 23
C37: 11 | D37: Cundinamarca | F37: Bogotá | G37: 2928556 | H37: Cundinamarca | I37: 0.05692104383 | J37: 25
C38: 12 | D38: Chocó | F38: Quibdó | G38: 530698 | H38: Chocó | I38: 0.0103149416 | J38: 27
C39: 13 | D39: Huila | F39: Neiva | G39: 1239370 | H39: Huila | I39: 0.02408908489 | J39: 41
C40: 14 | D40: La Guajira | F40: Riohacha | G40: 1120855 | H40: La Guajira | I40: 0.02178556141 | J40: 44
C41: 15 | D41: Magdalena | F41: Santa Marta | G41: 1340581 | H41: Magdalena | I41: 0.0260562782 | J41: 47
C42: 16 | D42: Meta | F42: Villavicencio | G42: 1072268 | H42: Meta | I42: 0.02084119745 | J42: 50
C43: 17 | D43: Nariño | F43: San Juan de Pasto | G43: 1872645 | H43: Nariño | I43: 0.03639777014 | J43: 52
C44: 18 | D44: Norte de Santander | F44: Cúcuta | G44: 1425023 | H44: Norte de Santander | I44: 0.02769753989 | J44: 54
C45: 19 | D45: Quindio | F45: Armenia | G45: 584796 | H45: Quindio | I45: 0.01136642043 | J45: 63
C46: 20 | D46: Risaralda | F46: Pereira | G46: 983382 | H46: Risaralda | I46: 0.01911355969 | J46: 66
C47: 21 | D47: Santander | F47: Bucaramanga | G47: 2120451 | H47: Santander | I47: 0.04121426543 | J47: 68
C48: 22 | D48: Sucre | F48: Sincelejo | G48: 903099 | H48: Sucre | I48: 0.01755313464 | J48: 70
C49: 23 | D49: Tolima | F49: Ibagué | G49: 1431142 | H49: Tolima | I49: 0.02781647218 | J49: 73
C50: 24 | D50: Valle del Cauca | F50: Cali | G50: 4900263 | H50: Valle del Cauca | I50: 0.09524423812 | J50: 76
C51: 25 | D51: Arauca | F51: Arauca | G51: 278801 | H51: Arauca | I51: 0.005418931358 | J51: 81
C52: 26 | D52: Casanare | F52: Yopal | G52: 393979 | H52: Casanare | I52: 0.007657595049 | J52: 85
C53: 27 | D53: Putumayo | F53: Mocoa | G53: 368818 | H53: Putumayo | I53: 0.007168551854 | J53: 86
C54: 28 | D54: San Andrés | F54: San Andrés | G54: 80347 | H54: San Andrés | I54: 0.001561668996 | J54: 88
C55: 29 | D55: Amazonas | F55: Leticia | G55: 81621 | H55: Amazonas | I55: 0.001586431169 | J55: 91
C56: 30 | D56: Guainía | F56: Puerto Inírida | G56: 45499 | H56: Guainía | I56: 0.0008843438791 | J56: 94
C57: 31 | D57: Guaviare | F57: San José del Guaviare | G57: 120928 | H57: Guaviare | I57: 0.002350423891 | J57: 95
C58: 32 | D58: Vaupés | F58: Mitú | G58: 46275 | H58: Vaupés | I58: 0.0008994266469 | J58: 97
C59: 33 | D59: Vichada | F59: Puerto Carreño | G59: 82711 | H59: Vichada | I59: 0.001607617015 | J59: 99
D60: L.depa.num | F60: L.depa.cap | G60: =SUM(G27:G59) -> 51449443 | H60: L.depa.nom | I60: p.depa.pobl
B63: Recuperación de costos por geotipo
G65: 1 | H65: 2 | I65: 3
C66: ID | D66: Geotipos | F66: Zona | G66: Aux Zona 1 | H66: Aux Zona 2 | I66: Aux Zona 3
C67: 1 | D67: =INDEX(L.geo.nom,C67) -> Z1: Muy Denso | F67: 3 | G67: =IF($F67=G$65,1,0) -> 0 | H67: =IF($F67=H$65,1,0) -> 0 | I67: 1
C68: 2 | D68: Z1: Denso | F68: 1 | G68: =IF($F68=G$65,1,0) -> 1 | H68: 0 | I68: 0
C69: 3 | D69: Z1: Poco Denso | F69: 1 | G69: 1 | H69: 0 | I69: 0
C70: 4 | D70: Z1: Carreteras | F70: 1 | G70: 1 | H70: 0 | I70: 0
C71: 5 | D71: Z1: Soluciones especiales | F71: 1 | G71: 1 | H71: 0 | I71: 0
C72: 6 | D72: Z2: Muy Denso | F72: 2 | G72: 0 | H72: 1 | I72: 0
C73: 7 | D73: Z2: Denso | F73: 2 | G73: 0 | H73: 1 | I73: 0
C74: 8 | D74: Z2: Poco Denso | F74: 2 | G74: 0 | H74: 1 | I74: 0
C75: 9 | D75: Z2: Carreteras | F75: 2 | G75: 0 | H75: 1 | I75: 0
C76: 10 | D76: Z2: Soluciones especiales | F76: 2 | G76: 0 | H76: 1 | I76: 0
F77: L.geo.tar | G77: L.geo.tar.z1 | H77: L.geo.tar.z2 | I77: L.geo.tar.z3 | J77: L.geo.tar.zon
B82: Población por Departamento
B84: Total por departamento
B86: id | C86: DP | D86: Departamento | F86: 2000 | G86: 2001 | H86: 2002 | I86: 2003 | J86: 2004 | K86: 2005 | L86: 2006 | M86: 2007 | N86: 2008 | O86: 2009 | P86: 2010 | Q86: 2011 | R86: 2012 | S86: 2013 | T86: 2014 | U86: 2015 | V86: 2016 | W86: 2017 | X86: 2018 | Y86: 2019 | Z86: 2020 | AA86: 2021 | AB86: 2022 | AC86: 2023 | AD86: 2024 | AE86: 2025
B87: 1 | C87: 5 | D87: =L.depa.nom -> Antioquia | E87: [Personas] | F87: 5289912 | G87: 5368957 | H87: 5447841 | I87: 5526457 | J87: 5604712 | K87: 5682310 | L87: 5757973 | M87: 5834865 | N87: 5911399 | O87: 5988552 | P87: 6066003 | Q87: 6143809 | R87: 6221817 | S87: 6299990 | T87: 6378132 | U87: 6456299 | V87: 6534857 | W87: 6613118 | X87: 6691030 | Y87: 6768388 | Z87: 6845093 | AA87: =ROUND(IF(Z87>0,IF(_xlfn.FORECAST.ETS(AA$86,$F87:$Z87,$F$86:$Z$86,1)<0,0,_xlfn.FORECAST.ETS(AA$86,$F87:$Z87,$F$86:$Z$86,1)),0),0) -> 6921884 | AB87: =ROUND(IF(AA87>0,IF(_xlfn.FORECAST.ETS(AB$86,$F87:$Z87,$F$86:$Z$86,1)<0,0,_xlfn.FORECAST.ETS(AB$86,$F87:$Z87,$F$86:$Z$86,1)),0),0) -> 6998601 | AC87: =ROUND(IF(AB87>0,IF(_xlfn.FORECAST.ETS(AC$86,$F87:$Z87,$F$86:$Z$86,1)<0,0,_xlfn.FORECAST.ETS(AC$86,$F87:$Z87,$F$86:$Z$86,1)),0),0) -> 7075318 | AD87: =ROUND(IF(AC87>0,IF(_xlfn.FORECAST.ETS(AD$86,$F87:$Z87,$F$86:$Z$86,1)<0,0,_xlfn.FORECAST.ETS(AD$86,$F87:$Z87,$F$86:$Z$86,1)),0),0) -> 7152035 | AE87: =ROUND(IF(AD87>0,IF(_xlfn.FORECAST.ETS(AE$86,$F87:$Z87,$F$86:$Z$86,1)<0,0,_xlfn.FORECAST.ETS(AE$86,$F87:$Z87,$F$86:$Z$86,1)),0),0) -> 7228753
B88: 2 | C88: 8 | D88: Atlántico | E88: [Personas] | F88: 2017388 | G88: 2046777 | H88: 2076366 | I88: 2106173 | J88: 2136070 | K88: 2166020 | L88: 2195776 | M88: 2225481 | N88: 2255143 | O88: 2284841 | P88: 2314460 | Q88: 2344077 | R88: 2373550 | S88: 2402910 | T88: 2432003 | U88: 2460863 | V88: 2489514 | W88: 2517897 | X88: 2545924 | Y88: 2573591 | Z88: 2600904 | AA88: =ROUND(IF(Z88>0,IF(_xlfn.FORECAST.ETS(AA$86,$F88:$Z88,$F$86:$Z$86,1)<0,0,_xlfn.FORECAST.ETS(AA$86,$F88:$Z88,$F$86:$Z$86,1)),0),0) -> 2634813 | AB88: =ROUND(IF(AA88>0,IF(_xlfn.FORECAST.ETS(AB$86,$F88:$Z88,$F$86:$Z$86,1)<0,0,_xlfn.FORECAST.ETS(AB$86,$F88:$Z88,$F$86:$Z$86,1)),0),0) -> 2664152 | AC88: =ROUND(IF(AB88>0,IF(_xlfn.FORECAST.ETS(AC$86,$F88:$Z88,$F$86:$Z$86,1)<0,0,_xlfn.FORECAST.ETS(AC$86,$F88:$Z88,$F$86:$Z$86,1)),0),0) -> 2693491 | AD88: =ROUND(IF(AC88>0,IF(_xlfn.FORECAST.ETS(AD$86,$F88:$Z88,$F$86:$Z$86,1)<0,0,_xlfn.FORECAST.ETS(AD$86,$F88:$Z88,$F$86:$Z$86,1)),0),0) -> 2722830 | AE88: =ROUND(IF(AD88>0,IF(_xlfn.FORECAST.ETS(AE$86,$F88:$Z88,$F$86:$Z$86,1)<0,0,_xlfn.FORECAST.ETS(AE$86,$F88:$Z88,$F$86:$Z$86,1)),0),0) -> 2752169
B89: 3 | C89: 11 | D89: Bogotá | E89: [Personas] | F89: 6302881 | G89: 6412400 | H89: 6520473 | I89: 6627568 | J89: 6734041 | K89: 6840116 | L89: 6945216 | M89: 7050228 | N89: 7155052 | O89: 7259597 | P89: 7363782 | Q89: 7467804 | R89: 7571345 | S89: 7674366 | T89: 7776845 | U89: 7878783 | V89: 7980001 | W89: 8080734 | X89: 8181047 | Y89: 8281030 | Z89: 8380801 | AA89: =ROUND(IF(Z89>0,IF(_xlfn.FORECAST.ETS(AA$86,$F89:$Z89,$F$86:$Z$86,1)<0,0,_xlfn.FORECAST.ETS(AA$86,$F89:$Z89,$F$86:$Z$86,1)),0),0) -> 8481744 | AB89: =ROUND(IF(AA89>0,IF(_xlfn.FORECAST.ETS(AB$86,$F89:$Z89,$F$86:$Z$86,1)<0,0,_xlfn.FORECAST.ETS(AB$86,$F89:$Z89,$F$86:$Z$86,1)),0),0) -> 8580987 | AC89: =ROUND(IF(AB89>0,IF(_xlfn.FORECAST.ETS(AC$86,$F89:$Z89,$F$86:$Z$86,1)<0,0,_xlfn.FORECAST.ETS(AC$86,$F89:$Z89,$F$86:$Z$86,1)),0),0) -> 8680230 | AD89: =ROUND(IF(AC89>0,IF(_xlfn.FORECAST.ETS(AD$86,$F89:$Z89,$F$86:$Z$86,1)<0,0,_xlfn.FORECAST.ETS(AD$86,$F89:$Z89,$F$86:$Z$86,1)),0),0) -> 8779474 | AE89: =ROUND(IF(AD89>0,IF(_xlfn.FORECAST.ETS(AE$86,$F89:$Z89,$F$86:$Z$86,1)<0,0,_xlfn.FORECAST.ETS(AE$86,$F89:$Z89,$F$86:$Z$86,1)),0),0) -> 8878717
B90: 4 | C90: 13 | D90: Bolívar | E90: [Personas] | F90: 1792634 | G90: 1810899 | H90: 1828057 | I90: 1844798 | J90: 1861840 | K90: 1879480 | L90: 1898031 | M90: 1917345 | N90: 1937500 | O90: 1958431 | P90: 1980012 | Q90: 2002531 | R90: 2025573 | S90: 2049109 | T90: 2073004 | U90: 2097161 | V90: 2121956 | W90: 2146696 | X90: 2171280 | Y90: 2195495 | Z90: 2219139 | AA90: =ROUND(IF(Z90>0,IF(_xlfn.FORECAST.ETS(AA$86,$F90:$Z90,$F$86:$Z$86,1)<0,0,_xlfn.FORECAST.ETS(AA$86,$F90:$Z90,$F$86:$Z$86,1)),0),0) -> 2242869 | AB90: =ROUND(IF(AA90>0,IF(_xlfn.FORECAST.ETS(AB$86,$F90:$Z90,$F$86:$Z$86,1)<0,0,_xlfn.FORECAST.ETS(AB$86,$F90:$Z90,$F$86:$Z$86,1)),0),0) -> 2266535 | AC90: =ROUND(IF(AB90>0,IF(_xlfn.FORECAST.ETS(AC$86,$F90:$Z90,$F$86:$Z$86,1)<0,0,_xlfn.FORECAST.ETS(AC$86,$F90:$Z90,$F$86:$Z$86,1)),0),0) -> 2290201 | AD90: =ROUND(IF(AC90>0,IF(_xlfn.FORECAST.ETS(AD$86,$F90:$Z90,$F$86:$Z$86,1)<0,0,_xlfn.FORECAST.ETS(AD$86,$F90:$Z90,$F$86:$Z$86,1)),0),0) -> 2313868 | AE90: =ROUND(IF(AD90>0,IF(_xlfn.FORECAST.ETS(AE$86,$F90:$Z90,$F$86:$Z$86,1)<0,0,_xlfn.FORECAST.ETS(AE$86,$F90:$Z90,$F$86:$Z$86,1)),0),0) -> 2337534
B91: 5 | C91: 15 | D91: Boyacá | E91: [Personas] | F91: 1234550 | G91: 1239693 | H91: 1244292 | I91: 1248391 | J91: 1252027 | K91: 1255314 | L91: 1258195 | M91: 1260821 | N91: 1263252 | O91: 1265513 | P91: 1267652 | Q91: 1269405 | R91: 1271133 | S91: 1272855 | T91: 1274615 | U91: 1276407 | V91: 1278107 | W91: 1279955 | X91: 1282063 | Y91: 1284375 | Z91: 1287032 | AA91: =ROUND(IF(Z91>0,IF(_xlfn.FORECAST.ETS(AA$86,$F91:$Z91,$F$86:$Z$86,1)<0,0,_xlfn.FORECAST.ETS(AA$86,$F91:$Z91,$F$86:$Z$86,1)),0),0) -> 1289425 | AB91: =ROUND(IF(AA91>0,IF(_xlfn.FORECAST.ETS(AB$86,$F91:$Z91,$F$86:$Z$86,1)<0,0,_xlfn.FORECAST.ETS(AB$86,$F91:$Z91,$F$86:$Z$86,1)),0),0) -> 1291819 | AC91: =ROUND(IF(AB91>0,IF(_xlfn.FORECAST.ETS(AC$86,$F91:$Z91,$F$86:$Z$86,1)<0,0,_xlfn.FORECAST.ETS(AC$86,$F91:$Z91,$F$86:$Z$86,1)),0),0) -> 1294213 | AD91: =ROUND(IF(AC91>0,IF(_xlfn.FORECAST.ETS(AD$86,$F91:$Z91,$F$86:$Z$86,1)<0,0,_xlfn.FORECAST.ETS(AD$86,$F91:$Z91,$F$86:$Z$86,1)),0),0) -> 1296608 | AE91: =ROUND(IF(AD91>0,IF(_xlfn.FORECAST.ETS(AE$86,$F91:$Z91,$F$86:$Z$86,1)<0,0,_xlfn.FORECAST.ETS(AE$86,$F91:$Z91,$F$86:$Z$86,1)),0),0) -> 1299002
B92: 6 | C92: 17 | D92: Caldas | E92: [Personas] | F92: 959483 | G92: 961277 | H92: 962996 | I92: 964745 | J92: 966596 | K92: 968586 | L92: 970651 | M92: 972591 | N92: 974493 | O92: 976423 | P92: 978342 | Q92: 980267 | R92: 982207 | S92: 984115 | T92: 986042 | U92: 987991 | V92: 989934 | W92: 991860 | X92: 993866 | Y92: 995822 | Z92: 997831 | AA92: =ROUND(IF(Z92>0,IF(_xlfn.FORECAST.ETS(AA$86,$F92:$Z92,$F$86:$Z$86,1)<0,0,_xlfn.FORECAST.ETS(AA$86,$F92:$Z92,$F$86:$Z$86,1)),0),0) -> 999835 | AB92: =ROUND(IF(AA92>0,IF(_xlfn.FORECAST.ETS(AB$86,$F92:$Z92,$F$86:$Z$86,1)<0,0,_xlfn.FORECAST.ETS(AB$86,$F92:$Z92,$F$86:$Z$86,1)),0),0) -> 1001839 | AC92: =ROUND(IF(AB92>0,IF(_xlfn.FORECAST.ETS(AC$86,$F92:$Z92,$F$86:$Z$86,1)<0,0,_xlfn.FORECAST.ETS(AC$86,$F92:$Z92,$F$86:$Z$86,1)),0),0) -> 1003843 | AD92: =ROUND(IF(AC92>0,IF(_xlfn.FORECAST.ETS(AD$86,$F92:$Z92,$F$86:$Z$86,1)<0,0,_xlfn.FORECAST.ETS(AD$86,$F92:$Z92,$F$86:$Z$86,1)),0),0) -> 1005847 | AE92: =ROUND(IF(AD92>0,IF(_xlfn.FORECAST.ETS(AE$86,$F92:$Z92,$F$86:$Z$86,1)<0,0,_xlfn.FORECAST.ETS(AE$86,$F92:$Z92,$F$86:$Z$86,1)),0),0) -> 1007851
B93: 7 | C93: 18 | D93: Caquetá | E93: [Personas] | F93: 398736 | G93: 402694 | H93: 406734 | I93: 410991 | J93: 415586 | K93: 420518 | L93: 425748 | M93: 431020 | N93: 436485 | O93: 442071 | P93: 447767 | Q93: 453588 | R93: 459515 | S93: 465487 | T93: 471541 | U93: 477642 | V93: 483846 | W93: 490056 | X93: 496241 | Y93: 502410 | Z93: 508517 | AA93: =ROUND(IF(Z93>0,IF(_xlfn.FORECAST.ETS(AA$86,$F93:$Z93,$F$86:$Z$86,1)<0,0,_xlfn.FORECAST.ETS(AA$86,$F93:$Z93,$F$86:$Z$86,1)),0),0) -> 514634 | AB93: =ROUND(IF(AA93>0,IF(_xlfn.FORECAST.ETS(AB$86,$F93:$Z93,$F$86:$Z$86,1)<0,0,_xlfn.FORECAST.ETS(AB$86,$F93:$Z93,$F$86:$Z$86,1)),0),0) -> 520745 | AC93: =ROUND(IF(AB93>0,IF(_xlfn.FORECAST.ETS(AC$86,$F93:$Z93,$F$86:$Z$86,1)<0,0,_xlfn.FORECAST.ETS(AC$86,$F93:$Z93,$F$86:$Z$86,1)),0),0) -> 526856 | AD93: =ROUND(IF(AC93>0,IF(_xlfn.FORECAST.ETS(AD$86,$F93:$Z93,$F$86:$Z$86,1)<0,0,_xlfn.FORECAST.ETS(AD$86,$F93:$Z93,$F$86:$Z$86,1)),0),0) -> 532967 | AE93: =ROUND(IF(AD93>0,IF(_xlfn.FORECAST.ETS(AE$86,$F93:$Z93,$F$86:$Z$86,1)<0,0,_xlfn.FORECAST.ETS(AE$86,$F93:$Z93,$F$86:$Z$86,1)),0),0) -> 539078
B94: 8 | C94: 19 | D94: Cauca | E94: [Personas] | F94: 1215944 | G94: 1227525 | H94: 1238420 | I94: 1248825 | J94: 1258885 | K94: 1268830 | L94: 1278185 | M94: 1287746 | N94: 1297703 | O94: 1308183 | P94: 1319120 | Q94: 1330756 | R94: 1342650 | S94: 1354733 | T94: 1366984 | U94: 1379169 | V94: 1391836 | W94: 1404205 | X94: 1415933 | Y94: 1426938 | Z94: 1436916 | AA94: =ROUND(IF(Z94>0,IF(_xlfn.FORECAST.ETS(AA$86,$F94:$Z94,$F$86:$Z$86,1)<0,0,_xlfn.FORECAST.ETS(AA$86,$F94:$Z94,$F$86:$Z$86,1)),0),0) -> 1447035 | AB94: =ROUND(IF(AA94>0,IF(_xlfn.FORECAST.ETS(AB$86,$F94:$Z94,$F$86:$Z$86,1)<0,0,_xlfn.FORECAST.ETS(AB$86,$F94:$Z94,$F$86:$Z$86,1)),0),0) -> 1457042 | AC94: =ROUND(IF(AB94>0,IF(_xlfn.FORECAST.ETS(AC$86,$F94:$Z94,$F$86:$Z$86,1)<0,0,_xlfn.FORECAST.ETS(AC$86,$F94:$Z94,$F$86:$Z$86,1)),0),0) -> 1467049 | AD94: =ROUND(IF(AC94>0,IF(_xlfn.FORECAST.ETS(AD$86,$F94:$Z94,$F$86:$Z$86,1)<0,0,_xlfn.FORECAST.ETS(AD$86,$F94:$Z94,$F$86:$Z$86,1)),0),0) -> 1477055 | AE94: =ROUND(IF(AD94>0,IF(_xlfn.FORECAST.ETS(AE$86,$F94:$Z94,$F$86:$Z$86,1)<0,0,_xlfn.FORECAST.ETS(AE$86,$F94:$Z94,$F$86:$Z$86,1)),0),0) -> 1487062
B95: 9 | C95: 20 | D95: Cesar | E95: [Personas] | F95: 844564 | G95: 855971 | H95: 867510 | I95: 879257 | J95: 891245 | K95: 903423 | L95: 915900 | M95: 928571 | N95: 941258 | O95: 953866 | P95: 966450 | Q95: 979054 | R95: 991584 | S95: 1004058 | T95: 1016533 | U95: 1028890 | V95: 1041204 | W95: 1053475 | X95: 1065673 | Y95: 1077770 | Z95: 1089792 | AA95: =ROUND(IF(Z95>0,IF(_xlfn.FORECAST.ETS(AA$86,$F95:$Z95,$F$86:$Z$86,1)<0,0,_xlfn.FORECAST.ETS(AA$86,$F95:$Z95,$F$86:$Z$86,1)),0),0) -> 1102093 | AB95: =ROUND(IF(AA95>0,IF(_xlfn.FORECAST.ETS(AB$86,$F95:$Z95,$F$86:$Z$86,1)<0,0,_xlfn.FORECAST.ETS(AB$86,$F95:$Z95,$F$86:$Z$86,1)),0),0) -> 1114394 | AC95: =ROUND(IF(AB95>0,IF(_xlfn.FORECAST.ETS(AC$86,$F95:$Z95,$F$86:$Z$86,1)<0,0,_xlfn.FORECAST.ETS(AC$86,$F95:$Z95,$F$86:$Z$86,1)),0),0) -> 1126695 | AD95: =ROUND(IF(AC95>0,IF(_xlfn.FORECAST.ETS(AD$86,$F95:$Z95,$F$86:$Z$86,1)<0,0,_xlfn.FORECAST.ETS(AD$86,$F95:$Z95,$F$86:$Z$86,1)),0),0) -> 1138995 | AE95: =ROUND(IF(AD95>0,IF(_xlfn.FORECAST.ETS(AE$86,$F95:$Z95,$F$86:$Z$86,1)<0,0,_xlfn.FORECAST.ETS(AE$86,$F95:$Z95,$F$86:$Z$86,1)),0),0) -> 1151296
B96: 10 | C96: 23 | D96: Córdoba | E96: [Personas] | F96: 1361658 | G96: 1383011 | H96: 1404175 | I96: 1425297 | J96: 1446552 | K96: 1467906 | L96: 1489745 | M96: 1512031 | N96: 1535414 | O96: 1558833 | P96: 1582784 | Q96: 1607519 | R96: 1632637 | S96: 1658067 | T96: 1683782 | U96: 1709644 | V96: 1736170 | W96: 1762530 | X96: 1788507 | Y96: 1813854 | Z96: 1838371 | AA96: =ROUND(IF(Z96>0,IF(_xlfn.FORECAST.ETS(AA$86,$F96:$Z96,$F$86:$Z$86,1)<0,0,_xlfn.FORECAST.ETS(AA$86,$F96:$Z96,$F$86:$Z$86,1)),0),0) -> 1863003 | AB96: =ROUND(IF(AA96>0,IF(_xlfn.FORECAST.ETS(AB$86,$F96:$Z96,$F$86:$Z$86,1)<0,0,_xlfn.FORECAST.ETS(AB$86,$F96:$Z96,$F$86:$Z$86,1)),0),0) -> 1887542 | AC96: =ROUND(IF(AB96>0,IF(_xlfn.FORECAST.ETS(AC$86,$F96:$Z96,$F$86:$Z$86,1)<0,0,_xlfn.FORECAST.ETS(AC$86,$F96:$Z96,$F$86:$Z$86,1)),0),0) -> 1912081 | AD96: =ROUND(IF(AC96>0,IF(_xlfn.FORECAST.ETS(AD$86,$F96:$Z96,$F$86:$Z$86,1)<0,0,_xlfn.FORECAST.ETS(AD$86,$F96:$Z96,$F$86:$Z$86,1)),0),0) -> 1936620 | AE96: =ROUND(IF(AD96>0,IF(_xlfn.FORECAST.ETS(AE$86,$F96:$Z96,$F$86:$Z$86,1)<0,0,_xlfn.FORECAST.ETS(AE$86,$F96:$Z96,$F$86:$Z$86,1)),0),0) -> 1961159
B97: 11 | C97: 25 | D97: Cundinamarca | E97: [Personas] | F97: 2076798 | G97: 2118567 | H97: 2159796 | I97: 2200405 | J97: 2240428 | K97: 2280158 | L97: 2318959 | M97: 2358115 | N97: 2397511 | O97: 2437151 | P97: 2477036 | Q97: 2517215 | R97: 2557623 | S97: 2598245 | T97: 2639059 | U97: 2680041 | V97: 2721368 | W97: 2762784 | X97: 2804238 | Y97: 2845668 | Z97: 2887005 | AA97: =ROUND(IF(Z97>0,IF(_xlfn.FORECAST.ETS(AA$86,$F97:$Z97,$F$86:$Z$86,1)<0,0,_xlfn.FORECAST.ETS(AA$86,$F97:$Z97,$F$86:$Z$86,1)),0),0) -> 2928556 | AB97: =ROUND(IF(AA97>0,IF(_xlfn.FORECAST.ETS(AB$86,$F97:$Z97,$F$86:$Z$86,1)<0,0,_xlfn.FORECAST.ETS(AB$86,$F97:$Z97,$F$86:$Z$86,1)),0),0) -> 2969999 | AC97: =ROUND(IF(AB97>0,IF(_xlfn.FORECAST.ETS(AC$86,$F97:$Z97,$F$86:$Z$86,1)<0,0,_xlfn.FORECAST.ETS(AC$86,$F97:$Z97,$F$86:$Z$86,1)),0),0) -> 3011442 | AD97: =ROUND(IF(AC97>0,IF(_xlfn.FORECAST.ETS(AD$86,$F97:$Z97,$F$86:$Z$86,1)<0,0,_xlfn.FORECAST.ETS(AD$86,$F97:$Z97,$F$86:$Z$86,1)),0),0) -> 3052884 | AE97: =ROUND(IF(AD97>0,IF(_xlfn.FORECAST.ETS(AE$86,$F97:$Z97,$F$86:$Z$86,1)<0,0,_xlfn.FORECAST.ETS(AE$86,$F97:$Z97,$F$86:$Z$86,1)),0),0) -> 3094327
B98: 12 | C98: 27 | D98: Chocó | E98: [Personas] | F98: 437343 | G98: 437951 | H98: 441828 | I98: 445794 | J98: 449877 | K98: 454053 | L98: 458317 | M98: 462683 | N98: 467074 | O98: 471598 | P98: 476149 | Q98: 480820 | R98: 485543 | S98: 490317 | T98: 495151 | U98: 500093 | V98: 505016 | W98: 510047 | X98: 515145 | Y98: 520296 | Z98: 525505 | AA98: =ROUND(IF(Z98>0,IF(_xlfn.FORECAST.ETS(AA$86,$F98:$Z98,$F$86:$Z$86,1)<0,0,_xlfn.FORECAST.ETS(AA$86,$F98:$Z98,$F$86:$Z$86,1)),0),0) -> 530698 | AB98: =ROUND(IF(AA98>0,IF(_xlfn.FORECAST.ETS(AB$86,$F98:$Z98,$F$86:$Z$86,1)<0,0,_xlfn.FORECAST.ETS(AB$86,$F98:$Z98,$F$86:$Z$86,1)),0),0) -> 535909 | AC98: =ROUND(IF(AB98>0,IF(_xlfn.FORECAST.ETS(AC$86,$F98:$Z98,$F$86:$Z$86,1)<0,0,_xlfn.FORECAST.ETS(AC$86,$F98:$Z98,$F$86:$Z$86,1)),0),0) -> 541121 | AD98: =ROUND(IF(AC98>0,IF(_xlfn.FORECAST.ETS(AD$86,$F98:$Z98,$F$86:$Z$86,1)<0,0,_xlfn.FORECAST.ETS(AD$86,$F98:$Z98,$F$86:$Z$86,1)),0),0) -> 546332 | AE98: =ROUND(IF(AD98>0,IF(_xlfn.FORECAST.ETS(AE$86,$F98:$Z98,$F$86:$Z$86,1)<0,0,_xlfn.FORECAST.ETS(AE$86,$F98:$Z98,$F$86:$Z$86,1)),0),0) -> 551544
B99: 13 | C99: 41 | D99: Huila | E99: [Personas] | F99: 938244 | G99: 953031 | H99: 967773 | I99: 982377 | J99: 996874 | K99: 1011405 | L99: 1025738 | M99: 1040086 | N99: 1054423 | O99: 1068844 | P99: 1083189 | Q99: 1097584 | R99: 1111947 | S99: 1126316 | T99: 1140539 | U99: 1154777 | V99: 1168869 | W99: 1182944 | X99: 1197081 | Y99: 1211163 | Z99: 1225343 | AA99: =ROUND(IF(Z99>0,IF(_xlfn.FORECAST.ETS(AA$86,$F99:$Z99,$F$86:$Z$86,1)<0,0,_xlfn.FORECAST.ETS(AA$86,$F99:$Z99,$F$86:$Z$86,1)),0),0) -> 1239370 | AB99: =ROUND(IF(AA99>0,IF(_xlfn.FORECAST.ETS(AB$86,$F99:$Z99,$F$86:$Z$86,1)<0,0,_xlfn.FORECAST.ETS(AB$86,$F99:$Z99,$F$86:$Z$86,1)),0),0) -> 1253379 | AC99: =ROUND(IF(AB99>0,IF(_xlfn.FORECAST.ETS(AC$86,$F99:$Z99,$F$86:$Z$86,1)<0,0,_xlfn.FORECAST.ETS(AC$86,$F99:$Z99,$F$86:$Z$86,1)),0),0) -> 1267388 | AD99: =ROUND(IF(AC99>0,IF(_xlfn.FORECAST.ETS(AD$86,$F99:$Z99,$F$86:$Z$86,1)<0,0,_xlfn.FORECAST.ETS(AD$86,$F99:$Z99,$F$86:$Z$86,1)),0),0) -> 1281397 | AE99: =ROUND(IF(AD99>0,IF(_xlfn.FORECAST.ETS(AE$86,$F99:$Z99,$F$86:$Z$86,1)<0,0,_xlfn.FORECAST.ETS(AE$86,$F99:$Z99,$F$86:$Z$86,1)),0),0) -> 1295406
B100: 14 | C100: 44 | D100: La Guajira | E100: [Personas] | F100: 548879 | G100: 573624 | H100: 599517 | I100: 626358 | J100: 653834 | K100: 681534 | L100: 708768 | M100: 736050 | N100: 763496 | O100: 791083 | P100: 818740 | Q100: 846641 | R100: 874532 | S100: 902367 | T100: 930143 | U100: 957797 | V100: 985452 | W100: 1012926 | X100: 1040157 | Y100: 1067063 | Z100: 1093671 | AA100: =ROUND(IF(Z100>0,IF(_xlfn.FORECAST.ETS(AA$86,$F100:$Z100,$F$86:$Z$86,1)<0,0,_xlfn.FORECAST.ETS(AA$86,$F100:$Z100,$F$86:$Z$86,1)),0),0) -> 1120855 | AB100: =ROUND(IF(AA100>0,IF(_xlfn.FORECAST.ETS(AB$86,$F100:$Z100,$F$86:$Z$86,1)<0,0,_xlfn.FORECAST.ETS(AB$86,$F100:$Z100,$F$86:$Z$86,1)),0),0) -> 1148038 | AC100: =ROUND(IF(AB100>0,IF(_xlfn.FORECAST.ETS(AC$86,$F100:$Z100,$F$86:$Z$86,1)<0,0,_xlfn.FORECAST.ETS(AC$86,$F100:$Z100,$F$86:$Z$86,1)),0),0) -> 1175220 | AD100: =ROUND(IF(AC100>0,IF(_xlfn.FORECAST.ETS(AD$86,$F100:$Z100,$F$86:$Z$86,1)<0,0,_xlfn.FORECAST.ETS(AD$86,$F100:$Z100,$F$86:$Z$86,1)),0),0) -> 1202403 | AE100: =ROUND(IF(AD100>0,IF(_xlfn.FORECAST.ETS(AE$86,$F100:$Z100,$F$86:$Z$86,1)<0,0,_xlfn.FORECAST.ETS(AE$86,$F100:$Z100,$F$86:$Z$86,1)),0),0) -> 1229585
B101: 15 | C101: 47 | D101: Magdalena | E101: [Personas] | F101: 1118977 | G101: 1120576 | H101: 1121975 | I101: 1131036 | J101: 1140396 | K101: 1150064 | L101: 1159895 | M101: 1169866 | N101: 1180134 | O101: 1190666 | P101: 1201501 | Q101: 1212559 | R101: 1223875 | S101: 1235532 | T101: 1247514 | U101: 1259822 | V101: 1272442 | W101: 1285384 | X101: 1298691 | Y101: 1312428 | Z101: 1326525 | AA101: =ROUND(IF(Z101>0,IF(_xlfn.FORECAST.ETS(AA$86,$F101:$Z101,$F$86:$Z$86,1)<0,0,_xlfn.FORECAST.ETS(AA$86,$F101:$Z101,$F$86:$Z$86,1)),0),0) -> 1340581 | AB101: =ROUND(IF(AA101>0,IF(_xlfn.FORECAST.ETS(AB$86,$F101:$Z101,$F$86:$Z$86,1)<0,0,_xlfn.FORECAST.ETS(AB$86,$F101:$Z101,$F$86:$Z$86,1)),0),0) -> 1354638 | AC101: =ROUND(IF(AB101>0,IF(_xlfn.FORECAST.ETS(AC$86,$F101:$Z101,$F$86:$Z$86,1)<0,0,_xlfn.FORECAST.ETS(AC$86,$F101:$Z101,$F$86:$Z$86,1)),0),0) -> 1368694 | AD101: =ROUND(IF(AC101>0,IF(_xlfn.FORECAST.ETS(AD$86,$F101:$Z101,$F$86:$Z$86,1)<0,0,_xlfn.FORECAST.ETS(AD$86,$F101:$Z101,$F$86:$Z$86,1)),0),0) -> 1382751 | AE101: =ROUND(IF(AD101>0,IF(_xlfn.FORECAST.ETS(AE$86,$F101:$Z101,$F$86:$Z$86,1)<0,0,_xlfn.FORECAST.ETS(AE$86,$F101:$Z101,$F$86:$Z$86,1)),0),0) -> 1396808
B102: 16 | C102: 50 | D102: Meta | E102: [Personas] | F102: 697478 | G102: 714759 | H102: 732007 | I102: 749153 | J102: 766214 | K102: 783285 | L102: 800581 | M102: 817969 | N102: 835526 | O102: 853166 | P102: 870921 | Q102: 888802 | R102: 906805 | S102: 924871 | T102: 943072 | U102: 961334 | V102: 979710 | W102: 998162 | X102: 1016701 | Y102: 1035256 | Z102: 1053867 | AA102: =ROUND(IF(Z102>0,IF(_xlfn.FORECAST.ETS(AA$86,$F102:$Z102,$F$86:$Z$86,1)<0,0,_xlfn.FORECAST.ETS(AA$86,$F102:$Z102,$F$86:$Z$86,1)),0),0) -> 1072268 | AB102: =ROUND(IF(AA102>0,IF(_xlfn.FORECAST.ETS(AB$86,$F102:$Z102,$F$86:$Z$86,1)<0,0,_xlfn.FORECAST.ETS(AB$86,$F102:$Z102,$F$86:$Z$86,1)),0),0) -> 1090868 | AC102: =ROUND(IF(AB102>0,IF(_xlfn.FORECAST.ETS(AC$86,$F102:$Z102,$F$86:$Z$86,1)<0,0,_xlfn.FORECAST.ETS(AC$86,$F102:$Z102,$F$86:$Z$86,1)),0),0) -> 1109469 | AD102: =ROUND(IF(AC102>0,IF(_xlfn.FORECAST.ETS(AD$86,$F102:$Z102,$F$86:$Z$86,1)<0,0,_xlfn.FORECAST.ETS(AD$86,$F102:$Z102,$F$86:$Z$86,1)),0),0) -> 1128070 | AE102: =ROUND(IF(AD102>0,IF(_xlfn.FORECAST.ETS(AE$86,$F102:$Z102,$F$86:$Z$86,1)<0,0,_xlfn.FORECAST.ETS(AE$86,$F102:$Z102,$F$86:$Z$86,1)),0),0) -> 1146671
B103: 17 | C103: 52 | D103: Nariño | E103: [Personas] | F103: 1446493 | G103: 1464826 | H103: 1483416 | I103: 1502757 | J103: 1522205 | K103: 1541692 | L103: 1560872 | M103: 1580109 | N103: 1599646 | O103: 1619461 | P103: 1639560 | Q103: 1660062 | R103: 1680795 | S103: 1701782 | T103: 1722945 | U103: 1744228 | V103: 1765906 | W103: 1787545 | X103: 1809116 | Y103: 1830473 | Z103: 1851477 | AA103: =ROUND(IF(Z103>0,IF(_xlfn.FORECAST.ETS(AA$86,$F103:$Z103,$F$86:$Z$86,1)<0,0,_xlfn.FORECAST.ETS(AA$86,$F103:$Z103,$F$86:$Z$86,1)),0),0) -> 1872645 | AB103: =ROUND(IF(AA103>0,IF(_xlfn.FORECAST.ETS(AB$86,$F103:$Z103,$F$86:$Z$86,1)<0,0,_xlfn.FORECAST.ETS(AB$86,$F103:$Z103,$F$86:$Z$86,1)),0),0) -> 1893693 | AC103: =ROUND(IF(AB103>0,IF(_xlfn.FORECAST.ETS(AC$86,$F103:$Z103,$F$86:$Z$86,1)<0,0,_xlfn.FORECAST.ETS(AC$86,$F103:$Z103,$F$86:$Z$86,1)),0),0) -> 1914742 | AD103: =ROUND(IF(AC103>0,IF(_xlfn.FORECAST.ETS(AD$86,$F103:$Z103,$F$86:$Z$86,1)<0,0,_xlfn.FORECAST.ETS(AD$86,$F103:$Z103,$F$86:$Z$86,1)),0),0) -> 1935790 | AE103: =ROUND(IF(AD103>0,IF(_xlfn.FORECAST.ETS(AE$86,$F103:$Z103,$F$86:$Z$86,1)<0,0,_xlfn.FORECAST.ETS(AE$86,$F103:$Z103,$F$86:$Z$86,1)),0),0) -> 1956839
B104: 18 | C104: 54 | D104: Norte de Santander | E104: [Personas] | F104: 1189505 | G104: 1200639 | H104: 1211502 | I104: 1222289 | J104: 1233069 | K104: 1243861 | L104: 1254386 | M104: 1265056 | N104: 1275834 | O104: 1286830 | P104: 1297951 | Q104: 1309265 | R104: 1320777 | S104: 1332378 | T104: 1344038 | U104: 1355787 | V104: 1367708 | W104: 1379533 | X104: 1391239 | Y104: 1402695 | Z104: 1413837 | AA104: =ROUND(IF(Z104>0,IF(_xlfn.FORECAST.ETS(AA$86,$F104:$Z104,$F$86:$Z$86,1)<0,0,_xlfn.FORECAST.ETS(AA$86,$F104:$Z104,$F$86:$Z$86,1)),0),0) -> 1425023 | AB104: =ROUND(IF(AA104>0,IF(_xlfn.FORECAST.ETS(AB$86,$F104:$Z104,$F$86:$Z$86,1)<0,0,_xlfn.FORECAST.ETS(AB$86,$F104:$Z104,$F$86:$Z$86,1)),0),0) -> 1436173 | AC104: =ROUND(IF(AB104>0,IF(_xlfn.FORECAST.ETS(AC$86,$F104:$Z104,$F$86:$Z$86,1)<0,0,_xlfn.FORECAST.ETS(AC$86,$F104:$Z104,$F$86:$Z$86,1)),0),0) -> 1447324 | AD104: =ROUND(IF(AC104>0,IF(_xlfn.FORECAST.ETS(AD$86,$F104:$Z104,$F$86:$Z$86,1)<0,0,_xlfn.FORECAST.ETS(AD$86,$F104:$Z104,$F$86:$Z$86,1)),0),0) -> 1458474 | AE104: =ROUND(IF(AD104>0,IF(_xlfn.FORECAST.ETS(AE$86,$F104:$Z104,$F$86:$Z$86,1)<0,0,_xlfn.FORECAST.ETS(AE$86,$F104:$Z104,$F$86:$Z$86,1)),0),0) -> 1469624
B105: 19 | C105: 63 | D105: Quindio | E105: [Personas] | F105: 519805 | G105: 522634 | H105: 525498 | I105: 528413 | J105: 531424 | K105: 534506 | L105: 537530 | M105: 540533 | N105: 543579 | O105: 546593 | P105: 549662 | Q105: 552755 | R105: 555836 | S105: 558969 | T105: 562114 | U105: 565310 | V105: 568506 | W105: 571733 | X105: 575010 | Y105: 578268 | Z105: 581552 | AA105: =ROUND(IF(Z105>0,IF(_xlfn.FORECAST.ETS(AA$86,$F105:$Z105,$F$86:$Z$86,1)<0,0,_xlfn.FORECAST.ETS(AA$86,$F105:$Z105,$F$86:$Z$86,1)),0),0) -> 584796 | AB105: =ROUND(IF(AA105>0,IF(_xlfn.FORECAST.ETS(AB$86,$F105:$Z105,$F$86:$Z$86,1)<0,0,_xlfn.FORECAST.ETS(AB$86,$F105:$Z105,$F$86:$Z$86,1)),0),0) -> 588107 | AC105: =ROUND(IF(AB105>0,IF(_xlfn.FORECAST.ETS(AC$86,$F105:$Z105,$F$86:$Z$86,1)<0,0,_xlfn.FORECAST.ETS(AC$86,$F105:$Z105,$F$86:$Z$86,1)),0),0) -> 591419 | AD105: =ROUND(IF(AC105>0,IF(_xlfn.FORECAST.ETS(AD$86,$F105:$Z105,$F$86:$Z$86,1)<0,0,_xlfn.FORECAST.ETS(AD$86,$F105:$Z105,$F$86:$Z$86,1)),0),0) -> 594730 | AE105: =ROUND(IF(AD105>0,IF(_xlfn.FORECAST.ETS(AE$86,$F105:$Z105,$F$86:$Z$86,1)<0,0,_xlfn.FORECAST.ETS(AE$86,$F105:$Z105,$F$86:$Z$86,1)),0),0) -> 598042
B106: 20 | C106: 66 | D106: Risaralda | E106: [Personas] | F106: 869888 | G106: 875120 | H106: 880472 | I106: 885964 | J106: 891636 | K106: 897413 | L106: 903052 | M106: 908644 | N106: 914171 | O106: 919641 | P106: 925117 | Q106: 930518 | R106: 935910 | S106: 941275 | T106: 946632 | U106: 951953 | V106: 957254 | W106: 962529 | X106: 967767 | Y106: 972978 | Z106: 978173 | AA106: =ROUND(IF(Z106>0,IF(_xlfn.FORECAST.ETS(AA$86,$F106:$Z106,$F$86:$Z$86,1)<0,0,_xlfn.FORECAST.ETS(AA$86,$F106:$Z106,$F$86:$Z$86,1)),0),0) -> 983382 | AB106: =ROUND(IF(AA106>0,IF(_xlfn.FORECAST.ETS(AB$86,$F106:$Z106,$F$86:$Z$86,1)<0,0,_xlfn.FORECAST.ETS(AB$86,$F106:$Z106,$F$86:$Z$86,1)),0),0) -> 988568 | AC106: =ROUND(IF(AB106>0,IF(_xlfn.FORECAST.ETS(AC$86,$F106:$Z106,$F$86:$Z$86,1)<0,0,_xlfn.FORECAST.ETS(AC$86,$F106:$Z106,$F$86:$Z$86,1)),0),0) -> 993754 | AD106: =ROUND(IF(AC106>0,IF(_xlfn.FORECAST.ETS(AD$86,$F106:$Z106,$F$86:$Z$86,1)<0,0,_xlfn.FORECAST.ETS(AD$86,$F106:$Z106,$F$86:$Z$86,1)),0),0) -> 998939 | AE106: =ROUND(IF(AD106>0,IF(_xlfn.FORECAST.ETS(AE$86,$F106:$Z106,$F$86:$Z$86,1)<0,0,_xlfn.FORECAST.ETS(AE$86,$F106:$Z106,$F$86:$Z$86,1)),0),0) -> 1004125
B107: 21 | C107: 68 | D107: Santander | E107: [Personas] | F107: 1905077 | G107: 1916945 | H107: 1927772 | I107: 1937920 | J107: 1947837 | K107: 1957775 | L107: 1968351 | M107: 1978976 | N107: 1989514 | O107: 1999999 | P107: 2010393 | Q107: 2020604 | R107: 2030775 | S107: 2040932 | T107: 2051022 | U107: 2061079 | V107: 2071016 | W107: 2080938 | X107: 2090839 | Y107: 2100704 | Z107: 2110580 | AA107: =ROUND(IF(Z107>0,IF(_xlfn.FORECAST.ETS(AA$86,$F107:$Z107,$F$86:$Z$86,1)<0,0,_xlfn.FORECAST.ETS(AA$86,$F107:$Z107,$F$86:$Z$86,1)),0),0) -> 2120451 | AB107: =ROUND(IF(AA107>0,IF(_xlfn.FORECAST.ETS(AB$86,$F107:$Z107,$F$86:$Z$86,1)<0,0,_xlfn.FORECAST.ETS(AB$86,$F107:$Z107,$F$86:$Z$86,1)),0),0) -> 2130323 | AC107: =ROUND(IF(AB107>0,IF(_xlfn.FORECAST.ETS(AC$86,$F107:$Z107,$F$86:$Z$86,1)<0,0,_xlfn.FORECAST.ETS(AC$86,$F107:$Z107,$F$86:$Z$86,1)),0),0) -> 2140195 | AD107: =ROUND(IF(AC107>0,IF(_xlfn.FORECAST.ETS(AD$86,$F107:$Z107,$F$86:$Z$86,1)<0,0,_xlfn.FORECAST.ETS(AD$86,$F107:$Z107,$F$86:$Z$86,1)),0),0) -> 2150067 | AE107: =ROUND(IF(AD107>0,IF(_xlfn.FORECAST.ETS(AE$86,$F107:$Z107,$F$86:$Z$86,1)<0,0,_xlfn.FORECAST.ETS(AE$86,$F107:$Z107,$F$86:$Z$86,1)),0),0) -> 2159939
B108: 22 | C108: 70 | D108: Sucre | E108: [Personas] | F108: 734647 | G108: 742217 | H108: 749636 | I108: 757033 | J108: 764503 | K108: 772042 | L108: 779515 | M108: 787153 | N108: 794914 | O108: 802736 | P108: 810664 | Q108: 818689 | R108: 826780 | S108: 834937 | T108: 843202 | U108: 851515 | V108: 859913 | W108: 868438 | X108: 877057 | Y108: 885835 | Z108: 894785 | AA108: =ROUND(IF(Z108>0,IF(_xlfn.FORECAST.ETS(AA$86,$F108:$Z108,$F$86:$Z$86,1)<0,0,_xlfn.FORECAST.ETS(AA$86,$F108:$Z108,$F$86:$Z$86,1)),0),0) -> 903099 | AB108: =ROUND(IF(AA108>0,IF(_xlfn.FORECAST.ETS(AB$86,$F108:$Z108,$F$86:$Z$86,1)<0,0,_xlfn.FORECAST.ETS(AB$86,$F108:$Z108,$F$86:$Z$86,1)),0),0) -> 911914 | AC108: =ROUND(IF(AB108>0,IF(_xlfn.FORECAST.ETS(AC$86,$F108:$Z108,$F$86:$Z$86,1)<0,0,_xlfn.FORECAST.ETS(AC$86,$F108:$Z108,$F$86:$Z$86,1)),0),0) -> 920729 | AD108: =ROUND(IF(AC108>0,IF(_xlfn.FORECAST.ETS(AD$86,$F108:$Z108,$F$86:$Z$86,1)<0,0,_xlfn.FORECAST.ETS(AD$86,$F108:$Z108,$F$86:$Z$86,1)),0),0) -> 929544 | AE108: =ROUND(IF(AD108>0,IF(_xlfn.FORECAST.ETS(AE$86,$F108:$Z108,$F$86:$Z$86,1)<0,0,_xlfn.FORECAST.ETS(AE$86,$F108:$Z108,$F$86:$Z$86,1)),0),0) -> 938359
B109: 23 | C109: 73 | D109: Tolima | E109: [Personas] | F109: 1336721 | G109: 1342648 | H109: 1348498 | I109: 1354239 | J109: 1359765 | K109: 1365082 | L109: 1369841 | M109: 1374437 | N109: 1378903 | O109: 1383304 | P109: 1387621 | Q109: 1391876 | R109: 1396038 | S109: 1400140 | T109: 1404262 | U109: 1408272 | V109: 1412220 | W109: 1416124 | X109: 1419947 | Y109: 1423719 | Z109: 1427427 | AA109: =ROUND(IF(Z109>0,IF(_xlfn.FORECAST.ETS(AA$86,$F109:$Z109,$F$86:$Z$86,1)<0,0,_xlfn.FORECAST.ETS(AA$86,$F109:$Z109,$F$86:$Z$86,1)),0),0) -> 1431142 | AB109: =ROUND(IF(AA109>0,IF(_xlfn.FORECAST.ETS(AB$86,$F109:$Z109,$F$86:$Z$86,1)<0,0,_xlfn.FORECAST.ETS(AB$86,$F109:$Z109,$F$86:$Z$86,1)),0),0) -> 1434851 | AC109: =ROUND(IF(AB109>0,IF(_xlfn.FORECAST.ETS(AC$86,$F109:$Z109,$F$86:$Z$86,1)<0,0,_xlfn.FORECAST.ETS(AC$86,$F109:$Z109,$F$86:$Z$86,1)),0),0) -> 1438560 | AD109: =ROUND(IF(AC109>0,IF(_xlfn.FORECAST.ETS(AD$86,$F109:$Z109,$F$86:$Z$86,1)<0,0,_xlfn.FORECAST.ETS(AD$86,$F109:$Z109,$F$86:$Z$86,1)),0),0) -> 1442268 | AE109: =ROUND(IF(AD109>0,IF(_xlfn.FORECAST.ETS(AE$86,$F109:$Z109,$F$86:$Z$86,1)<0,0,_xlfn.FORECAST.ETS(AE$86,$F109:$Z109,$F$86:$Z$86,1)),0),0) -> 1445977
B110: 24 | C110: 76 | D110: Valle del Cauca | E110: [Personas] | F110: 3949031 | G110: 3990355 | H110: 4032191 | I110: 4074590 | J110: 4117760 | K110: 4161470 | L110: 4205228 | M110: 4249220 | N110: 4293541 | O110: 4338216 | P110: 4383277 | Q110: 4428675 | R110: 4474369 | S110: 4520480 | T110: 4566875 | U110: 4613684 | V110: 4660741 | W110: 4708262 | X110: 4756113 | Y110: 4804489 | Z110: 4853327 | AA110: =ROUND(IF(Z110>0,IF(_xlfn.FORECAST.ETS(AA$86,$F110:$Z110,$F$86:$Z$86,1)<0,0,_xlfn.FORECAST.ETS(AA$86,$F110:$Z110,$F$86:$Z$86,1)),0),0) -> 4900263 | AB110: =ROUND(IF(AA110>0,IF(_xlfn.FORECAST.ETS(AB$86,$F110:$Z110,$F$86:$Z$86,1)<0,0,_xlfn.FORECAST.ETS(AB$86,$F110:$Z110,$F$86:$Z$86,1)),0),0) -> 4948930 | AC110: =ROUND(IF(AB110>0,IF(_xlfn.FORECAST.ETS(AC$86,$F110:$Z110,$F$86:$Z$86,1)<0,0,_xlfn.FORECAST.ETS(AC$86,$F110:$Z110,$F$86:$Z$86,1)),0),0) -> 4997598 | AD110: =ROUND(IF(AC110>0,IF(_xlfn.FORECAST.ETS(AD$86,$F110:$Z110,$F$86:$Z$86,1)<0,0,_xlfn.FORECAST.ETS(AD$86,$F110:$Z110,$F$86:$Z$86,1)),0),0) -> 5046266 | AE110: =ROUND(IF(AD110>0,IF(_xlfn.FORECAST.ETS(AE$86,$F110:$Z110,$F$86:$Z$86,1)<0,0,_xlfn.FORECAST.ETS(AE$86,$F110:$Z110,$F$86:$Z$86,1)),0),0) -> 5094934
B111: 25 | C111: 81 | D111: Arauca | E111: [Personas] | F111: 215979 | G111: 220976 | H111: 224831 | I111: 227738 | J111: 230019 | K111: 232129 | L111: 235252 | M111: 238361 | N111: 241446 | O111: 244507 | P111: 247541 | Q111: 250569 | R111: 253565 | S111: 256527 | T111: 259447 | U111: 262315 | V111: 265190 | W111: 267992 | X111: 270708 | Y111: 273321 | Z111: 275814 | AA111: =ROUND(IF(Z111>0,IF(_xlfn.FORECAST.ETS(AA$86,$F111:$Z111,$F$86:$Z$86,1)<0,0,_xlfn.FORECAST.ETS(AA$86,$F111:$Z111,$F$86:$Z$86,1)),0),0) -> 278801 | AB111: =ROUND(IF(AA111>0,IF(_xlfn.FORECAST.ETS(AB$86,$F111:$Z111,$F$86:$Z$86,1)<0,0,_xlfn.FORECAST.ETS(AB$86,$F111:$Z111,$F$86:$Z$86,1)),0),0) -> 281739 | AC111: =ROUND(IF(AB111>0,IF(_xlfn.FORECAST.ETS(AC$86,$F111:$Z111,$F$86:$Z$86,1)<0,0,_xlfn.FORECAST.ETS(AC$86,$F111:$Z111,$F$86:$Z$86,1)),0),0) -> 284678 | AD111: =ROUND(IF(AC111>0,IF(_xlfn.FORECAST.ETS(AD$86,$F111:$Z111,$F$86:$Z$86,1)<0,0,_xlfn.FORECAST.ETS(AD$86,$F111:$Z111,$F$86:$Z$86,1)),0),0) -> 287616 | AE111: =ROUND(IF(AD111>0,IF(_xlfn.FORECAST.ETS(AE$86,$F111:$Z111,$F$86:$Z$86,1)<0,0,_xlfn.FORECAST.ETS(AE$86,$F111:$Z111,$F$86:$Z$86,1)),0),0) -> 290555
B112: 26 | C112: 85 | D112: Casanare | E112: [Personas] | F112: 263956 | G112: 270318 | H112: 276648 | I112: 282913 | J112: 289117 | K112: 295276 | L112: 301371 | M112: 307441 | N112: 313431 | O112: 319515 | P112: 325621 | Q112: 331734 | R112: 337886 | S112: 344040 | T112: 350239 | U112: 356479 | V112: 362721 | W112: 368989 | X112: 375249 | Y112: 381554 | Z112: 387828 | AA112: =ROUND(IF(Z112>0,IF(_xlfn.FORECAST.ETS(AA$86,$F112:$Z112,$F$86:$Z$86,1)<0,0,_xlfn.FORECAST.ETS(AA$86,$F112:$Z112,$F$86:$Z$86,1)),0),0) -> 393979 | AB112: =ROUND(IF(AA112>0,IF(_xlfn.FORECAST.ETS(AB$86,$F112:$Z112,$F$86:$Z$86,1)<0,0,_xlfn.FORECAST.ETS(AB$86,$F112:$Z112,$F$86:$Z$86,1)),0),0) -> 400142 | AC112: =ROUND(IF(AB112>0,IF(_xlfn.FORECAST.ETS(AC$86,$F112:$Z112,$F$86:$Z$86,1)<0,0,_xlfn.FORECAST.ETS(AC$86,$F112:$Z112,$F$86:$Z$86,1)),0),0) -> 406305 | AD112: =ROUND(IF(AC112>0,IF(_xlfn.FORECAST.ETS(AD$86,$F112:$Z112,$F$86:$Z$86,1)<0,0,_xlfn.FORECAST.ETS(AD$86,$F112:$Z112,$F$86:$Z$86,1)),0),0) -> 412469 | AE112: =ROUND(IF(AD112>0,IF(_xlfn.FORECAST.ETS(AE$86,$F112:$Z112,$F$86:$Z$86,1)<0,0,_xlfn.FORECAST.ETS(AE$86,$F112:$Z112,$F$86:$Z$86,1)),0),0) -> 418632
B113: 27 | C113: 86 | D113: Putumayo | E113: [Personas] | F113: 293525 | G113: 297363 | H113: 300865 | I113: 304095 | J113: 307144 | K113: 310132 | L113: 313126 | M113: 316209 | N113: 319390 | O113: 322681 | P113: 326093 | Q113: 329598 | R113: 333247 | S113: 337054 | T113: 341034 | U113: 345204 | V113: 349537 | W113: 354094 | X113: 358896 | Y113: 363967 | Z113: 369332 | AA113: =ROUND(IF(Z113>0,IF(_xlfn.FORECAST.ETS(AA$86,$F113:$Z113,$F$86:$Z$86,1)<0,0,_xlfn.FORECAST.ETS(AA$86,$F113:$Z113,$F$86:$Z$86,1)),0),0) -> 368818 | AB113: =ROUND(IF(AA113>0,IF(_xlfn.FORECAST.ETS(AB$86,$F113:$Z113,$F$86:$Z$86,1)<0,0,_xlfn.FORECAST.ETS(AB$86,$F113:$Z113,$F$86:$Z$86,1)),0),0) -> 372458 | AC113: =ROUND(IF(AB113>0,IF(_xlfn.FORECAST.ETS(AC$86,$F113:$Z113,$F$86:$Z$86,1)<0,0,_xlfn.FORECAST.ETS(AC$86,$F113:$Z113,$F$86:$Z$86,1)),0),0) -> 376099 | AD113: =ROUND(IF(AC113>0,IF(_xlfn.FORECAST.ETS(AD$86,$F113:$Z113,$F$86:$Z$86,1)<0,0,_xlfn.FORECAST.ETS(AD$86,$F113:$Z113,$F$86:$Z$86,1)),0),0) -> 379740 | AE113: =ROUND(IF(AD113>0,IF(_xlfn.FORECAST.ETS(AE$86,$F113:$Z113,$F$86:$Z$86,1)<0,0,_xlfn.FORECAST.ETS(AE$86,$F113:$Z113,$F$86:$Z$86,1)),0),0) -> 383381
B114: 28 | C114: 88 | D114: San Andrés | E114: [Personas] | F114: 67672 | G114: 68177 | H114: 68717 | I114: 69300 | J114: 69920 | K114: 70554 | L114: 71075 | M114: 71613 | N114: 72167 | O114: 72735 | P114: 73320 | Q114: 73925 | R114: 74541 | S114: 75167 | T114: 75801 | U114: 76442 | V114: 77101 | W114: 77759 | X114: 78413 | Y114: 79060 | Z114: 79693 | AA114: =ROUND(IF(Z114>0,IF(_xlfn.FORECAST.ETS(AA$86,$F114:$Z114,$F$86:$Z$86,1)<0,0,_xlfn.FORECAST.ETS(AA$86,$F114:$Z114,$F$86:$Z$86,1)),0),0) -> 80347 | AB114: =ROUND(IF(AA114>0,IF(_xlfn.FORECAST.ETS(AB$86,$F114:$Z114,$F$86:$Z$86,1)<0,0,_xlfn.FORECAST.ETS(AB$86,$F114:$Z114,$F$86:$Z$86,1)),0),0) -> 80987 | AC114: =ROUND(IF(AB114>0,IF(_xlfn.FORECAST.ETS(AC$86,$F114:$Z114,$F$86:$Z$86,1)<0,0,_xlfn.FORECAST.ETS(AC$86,$F114:$Z114,$F$86:$Z$86,1)),0),0) -> 81628 | AD114: =ROUND(IF(AC114>0,IF(_xlfn.FORECAST.ETS(AD$86,$F114:$Z114,$F$86:$Z$86,1)<0,0,_xlfn.FORECAST.ETS(AD$86,$F114:$Z114,$F$86:$Z$86,1)),0),0) -> 82268 | AE114: =ROUND(IF(AD114>0,IF(_xlfn.FORECAST.ETS(AE$86,$F114:$Z114,$F$86:$Z$86,1)<0,0,_xlfn.FORECAST.ETS(AE$86,$F114:$Z114,$F$86:$Z$86,1)),0),0) -> 82909
B115: 29 | C115: 91 | D115: Amazonas | E115: [Personas] | F115: 62065 | G115: 63451 | H115: 64701 | I115: 65825 | J115: 66827 | K115: 67726 | L115: 68613 | M115: 69474 | N115: 70313 | O115: 71167 | P115: 72017 | Q115: 72858 | R115: 73699 | S115: 74541 | T115: 75388 | U115: 76243 | V115: 77088 | W115: 77948 | X115: 78830 | Y115: 79739 | Z115: 80682 | AA115: =ROUND(IF(Z115>0,IF(_xlfn.FORECAST.ETS(AA$86,$F115:$Z115,$F$86:$Z$86,1)<0,0,_xlfn.FORECAST.ETS(AA$86,$F115:$Z115,$F$86:$Z$86,1)),0),0) -> 81621 | AB115: =ROUND(IF(AA115>0,IF(_xlfn.FORECAST.ETS(AB$86,$F115:$Z115,$F$86:$Z$86,1)<0,0,_xlfn.FORECAST.ETS(AB$86,$F115:$Z115,$F$86:$Z$86,1)),0),0) -> 82561 | AC115: =ROUND(IF(AB115>0,IF(_xlfn.FORECAST.ETS(AC$86,$F115:$Z115,$F$86:$Z$86,1)<0,0,_xlfn.FORECAST.ETS(AC$86,$F115:$Z115,$F$86:$Z$86,1)),0),0) -> 83500 | AD115: =ROUND(IF(AC115>0,IF(_xlfn.FORECAST.ETS(AD$86,$F115:$Z115,$F$86:$Z$86,1)<0,0,_xlfn.FORECAST.ETS(AD$86,$F115:$Z115,$F$86:$Z$86,1)),0),0) -> 84439 | AE115: =ROUND(IF(AD115>0,IF(_xlfn.FORECAST.ETS(AE$86,$F115:$Z115,$F$86:$Z$86,1)<0,0,_xlfn.FORECAST.ETS(AE$86,$F115:$Z115,$F$86:$Z$86,1)),0),0) -> 85379
B116: 30 | C116: 94 | D116: Guainía | E116: [Personas] | F116: 31640 | G116: 32490 | H116: 33261 | I116: 33968 | J116: 34614 | K116: 35230 | L116: 35846 | M116: 36464 | N116: 37084 | O116: 37705 | P116: 38328 | Q116: 38949 | R116: 39574 | S116: 40203 | T116: 40839 | U116: 41482 | V116: 42123 | W116: 42777 | X116: 43446 | Y116: 44134 | Z116: 44844 | AA116: =ROUND(IF(Z116>0,IF(_xlfn.FORECAST.ETS(AA$86,$F116:$Z116,$F$86:$Z$86,1)<0,0,_xlfn.FORECAST.ETS(AA$86,$F116:$Z116,$F$86:$Z$86,1)),0),0) -> 45499 | AB116: =ROUND(IF(AA116>0,IF(_xlfn.FORECAST.ETS(AB$86,$F116:$Z116,$F$86:$Z$86,1)<0,0,_xlfn.FORECAST.ETS(AB$86,$F116:$Z116,$F$86:$Z$86,1)),0),0) -> 46155 | AC116: =ROUND(IF(AB116>0,IF(_xlfn.FORECAST.ETS(AC$86,$F116:$Z116,$F$86:$Z$86,1)<0,0,_xlfn.FORECAST.ETS(AC$86,$F116:$Z116,$F$86:$Z$86,1)),0),0) -> 46811 | AD116: =ROUND(IF(AC116>0,IF(_xlfn.FORECAST.ETS(AD$86,$F116:$Z116,$F$86:$Z$86,1)<0,0,_xlfn.FORECAST.ETS(AD$86,$F116:$Z116,$F$86:$Z$86,1)),0),0) -> 47466 | AE116: =ROUND(IF(AD116>0,IF(_xlfn.FORECAST.ETS(AE$86,$F116:$Z116,$F$86:$Z$86,1)<0,0,_xlfn.FORECAST.ETS(AE$86,$F116:$Z116,$F$86:$Z$86,1)),0),0) -> 48122
B117: 31 | C117: 95 | D117: Guaviare | E117: [Personas] | F117: 89038 | G117: 90360 | H117: 91633 | I117: 92889 | J117: 94181 | K117: 95551 | L117: 97135 | M117: 98688 | N117: 100208 | O117: 101759 | P117: 103307 | Q117: 104846 | R117: 106386 | S117: 107934 | T117: 109490 | U117: 111060 | V117: 112621 | W117: 114207 | X117: 115829 | Y117: 117494 | Z117: 119214 | AA117: =ROUND(IF(Z117>0,IF(_xlfn.FORECAST.ETS(AA$86,$F117:$Z117,$F$86:$Z$86,1)<0,0,_xlfn.FORECAST.ETS(AA$86,$F117:$Z117,$F$86:$Z$86,1)),0),0) -> 120928 | AB117: =ROUND(IF(AA117>0,IF(_xlfn.FORECAST.ETS(AB$86,$F117:$Z117,$F$86:$Z$86,1)<0,0,_xlfn.FORECAST.ETS(AB$86,$F117:$Z117,$F$86:$Z$86,1)),0),0) -> 122642 | AC117: =ROUND(IF(AB117>0,IF(_xlfn.FORECAST.ETS(AC$86,$F117:$Z117,$F$86:$Z$86,1)<0,0,_xlfn.FORECAST.ETS(AC$86,$F117:$Z117,$F$86:$Z$86,1)),0),0) -> 124356 | AD117: =ROUND(IF(AC117>0,IF(_xlfn.FORECAST.ETS(AD$86,$F117:$Z117,$F$86:$Z$86,1)<0,0,_xlfn.FORECAST.ETS(AD$86,$F117:$Z117,$F$86:$Z$86,1)),0),0) -> 126070 | AE117: =ROUND(IF(AD117>0,IF(_xlfn.FORECAST.ETS(AE$86,$F117:$Z117,$F$86:$Z$86,1)<0,0,_xlfn.FORECAST.ETS(AE$86,$F117:$Z117,$F$86:$Z$86,1)),0),0) -> 127784
B118: 32 | C118: 97 | D118: Vaupés | E118: [Personas] | F118: 36151 | G118: 36905 | H118: 37602 | I118: 38230 | J118: 38787 | K118: 39279 | L118: 39741 | M118: 40198 | N118: 40649 | O118: 41094 | P118: 41534 | Q118: 41965 | R118: 42392 | S118: 42817 | T118: 43240 | U118: 43665 | V118: 44079 | W118: 44500 | X118: 44928 | Y118: 45367 | Z118: 45822 | AA118: =ROUND(IF(Z118>0,IF(_xlfn.FORECAST.ETS(AA$86,$F118:$Z118,$F$86:$Z$86,1)<0,0,_xlfn.FORECAST.ETS(AA$86,$F118:$Z118,$F$86:$Z$86,1)),0),0) -> 46275 | AB118: =ROUND(IF(AA118>0,IF(_xlfn.FORECAST.ETS(AB$86,$F118:$Z118,$F$86:$Z$86,1)<0,0,_xlfn.FORECAST.ETS(AB$86,$F118:$Z118,$F$86:$Z$86,1)),0),0) -> 46729 | AC118: =ROUND(IF(AB118>0,IF(_xlfn.FORECAST.ETS(AC$86,$F118:$Z118,$F$86:$Z$86,1)<0,0,_xlfn.FORECAST.ETS(AC$86,$F118:$Z118,$F$86:$Z$86,1)),0),0) -> 47182 | AD118: =ROUND(IF(AC118>0,IF(_xlfn.FORECAST.ETS(AD$86,$F118:$Z118,$F$86:$Z$86,1)<0,0,_xlfn.FORECAST.ETS(AD$86,$F118:$Z118,$F$86:$Z$86,1)),0),0) -> 47635 | AE118: =ROUND(IF(AD118>0,IF(_xlfn.FORECAST.ETS(AE$86,$F118:$Z118,$F$86:$Z$86,1)<0,0,_xlfn.FORECAST.ETS(AE$86,$F118:$Z118,$F$86:$Z$86,1)),0),0) -> 48088
B119: 33 | C119: 99 | D119: Vichada | E119: [Personas] | F119: 48901 | G119: 50405 | H119: 51821 | I119: 53171 | J119: 54504 | K119: 55872 | L119: 57344 | M119: 58885 | N119: 60494 | O119: 62071 | P119: 63670 | Q119: 65282 | R119: 66917 | S119: 68575 | T119: 70260 | U119: 71974 | V119: 73702 | W119: 75468 | X119: 77276 | Y119: 79134 | Z119: 81048 | AA119: =ROUND(IF(Z119>0,IF(_xlfn.FORECAST.ETS(AA$86,$F119:$Z119,$F$86:$Z$86,1)<0,0,_xlfn.FORECAST.ETS(AA$86,$F119:$Z119,$F$86:$Z$86,1)),0),0) -> 82711 | AB119: =ROUND(IF(AA119>0,IF(_xlfn.FORECAST.ETS(AB$86,$F119:$Z119,$F$86:$Z$86,1)<0,0,_xlfn.FORECAST.ETS(AB$86,$F119:$Z119,$F$86:$Z$86,1)),0),0) -> 84578 | AC119: =ROUND(IF(AB119>0,IF(_xlfn.FORECAST.ETS(AC$86,$F119:$Z119,$F$86:$Z$86,1)<0,0,_xlfn.FORECAST.ETS(AC$86,$F119:$Z119,$F$86:$Z$86,1)),0),0) -> 86446 | AD119: =ROUND(IF(AC119>0,IF(_xlfn.FORECAST.ETS(AD$86,$F119:$Z119,$F$86:$Z$86,1)<0,0,_xlfn.FORECAST.ETS(AD$86,$F119:$Z119,$F$86:$Z$86,1)),0),0) -> 88314 | AE119: =ROUND(IF(AD119>0,IF(_xlfn.FORECAST.ETS(AE$86,$F119:$Z119,$F$86:$Z$86,1)<0,0,_xlfn.FORECAST.ETS(AE$86,$F119:$Z119,$F$86:$Z$86,1)),0),0) -> 90182
B120: T | C120: Total | F120: =SUM(F87:F119) -> 40295563 | G120: 40813541 | H120: 41328824 | I120: 41848959 | J120: 42368489 | K120: 42888592 | L120: 43405956 | M120: 43926929 | N120: 44451147 | O120: 44978832 | P120: 45509584 | Q120: 46044601 | R120: 46581823 | S120: 47121089 | T120: 47661787 | U120: 48203405 | V120: 48747708 | W120: 49291609 | X120: 49834240 | Y120: 50374478 | Z120: 50911747 | AA120: 51449443 | AB120: 51987037 | AC120: 52524637 | AD120: 53062231 | AE120: 53599833
B122: Proporción por departamento
B124: id | C124: DP | D124: Departamento | F124: 2000 | G124: 2001 | H124: 2002 | I124: 2003 | J124: 2004 | K124: 2005 | L124: 2006 | M124: 2007 | N124: 2008 | O124: 2009 | P124: 2010 | Q124: 2011 | R124: 2012 | S124: 2013 | T124: 2014 | U124: 2015 | V124: 2016 | W124: 2017 | X124: 2018 | Y124: 2019 | Z124: 2020 | AA124: 2021 | AB124: 2022 | AC124: 2023 | AD124: 2024 | AE124: 2025
B125: 1 | C125: 5 | D125: Antioquia | E125: [%] | F125: =F87/F$120 -> 0.1312777786 | G125: =G87/G$120 -> 0.1315484241 | H125: 0.1318169856 | I125: 0.1320572156 | J125: 0.1322849158 | K125: 0.1324900104 | L125: 0.1326539842 | M125: 0.1328311615 | N125: 0.1329864222 | O125: 0.1331415631 | P125: 0.1332906713 | Q125: 0.1334316916 | R125: 0.1335674862 | S125: 0.1336978863 | T125: 0.1338206643 | U125: 0.1339386502 | V125: 0.1340546513 | W125: 0.1341631595 | X125: 0.1342657177 | Y125: 0.1343614518 | Z125: 0.1344501692 | AA125: 0.1345375887 | AB125: 0.1346220405 | AC125: 0.1347047482 | AD125: 0.1347857952 | AE125: 0.134865215
B126: 2 | C126: 8 | D126: Atlántico | E126: [%] | F126: =F88/F$120 -> 0.05006476768 | G126: 0.05014945897 | H126: 0.05024014233 | I126: 0.05032796634 | J126: 0.05041647815 | K126: 0.05050340659 | L126: 0.05058697475 | M126: 0.05066325033 | N126: 0.05073306657 | O126: 0.05079813989 | P126: 0.05085654046 | Q126: 0.05090883511 | R126: 0.05095442486 | S126: 0.05099436475 | T126: 0.05102626555 | U126: 0.05105164251 | V126: 0.05106935489 | W126: 0.0510816557 | X126: 0.05108784643 | Y126: 0.05108918449 | Z126: 0.05108652037 | AA126: 0.05121169145 | AB126: 0.05124646746 | AC126: 0.05128052575 | AD126: 0.05131389971 | AE126: 0.05134659655
B127: 3 | C127: 11 | D127: Bogotá | E127: [%] | F127: 0.1564162536 | G127: 0.1571145224 | H127: 0.1577705913 | I127: 0.1583687661 | J127: 0.1589398432 | K127: 0.159485674 | L127: 0.16000606 | M127: 0.160498996 | N127: 0.1609643954 | O127: 0.1614003005 | P127: 0.16180728 | Q127: 0.1621863115 | R127: 0.1625386151 | S127: 0.1628647844 | T127: 0.1631672979 | U127: 0.1634486817 | V127: 0.1637000246 | W127: 0.1639373144 | X127: 0.1641651804 | Y127: 0.1643893958 | Z127: 0.1646142883 | AA127: 0.1648558955 | AB127: 0.1650601284 | AC127: 0.1652601616 | AD127: 0.1654561792 | AE127: 0.1656482213
B128: 4 | C128: 13 | D128: Bolívar | E128: [%] | F128: 0.04448713125 | G128: 0.04437005356 | H128: 0.04423201105 | I128: 0.04408229127 | J128: 0.04394397922 | K128: 0.04382237589 | L128: 0.04372743224 | M128: 0.04364851001 | N128: 0.04358717673 | O128: 0.04354117066 | P128: 0.04350758293 | Q128: 0.04349111419 | R128: 0.04348419339 | S128: 0.04348602809 | T128: 0.04349404692 | U128: 0.04350649088 | V128: 0.04352934911 | W128: 0.04355094191 | X128: 0.04357004341 | Y128: 0.04358347892 | Z128: 0.04358795623 | AA128: 0.04359364979 | AB128: 0.04359808004 | AC128: 0.04360241462 | AD128: 0.04360668514 | AE128: 0.04361084483
B129: 5 | C129: 15 | D129: Boyacá | E129: [%] | F129: 0.03063736819 | G129: 0.03037455143 | H129: 0.0301071233 | I129: 0.02983087345 | J129: 0.02955090043 | K129: 0.02926918188 | L129: 0.02898669021 | M129: 0.02870268941 | N129: 0.02841888422 | O129: 0.02813574617 | P129: 0.02785461629 | Q129: 0.0275690303 | R129: 0.02728817633 | S129: 0.02701242749 | T129: 0.02674291251 | U129: 0.02647960243 | V129: 0.02621881217 | W129: 0.02596699572 | X129: 0.02572654865 | Y129: 0.02549654212 | Z129: 0.02527966679 | AA129: 0.02506198172 | AB129: 0.02484886761 | AC129: 0.02464011317 | AD129: 0.02443561033 | AE129: 0.02423518745
B130: 6 | C130: 17 | D130: Caldas | E130: [%] | F130: 0.02381113275 | G130: 0.02355289388 | H130: 0.02330083237 | I130: 0.02305302266 | J130: 0.02281403049 | K130: 0.02258376773 | L130: 0.02236216154 | M130: 0.02214111075 | N130: 0.02192278638 | O130: 0.02170850057 | P130: 0.0214974938 | Q130: 0.02128951014 | R130: 0.02108562819 | S130: 0.0208848102 | T130: 0.02068831368 | U130: 0.02049629067 | V130: 0.02030729322 | W130: 0.02012228897 | X130: 0.01994343648 | Y130: 0.01976838351 | Z130: 0.01959922923 | AA130: 0.01943334936 | AB130: 0.01927093864 | AC130: 0.01911185031 | AD130: 0.01895598773 | AE130: 0.01880324888
B131: 7 | C131: 18 | D131: Caquetá | E131: [%] | F131: 0.009895283012 | G131: 0.009866676356 | H131: 0.009841412376 | I131: 0.009820817765 | J131: 0.009808846381 | K131: 0.009804891706 | L131: 0.009808515679 | M131: 0.009812204263 | N131: 0.009819431656 | O131: 0.00982842329 | P131: 0.009838960514 | Q131: 0.009851057239 | R131: 0.009864684772 | S131: 0.009878528062 | T131: 0.009893481333 | U131: 0.009908885067 | V131: 0.009925512806 | W131: 0.009941976128 | X131: 0.009957832205 | Y131: 0.009973502852 | Z131: 0.009988205669 | AA131: 0.01000271276 | AB131: 0.010016824 | AC131: 0.01003064524 | AD131: 0.01004418755 | AE131: 0.01005745671
B132: 8 | C132: 19 | D132: Cauca | E132: [%] | F132: 0.03017563001 | G132: 0.03007641508 | H132: 0.02996504328 | I132: 0.02984124408 | J132: 0.02971276601 | K132: 0.02958432396 | L132: 0.02944722609 | M132: 0.02931563916 | N132: 0.02919391484 | O132: 0.02908441464 | P132: 0.02898554291 | Q132: 0.02890145579 | R132: 0.02882347477 | S132: 0.02875003589 | T132: 0.0286809221 | U132: 0.02861144353 | V132: 0.02855182443 | W132: 0.02848770873 | X132: 0.02841285429 | Y132: 0.02832660618 | Z132: 0.0282236632 | AA132: 0.02812537737 | AB132: 0.02802702528 | AC132: 0.02793068327 | AD132: 0.02783627775 | AE132: 0.02774378047
B133: 9 | C133: 20 | D133: Cesar | E133: [%] | F133: 0.02095923067 | G133: 0.02097272079 | H133: 0.02099043515 | I133: 0.02101024783 | J133: 0.02103556254 | K133: 0.02106441265 | L133: 0.02110079087 | M133: 0.02113899198 | N133: 0.02117511163 | O133: 0.02120699799 | P133: 0.02123618621 | Q133: 0.02126316612 | R133: 0.02128692988 | S133: 0.02130803895 | T133: 0.0213280505 | U133: 0.0213447577 | V133: 0.02135903497 | W133: 0.02137229888 | X133: 0.02138435341 | Y133: 0.02139515967 | Z133: 0.02140551178 | AA133: 0.02142089274 | AB133: 0.02143599759 | AC133: 0.0214507908 | AD133: 0.02146526783 | AE133: 0.02147946991
B134: 10 | C134: 23 | D134: Córdoba | E134: [%] | F134: 0.03379176015 | G134: 0.03388608207 | H134: 0.03397568244 | I134: 0.03405812317 | J134: 0.03414216636 | K134: 0.03422602449 | L134: 0.03432121159 | M134: 0.03442150486 | N134: 0.03454160587 | O134: 0.034657036 | P134: 0.03477913575 | Q134: 0.03491221479 | R134: 0.03504880004 | S134: 0.03518736589 | T134: 0.03532771442 | U134: 0.03546728701 | V134: 0.03561541806 | W134: 0.0357572016 | X134: 0.03588911961 | Y134: 0.03600740041 | Z134: 0.03610897501 | AA134: 0.03621036286 | AB134: 0.03630793576 | AC134: 0.03640350718 | AD134: 0.03649714615 | AE134: 0.03658890131
B135: 11 | C135: 25 | D135: Cundinamarca | E135: [%] | F135: 0.05153912355 | G135: 0.05190843402 | H135: 0.0522588303 | I135: 0.05257968305 | J135: 0.05287958228 | K135: 0.05316467372 | L135: 0.05342490326 | M135: 0.05368267379 | N135: 0.05393586357 | O135: 0.05418439945 | P135: 0.05442888689 | Q135: 0.05466905881 | R135: 0.05490603062 | S135: 0.05513974857 | T135: 0.05537054244 | U135: 0.05559858271 | V135: 0.05582555799 | W135: 0.05604978324 | X135: 0.05627131065 | Y135: 0.05649027271 | Z135: 0.05670606825 | AA135: =AA97/AA$120 -> 0.05692104383 | AB135: 0.05712960714 | AC135: 0.05733389457 | AD135: 0.05753403018 | AE135: 0.05773016121
B136: 12 | C136: 27 | D136: Chocó | E136: [%] | F136: 0.01085337857 | G136: 0.01073053181 | H136: 0.0106905534 | I136: 0.01065245135 | J136: 0.01061819788 | K136: 0.01058680126 | L136: 0.0105588505 | M136: 0.01053301495 | N136: 0.01050758038 | O136: 0.01048488765 | P136: 0.01046260937 | Q136: 0.0104424838 | R136: 0.0104234435 | S136: 0.01040546835 | T136: 0.01038884673 | U136: 0.01037464055 | V136: 0.01035978963 | W136: 0.01034754211 | X136: 0.01033716979 | Y136: 0.0103285636 | Z136: 0.01032188112 | AA136: 0.0103149416 | AB136: 0.0103085121 | AC136: 0.01030223207 | AD136: 0.01029606162 | AE136: 0.01029003206
B137: 13 | C137: 41 | D137: Huila | E137: [%] | F137: 0.02328405239 | G137: 0.02335085309 | H137: 0.02341641756 | I137: 0.02347434735 | J137: 0.02352866537 | K137: 0.02358214511 | L137: 0.02363127309 | M137: 0.02367763975 | N137: 0.0237209402 | O137: 0.02376326713 | P137: 0.0238013382 | Q137: 0.0238374093 | R137: 0.02387083477 | S137: 0.0239025885 | T137: 0.02392984132 | U137: 0.02395633669 | V137: 0.02397792733 | W137: 0.02399889198 | X137: 0.02402125527 | Y137: 0.02404318711 | Z137: 0.0240679818 | AA137: 0.02408908489 | AB137: 0.02410945252 | AC137: 0.02412940046 | AD137: 0.02414894692 | AE137: 0.02416809769
B138: 14 | C138: 44 | D138: La Guajira | E138: [%] | F138: 0.013621326 | G138: 0.01405474717 | H138: 0.01450602611 | I138: 0.01496711065 | J138: 0.01543208208 | K138: 0.01589079912 | L138: 0.01632881902 | M138: 0.01675623625 | N138: 0.01717606972 | O138: 0.01758789557 | P138: 0.01799049624 | Q138: 0.01838741094 | R138: 0.01877410423 | S138: 0.01914996065 | T138: 0.01951548732 | U138: 0.01986990338 | V138: 0.02021535043 | W138: 0.02054966394 | X138: 0.02087233597 | Y138: 0.02118261156 | Z138: 0.02148170244 | AA138: 0.02178556141 | AB138: 0.02208315892 | AC138: 0.02237464297 | AD138: 0.02266024208 | AE138: 0.02294009013
B139: 15 | C139: 47 | D139: Magdalena | E139: [%] | F139: 0.02776923603 | G139: 0.02745598575 | H139: 0.02714751816 | I139: 0.0270266221 | J139: 0.02691613572 | K139: 0.02681514935 | L139: 0.02672202405 | M139: 0.02663209167 | N139: 0.02654901121 | O139: 0.02647169673 | P139: 0.02640105434 | Q139: 0.02633444473 | R139: 0.02627366044 | S139: 0.02622036176 | T139: 0.02617430186 | U139: 0.0261355396 | V139: 0.02610260158 | W139: 0.02607713617 | X139: 0.02606021482 | Y139: 0.02605343126 | Z139: 0.02605538168 | AA139: 0.0260562782 | AB139: 0.02605722654 | AC139: 0.02605813344 | AD139: 0.02605904377 | AE139: 0.02605993194
B140: 16 | C140: 50 | D140: Meta | E140: [%] | F140: 0.01730905212 | G140: 0.01751279067 | H140: 0.01771177907 | I140: 0.01790135329 | J140: 0.01808452503 | K140: 0.01826324818 | L140: 0.01844403565 | M140: 0.01862112874 | N140: 0.01879650035 | O140: 0.01896816707 | P140: 0.01913708989 | Q140: 0.01930306661 | R140: 0.01946692812 | S140: 0.01962753874 | T140: 0.01978675286 | U140: 0.01994327994 | V140: 0.02009756028 | W140: 0.02025014034 | X140: 0.02040165557 | Y140: 0.02055120055 | Z140: 0.02069987895 | AA140: 0.02084119745 | AB140: 0.0209834617 | AC140: 0.02112283042 | AD140: 0.0212593775 | AE140: 0.02139318233
B141: 17 | C141: 52 | D141: Nariño | E141: [%] | F141: 0.03589707879 | G141: 0.03589068638 | H141: 0.03589301259 | I141: 0.03590906526 | J141: 0.03592776226 | K141: 0.03594643536 | L141: 0.03595985767 | M141: 0.03597130589 | N141: 0.03598660795 | O141: 0.03600495895 | P141: 0.03602669715 | Q141: 0.03605334749 | R141: 0.03608263678 | S141: 0.03611508215 | T141: 0.03614939994 | U141: 0.0361847467 | V141: 0.03622541597 | W141: 0.03626469162 | X141: 0.03630267061 | Y141: 0.03633730954 | Z141: 0.03636640086 | AA141: 0.03639777014 | AB141: 0.03642625372 | AC141: 0.03645416912 | AD141: 0.03648150414 | AE141: 0.03650830405
B142: 18 | C142: 54 | D142: Norte de Santander | E142: [%] | F142: 0.02951950318 | G142: 0.02941766312 | H142: 0.02931373029 | I142: 0.02920715423 | J142: 0.02910344525 | K142: 0.02900214118 | L142: 0.02889893728 | M142: 0.02879909952 | N142: 0.02870193653 | O142: 0.02860968022 | P142: 0.02852038815 | Q142: 0.02843471268 | R142: 0.02835391393 | S142: 0.02827561986 | T142: 0.0281994882 | U142: 0.02812637406 | V142: 0.02805686782 | W142: 0.02798717729 | X142: 0.02791733154 | Y142: 0.02784535058 | Z142: 0.02777034935 | AA142: 0.02769753989 | AB142: 0.02762559828 | AC142: 0.02755514522 | AD142: 0.027486104 | AE142: 0.02741844364
B143: 19 | C143: 63 | D143: Quindio | E143: [%] | F143: 0.01289980736 | G143: 0.01280540691 | H143: 0.01271504846 | I143: 0.01262667012 | J143: 0.01254290659 | K143: 0.0124626614 | L143: 0.01238378438 | M143: 0.01230527634 | N143: 0.01222868332 | O143: 0.01215222752 | P143: 0.01207793945 | Q143: 0.01200477337 | R143: 0.01193246559 | S143: 0.01186239563 | T143: 0.01179380874 | U143: 0.01172759476 | V143: 0.01166220984 | W143: 0.01159899244 | X143: 0.01153845228 | Y143: 0.01147938446 | Z143: 0.0114227469 | AA143: 0.01136642043 | AB143: 0.01131257009 | AC143: 0.01125983983 | AD143: 0.01120816047 | AE143: 0.01115753476
B144: 20 | C144: 66 | D144: Risaralda | E144: [%] | F144: 0.02158768696 | G144: 0.02144190331 | H144: 0.02130406614 | I144: 0.02117051466 | J144: 0.02104479109 | K144: 0.02092428215 | L144: 0.02080479462 | M144: 0.02068535226 | N144: 0.02056574603 | O144: 0.0204460845 | P144: 0.02032795993 | Q144: 0.02020905774 | R144: 0.02009174265 | S144: 0.01997566313 | T144: 0.01986144582 | U144: 0.01974866713 | V144: 0.01963690272 | W144: 0.0195272384 | X144: 0.01941972026 | Y144: 0.0193148999 | Z144: 0.01921311009 | AA144: 0.01911355969 | AB144: 0.01901566346 | AC144: 0.01891976902 | AD144: 0.01882580097 | AE144: 0.01873373374
B145: 21 | C145: 68 | D145: Santander | E145: [%] | F145: 0.04727758736 | G145: 0.04696835788 | H145: 0.04664473395 | I145: 0.04630748402 | J145: 0.04597371882 | K145: 0.04564791961 | L145: 0.04534748641 | M145: 0.04505154458 | N145: 0.04475731526 | O145: 0.04446533872 | P145: 0.0441751566 | Q145: 0.04388362492 | R145: 0.04359586786 | S145: 0.04331249645 | T145: 0.04303283887 | U145: 0.04275795455 | V145: 0.04248437691 | W145: 0.04221688117 | X145: 0.04195587211 | Y145: 0.04170175222 | Z145: 0.04145565855 | AA145: 0.04121426543 | AB145: 0.04097796533 | AC145: 0.04074649769 | AD145: 0.04051972485 | AE145: 0.04029749496
B146: 22 | C146: 70 | D146: Sucre | E146: [%] | F146: 0.01823146136 | G146: =G108/G$120 -> 0.01818555758 | H146: 0.01813833367 | I146: 0.01808964949 | J146: 0.01804414125 | K146: 0.01800110388 | L146: 0.01795871055 | M146: 0.01791960007 | N146: 0.01788286813 | O146: 0.01784697299 | P146: 0.01781303912 | Q146: 0.01778034736 | R146: 0.01774898333 | S146: 0.01771896655 | T146: 0.01769136352 | U146: 0.01766503839 | V146: 0.01764007038 | W146: 0.01761837395 | X146: 0.01759948582 | Y146: 0.01758499612 | Z146: 0.01757521697 | AA146: 0.01755313464 | AB146: 0.01754118051 | AC146: 0.01752946908 | AD146: 0.01751799693 | AE146: 0.01750675231
B147: 23 | C147: 73 | D147: Tolima | E147: [%] | F147: 0.0331729079 | G147: 0.03289712108 | H147: 0.03262851128 | I147: 0.03236015978 | J147: 0.03209378083 | K147: 0.03182855711 | L147: 0.03155882571 | M147: 0.03128916661 | N147: 0.03102063935 | O147: 0.03075455583 | P147: 0.03049074235 | Q147: 0.0302288644 | R147: 0.02996958706 | S147: 0.02971365963 | T147: 0.02946305811 | U147: 0.02921519756 | V147: 0.02896997742 | W147: 0.02872951459 | X147: 0.02849340132 | Y147: 0.02826270478 | Z147: 0.02803728185 | AA147: 0.02781647218 | AB147: 0.02760016887 | AC147: 0.02738829018 | AD147: 0.02718068903 | AE147: 0.02697726689
B148: 24 | C148: 76 | D148: Valle del Cauca | E148: [%] | F148: 0.09800163358 | G148: 0.09777036989 | H148: 0.09756365194 | I148: 0.09736419011 | J148: 0.09718921059 | K148: 0.09702976493 | L148: 0.09688135886 | M148: 0.09673382813 | N148: 0.09659010599 | O148: 0.09645017016 | P148: 0.09631547061 | Q148: 0.09618228639 | R148: 0.09605396938 | S148: 0.09593326674 | T148: 0.09581837542 | U148: 0.09571282361 | V148: 0.0956094387 | W148: 0.09551852933 | X148: 0.09543865824 | Y148: 0.09537545977 | Z148: 0.09532823535 | AA148: 0.09524423812 | AB148: 0.0951954619 | AC148: 0.09514769231 | AD148: 0.09510090143 | AE148: 0.09505503497
B149: 25 | C149: 81 | D149: Arauca | E149: [%] | F149: 0.005359870515 | G149: 0.0054142815 | H149: 0.00544005317 | I149: 0.005441903585 | J149: 0.005429011169 | K149: 0.005412371663 | L149: 0.005419809208 | M149: 0.005426306947 | N149: 0.005431715857 | O149: 0.005436046005 | P149: 0.005439315815 | Q149: 0.005441875802 | R149: 0.005443432302 | S149: 0.005443995575 | T149: 0.005443501311 | U149: 0.005441835489 | V149: 0.005440050638 | W149: 0.005436868575 | X149: 0.005432168726 | Y149: 0.005425783271 | Z149: 0.005417492352 | AA149: 0.005418931358 | AB149: 0.005419408688 | AC149: 0.005419894668 | AD149: 0.005420352567 | AE149: 0.005420819128
B150: 26 | C150: 85 | D150: Casanare | E150: [%] | F150: 0.00655049788 | G150: 0.006623243007 | H150: 0.006693827049 | I150: 0.006760335424 | J150: 0.006823868559 | K150: 0.006884721233 | L150: 0.006943079424 | M150: 0.00699891859 | N150: 0.007051134136 | O150: 0.007103674902 | P150: 0.007154998385 | Q150: 0.007204623187 | R150: 0.007253601904 | S150: 0.007301189495 | T150: 0.007348423591 | U150: 0.007395307448 | V150: 0.0074407806 | W150: 0.007485838005 | X150: 0.007529943268 | Y150: 0.00757435144 | Z150: 0.007617652563 | AA150: 0.007657595049 | AB150: 0.007696957224 | AC150: 0.007735512765 | AD150: 0.00777330678 | AE150: 0.007810322842
B151: 27 | C151: 86 | D151: Putumayo | E151: [%] | F151: 0.007284300755 | G151: 0.007285890729 | H151: 0.007279786137 | I151: 0.007266488994 | J151: 0.007249349865 | K151: 0.007231107051 | L151: 0.007213894794 | M151: 0.007198522801 | N151: 0.007185191419 | O151: 0.007174063568 | P151: 0.007165369826 | Q151: 0.007158233383 | R151: 0.007154013702 | S151: 0.007152933159 | T151: 0.007155291932 | U151: 0.00716140281 | V151: 0.007170326859 | W151: 0.007183656756 | X151: 0.007201795392 | Y151: 0.007225226235 | Z151: 0.007254357231 | AA151: 0.007168551854 | AB151: 0.007164439858 | AC151: 0.007160430257 | AD151: 0.007156502711 | AE151: 0.007152652882
B152: 28 | C152: 88 | D152: San Andrés | E152: [%] | F152: 0.001679390855 | G152: 0.001670450501 | H152: 0.001662689459 | I152: 0.00165595517 | J152: 0.001650283068 | K152: 0.001645052838 | L152: 0.001637448096 | M152: 0.001630275588 | N152: 0.001623512662 | O152: 0.001617094014 | P152: 0.001611089216 | Q152: 0.001605508537 | R152: 0.001600216462 | S152: 0.001595188091 | T152: 0.001590393579 | U152: 0.001585821583 | V152: 0.001581633335 | W152: 0.001577530163 | X152: 0.001573476389 | Y152: 0.001569445543 | Z152: 0.001565316547 | AA152: 0.001561668996 | AB152: 0.001557830657 | AC152: 0.00155408975 | AD152: 0.001550405975 | AE152: 0.001546814521
B153: 29 | C153: 91 | D153: Amazonas | E153: [%] | F153: 0.001540244021 | G153: 0.001554655598 | H153: 0.001565517567 | I153: 0.001572918457 | J153: 0.0015772807 | K153: 0.001579114558 | L153: 0.001580727769 | M153: 0.001581581084 | N153: 0.001581803952 | O153: 0.001582233171 | P153: 0.001582457884 | Q153: 0.001582335353 | R153: 0.001582140742 | S153: 0.001581903169 | T153: 0.001581728356 | U153: 0.001581693243 | V153: 0.001581366656 | W153: 0.001581364487 | X153: 0.00158184413 | Y153: 0.001582924591 | Z153: 0.001584742319 | AA153: 0.001586431169 | AB153: 0.001588107435 | AC153: 0.001589730168 | AD153: 0.001591320199 | AE153: 0.001592896754
B154: 30 | C154: 94 | D154: Guainía | E154: [%] | F154: 0.0007851981123 | G154: 0.0007960593275 | H154: 0.0008047894128 | I154: 0.0008116808831 | J154: 0.0008169750873 | K154: 0.0008214305566 | L154: 0.0008258313675 | M154: 0.0008301058333 | N154: 0.0008342641867 | O154: 0.0008382832173 | P154: 0.0008421962284 | Q154: 0.0008458972204 | R154: 0.0008495588505 | S154: 0.0008531848659 | T154: 0.000856849954 | U154: 0.0008605616139 | V154: 0.0008641021646 | W154: 0.0008678353348 | X154: 0.0008718102253 | Y154: 0.0008761182597 | Z154: 0.0008808183306 | AA154: 0.0008843438791 | AB154: 0.0008878174765 | AC154: 0.000891219867 | AD154: 0.0008945345702 | AE154: 0.0008978013047
B155: 31 | C155: 95 | D155: Guaviare | E155: [%] | F155: 0.00220962293 | G155: 0.002213971094 | H155: 0.002217169305 | I155: 0.002219625105 | J155: 0.002222902025 | K155: 0.002227888479 | L155: 0.002237826532 | M155: 0.002246640096 | N155: 0.002254340029 | O155: 0.002262375332 | P155: 0.002270005369 | Q155: 0.002277053069 | R155: 0.002283852223 | S155: 0.002290566757 | T155: 0.002297228176 | U155: 0.002303986617 | V155: 0.002310282978 | W155: 0.002316966362 | X155: 0.002324285471 | Y155: 0.002332411266 | Z155: 0.002341581404 | AA155: 0.002350423891 | AB155: 0.002359088093 | AC155: 0.002367574668 | AD155: 0.002375889548 | AE155: 0.002384037279
B156: 32 | C156: 97 | D156: Vaupés | E156: [%] | F156: 0.0008971459215 | G156: 0.0009042342099 | H156: 0.0009098250654 | I156: 0.0009135233209 | J156: 0.0009154680971 | K156: 0.0009158379459 | L156: =L118/L$120 -> 0.0009155655966 | M156: 0.0009151106375 | N156: 0.0009144645919 | O156: 0.0009136297714 | P156: 0.0009126429281 | Q156: 0.0009113989282 | R156: 0.0009100545507 | S156: 0.0009086589658 | T156: 0.0009072257404 | U156: 0.000905848871 | V156: 0.000904227128 | W156: 0.0009027905744 | X156: 0.0009015488146 | Y156: 0.0009005949402 | Z156: 0.0009000280426 | AA156: 0.0008994266469 | AB156: 0.0008988586905 | AC156: 0.000898283219 | AD156: 0.0008977195098 | AE156: 0.0008971669744
B157: 33 | C157: 99 | D157: Vichada | E157: [%] | F157: 0.001213557929 | G157: 0.001235006784 | H157: 0.001253870664 | I157: 0.001270545344 | J157: 0.001286427751 | K157: 0.001302724044 | L157: 0.00132110902 | M157: 0.001340521665 | N157: 0.001360909765 | O157: 0.00138000471 | P157: 0.001399045968 | Q157: 0.001417799233 | R157: 0.00143654747 | S157: 0.001455293192 | T157: 0.001474136922 | U157: 0.001493131035 | V157: 0.00151190698 | W157: 0.001531051664 | X157: 0.001550660751 | Y157: 0.001570914541 | Z157: 0.00159193123 | AA157: 0.001607617015 | AB157: 0.001626905569 | AC157: 0.001645818133 | AD157: 0.00166434766 | AE157: 0.001682505242
B158: T | C158: Total | E158: [%] | F158: =SUM(F125:F157) -> 1 | G158: 1 | H158: 1 | I158: 1 | J158: 1 | K158: 1 | L158: 1 | M158: 1 | N158: 1 | O158: 1 | P158: 1 | Q158: 1 | R158: 1 | S158: 1 | T158: 1 | U158: 1 | V158: 1 | W158: 1 | X158: 1 | Y158: 1 | Z158: 1 | AA158: 1 | AB158: 1 | AC158: 1 | AD158: 1 | AE158: 1

Sheet Proyección
E2: Modelo Empresa Eficiente Móvil
E3: Demanda de Servicios Móviles
B6: Parámetros
B8: Operadores
C10: id | D10: Operador | E10: OMV | F10: Quien lo atiende | G10: Código | H10: Razón Social
C11: 1 | D11: Comcel | E11: No | F11: Comcel | G11: 800153993 | H11: Comunicacion Celular S.A.
C12: =+C11+1 -> 2 | D12: Avantel | E12: No | F12: Avantel | G12: 830016046 | H12: Avantel S.A.S.
C13: 3 | D13: Tigo | E13: No | F13: Tigo | G13: 830114921 | H13: Colombia Movil S.A. E.S.P.
C14: 4 | D14: Movistar | E14: No | F14: Movistar | G14: 830122566 | H14: Colombia Telecomunicaciones S.A. E.S.P.
C15: 5 | D15: ETB | E15: No | F15: ETB | G15: 899999115 | H15: Empresa de Telecomunicaciones de Bogotá S.A. E.S.P.
C16: 6 | D16: EPM | E16: Sí | F16: Tigo | G16: 900092385 | H16: Une Epm Telecomunicaciones S.A. E.S.P. - Une Epm Telco S.A.
C17: 7 | D17: Uff | E17: Sí | F17: Tigo | G17: 900367669 | H17: Uff Movil S.A.S.
C18: 8 | D18: Exito | E18: Sí | F18: Tigo | G18: 900389508 | H18: Almacenes Exito Inversiones S.A.S.
C19: 9 | D19: Virgin | E19: Sí | F19: Movistar | G19: 900420122 | H19: Virgin Mobile Colombia S.A.S.
C20: 10 | D20: Suma | E20: Sí | F20: Movistar | G20: 900973532 | H20: Suma Movil S.A.S.
C21: 11 | D21: Flash | E21: Sí | F21: Movistar | G21: 901162121 | H21: Logistica Flash Colombia S.A.S.
C22: 12 | D22: Setroc | E22: Sí | H22: Setroc Mobile Group SAS
C23: 13 | D23: Scarlet | E23: Sí | H23: Scarlet Mobile Colombia S.A.S.
C24: 14 | D24: Vilacom | E24: Sí | H24: Vilacom Mobile S.A.S.
C25: 15 | D25: Libre
D26: L.oper.nom
B29: Proyecciones de Demanda de Mercado de Servicios Provistos
C31: id | D31: Variable | I31: =años.calendario -> 2020 | J31: 2021 | K31: 2022 | L31: 2023 | M31: 2024 | N31: 2025
C32: 1 | D32: =Dda.L.Servicios -> Abonados | H32: =Dda.L.Unidades -> [Abonados] | I32: =AT150 -> 66196409.7 | J32: =AX150 -> 68881789.67 | K32: =BB150 -> 71567169.64 | L32: =BF150 -> 74252549.61 | M32: =BJ150 -> 76937929.58 | N32: =BN150 -> 79623309.55
C33: 2 | D33: Abonados pospago | H33: [Abonados] | I33: =AT116 -> 14364840.31 | J33: =AX116 -> 15137082.52 | K33: =BB116 -> 15909324.73 | L33: =BF116 -> 16681566.94 | M33: =BJ116 -> 17453809.16 | N33: =BN116 -> 18226051.37
C34: 3 | D34: Abonados prepago | H34: [Abonados] | I34: =AT133 -> 51831569.39 | J34: =AX133 -> 53744707.15 | K34: =BB133 -> 55657844.91 | L34: =BF133 -> 57570982.66 | M34: =BJ133 -> 59484120.42 | N34: =BN133 -> 61397258.18
C35: 4 | D35: 0 | H35: 0
C36: 5 | D36: Abonados de datos | H36: [Abonados] | I36: =SUM(I37:I38) -> 32516679 | J36: =SUM(J37:J38) -> 35946023 | K36: 39073793 | L36: 42302844 | M36: 45641457 | N36: 49089630
C37: 6 | D37: Abonados por demanda | H37: [Abonados] | I37: =DJ963 -> 18952808 | J37: =DV963 -> 21131089 | K37: =EH963 -> 23424799 | L37: =ET963 -> 25811003 | M37: =FF963 -> 28297984 | N37: =FR963 -> 30885742
C38: 7 | D38: Abonados por suscripción | H38: [Abonados] | I38: =DJ942 -> 13563871 | J38: =DV942 -> 14814934 | K38: =EH942 -> 15648994 | L38: =ET942 -> 16491841 | M38: =FF942 -> 17343473 | N38: =FR942 -> 18203888
C39: 8 | D39: 0 | H39: 0
C40: 9 | D40: Tráfico Voz Móvil Salida | H40: [Minutos] | I40: =SUM(I42:I43,I44:I45) -> 175269273253 | J40: =SUM(J42:J43,J44:J45) -> 1.801094384e+11 | K40: 1.897343379e+11 | L40: 1.99870038e+11 | M40: 2.10369901e+11 | N40: 2.21233927e+11
C41: 10 | D41: Tráfico Móvil a Móvil (Salida) | H41: [Minutos] | I41: =SUM(CY295:DJ295) -> 165497222643 | J41: =SUM(DK295:DV295) -> 1.697542786e+11 | K41: =SUM(DW295:EH295) -> 1.788505182e+11 | L41: =SUM(EI295:ET295) -> 1.882956985e+11 | M41: =SUM(EU295:FF295) -> 1.980898195e+11 | N41: =SUM(FG295:FR295) -> 2.082328814e+11
C42: 11 | D42: Tráfico Móvil a otra Móvil (Salida) | H42: [Minutos] | I42: =SUM(CY316:DJ316) -> 66378942822 | J42: =SUM(DK316:DV316) -> 7.182472483e+10 | K42: =SUM(DW316:EH316) -> 8.195874655e+10 | L42: =SUM(EI316:ET316) -> 9.26949997e+10 | M42: =SUM(EU316:FF316) -> 1.040334843e+11 | N42: =SUM(FG316:FR316) -> 1.159742003e+11
C43: 12 | D43: Tráfico Móvil a misma Móvil (Salida) | H43: [Minutos] | I43: =SUM(CY337:DJ337) -> 99118279821 | J43: =SUM(DK337:DV337) -> 9.83269585e+10 | K43: =SUM(DW337:EH337) -> 9.731686949e+10 | L43: =SUM(EI337:ET337) -> 9.605826478e+10 | M43: =SUM(EU337:FF337) -> 9.455114439e+10 | N43: =SUM(FG337:FR337) -> 9.279550831e+10
C44: 13 | D44: Tráfico Móvil a Fijo (Salida) | H44: [Minutos] | I44: =SUM(CY358:DJ358) -> 8587732805 | J44: =SUM(DK358:DV358) -> 9239334609 | K44: =SUM(DW358:EH358) -> 9936703329 | L44: =SUM(EI358:ET358) -> 1.064451921e+10 | M44: =SUM(EU358:FF358) -> 1.136278226e+10 | N44: =SUM(FG358:FR358) -> 1.209149246e+10
C45: 14 | D45: Tráfico Móvil a Larga Distancia (Salida) | H45: [Minutos] | I45: =SUM(AQ400:AT400) -> 1184317805 | J45: =SUM(AU400:AX400) -> 718420497.3 | K45: =SUM(AY400:BB400) -> 522018559 | L45: =SUM(BC400:BF400) -> 472254324.5 | M45: =SUM(BG400:BJ400) -> 422490089.9 | N45: =SUM(BK400:BN400) -> 372725855.4
C46: 15 | D46: Tráfico Voz Móvil Entrada | H46: [Minutos] | I46: =I47+I48+I49 -> 68557115816 | J46: =J47+J48+J49 -> 7.356325882e+10 | K46: 8.368163593e+10 | L46: 9.4600226e+10 | M46: 1.061430638e+11 | N46: 1.183101493e+11
C47: 16 | D47: Tráfico Móvil a Móvil (Entrada) | H47: [Minutos] | I47: =I42 -> 66378942822 | J47: =J42 -> 7.182472483e+10 | K47: 8.195874655e+10 | L47: 9.26949997e+10 | M47: 1.040334843e+11 | N47: 1.159742003e+11
C48: 17 | D48: Tráfico Fijo a Móvil (Entrada) | H48: [Minutos] | I48: =SUM(CY379:DJ379) -> 756991628 | J48: =SUM(DK379:DV379) -> 876429386.6 | K48: =SUM(DW379:EH379) -> 1096467108 | L48: =SUM(EI379:ET379) -> 1338521110 | M48: =SUM(EU379:FF379) -> 1602591392 | N48: =SUM(FG379:FR379) -> 1888677955
C49: 18 | D49: Tráfico Móvil a Larga Distancia (Entrada) | H49: [Minutos] | I49: =I45*1.2 -> 1421181366 | J49: =J45*1.2 -> 862104596.8 | K49: 626422270.8 | L49: 566705189.4 | M49: 506988107.9 | N49: 447271026.5
C50: 19 | D50: Tráfico Voz Móvil Salida Pospago | H50: [Minutos] | I50: =SUM(I51:I52,I54:I55) -> 1.428108702e+11 | J50: =SUM(J51:J52,J54:J55) -> 1.480582398e+11 | K50: =SUM(K51:K52,K54:K55) -> 1.618398821e+11 | L50: =SUM(L51:L52,L54:L55) -> 1.763731289e+11 | M50: =SUM(M51:M52,M54:M55) -> 1.915738746e+11 | N50: =SUM(N51:N52,N54:N55) -> 2.074422452e+11
C51: 20 | D51: Tráfico Móvil a Móvil (Salida) Pospago | H51: [Minutos] | I51: =SUM(CY465:DJ465) -> 94963738337 | J51: =SUM(DK465:DV465) -> 9.752453131e+10 | K51: =SUM(DW465:EH465) -> 1.046832161e+11 | L51: =SUM(EI465:ET465) -> 1.121020967e+11 | M51: =SUM(EU465:FF465) -> 1.197811731e+11 | N51: =SUM(FG465:FR465) -> 1.277204453e+11
C52: 21 | D52: Tráfico Móvil a otra Móvil (Salida) Pospago | H52: [Minutos] | I52: =SUM(CY486:DJ486) -> 41089575608 | J52: =SUM(DK486:DV486) -> 4.361450218e+10 | K52: =SUM(DW486:EH486) -> 4.996214664e+10 | L52: =SUM(EI486:ET486) -> 5.672413537e+10 | M52: =SUM(EU486:FF486) -> 6.390046838e+10 | N52: =SUM(FG486:FR486) -> 7.149114566e+10
C53: 22 | D53: Tráfico Móvil a misma Móvil (Salida) Pospago | H53: [Minutos] | I53: =SUM(CY507:DJ507) -> 53874162729 | J53: =SUM(DK507:DV507) -> 5.393514245e+10 | K53: =SUM(DW507:EH507) -> 5.470368154e+10 | L53: =SUM(EI507:ET507) -> 5.531799845e+10 | M53: =SUM(EU507:FF507) -> 5.577809316e+10 | N53: =SUM(FG507:FR507) -> 5.60839657e+10
C54: 23 | D54: Tráfico Móvil a Fijo (Salida) Pospago | H54: [Minutos] | I54: =SUM(CY528:DJ528) -> 6077984493 | J54: =SUM(DK528:DV528) -> 6506470750 | K54: =SUM(DW528:EH528) -> 6888976030 | L54: =SUM(EI528:ET528) -> 7265739569 | M54: =SUM(EU528:FF528) -> 7636761369 | N54: =SUM(FG528:FR528) -> 8002041427
C55: 24 | D55: Tráfico Móvil a Larga Distancia (Salida) Pospago | H55: [Minutos] | I55: =I45*I51/(I51+I61) -> 679571804 | J55: =J45*J51/(J51+J61) -> 412735530.8 | K55: 305543323 | L55: 281157245.7 | M55: 255471779 | N55: 228612848.7
C56: 25 | D56: Tráfico Voz Móvil Entrada Pospago | H56: [Minutos] | I56: =SUM(I57:I59) -> 4.156224637e+10 | J56: =SUM(J57:J59) -> 4.399655283e+10 | K56: 5.034514357e+10 | L56: 5.715216323e+10 | M56: 6.437903855e+10 | N56: 7.202585247e+10
C57: 26 | D57: Tráfico Móvil a Móvil (Entrada) Pospago | H57: [Minutos] | I57: =I52 -> 41089575608 | J57: =J52 -> 4.361450218e+10 | K57: 4.996214664e+10 | L57: 5.672413537e+10 | M57: 6.390046838e+10 | N57: 7.149114566e+10
C58: 27 | D58: Tráfico Fijo a Móvil (Entrada) Pospago | H58: [Minutos] | I58: =I48*I33/I32 -> 164269692.3 | J58: =J48*J33/J32 -> 192599292.4 | K58: 243743763.6 | L58: 300711957 | M58: 363557018.9 | N58: 432324926.3
C59: 28 | D59: Tráfico Móvil a Larga Distancia (Entrada) Pospago | H59: [Minutos] | I59: =I49*I33/I32 -> 308401066.8 | J59: =J49*J33/J32 -> 189451355.5 | K59: 139253171.2 | L59: 127315905 | M59: 115013150.6 | N59: 102381887.3
C60: 29 | D60: Tráfico Voz Móvil Salida Prepago | H60: [Minutos] | I60: =SUM(I61:I62,I64:I65) -> 9.883734583e+10 | J60: =SUM(J61:J62,J64:J65) -> 1.034785188e+11 | K60: =SUM(K61:K62,K64:K65) -> 1.094281045e+11 | L60: =SUM(L61:L62,L64:L65) -> 1.157343428e+11 | M60: =SUM(M61:M62,M64:M65) -> 1.223347016e+11 | N60: =SUM(N61:N62,N64:N65) -> 1.292290549e+11
C61: 30 | D61: Tráfico Móvil a Móvil (Salida) Prepago | H61: [Minutos] | I61: =SUM(CY551:DJ551) -> 70533484306 | J61: =SUM(DK551:DV551) -> 7.222974732e+10 | K61: =SUM(DW551:EH551) -> 7.416730202e+10 | L61: =SUM(EI551:ET551) -> 7.619360173e+10 | M61: =SUM(EU551:FF551) -> 7.830864643e+10 | N61: =SUM(FG551:FR551) -> 8.051243614e+10
C62: 31 | D62: Tráfico Móvil a otra Móvil (Salida) Prepago | H62: [Minutos] | I62: =SUM(CY572:DJ572) -> 25289367214 | J62: =SUM(DK572:DV572) -> 2.821022265e+10 | K62: =SUM(DW572:EH572) -> 3.199659991e+10 | L62: =SUM(EI572:ET572) -> 3.597086433e+10 | M62: =SUM(EU572:FF572) -> 4.013301592e+10 | N62: =SUM(FG572:FR572) -> 4.448305468e+10
C63: 32 | D63: Tráfico Móvil a misma Móvil (Salida) Prepago | H63: [Minutos] | I63: =SUM(CY593:DJ593) -> 45244117092 | J63: =SUM(DK593:DV593) -> 4.439181605e+10 | K63: =SUM(DW593:EH593) -> 4.261318794e+10 | L63: =SUM(EI593:ET593) -> 4.074026633e+10 | M63: =SUM(EU593:FF593) -> 3.877305122e+10 | N63: =SUM(FG593:FR593) -> 3.671154261e+10
C64: 33 | D64: Tráfico Móvil a Fijo (Salida) Prepago | H64: [Minutos] | I64: =SUM(CY614:DJ614) -> 2509748312 | J64: =SUM(DK614:DV614) -> 2732863860 | K64: =SUM(DW614:EH614) -> 3047727300 | L64: =SUM(EI614:ET614) -> 3378779642 | M64: =SUM(EU614:FF614) -> 3726020887 | N64: =SUM(FG614:FR614) -> 4089451035
C65: 34 | D65: Tráfico Móvil a Larga Distancia (Salida) Prepago | H65: [Minutos] | I65: =I45*I61/(I51+I61) -> 504746001 | J65: =J45*J61/(J51+J61) -> 305684966.6 | K65: 216475236 | L65: 191097078.7 | M65: 167018310.9 | N65: 144113006.7
C66: 35 | D66: Tráfico Voz Móvil Entrada Prepago | H66: [Minutos] | I66: =SUM(I67:I69) -> 2.699486945e+10 | J66: =SUM(J67:J69) -> 2.956670599e+10 | K66: 3.333649235e+10 | L66: 3.744806277e+10 | M66: 4.176402525e+10 | N66: 4.628429685e+10
C67: 36 | D67: Tráfico Móvil a Móvil (Entrada) Prepago | H67: [Minutos] | I67: =I62 -> 25289367214 | J67: =J62 -> 2.821022265e+10 | K67: 3.199659991e+10 | L67: 3.597086433e+10 | M67: 4.013301592e+10 | N67: 4.448305468e+10
C68: 37 | D68: Tráfico Fijo a Móvil (Entrada) Prepago | H68: [Minutos] | I68: =I48*I34/I32 -> 592721935.7 | J68: =J48*J34/J32 -> 683830094.2 | K68: 852723344.4 | L68: 1037809153 | M68: 1239034373 | N68: 1456353029
C69: 38 | D69: Tráfico Móvil a Larga Distancia (Entrada) Prepago | H69: [Minutos] | I69: =I49*I34/I32 -> 1112780299 | J69: =J49*J34/J32 -> 672653241.3 | K69: 487169099.6 | L69: 439389284.3 | M69: 391974957.3 | N69: 344889139.2
C70: 39 | D70: 0 | H70: 0
C71: 40 | D71: Tráfico de Datos Total | H71: [MB] | I71: =SUM(CY851:DJ851) -> 1.049715924e+12 | J71: =SUM(DK851:DV851) -> 1.55467506e+12 | K71: =SUM(DW851:EH851) -> 1.854519145e+12 | L71: =SUM(EI851:ET851) -> 2.174402651e+12 | M71: =SUM(EU851:FF851) -> 2.522150074e+12 | N71: =SUM(FG851:FR851) -> 2.899015325e+12
C72: 41 | D72: Tráfico de Datos por Suscripción | H72: [MB] | I72: =SUM(CY872:DJ872) -> 8.833601777e+11 | J72: =SUM(DK872:DV872) -> 1.29617647e+12 | K72: =SUM(DW872:EH872) -> 1537332358367 | L72: =SUM(EI872:ET872) -> 1.790354151e+12 | M72: =SUM(EU872:FF872) -> 2.06281762e+12 | N72: =SUM(FG872:FR872) -> 2.355304502e+12
C73: 42 | D73: Tráfico de Datos por Demanda | H73: [MB] | I73: =SUM(CY893:DJ893) -> 1.66355746e+11 | J73: =SUM(DK893:DV893) -> 2.5849859e+11 | K73: =SUM(DW893:EH893) -> 3.171867863e+11 | L73: =SUM(EI893:ET893) -> 3.840484994e+11 | M73: =SUM(EU893:FF893) -> 4.593324537e+11 | N73: =SUM(FG893:FR893) -> 5.437108229e+11
C74: 43 | D74: 0 | H74: 0
C75: 44 | D75: Tráfico SMS Entrada | E75: incluye OMV y RAN | H75: [Mensajes] | I75: =I76 -> 1007840386 | J75: =J76 -> 908998342.8 | K75: 769766754.9 | L75: 607329602.3 | M75: 556297616.5 | N75: 671905388.5
C76: 45 | D76: Tráfico SMS Salida | E76: incluye OMV y RAN | H76: [Mensajes] | I76: =SUM(AQ1128:AT1128,AQ1149:AT1149)*I42/I41 -> 1007840386 | J76: =SUM(AU1128:AX1128,AU1149:AX1149)*J42/J41 -> 908998342.8 | K76: =SUM(AY1128:BB1128,AY1149:BB1149)*K42/K41 -> 769766754.9 | L76: =SUM(BC1128:BF1128,BC1149:BF1149)*L42/L41 -> 607329602.3 | M76: =SUM(BG1128:BJ1128,BG1149:BJ1149)*M42/M41 -> 556297616.5 | N76: =SUM(BK1128:BN1128,BK1149:BN1149)*N42/N41 -> 671905388.5
C77: 46 | D77: Tráfico SMS OnNet | E77: incluye OMV y RAN | H77: [Mensajes] | I77: =SUM(AQ1128:AT1128,AQ1149:AT1149)*I43/I41 -> 1504926129 | J77: =SUM(AU1128:AX1128,AU1149:AX1149)*J43/J41 -> 1244404939 | K77: =SUM(AY1128:BB1128,AY1149:BB1149)*K43/K41 -> 914012158.3 | L77: =SUM(BC1128:BF1128,BC1149:BF1149)*L43/L41 -> 629365423.6 | M77: =SUM(BG1128:BJ1128,BG1149:BJ1149)*M43/M41 -> 505592758 | N77: =SUM(BK1128:BN1128,BK1149:BN1149)*N43/N41 -> 537617865.7
C78: 47 | D78: OMV Voz Entrada | H78: [Minutos] | I78: =SUM(CY438:DJ438) -> 1576419262 | J78: =SUM(DK438:DV438) -> 2085854304 | K78: =SUM(DW438:EH438) -> 2602457209 | L78: =SUM(EI438:ET438) -> 3178047891 | M78: =SUM(EU438:FF438) -> 3812626349 | N78: =SUM(FG438:FR438) -> 4506192584
C79: 48 | D79: OMV Voz Salida | H79: [Minutos] | I79: =SUM(CY439:DJ439) -> 1679184034 | J79: =SUM(DK439:DV439) -> 2229578558 | K79: =SUM(DW439:EH439) -> 2788597756 | L79: =SUM(EI439:ET439) -> 3412083677 | M79: =SUM(EU439:FF439) -> 4100036319 | N79: =SUM(FG439:FR439) -> 4852455684
C80: 49 | D80: OMV Voz OnNet | H80: [Minutos] | I80: =SUM(CY440:DJ440) -> 281701063 | J80: =SUM(DK440:DV440) -> 319160670.3 | K80: =SUM(DW440:EH440) -> 408277703.9 | L80: =SUM(EI440:ET440) -> 506932473.2 | M80: =SUM(EU440:FF440) -> 615124978 | N80: =SUM(FG440:FR440) -> 732855218.4
C81: 50 | D81: OMV sms | H81: [Mensajes] | I81: =SUM(AQ1155:AT1155) -> 42064475 | J81: =SUM(AU1155:AX1155) -> 17461243.37 | K81: =SUM(AY1155:BB1155) -> 23089652.41 | L81: =SUM(BC1155:BF1155) -> 29476052.26 | M81: =SUM(BG1155:BJ1155) -> 36620442.9 | N81: =SUM(BK1155:BN1155) -> 44522824.33
C82: 51 | D82: OMV Datos | H82: [MB] | I82: =SUM(CY920:DJ920) -> 1.027697116e+10 | J82: =SUM(DK920:DV920) -> 1.327183535e+10 | K82: =SUM(DW920:EH920) -> 1.879775729e+10 | L82: =SUM(EI920:ET920) -> 2.564999961e+10 | M82: =SUM(EU920:FF920) -> 3.399279441e+10 | N82: =SUM(FG920:FR920) -> 4.397239456e+10
C83: 52 | D83: RAN Voz Entrada | H83: [Minutos] | I83: =SUM(CY421:DJ421) -> 4597917424 | J83: =SUM(DK421:DV421) -> 4953719289 | K83: =SUM(DW421:EH421) -> 6455579638 | L83: =SUM(EI421:ET421) -> 8155513616 | M83: =SUM(EU421:FF421) -> 1.005352122e+10 | N83: =SUM(FG421:FR421) -> 1.214960246e+10
C84: 53 | D84: RAN Voz Salida | H84: [Minutos] | I84: =I83 -> 4597917424 | J84: =J83 -> 4953719289 | K84: 6455579638 | L84: 8155513616 | M84: 1.005352122e+10 | N84: 1.214960246e+10
C85: 54 | D85: RAN sms | H85: [Mensajes] | I85: =SUM(AQ1149:AT1149) -> 331544332 | J85: =SUM(AU1149:AX1149) -> 356435929.4 | K85: =SUM(AY1149:BB1149) -> 415405126.8 | L85: =SUM(BC1149:BF1149) -> 487059935.4 | M85: =SUM(BG1149:BJ1149) -> 584537885.9 | N85: =SUM(BK1149:BN1149) -> 698375676.7
C86: 55 | D86: RAN Datos | H86: [MB] | I86: =SUM(CY914:DJ914) -> 7578498498 | J86: =SUM(DK914:DV914) -> 1.000071819e+10 | K86: =SUM(DW914:EH914) -> 1.343013704e+10 | L86: =SUM(EI914:ET914) -> 1.748988979e+10 | M86: =SUM(EU914:FF914) -> 2.212496757e+10 | N86: =SUM(FG914:FR914) -> 2.748354483e+10
C87: 56 | D87: Roaming Internacional Voz Salida | H87: [Minutos] | I87: =SUM(CY1220:DJ1220) -> 4585646 | J87: =SUM(DK1220:DV1220) -> 13905309.95 | K87: =SUM(DW1220:EH1220) -> 14932120.86 | L87: =SUM(EI1220:ET1220) -> 15961717.02 | M87: =SUM(EU1220:FF1220) -> 16991313.17 | N87: =SUM(FG1220:FR1220) -> 18020909.33
C88: 57 | D88: Roaming Internacional Voz Entrada | H88: [Minutos] | I88: =SUM(CY1241:DJ1241) -> 2939850 | J88: =SUM(DK1241:DV1241) -> 7657233.713 | K88: =SUM(DW1241:EH1241) -> 8302015.183 | L88: =SUM(EI1241:ET1241) -> 8958203.173 | M88: =SUM(EU1241:FF1241) -> 9614391.163 | N88: =SUM(FG1241:FR1241) -> 10270579.15
C89: 58 | D89: Roaming Internacional sms | H89: [Mensajes] | I89: =SUM(CY1262:DJ1262) -> 191016 | J89: =SUM(DK1262:DV1262) -> 374468.7129 | K89: =SUM(DW1262:EH1262) -> 427969.6061 | L89: =SUM(EI1262:ET1262) -> 481485.3692 | M89: =SUM(EU1262:FF1262) -> 535001.1323 | N89: =SUM(FG1262:FR1262) -> 588516.8953
C90: 59 | D90: Roaming Internacional Datos | H90: [MB] | I90: =SUM(CY1283:DJ1283) -> 239100729 | J90: =SUM(DK1283:DV1283) -> 488343220.6 | K90: =SUM(DW1283:EH1283) -> 637809197.9 | L90: =SUM(EI1283:ET1283) -> 787275175.1 | M90: =SUM(EU1283:FF1283) -> 936741152.4 | N90: =SUM(FG1283:FR1283) -> 1086207130
C91: 60 | D91: 0 | H91: 0
N92: Proy.mdo
B97: Abonados
C99: id | D99: Operador | E99: Código | F99: Unidad | G99: 2011-03-01 | H99: 2011-06-01 | I99: 2011-09-01 | J99: 2011-12-01 | K99: 2012-03-01 | L99: 2012-06-01 | M99: 2012-09-01 | N99: 2012-12-01 | O99: 2013-03-01 | P99: 2013-06-01 | Q99: 2013-09-01 | R99: 2013-12-01 | S99: 2014-03-01 | T99: 2014-06-01 | U99: 2014-09-01 | V99: 2014-12-01 | W99: 2015-03-01 | X99: 2015-06-01 | Y99: 2015-09-01 | Z99: 2015-12-01 | AA99: 2016-03-01 | AB99: 2016-06-01 | AC99: 2016-09-01 | AD99: 2016-12-01 | AE99: 2017-03-01 | AF99: 2017-06-01 | AG99: 2017-09-01 | AH99: 2017-12-01 | AI99: 2018-03-01 | AJ99: 2018-06-01 | AK99: 2018-09-01 | AL99: 2018-12-01 | AM99: 2019-03-01 | AN99: 2019-06-01 | AO99: 2019-09-01 | AP99: 2019-12-01 | AQ99: 2020-03-01 | AR99: 2020-06-01 | AS99: 2020-09-01 | AT99: 2020-12-01 | AU99: 2021-03-01 | AV99: 2021-06-01 | AW99: 2021-09-01 | AX99: 2021-12-01 | AY99: 2022-03-01 | AZ99: 2022-06-01 | BA99: 2022-09-01 | BB99: 2022-12-01 | BC99: 2023-03-01 | BD99: 2023-06-01 | BE99: 2023-09-01 | BF99: 2023-12-01 | BG99: 2024-03-01 | BH99: 2024-06-01 | BI99: 2024-09-01 | BJ99: 2024-12-01 | BK99: 2025-03-01 | BL99: 2025-06-01 | BM99: 2025-09-01 | BN99: 2025-12-01
B100: Pospago
C101: 1 | D101: =L.oper.nom -> Comcel | E101: 800153993 | F101: [Abonados] | G101: 4304255 | H101: 4408676 | I101: 4577816 | J101: 4755101 | K101: 4900878 | L101: 5040764 | M101: 5194566 | N101: 5351558 | O101: 5451409 | P101: 5519342 | Q101: 5600997 | R101: 5714572 | S101: 5804166 | T101: 5832799 | U101: 5815472 | V101: 5861323 | W101: 5839969 | X101: 5811329 | Y101: 5827131 | Z101: 5869203 | AA101: 5938432 | AB101: 6082968 | AC101: 6223746 | AD101: 6371971 | AE101: 6458774 | AF101: 6553309 | AG101: 6604164 | AH101: 6688246 | AI101: 6683865 | AJ101: 6786534 | AK101: 6886963 | AL101: 6936693 | AM101: 6996809 | AN101: 7114931 | AO101: 7249104 | AP101: 7350590 | AQ101: 7383758 | AR101: 7421749 | AS101: 7563876 | AT101: =IF(AS101>0,IF(_xlfn.FORECAST.ETS(AT$99,$AE101:$AS101,$AE$99:$AS$99,4)<0,0,_xlfn.FORECAST.ETS(AT$99,$AE101:$AS101,$AE$99:$AS$99,4)),0) -> 7602956.101 | AU101: =IF(AT101>0,IF(_xlfn.FORECAST.ETS(AU$99,$AE101:$AS101,$AE$99:$AS$99,4)<0,0,_xlfn.FORECAST.ETS(AU$99,$AE101:$AS101,$AE$99:$AS$99,4)),0) -> 7616523.337 | AV101: 7709408.416 | AW101: 7817774.367 | AX101: 7864499.746 | AY101: 7878066.983 | AZ101: 7970952.061 | BA101: 8079318.012 | BB101: 8126043.392 | BC101: 8139610.628 | BD101: 8232495.707 | BE101: 8340861.658 | BF101: 8387587.037 | BG101: 8401154.274 | BH101: 8494039.352 | BI101: 8602405.303 | BJ101: 8649130.683 | BK101: =IF(BJ101>0,IF(_xlfn.FORECAST.ETS(BK$99,$AE101:$AS101,$AE$99:$AS$99,4)<0,0,_xlfn.FORECAST.ETS(BK$99,$AE101:$AS101,$AE$99:$AS$99,4)),0) -> 8662697.919 | BL101: 8755582.998 | BM101: 8863948.949 | BN101: 8910674.328
C102: 2 | D102: Avantel | E102: 830016046 | F102: [Abonados] | R102: 158754 | S102: 166594 | T102: 166966 | U102: 173410 | V102: 179548 | W102: 217960 | X102: 277097 | Y102: 310911 | Z102: 325807 | AA102: 339292 | AB102: 365297 | AC102: 390413 | AD102: 372797 | AE102: 357497 | AF102: 358443 | AG102: 429231 | AH102: 480424 | AI102: 540711 | AJ102: 591326 | AK102: 613836 | AL102: 640676 | AM102: 656614 | AN102: 661016 | AO102: 658927 | AP102: 597276 | AQ102: 544173 | AR102: 499510 | AS102: 469411 | AT102: =IF(AS102>0,IF(_xlfn.FORECAST.ETS(AT$99,$AE102:$AS102,$AE$99:$AS$99,4)<0,0,_xlfn.FORECAST.ETS(AT$99,$AE102:$AS102,$AE$99:$AS$99,4)),0) -> 412633.9834 | AU102: 443488.7267 | AV102: 488289.0612 | AW102: 514874.5036 | AX102: 458097.487 | AY102: 488952.2302 | AZ102: 533752.5648 | BA102: 560338.0071 | BB102: 503560.9906 | BC102: 534415.7338 | BD102: 579216.0684 | BE102: 605801.5107 | BF102: 549024.4942 | BG102: 579879.2374 | BH102: 624679.572 | BI102: 651265.0143 | BJ102: 594487.9977 | BK102: 625342.741 | BL102: 670143.0755 | BM102: 696728.5179 | BN102: 639951.5013
C103: 3 | D103: Tigo | E103: 830114921 | F103: [Abonados] | G103: 871001 | H103: 902398 | I103: 924505 | J103: 954561 | K103: 984787 | L103: 1011795 | M103: 1031730 | N103: 1053589 | O103: 1072786 | P103: 1126164 | Q103: 1179588 | R103: 1253297 | S103: 1324528 | T103: 1375862 | U103: 1413261 | V103: 1456460 | W103: 1478754 | X103: 1466214 | Y103: 1478644 | Z103: 1491435 | AA103: 1418918 | AB103: 1373826 | AC103: 1411884 | AD103: 1420423 | AE103: 1412127 | AF103: 1449286 | AG103: 1498412 | AH103: 1563860 | AI103: 1593141 | AJ103: 1595868 | AK103: 1612906 | AL103: 1652051 | AM103: 1729695 | AN103: 1759088 | AO103: 1780987 | AP103: 1837235 | AQ103: 1823564 | AR103: 1707182 | AS103: 1740206 | AT103: 1793703.24 | AU103: 1827129.706 | AV103: 1823804.525 | AW103: 1850173.704 | AX103: 1903670.944 | AY103: 1937097.41 | AZ103: 1933772.229 | BA103: 1960141.407 | BB103: 2013638.647 | BC103: 2047065.113 | BD103: 2043739.933 | BE103: 2070109.111 | BF103: 2123606.351 | BG103: 2157032.817 | BH103: 2153707.636 | BI103: 2180076.814 | BJ103: 2233574.054 | BK103: 2267000.52 | BL103: 2263675.34 | BM103: 2290044.518 | BN103: 2343541.758
C104: 4 | D104: Movistar | E104: 830122566 | F104: [Abonados] | G104: 2439154 | H104: 2529350 | I104: 2652439 | J104: 2764249 | K104: 2856553 | L104: 2918559 | M104: 2959789 | N104: 3028424 | O104: 3069394 | P104: 3190050 | Q104: 3263848 | R104: 3303208 | S104: 3287289 | T104: 3299475 | U104: 3268298 | V104: 3259884 | W104: 3251694 | X104: 3254694 | Y104: 3313709 | Z104: 3385539 | AA104: 3432238 | AB104: 3506690 | AC104: 3560843 | AD104: 3588464 | AE104: 3628676 | AF104: 3671588 | AG104: 3728814 | AH104: 3732884 | AI104: 3712291 | AJ104: 3772300 | AK104: 3821303 | AL104: 3835482 | AM104: 3868966 | AN104: 3931388 | AO104: 3995407 | AP104: 4077225 | AQ104: 4140576 | AR104: 4154633 | AS104: 4332314 | AT104: 4392938.065 | AU104: 4444148.929 | AV104: 4530933.422 | AW104: 4708307.854 | AX104: 4769028.689 | AY104: 4820239.553 | AZ104: 4907024.046 | BA104: 5084398.478 | BB104: 5145119.314 | BC104: 5196330.177 | BD104: 5283114.671 | BE104: 5460489.103 | BF104: 5521209.938 | BG104: 5572420.802 | BH104: 5659205.295 | BI104: 5836579.727 | BJ104: 5897300.562 | BK104: 5948511.426 | BL104: 6035295.919 | BM104: 6212670.351 | BN104: 6273391.186
C105: 5 | D105: ETB | E105: 899999115 | F105: [Abonados] | U105: 0 | V105: 15381 | W105: 37395 | X105: 74001 | Y105: 135295 | Z105: 192457 | AA105: 203800 | AB105: 232506 | AC105: 254741 | AD105: 267295 | AE105: 250670 | AF105: 224094 | AG105: 208550 | AH105: 217369 | AI105: 238955 | AJ105: 250744 | AK105: 231760 | AL105: 199351 | AM105: 194535 | AN105: 202416 | AO105: 169586 | AP105: 160575 | AQ105: 182796 | AR105: 169575 | AS105: 179405 | AT105: 162608.9179 | AU105: 178296.3099 | AV105: 167834.3622 | AW105: 152372.5691 | AX105: 141785.6533 | AY105: 157473.0454 | AZ105: 147011.0976 | BA105: 131549.3046 | BB105: 120962.3888 | BC105: 136649.7808 | BD105: 126187.8331 | BE105: 110726.04 | BF105: 100139.1242 | BG105: 115826.5162 | BH105: 105364.5685 | BI105: 89902.77545 | BJ105: 79315.85964 | BK105: 95003.25167 | BL105: 84541.30394 | BM105: 69079.51089 | BN105: 58492.59508
C106: 6 | D106: EPM | E106: 900092385 | F106: [Abonados] | R106: 322443 | S106: 249016 | T106: 260656 | U106: 271111 | V106: 270937 | W106: 240902 | X106: 223243 | Y106: 206308 | Z106: 184298 | AA106: 149241 | AB106: 129857 | AC106: 120471 | AD106: 91782 | AE106: 90994 | AF106: 89843 | AG106: 2751 | AH106: 0 | AI106: 0 | AJ106: 0 | AK106: 0 | AL106: 0 | AM106: 0 | AN106: 0 | AO106: 0 | AP106: 0 | AQ106: 0 | AR106: 0 | AS106: 0 | AT106: 0 | AU106: 0 | AV106: 0 | AW106: 0 | AX106: 0 | AY106: 0 | AZ106: 0 | BA106: 0 | BB106: 0 | BC106: 0 | BD106: 0 | BE106: 0 | BF106: 0 | BG106: 0 | BH106: 0 | BI106: 0 | BJ106: 0 | BK106: 0 | BL106: 0 | BM106: 0 | BN106: 0
C107: 7 | D107: Uff | E107: 900367669 | F107: [Abonados] | AG107: 0 | AH107: 0 | AI107: 0 | AJ107: 0 | AK107: 0 | AL107: 0 | AM107: 0 | AN107: 0 | AO107: 0 | AP107: 0 | AQ107: 0 | AR107: 0 | AS107: 0 | AT107: 0 | AU107: 0 | AV107: 0 | AW107: 0 | AX107: 0 | AY107: 0 | AZ107: 0 | BA107: 0 | BB107: 0 | BC107: 0 | BD107: 0 | BE107: 0 | BF107: 0 | BG107: 0 | BH107: 0 | BI107: 0 | BJ107: 0 | BK107: 0 | BL107: 0 | BM107: 0 | BN107: 0
C108: 8 | D108: Exito | E108: 900389508 | F108: [Abonados] | AG108: 0 | AH108: 0 | AI108: 0 | AJ108: 0 | AK108: 0 | AL108: 0 | AM108: 0 | AN108: 0 | AO108: 0 | AP108: 0 | AQ108: 0 | AR108: 0 | AS108: 0 | AT108: 0 | AU108: 0 | AV108: 0 | AW108: 0 | AX108: 0 | AY108: 0 | AZ108: 0 | BA108: 0 | BB108: 0 | BC108: 0 | BD108: 0 | BE108: 0 | BF108: 0 | BG108: 0 | BH108: 0 | BI108: 0 | BJ108: 0 | BK108: 0 | BL108: 0 | BM108: 0 | BN108: 0
C109: 9 | D109: Virgin | E109: 900420122 | F109: [Abonados] | AG109: 0 | AH109: 0 | AI109: 0 | AJ109: 0 | AK109: 0 | AL109: 0 | AM109: 0 | AN109: 0 | AO109: 0 | AP109: 0 | AQ109: 0 | AR109: 0 | AS109: 0 | AT109: 0 | AU109: 0 | AV109: 0 | AW109: 0 | AX109: 0 | AY109: 0 | AZ109: 0 | BA109: 0 | BB109: 0 | BC109: 0 | BD109: 0 | BE109: 0 | BF109: 0 | BG109: 0 | BH109: 0 | BI109: 0 | BJ109: 0 | BK109: 0 | BL109: 0 | BM109: 0 | BN109: 0
C110: 10 | D110: Suma | E110: 900973532 | F110: [Abonados] | AG110: 0 | AJ110: 0 | AK110: 0 | AL110: 0 | AM110: 0 | AN110: 0 | AO110: 0 | AP110: 0 | AQ110: 0 | AR110: 0 | AS110: 0 | AT110: 0 | AU110: 0 | AV110: 0 | AW110: 0 | AX110: 0 | AY110: 0 | AZ110: 0 | BA110: 0 | BB110: 0 | BC110: 0 | BD110: 0 | BE110: 0 | BF110: 0 | BG110: 0 | BH110: 0 | BI110: 0 | BJ110: 0 | BK110: 0 | BL110: 0 | BM110: 0 | BN110: 0
C111: 11 | D111: Flash | E111: 901162121 | F111: [Abonados] | AG111: 0 | AJ111: 0 | AK111: 0 | AL111: 0 | AM111: 0 | AN111: 0 | AO111: 0 | AP111: 0 | AQ111: 0 | AR111: 0 | AS111: 0 | AT111: 0 | AU111: 0 | AV111: 0 | AW111: 0 | AX111: 0 | AY111: 0 | AZ111: 0 | BA111: 0 | BB111: 0 | BC111: 0 | BD111: 0 | BE111: 0 | BF111: 0 | BG111: 0 | BH111: 0 | BI111: 0 | BJ111: 0 | BK111: 0 | BL111: 0 | BM111: 0 | BN111: 0
C112: 12 | D112: Setroc
C113: 13 | D113: Scarlet
C114: 14 | D114: Vilacom
C115: 15 | D115: Libre
C116: T | D116: Total | F116: [Abonados] | G116: =SUM(G101:G111) -> 7614410 | H116: 7840424 | I116: 8154760 | J116: 8473911 | K116: 8742218 | L116: 8971118 | M116: 9186085 | N116: 9433571 | O116: 9593589 | P116: 9835556 | Q116: 10044433 | R116: 10752274 | S116: 10831593 | T116: 10935758 | U116: 10941552 | V116: 11043533 | W116: 11066674 | X116: 11106578 | Y116: 11271998 | Z116: 11448739 | AA116: 11481921 | AB116: 11691144 | AC116: 11962098 | AD116: 12112732 | AE116: 12198738 | AF116: 12346563 | AG116: 12471922 | AH116: 12682783 | AI116: 12768963 | AJ116: 12996772 | AK116: 13166768 | AL116: 13264253 | AM116: 13446619 | AN116: 13668839 | AO116: 13854011 | AP116: 14022901 | AQ116: 14074867 | AR116: 13952649 | AS116: =SUM(AS101:AS111) -> 14285212 | AT116: =SUM(AT101:AT111) -> 14364840.31 | AU116: =SUM(AU101:AU111) -> 14509587.01 | AV116: 14720269.79 | AW116: 15043503 | AX116: 15137082.52 | AY116: 15281829.22 | AZ116: 15492512 | BA116: 15815745.21 | BB116: 15909324.73 | BC116: 16054071.43 | BD116: 16264754.21 | BE116: 16587987.42 | BF116: 16681566.94 | BG116: 16826313.65 | BH116: 17036996.42 | BI116: 17360229.63 | BJ116: 17453809.16 | BK116: 17598555.86 | BL116: 17809238.64 | BM116: 18132471.85 | BN116: 18226051.37
B117: Prepago
C118: 1 | D118: =L.oper.nom -> Comcel | E118: 800153993 | F118: [Abonados] | G118: 25709973 | H118: 26274488 | I118: 26619576 | J118: 24063690 | K118: 24119116 | L118: 24334505 | M118: 24767235 | N118: 25019525 | O118: 22209459 | P118: 22285853 | Q118: 22762739 | R118: 23262727 | S118: 23405593 | T118: 23276224 | U118: 23475343 | V118: 23914416 | W118: 23993649 | X118: 23558776 | Y118: 23103921 | Z118: 23103921 | AA118: 22401429 | AB118: 22176568 | AC118: 22265090 | AD118: 22581913 | AE118: 22694370 | AF118: 22671618 | AG118: 22508198 | AH118: 22664585 | AI118: 22717223 | AJ118: 22381248 | AK118: 22345925 | AL118: 22744160 | AM118: 22890292 | AN118: 23029188 | AO118: 23327614 | AP118: 23753480 | AQ118: 23859906 | AR118: 24112825 | AS118: 24459904 | AT118: =IF(AS118>0,IF(_xlfn.FORECAST.ETS(AT$99,$G118:$AS118,$G$99:$AS$99,4)<0,0,_xlfn.FORECAST.ETS(AT$99,$G118:$AS118,$G$99:$AS$99,4)),0) -> 23975683.84 | AU118: =IF(AT118>0,IF(_xlfn.FORECAST.ETS(AU$99,$G118:$AS118,$G$99:$AS$99,4)<0,0,_xlfn.FORECAST.ETS(AU$99,$G118:$AS118,$G$99:$AS$99,4)),0) -> 23256017.28 | AV118: 23793189.14 | AW118: 24267135.2 | AX118: 23782915.04 | AY118: 23063248.48 | AZ118: 23600420.34 | BA118: 24074366.4 | BB118: 23590146.24 | BC118: 22870479.68 | BD118: 23407651.54 | BE118: 23881597.6 | BF118: 23397377.44 | BG118: 22677710.88 | BH118: 23214882.74 | BI118: 23688828.8 | BJ118: 23204608.64 | BK118: =IF(BJ118>0,IF(_xlfn.FORECAST.ETS(BK$99,$G118:$AS118,$G$99:$AS$99,4)<0,0,_xlfn.FORECAST.ETS(BK$99,$G118:$AS118,$G$99:$AS$99,4)),0) -> 22484942.08 | BL118: 23022113.95 | BM118: 23496060 | BN118: 23011839.84
C119: 2 | D119: Avantel | E119: 830016046 | F119: [Abonados] | P119: 171000 | Q119: 181734 | R119: 34543 | S119: 36816 | T119: 39057 | U119: 71819 | V119: 88307 | W119: 94986 | X119: 156474 | Y119: 239049 | Z119: 371110 | AA119: 454490 | AB119: 611735 | AC119: 708350 | AD119: 832525 | AE119: 993222 | AF119: 1064015 | AG119: 1390314 | AH119: 1502000 | AI119: 1474827 | AJ119: 1461934 | AK119: 1507198 | AL119: 1580942 | AM119: 1630028 | AN119: 1671380 | AO119: 1717157 | AP119: 1705901 | AQ119: 1706597 | AR119: 977951 | AS119: 921302 | AT119: =IF(AS119>0,IF(_xlfn.FORECAST.ETS(AT$99,$G119:$AS119,$G$99:$AS$99,4)<0,0,_xlfn.FORECAST.ETS(AT$99,$G119:$AS119,$G$99:$AS$99,4)),0) -> 936770.8789 | AU119: 962572.175 | AV119: 815530.2739 | AW119: 1179629.945 | AX119: 1195098.824 | AY119: 1220900.12 | AZ119: 1073858.219 | BA119: 1437957.891 | BB119: 1453426.77 | BC119: 1479228.066 | BD119: 1332186.165 | BE119: 1696285.836 | BF119: 1711754.715 | BG119: 1737556.011 | BH119: 1590514.11 | BI119: 1954613.782 | BJ119: 1970082.661 | BK119: 1995883.957 | BL119: 1848842.056 | BM119: 2212941.727 | BN119: 2228410.606
C120: 3 | D120: Tigo | E120: 830114921 | F120: [Abonados] | G120: 4486225 | H120: 4613021 | I120: 4717900 | J120: 4787055 | K120: 4904500 | L120: 5058675 | M120: 5323290 | N120: 5560145 | O120: 5782365 | P120: 5897598 | Q120: 6112643 | R120: 6386940 | S120: 6632229 | T120: 6944223 | U120: 7278910 | V120: 7695423 | W120: 8214319 | X120: 8658535 | Y120: 8933957 | Z120: 9422603 | AA120: 9620115 | AB120: 9954407 | AC120: 9554176 | AD120: 8858780 | AE120: 9002400 | AF120: 9391996 | AG120: 9650034 | AH120: 9877451 | AI120: 9970576 | AJ120: 9967391 | AK120: 10008653 | AL120: 10160441 | AM120: 9826161 | AN120: 9963118 | AO120: 9462024 | AP120: 9804339 | AQ120: 9984620 | AR120: 9329848 | AS120: 9755437 | AT120: 9984555.215 | AU120: 10048977.78 | AV120: 10159361.18 | AW120: 10411832.33 | AX120: 10640950.55 | AY120: 10705373.11 | AZ120: 10815756.52 | BA120: 11068227.67 | BB120: 11297345.88 | BC120: 11361768.45 | BD120: 11472151.85 | BE120: 11724623 | BF120: 11953741.22 | BG120: 12018163.78 | BH120: 12128547.19 | BI120: 12381018.34 | BJ120: 12610136.55 | BK120: 12674559.11 | BL120: 12784942.52 | BM120: 13037413.67 | BN120: 13266531.89
C121: 4 | D121: Movistar | E121: 830122566 | F121: [Abonados] | G121: 7531441 | H121: 7420004 | I121: 8047568 | J121: 8626823 | K121: 9076423 | L121: 9439977 | M121: 9045172 | N121: 8675208 | O121: 8446865 | P121: 8490093 | Q121: 8369640 | R121: 8818526 | S121: 9078989 | T121: 8982442 | U121: 9313255 | V121: 9582614 | W121: 9633221 | X121: 9158571 | Y121: 9341847 | Z121: 9510905 | AA121: 9625081 | AB121: 9730236 | AC121: 10018983 | AD121: 10136807 | AE121: 9878442 | AF121: 10096816 | AG121: 10401082 | AH121: 10857671 | AI121: 11003849 | AJ121: 11298360 | AK121: 11469280 | AL121: 11880734 | AM121: 12015286 | AN121: 12097684 | AO121: 12064547 | AP121: 12003146 | AQ121: 11773388 | AR121: 11453582 | AS121: 11405662 | AT121: 11617533.89 | AU121: 11713699.9 | AV121: 11757599.94 | AW121: 11850553.73 | AX121: 12062268.64 | AY121: 12158434.65 | AZ121: 12202334.69 | BA121: 12295288.48 | BB121: 12507003.39 | BC121: 12603169.39 | BD121: 12647069.44 | BE121: 12740023.22 | BF121: 12951738.14 | BG121: 13047904.14 | BH121: 13091804.19 | BI121: 13184757.97 | BJ121: 13396472.89 | BK121: 13492638.89 | BL121: 13536538.94 | BM121: 13629492.72 | BN121: 13841207.64
C122: 5 | D122: ETB | E122: 899999115 | F122: [Abonados] | O122: 41654 | P122: 44065 | Q122: 44925 | R122: 46814 | S122: 47037 | T122: 34684 | U122: 0 | V122: 5789 | W122: 33475 | X122: 88336 | Y122: 138430 | Z122: 197714 | AA122: 214470 | AB122: 258305 | AC122: 309844 | AD122: 422516 | AE122: 468106 | AF122: 473634 | AG122: 373842 | AH122: 377356 | AI122: 349001 | AJ122: 351529 | AK122: 323246 | AL122: 287046 | AM122: 249645 | AN122: 258103 | AO122: 245554 | AP122: 228722 | AQ122: 209967 | AR122: 181904 | AS122: 148147 | AT122: 152523.6671 | AU122: 149924.1297 | AV122: 194899.5567 | AW122: 185378.2204 | AX122: 189754.8875 | AY122: 187155.3501 | AZ122: 232130.7772 | BA122: 222609.4409 | BB122: 226986.108 | BC122: 224386.5705 | BD122: 269361.9976 | BE122: 259840.6613 | BF122: 264217.3284 | BG122: 261617.791 | BH122: 306593.218 | BI122: 297071.8817 | BJ122: 301448.5488 | BK122: 298849.0114 | BL122: 343824.4384 | BM122: 334303.1022 | BN122: 338679.7693
C123: 6 | D123: EPM | E123: 900092385 | F123: [Abonados] | K123: 73610 | L123: 81101 | M123: 71017 | N123: 49247 | O123: 89879 | P123: 91605 | Q123: 313945 | R123: 3678 | S123: 101366 | T123: 104444 | U123: 108904 | V123: 117058 | W123: 117225 | X123: 117084 | Y123: 117046 | Z123: 116931 | AA123: 116869 | AB123: 106073 | AC123: 104905 | AD123: 0 | AE123: 0 | AF123: 0 | AG123: 0 | AH123: 0 | AI123: 0 | AJ123: 0 | AK123: 0 | AL123: 0 | AM123: 0 | AN123: 0 | AO123: 0 | AP123: 0 | AQ123: 0 | AR123: 0 | AS123: 0 | AT123: 0 | AU123: 0 | AV123: 0 | AW123: 0 | AX123: 0 | AY123: 0 | AZ123: 0 | BA123: 0 | BB123: 0 | BC123: 0 | BD123: 0 | BE123: 0 | BF123: 0 | BG123: 0 | BH123: 0 | BI123: 0 | BJ123: 0 | BK123: 0 | BL123: 0 | BM123: 0 | BN123: 0
C124: 7 | D124: Uff | E124: 900367669 | F124: [Abonados] | H124: 166772 | I124: 208108 | J124: 248942 | K124: 256918 | L124: 271128 | M124: 306418 | N124: 328663 | O124: 343645 | P124: 376516 | Q124: 390576 | R124: 402350 | S124: 409271 | T124: 416309 | U124: 415300 | V124: 529834 | W124: 457365 | X124: 400901 | Y124: 285164 | Z124: 190413 | AA124: 140208 | AB124: 99144 | AC124: 100834 | AD124: 104785 | AE124: 112514 | AF124: 110586 | AG124: 103452 | AH124: 97634 | AI124: 80638 | AJ124: 71115 | AK124: 0 | AL124: 0 | AM124: 0 | AN124: 0 | AO124: 0 | AP124: 0 | AQ124: 0 | AR124: 0 | AS124: 0 | AT124: 0 | AU124: 0 | AV124: 0 | AW124: 0 | AX124: 0 | AY124: 0 | AZ124: 0 | BA124: 0 | BB124: 0 | BC124: 0 | BD124: 0 | BE124: 0 | BF124: 0 | BG124: 0 | BH124: 0 | BI124: 0 | BJ124: 0 | BK124: 0 | BL124: 0 | BM124: 0 | BN124: 0
C125: 8 | D125: Exito | E125: 900389508 | F125: [Abonados] | P125: 0 | Q125: 103146 | R125: 146595 | S125: 195251 | T125: 225573 | U125: 273818 | V125: 362788 | W125: 410615 | X125: 478895 | Y125: 573124 | Z125: 707700 | AA125: 827815 | AB125: 947183 | AC125: 1101859 | AD125: 1153287 | AE125: 1142308 | AF125: 931450 | AG125: 1120902 | AH125: 1357366 | AI125: 1578026 | AJ125: 1626699 | AK125: 1694567 | AL125: 1661346 | AM125: 1542278 | AN125: 1770316 | AO125: 1191630 | AP125: 1434851 | AQ125: 1606947 | AR125: 1756948 | AS125: 1498443 | AT125: 1905198.941 | AU125: 1962881.342 | AV125: 2014532.625 | AW125: 2071510.427 | AX125: 2154529.809 | AY125: 2212212.211 | AZ125: 2263863.494 | BA125: 2320841.295 | BB125: 2403860.678 | BC125: 2461543.08 | BD125: 2513194.363 | BE125: 2570172.164 | BF125: 2653191.547 | BG125: 2710873.949 | BH125: 2762525.232 | BI125: 2819503.033 | BJ125: 2902522.416 | BK125: 2960204.818 | BL125: 3011856.101 | BM125: 3068833.902 | BN125: 3151853.285
C126: 9 | D126: Virgin | E126: 900420122 | F126: [Abonados] | O126: 5644 | P126: 121400 | Q126: 314228 | R126: 440667 | S126: 856474 | T126: 1235298 | U126: 1704763 | V126: 1990965 | W126: 2118363 | X126: 2258306 | Y126: 2254035 | Z126: 2257434 | AA126: 2410223 | AB126: 2352617 | AC126: 2397611 | AD126: 2481579 | AE126: 2584768 | AF126: 2661621 | AG126: 2759150 | AH126: 2803168 | AI126: 2820484 | AJ126: 2757292 | AK126: 2698194 | AL126: 2687737 | AM126: 2735382 | AN126: 2778854 | AO126: 2800297 | AP126: 2986753 | AQ126: 2973265 | AR126: 2815403 | AS126: 2744831 | AT126: 2816662.936 | AU126: 3001979.903 | AV126: 2953703.899 | AW126: 3083882.453 | AX126: 3155714.389 | AY126: 3341031.356 | AZ126: 3292755.352 | BA126: 3422933.905 | BB126: 3494765.842 | BC126: 3680082.808 | BD126: 3631806.805 | BE126: 3761985.358 | BF126: 3833817.294 | BG126: 4019134.261 | BH126: 3970858.257 | BI126: 4101036.811 | BJ126: 4172868.747 | BK126: 4358185.714 | BL126: 4309909.71 | BM126: 4440088.263 | BN126: 4511920.2
C127: 10 | D127: Suma | E127: 900973532 | F127: [Abonados] | AG127: 0 | AI127: 409 | AJ127: 574 | AK127: 1200 | AL127: 2460 | AM127: 3370 | AN127: 3554 | AO127: 3741 | AP127: 9321 | AQ127: 11730 | AR127: 13058 | AS127: 14456 | AT127: 15006.39946 | AU127: 15803.22718 | AV127: 17531.02554 | AW127: 18043.67378 | AX127: 20206.41968 | AY127: 21003.2474 | AZ127: 22731.04575 | BA127: 23243.69399 | BB127: 25406.43989 | BC127: 26203.26761 | BD127: 27931.06596 | BE127: 28443.7142 | BF127: 30606.4601 | BG127: 31403.28782 | BH127: 33131.08617 | BI127: 33643.73441 | BJ127: 35806.48031 | BK127: 36603.30803 | BL127: 38331.10638 | BM127: 38843.75462 | BN127: 41006.50052
C128: 11 | D128: Flash | E128: 901162121 | F128: [Abonados] | AG128: 0 | AJ128: 0 | AK128: 212636 | AL128: 555937 | AM128: 629210 | AN128: 553045 | AO128: 449477 | AP128: 333761 | AQ128: 291210 | AR128: 272850 | AS128: 244783 | AT128: 427633.6221 | AU128: 536924.2146 | AV128: 430093.031 | AW128: 360417.967 | AX128: 543268.5891 | AY128: 652559.1817 | AZ128: 545727.998 | BA128: 476052.9341 | BB128: 658903.5561 | BC128: 768194.1487 | BD128: 661362.965 | BE128: 591687.9011 | BF128: 774538.5232 | BG128: 883829.1157 | BH128: 776997.9321 | BI128: 707322.8681 | BJ128: 890173.4902 | BK128: 999464.0828 | BL128: 892632.8991 | BM128: 822957.8352 | BN128: 1005808.457
C129: 12 | D129: Setroc
C130: 13 | D130: Scarlet
C131: 14 | D131: Vilacom
C132: 15 | D132: Libre
C133: T | D133: Total | F133: [Abonados] | G133: =SUM(G118:G128) -> 37727639 | H133: =SUM(H118:H128) -> 38474285 | I133: 39593152 | J133: 37726510 | K133: 38430567 | L133: 39185386 | M133: 39513132 | N133: 39632788 | O133: 36919511 | P133: 37478130 | Q133: 38593576 | R133: 39542840 | S133: 40763026 | T133: 41258254 | U133: 42642112 | V133: 44287194 | W133: 45073218 | X133: 44875878 | Y133: 44986573 | Z133: 45878731 | AA133: 45810700 | AB133: 46236268 | AC133: 46561652 | AD133: 46572192 | AE133: 46876130 | AF133: 47401736 | AG133: 48306974 | AH133: 49537231 | AI133: 49995033 | AJ133: 49916142 | AK133: 50260899 | AL133: 51560803 | AM133: 51521652 | AN133: 52125242 | AO133: 51262041 | AP133: 52260274 | AQ133: 52417630 | AR133: 50914369 | AS133: 51192965 | AT133: 51831569.39 | AU133: 51648779.94 | AV133: 52136440.68 | AW133: 53428383.95 | AX133: 53744707.15 | AY133: 53561917.7 | AZ133: 54049578.44 | BA133: 55341521.7 | BB133: 55657844.91 | BC133: 55475055.46 | BD133: 55962716.19 | BE133: 57254659.46 | BF133: 57570982.66 | BG133: 57388193.22 | BH133: 57875853.95 | BI133: 59167797.22 | BJ133: 59484120.42 | BK133: 59301330.98 | BL133: 59788991.71 | BM133: 61080934.98 | BN133: 61397258.18
B134: Total
C135: 1 | D135: =L.oper.nom -> Comcel | E135: 800153993 | F135: [Abonados] | G135: =SUM(G101,G118) -> 30014228 | H135: 30683164 | I135: 31197392 | J135: 28818791 | K135: 29019994 | L135: 29375269 | M135: 29961801 | N135: 30371083 | O135: 27660868 | P135: 27805195 | Q135: 28363736 | R135: 28977299 | S135: 29209759 | T135: 29109023 | U135: 29290815 | V135: 29775739 | W135: 29833618 | X135: 29370105 | Y135: 28931052 | Z135: 28973124 | AA135: 28339861 | AB135: 28259536 | AC135: 28488836 | AD135: 28953884 | AE135: 29153144 | AF135: 29224927 | AG135: 29112362 | AH135: 29352831 | AI135: 29401088 | AJ135: 29167782 | AK135: 29232888 | AL135: 29680853 | AM135: 29887101 | AN135: 30144119 | AO135: 30576718 | AP135: 31104070 | AQ135: 31243664 | AR135: 31534574 | AS135: 32023780 | AT135: 31578639.94 | AU135: 30872540.61 | AV135: 31502597.56 | AW135: 32084909.57 | AX135: 31647414.78 | AY135: 30941315.46 | AZ135: 31571372.4 | BA135: 32153684.41 | BB135: 31716189.63 | BC135: 31010090.31 | BD135: 31640147.25 | BE135: 32222459.26 | BF135: 31784964.48 | BG135: 31078865.15 | BH135: 31708922.1 | BI135: 32291234.11 | BJ135: 31853739.32 | BK135: 31147640 | BL135: 31777696.94 | BM135: 32360008.95 | BN135: 31922514.17
C136: 2 | D136: Avantel | E136: 830016046 | F136: [Abonados] | G136: 0 | H136: 0 | I136: 0 | J136: 0 | K136: 0 | L136: 0 | M136: 0 | N136: 0 | O136: 0 | P136: 171000 | Q136: 181734 | R136: 193297 | S136: 203410 | T136: 206023 | U136: 245229 | V136: 267855 | W136: 312946 | X136: 433571 | Y136: 549960 | Z136: 696917 | AA136: 793782 | AB136: 977032 | AC136: 1098763 | AD136: 1205322 | AE136: 1350719 | AF136: 1422458 | AG136: 1819545 | AH136: 1982424 | AI136: 2015538 | AJ136: 2053260 | AK136: 2121034 | AL136: 2221618 | AM136: 2286642 | AN136: 2332396 | AO136: 2376084 | AP136: 2303177 | AQ136: 2250770 | AR136: 1477461 | AS136: 1390713 | AT136: 1349404.862 | AU136: 1406060.902 | AV136: 1303819.335 | AW136: 1694504.449 | AX136: 1653196.311 | AY136: 1709852.351 | AZ136: 1607610.784 | BA136: 1998295.898 | BB136: 1956987.76 | BC136: 2013643.8 | BD136: 1911402.233 | BE136: 2302087.347 | BF136: 2260779.209 | BG136: 2317435.249 | BH136: 2215193.682 | BI136: 2605878.796 | BJ136: 2564570.658 | BK136: 2621226.698 | BL136: 2518985.131 | BM136: 2909670.245 | BN136: 2868362.107
C137: 3 | D137: Tigo | E137: 830114921 | F137: [Abonados] | G137: 5357226 | H137: 5515419 | I137: 5642405 | J137: 5741616 | K137: 5889287 | L137: 6070470 | M137: 6355020 | N137: 6613734 | O137: 6855151 | P137: 7023762 | Q137: 7292231 | R137: 7640237 | S137: 7956757 | T137: 8320085 | U137: 8692171 | V137: 9151883 | W137: 9693073 | X137: 10124749 | Y137: 10412601 | Z137: 10914038 | AA137: 11039033 | AB137: 11328233 | AC137: 10966060 | AD137: 10279203 | AE137: 10414527 | AF137: 10841282 | AG137: 11148446 | AH137: 11441311 | AI137: 11563717 | AJ137: 11563259 | AK137: 11621559 | AL137: 11812492 | AM137: 11555856 | AN137: 11722206 | AO137: 11243011 | AP137: 11641574 | AQ137: 11808184 | AR137: 11037030 | AS137: 11495643 | AT137: 11778258.46 | AU137: 11876107.48 | AV137: 11983165.71 | AW137: 12262006.04 | AX137: 12544621.49 | AY137: 12642470.52 | AZ137: 12749528.75 | BA137: 13028369.08 | BB137: 13310984.53 | BC137: 13408833.56 | BD137: 13515891.78 | BE137: 13794732.11 | BF137: 14077347.57 | BG137: 14175196.6 | BH137: 14282254.82 | BI137: 14561095.15 | BJ137: 14843710.61 | BK137: 14941559.63 | BL137: 15048617.86 | BM137: 15327458.19 | BN137: 15610073.64
C138: 4 | D138: Movistar | E138: 830122566 | F138: [Abonados] | G138: 9970595 | H138: 9949354 | I138: 10700007 | J138: 11391072 | K138: 11932976 | L138: 12358536 | M138: 12004961 | N138: 11703632 | O138: 11516259 | P138: 11680143 | Q138: 11633488 | R138: 12121734 | S138: 12366278 | T138: 12281917 | U138: 12581553 | V138: 12842498 | W138: 12884915 | X138: 12413265 | Y138: 12655556 | Z138: 12896444 | AA138: 13057319 | AB138: 13236926 | AC138: 13579826 | AD138: 13725271 | AE138: 13507118 | AF138: 13768404 | AG138: 14129896 | AH138: 14590555 | AI138: 14716140 | AJ138: 15070660 | AK138: 15290583 | AL138: 15716216 | AM138: 15884252 | AN138: 16029072 | AO138: 16059954 | AP138: 16080371 | AQ138: 15913964 | AR138: 15608215 | AS138: 15737976 | AT138: 16010471.96 | AU138: 16157848.82 | AV138: 16288533.36 | AW138: 16558861.58 | AX138: 16831297.33 | AY138: 16978674.2 | AZ138: 17109358.73 | BA138: 17379686.95 | BB138: 17652122.7 | BC138: 17799499.57 | BD138: 17930184.11 | BE138: 18200512.33 | BF138: 18472948.08 | BG138: 18620324.95 | BH138: 18751009.48 | BI138: 19021337.7 | BJ138: 19293773.45 | BK138: 19441150.32 | BL138: 19571834.85 | BM138: 19842163.07 | BN138: 20114598.83
C139: 5 | D139: ETB | E139: 899999115 | F139: [Abonados] | G139: 0 | H139: 0 | I139: 0 | J139: 0 | K139: 0 | L139: 0 | M139: 0 | N139: 0 | O139: 41654 | P139: 44065 | Q139: 44925 | R139: 46814 | S139: 47037 | T139: 34684 | U139: 0 | V139: =SUM(V105,V122) -> 21170 | W139: 70870 | X139: 162337 | Y139: 273725 | Z139: 390171 | AA139: 418270 | AB139: 490811 | AC139: 564585 | AD139: 689811 | AE139: 718776 | AF139: 697728 | AG139: 582392 | AH139: 594725 | AI139: 587956 | AJ139: 602273 | AK139: 555006 | AL139: 486397 | AM139: 444180 | AN139: 460519 | AO139: 415140 | AP139: 389297 | AQ139: 392763 | AR139: 351479 | AS139: 327552 | AT139: 315132.585 | AU139: 328220.4396 | AV139: 362733.9189 | AW139: 337750.7896 | AX139: 331540.5409 | AY139: 344628.3955 | AZ139: 379141.8748 | BA139: 354158.7454 | BB139: 347948.4967 | BC139: 361036.3513 | BD139: 395549.8306 | BE139: 370566.7013 | BF139: 364356.4526 | BG139: 377444.3072 | BH139: 411957.7865 | BI139: 386974.6572 | BJ139: 380764.4085 | BK139: 393852.2631 | BL139: 428365.7424 | BM139: 403382.613 | BN139: 397172.3643
C140: 6 | D140: EPM | E140: 900092385 | F140: [Abonados] | G140: =SUM(G106,G123) -> 0 | H140: 0 | I140: 0 | J140: 0 | K140: 73610 | L140: 81101 | M140: 71017 | N140: 49247 | O140: 89879 | P140: 91605 | Q140: 313945 | R140: 326121 | S140: 350382 | T140: 365100 | U140: 380015 | V140: 387995 | W140: 358127 | X140: 340327 | Y140: 323354 | Z140: 301229 | AA140: 266110 | AB140: 235930 | AC140: 225376 | AD140: 91782 | AE140: 90994 | AF140: 89843 | AG140: 2751 | AH140: 0 | AI140: 0 | AJ140: 0 | AK140: 0 | AL140: 0 | AM140: 0 | AN140: 0 | AO140: 0 | AP140: 0 | AQ140: 0 | AR140: 0 | AS140: 0 | AT140: 0 | AU140: 0 | AV140: 0 | AW140: 0 | AX140: 0 | AY140: 0 | AZ140: 0 | BA140: 0 | BB140: 0 | BC140: 0 | BD140: 0 | BE140: 0 | BF140: 0 | BG140: 0 | BH140: 0 | BI140: 0 | BJ140: 0 | BK140: 0 | BL140: 0 | BM140: 0 | BN140: 0
C141: 7 | D141: Uff | E141: 900367669 | F141: [Abonados] | G141: 0 | H141: 166772 | I141: 208108 | J141: 248942 | K141: 256918 | L141: 271128 | M141: 306418 | N141: 328663 | O141: 343645 | P141: 376516 | Q141: 390576 | R141: 402350 | S141: 409271 | T141: 416309 | U141: 415300 | V141: 529834 | W141: 457365 | X141: 400901 | Y141: 285164 | Z141: 190413 | AA141: 140208 | AB141: 99144 | AC141: 100834 | AD141: 104785 | AE141: 112514 | AF141: 110586 | AG141: 103452 | AH141: 97634 | AI141: 80638 | AJ141: 71115 | AK141: 0 | AL141: 0 | AM141: 0 | AN141: 0 | AO141: 0 | AP141: 0 | AQ141: 0 | AR141: 0 | AS141: 0 | AT141: 0 | AU141: 0 | AV141: 0 | AW141: 0 | AX141: 0 | AY141: 0 | AZ141: 0 | BA141: 0 | BB141: 0 | BC141: 0 | BD141: 0 | BE141: 0 | BF141: 0 | BG141: 0 | BH141: 0 | BI141: 0 | BJ141: 0 | BK141: 0 | BL141: 0 | BM141: 0 | BN141: 0
C142: 8 | D142: Exito | E142: 900389508 | F142: [Abonados] | G142: 0 | H142: 0 | I142: 0 | J142: 0 | K142: 0 | L142: 0 | M142: 0 | N142: 0 | O142: 0 | P142: 0 | Q142: 103146 | R142: 146595 | S142: 195251 | T142: 225573 | U142: 273818 | V142: 362788 | W142: 410615 | X142: 478895 | Y142: 573124 | Z142: 707700 | AA142: 827815 | AB142: 947183 | AC142: 1101859 | AD142: 1153287 | AE142: 1142308 | AF142: 931450 | AG142: 1120902 | AH142: 1357366 | AI142: 1578026 | AJ142: 1626699 | AK142: 1694567 | AL142: 1661346 | AM142: 1542278 | AN142: 1770316 | AO142: 1191630 | AP142: 1434851 | AQ142: 1606947 | AR142: 1756948 | AS142: 1498443 | AT142: 1905198.941 | AU142: 1962881.342 | AV142: 2014532.625 | AW142: 2071510.427 | AX142: 2154529.809 | AY142: 2212212.211 | AZ142: 2263863.494 | BA142: 2320841.295 | BB142: 2403860.678 | BC142: 2461543.08 | BD142: 2513194.363 | BE142: 2570172.164 | BF142: 2653191.547 | BG142: 2710873.949 | BH142: 2762525.232 | BI142: 2819503.033 | BJ142: 2902522.416 | BK142: 2960204.818 | BL142: 3011856.101 | BM142: 3068833.902 | BN142: 3151853.285
C143: 9 | D143: Virgin | E143: 900420122 | F143: [Abonados] | G143: 0 | H143: 0 | I143: 0 | J143: 0 | K143: 0 | L143: 0 | M143: 0 | N143: 0 | O143: 5644 | P143: 121400 | Q143: 314228 | R143: 440667 | S143: 856474 | T143: 1235298 | U143: 1704763 | V143: 1990965 | W143: 2118363 | X143: 2258306 | Y143: 2254035 | Z143: 2257434 | AA143: 2410223 | AB143: 2352617 | AC143: 2397611 | AD143: 2481579 | AE143: 2584768 | AF143: 2661621 | AG143: 2759150 | AH143: 2803168 | AI143: 2820484 | AJ143: 2757292 | AK143: 2698194 | AL143: 2687737 | AM143: 2735382 | AN143: 2778854 | AO143: 2800297 | AP143: 2986753 | AQ143: 2973265 | AR143: 2815403 | AS143: 2744831 | AT143: 2816662.936 | AU143: 3001979.903 | AV143: 2953703.899 | AW143: 3083882.453 | AX143: 3155714.389 | AY143: 3341031.356 | AZ143: 3292755.352 | BA143: 3422933.905 | BB143: 3494765.842 | BC143: 3680082.808 | BD143: 3631806.805 | BE143: 3761985.358 | BF143: 3833817.294 | BG143: 4019134.261 | BH143: 3970858.257 | BI143: 4101036.811 | BJ143: 4172868.747 | BK143: 4358185.714 | BL143: 4309909.71 | BM143: 4440088.263 | BN143: 4511920.2
C144: 10 | D144: Suma | E144: 900973532 | F144: [Abonados] | G144: 0 | H144: 0 | I144: 0 | J144: 0 | K144: 0 | L144: 0 | M144: 0 | N144: 0 | O144: 0 | P144: 0 | Q144: 0 | R144: 0 | S144: 0 | T144: 0 | U144: 0 | V144: 0 | W144: 0 | X144: 0 | Y144: 0 | Z144: 0 | AA144: 0 | AB144: 0 | AC144: 0 | AD144: 0 | AE144: 0 | AF144: 0 | AG144: 0 | AH144: 0 | AI144: 409 | AJ144: 574 | AK144: 1200 | AL144: 2460 | AM144: 3370 | AN144: 3554 | AO144: 3741 | AP144: 9321 | AQ144: 11730 | AR144: 13058 | AS144: 14456 | AT144: 15006.39946 | AU144: 15803.22718 | AV144: 17531.02554 | AW144: 18043.67378 | AX144: 20206.41968 | AY144: 21003.2474 | AZ144: 22731.04575 | BA144: 23243.69399 | BB144: 25406.43989 | BC144: 26203.26761 | BD144: 27931.06596 | BE144: 28443.7142 | BF144: 30606.4601 | BG144: 31403.28782 | BH144: 33131.08617 | BI144: 33643.73441 | BJ144: 35806.48031 | BK144: 36603.30803 | BL144: 38331.10638 | BM144: 38843.75462 | BN144: 41006.50052
C145: 11 | D145: Flash | E145: 901162121 | F145: [Abonados] | G145: 0 | H145: 0 | I145: 0 | J145: 0 | K145: 0 | L145: 0 | M145: 0 | N145: 0 | O145: 0 | P145: 0 | Q145: 0 | R145: 0 | S145: 0 | T145: 0 | U145: 0 | V145: 0 | W145: 0 | X145: 0 | Y145: 0 | Z145: 0 | AA145: 0 | AB145: 0 | AC145: 0 | AD145: 0 | AE145: 0 | AF145: 0 | AG145: 0 | AH145: 0 | AI145: 0 | AJ145: 0 | AK145: 212636 | AL145: 555937 | AM145: 629210 | AN145: 553045 | AO145: 449477 | AP145: 333761 | AQ145: 291210 | AR145: 272850 | AS145: 244783 | AT145: 427633.6221 | AU145: 536924.2146 | AV145: 430093.031 | AW145: 360417.967 | AX145: 543268.5891 | AY145: 652559.1817 | AZ145: 545727.998 | BA145: 476052.9341 | BB145: 658903.5561 | BC145: 768194.1487 | BD145: 661362.965 | BE145: 591687.9011 | BF145: 774538.5232 | BG145: 883829.1157 | BH145: 776997.9321 | BI145: 707322.8681 | BJ145: 890173.4902 | BK145: 999464.0828 | BL145: 892632.8991 | BM145: 822957.8352 | BN145: 1005808.457
C146: 12 | D146: Setroc
C147: 13 | D147: Scarlet
C148: 14 | D148: Vilacom
C149: 15 | D149: Libre
C150: T | D150: Total | F150: [Abonados] | G150: =SUM(G135:G145) -> 45342049 | H150: =SUM(H135:H145) -> 46314709 | I150: 47747912 | J150: 46200421 | K150: 47172785 | L150: 48156504 | M150: 48699217 | N150: 49066359 | O150: 46513100 | P150: 47313686 | Q150: 48638009 | R150: 50295114 | S150: 51594619 | T150: 52194012 | U150: 53583664 | V150: 55330727 | W150: 56139892 | X150: 55982456 | Y150: 56258571 | Z150: 57327470 | AA150: 57292621 | AB150: 57927412 | AC150: 58523750 | AD150: 58684924 | AE150: 59074868 | AF150: 59748299 | AG150: 60778896 | AH150: 62220014 | AI150: 62763996 | AJ150: 62912914 | AK150: 63427667 | AL150: 64825056 | AM150: 64968271 | AN150: 65794081 | AO150: 65116052 | AP150: 66283175 | AQ150: 66492497 | AR150: 64867018 | AS150: 65478177 | AT150: 66196409.7 | AU150: 66158366.95 | AV150: 66856710.46 | AW150: 68471886.94 | AX150: 68881789.67 | AY150: 68843746.92 | AZ150: 69542090.43 | BA150: 71157266.91 | BB150: 71567169.64 | BC150: 71529126.89 | BD150: 72227470.41 | BE150: 73842646.89 | BF150: 74252549.61 | BG150: 74214506.86 | BH150: 74912850.38 | BI150: 76528026.86 | BJ150: 76937929.58 | BK150: 76899886.83 | BL150: 77598230.35 | BM150: 79213406.83 | BN150: 79623309.55
B151: Gráficos
G152: 2011-03-01 | H152: 2011-06-01 | I152: 2011-09-01 | J152: 2011-12-01 | K152: 2012-03-01 | L152: 2012-06-01 | M152: 2012-09-01 | N152: 2012-12-01 | O152: 2013-03-01 | P152: 2013-06-01 | Q152: 2013-09-01 | R152: 2013-12-01 | S152: 2014-03-01 | T152: 2014-06-01 | U152: 2014-09-01 | V152: 2014-12-01 | W152: 2015-03-01 | X152: 2015-06-01 | Y152: 2015-09-01 | Z152: 2015-12-01 | AA152: 2016-03-01 | AB152: 2016-06-01 | AC152: 2016-09-01 | AD152: 2016-12-01 | AE152: 2017-03-01 | AF152: 2017-06-01 | AG152: 2017-09-01 | AH152: 2017-12-01 | AI152: 2018-03-01 | AJ152: 2018-06-01 | AK152: 2018-09-01 | AL152: 2018-12-01 | AM152: 2019-03-01 | AN152: 2019-06-01 | AO152: 2019-09-01 | AP152: 2019-12-01 | AQ152: 2020-03-01 | AR152: 2020-06-01 | AS152: 2020-09-01 | AT152: 2020-12-01 | AU152: 2021-03-01 | AV152: 2021-06-01 | AW152: 2021-09-01 | AX152: 2021-12-01 | AY152: 2022-03-01 | AZ152: 2022-06-01 | BA152: 2022-09-01 | BB152: 2022-12-01 | BC152: 2023-03-01 | BD152: 2023-06-01 | BE152: 2023-09-01 | BF152: 2023-12-01 | BG152: 2024-03-01 | BH152: 2024-06-01 | BI152: 2024-09-01 | BJ152: 2024-12-01 | BK152: 2025-03-01 | BL152: 2025-06-01 | BM152: 2025-09-01 | BN152: 2025-12-01
D153: Pospago | F153: [Abonados] | G153: =G116 -> 7614410 | H153: =H116 -> 7840424 | I153: 8154760 | J153: 8473911 | K153: 8742218 | L153: 8971118 | M153: 9186085 | N153: 9433571 | O153: 9593589 | P153: 9835556 | Q153: 10044433 | R153: 10752274 | S153: 10831593 | T153: 10935758 | U153: 10941552 | V153: 11043533 | W153: 11066674 | X153: 11106578 | Y153: 11271998 | Z153: 11448739 | AA153: 11481921 | AB153: 11691144 | AC153: 11962098 | AD153: 12112732 | AE153: 12198738 | AF153: 12346563 | AG153: 12471922 | AH153: 12682783 | AI153: 12768963 | AJ153: 12996772 | AK153: 13166768 | AL153: 13264253 | AM153: 13446619 | AN153: 13668839 | AO153: 13854011 | AP153: 14022901 | AQ153: 14074867 | AR153: 13952649 | AS153: 14285212 | AT153: 14364840.31 | AU153: 14509587.01 | AV153: 14720269.79 | AW153: 15043503 | AX153: 15137082.52 | AY153: 15281829.22 | AZ153: 15492512 | BA153: 15815745.21 | BB153: 15909324.73 | BC153: 16054071.43 | BD153: 16264754.21 | BE153: 16587987.42 | BF153: 16681566.94 | BG153: 16826313.65 | BH153: 17036996.42 | BI153: 17360229.63 | BJ153: 17453809.16 | BK153: 17598555.86 | BL153: 17809238.64 | BM153: 18132471.85 | BN153: 18226051.37
D154: Prepago | F154: [Abonados] | G154: =G133 -> 37727639 | H154: =H133 -> 38474285 | I154: 39593152 | J154: 37726510 | K154: 38430567 | L154: 39185386 | M154: 39513132 | N154: 39632788 | O154: 36919511 | P154: 37478130 | Q154: 38593576 | R154: 39542840 | S154: 40763026 | T154: 41258254 | U154: 42642112 | V154: 44287194 | W154: 45073218 | X154: 44875878 | Y154: 44986573 | Z154: 45878731 | AA154: 45810700 | AB154: 46236268 | AC154: 46561652 | AD154: 46572192 | AE154: 46876130 | AF154: 47401736 | AG154: 48306974 | AH154: 49537231 | AI154: 49995033 | AJ154: 49916142 | AK154: 50260899 | AL154: 51560803 | AM154: 51521652 | AN154: 52125242 | AO154: 51262041 | AP154: 52260274 | AQ154: 52417630 | AR154: 50914369 | AS154: 51192965 | AT154: 51831569.39 | AU154: 51648779.94 | AV154: 52136440.68 | AW154: 53428383.95 | AX154: 53744707.15 | AY154: 53561917.7 | AZ154: 54049578.44 | BA154: 55341521.7 | BB154: 55657844.91 | BC154: 55475055.46 | BD154: 55962716.19 | BE154: 57254659.46 | BF154: 57570982.66 | BG154: 57388193.22 | BH154: 57875853.95 | BI154: 59167797.22 | BJ154: 59484120.42 | BK154: 59301330.98 | BL154: 59788991.71 | BM154: 61080934.98 | BN154: 61397258.18
D155: Total | F155: [Abonados] | G155: =G150 -> 45342049 | H155: =H150 -> 46314709 | I155: 47747912 | J155: 46200421 | K155: 47172785 | L155: 48156504 | M155: 48699217 | N155: 49066359 | O155: 46513100 | P155: 47313686 | Q155: 48638009 | R155: 50295114 | S155: 51594619 | T155: 52194012 | U155: 53583664 | V155: 55330727 | W155: 56139892 | X155: 55982456 | Y155: 56258571 | Z155: 57327470 | AA155: 57292621 | AB155: 57927412 | AC155: 58523750 | AD155: 58684924 | AE155: 59074868 | AF155: 59748299 | AG155: 60778896 | AH155: 62220014 | AI155: 62763996 | AJ155: 62912914 | AK155: 63427667 | AL155: 64825056 | AM155: 64968271 | AN155: 65794081 | AO155: 65116052 | AP155: 66283175 | AQ155: 66492497 | AR155: 64867018 | AS155: 65478177 | AT155: 66196409.7 | AU155: 66158366.95 | AV155: 66856710.46 | AW155: 68471886.94 | AX155: 68881789.67 | AY155: 68843746.92 | AZ155: 69542090.43 | BA155: 71157266.91 | BB155: 71567169.64 | BC155: 71529126.89 | BD155: 72227470.41 | BE155: 73842646.89 | BF155: 74252549.61 | BG155: 74214506.86 | BH155: 74912850.38 | BI155: 76528026.86 | BJ155: 76937929.58 | BK155: 76899886.83 | BL155: 77598230.35 | BM155: 79213406.83 | BN155: 79623309.55
D157: Población | F157: =Parámetros!P120 -> 45509584 | G157: =F157+(J157-F157)/4 -> 45643338.25 | H157: =G157+(J157-F157)/4 -> 45777092.5 | I157: =H157+(J157-F157)/4 -> 45910846.75 | J157: =Parámetros!Q120 -> 46044601 | K157: =J157+(N157-J157)/4 -> 46178906.5 | L157: =K157+(N157-J157)/4 -> 46313212 | M157: =L157+(N157-J157)/4 -> 46447517.5 | N157: =Parámetros!R120 -> 46581823 | O157: =N157+(R157-N157)/4 -> 46716639.5 | P157: =O157+(R157-N157)/4 -> 46851456 | Q157: =P157+(R157-N157)/4 -> 46986272.5 | R157: =Parámetros!S120 -> 47121089 | S157: =R157+(V157-R157)/4 -> 47256263.5 | T157: =S157+(V157-R157)/4 -> 47391438 | U157: =T157+(V157-R157)/4 -> 47526612.5 | V157: =Parámetros!T120 -> 47661787 | W157: =V157+(Z157-V157)/4 -> 47797191.5 | X157: =W157+(Z157-V157)/4 -> 47932596 | Y157: =X157+(Z157-V157)/4 -> 48068000.5 | Z157: =Parámetros!U120 -> 48203405 | AA157: =Z157+(AD157-Z157)/4 -> 48339480.75 | AB157: =AA157+(AD157-Z157)/4 -> 48475556.5 | AC157: =AB157+(AD157-Z157)/4 -> 48611632.25 | AD157: =Parámetros!V120 -> 48747708 | AE157: =AD157+(AH157-AD157)/4 -> 48883683.25 | AF157: =AE157+(AH157-AD157)/4 -> 49019658.5 | AG157: =AF157+(AH157-AD157)/4 -> 49155633.75 | AH157: =Parámetros!W120 -> 49291609 | AI157: =AH157+(AL157-AH157)/4 -> 49427266.75 | AJ157: =AI157+(AL157-AH157)/4 -> 49562924.5 | AK157: =AJ157+(AL157-AH157)/4 -> 49698582.25 | AL157: =Parámetros!X120 -> 49834240 | AM157: =AL157+(AP157-AL157)/4 -> 49969299.5 | AN157: =AM157+(AP157-AL157)/4 -> 50104359 | AO157: =AN157+(AP157-AL157)/4 -> 50239418.5 | AP157: =Parámetros!Y120 -> 50374478 | AQ157: =AP157+(AT157-AP157)/4 -> 50508795.25 | AR157: =AQ157+(AT157-AP157)/4 -> 50643112.5 | AS157: =AR157+(AT157-AP157)/4 -> 50777429.75 | AT157: =Parámetros!Z120 -> 50911747 | AU157: =AT157+(AX157-AT157)/4 -> 51046171 | AV157: =AU157+(AX157-AT157)/4 -> 51180595 | AW157: =AV157+(AX157-AT157)/4 -> 51315019 | AX157: =Parámetros!AA120 -> 51449443 | AY157: =AX157+(BB157-AX157)/4 -> 51583841.5 | AZ157: =AY157+(BB157-AX157)/4 -> 51718240 | BA157: =AZ157+(BB157-AX157)/4 -> 51852638.5 | BB157: =Parámetros!AB120 -> 51987037 | BC157: =BB157+(BF157-BB157)/4 -> 52121437 | BD157: =BC157+(BF157-BB157)/4 -> 52255837 | BE157: =BD157+(BF157-BB157)/4 -> 52390237 | BF157: =Parámetros!AC120 -> 52524637 | BG157: =BF157+(BJ157-BF157)/4 -> 52659035.5 | BH157: =BG157+(BJ157-BF157)/4 -> 52793434 | BI157: =BH157+(BJ157-BF157)/4 -> 52927832.5 | BJ157: =Parámetros!AD120 -> 53062231 | BK157: =BJ157+(BN157-BJ157)/4 -> 53196631.5 | BL157: =BK157+(BN157-BJ157)/4 -> 53331032 | BM157: =BL157+(BN157-BJ157)/4 -> 53465432.5 | BN157: =Parámetros!AE120 -> 53599833
D158: Penetración | G158: =+G155/G157 -> 0.9933990531 | H158: =+H155/H157 -> 1.011744226 | I158: 1.040013752 | J158: =+J155/J157 -> 1.00338411 | K158: 1.021522348 | L158: 1.039800565 | M158: 1.048478361 | N158: 1.053337028 | O158: 0.9956431049 | P158: 1.009865862 | Q158: 1.035153597 | R158: 1.067358906 | S158: 1.091804878 | T158: 1.101338432 | U158: 1.127445471 | V158: 1.160903325 | W158: 1.174543739 | X158: 1.167941248 | Y158: 1.17039549 | Z158: 1.189282583 | AA158: 1.185213828 | AB158: 1.194981887 | AC158: 1.203904236 | AD158: 1.203849912 | AE158: 1.20847825 | AF158: 1.21886404 | AG158: 1.236458395 | AH158: 1.262284094 | AI158: 1.269825344 | AJ158: 1.269354354 | AK158: 1.27624701 | AL158: 1.300813577 | AM158: 1.300163734 | AN158: 1.313140859 | AO158: 1.296114763 | AP158: 1.315808672 | AQ158: 1.316453831 | AR158: 1.280865547 | AS158: 1.289513418 | AT158: 1.300218782 | AU158: 1.29604955 | AV158: 1.306290215 | AW158: 1.334343985 | AX158: 1.338824789 | AY158: 1.334599071 | AZ158: 1.344633739 | BA158: 1.3722979 | BB158: 1.376634903 | BC158: 1.372355234 | BD158: 1.382189523 | BE158: 1.409473427 | BF158: 1.413670876 | BG158: 1.409340413 | BH158: 1.418980443 | BI158: 1.445893838 | BJ158: 1.449956553 | BK158: 1.445578125 | BL158: 1.455029604 | BM158: 1.481581708 | BN158: 1.485514135
B196: Abonados (Matriz Auxiliar Mensual)
C198: id | D198: Operador | E198: Unidad | F198: 2011-12-01 | G198: 2012-01-01 | H198: 2012-02-01 | I198: 2012-03-01 | J198: 2012-04-01 | K198: 2012-05-01 | L198: 2012-06-01 | M198: 2012-07-01 | N198: 2012-08-01 | O198: 2012-09-01 | P198: 2012-10-01 | Q198: 2012-11-01 | R198: 2012-12-01 | S198: 2013-01-01 | T198: 2013-02-01 | U198: 2013-03-01 | V198: 2013-04-01 | W198: 2013-05-01 | X198: 2013-06-01 | Y198: 2013-07-01 | Z198: 2013-08-01 | AA198: 2013-09-01 | AB198: 2013-10-01 | AC198: 2013-11-01 | AD198: 2013-12-01 | AE198: 2014-01-01 | AF198: 2014-02-01 | AG198: 2014-03-01 | AH198: 2014-04-01 | AI198: 2014-05-01 | AJ198: 2014-06-01 | AK198: 2014-07-01 | AL198: 2014-08-01 | AM198: 2014-09-01 | AN198: 2014-10-01 | AO198: 2014-11-01 | AP198: 2014-12-01 | AQ198: 2015-01-01 | AR198: 2015-02-01 | AS198: 2015-03-01 | AT198: 2015-04-01 | AU198: 2015-05-01 | AV198: 2015-06-01 | AW198: 2015-07-01 | AX198: 2015-08-01 | AY198: 2015-09-01 | AZ198: 2015-10-01 | BA198: 2015-11-01 | BB198: 2015-12-01 | BC198: 2016-01-01 | BD198: 2016-02-01 | BE198: 2016-03-01 | BF198: 2016-04-01 | BG198: 2016-05-01 | BH198: 2016-06-01 | BI198: 2016-07-01 | BJ198: 2016-08-01 | BK198: 2016-09-01 | BL198: 2016-10-01 | BM198: 2016-11-01 | BN198: 2016-12-01 | BO198: 2017-01-01 | BP198: 2017-02-01 | BQ198: 2017-03-01 | BR198: 2017-04-01 | BS198: 2017-05-01 | BT198: 2017-06-01 | BU198: 2017-07-01 | BV198: 2017-08-01 | BW198: 2017-09-01 | BX198: 2017-10-01 | BY198: 2017-11-01 | BZ198: 2017-12-01 | CA198: 2018-01-01 | CB198: 2018-02-01 | CC198: 2018-03-01 | CD198: 2018-04-01 | CE198: 2018-05-01 | CF198: 2018-06-01 | CG198: 2018-07-01 | CH198: 2018-08-01 | CI198: 2018-09-01 | CJ198: 2018-10-01 | CK198: 2018-11-01 | CL198: 2018-12-01 | CM198: 2019-01-01 | CN198: 2019-02-01 | CO198: 2019-03-01 | CP198: 2019-04-01 | CQ198: 2019-05-01 | CR198: 2019-06-01 | CS198: 2019-07-01 | CT198: 2019-08-01 | CU198: 2019-09-01 | CV198: 2019-10-01 | CW198: 2019-11-01 | CX198: 2019-12-01 | CY198: 2020-01-01 | CZ198: 2020-02-01 | DA198: 2020-03-01 | DB198: 2020-04-01 | DC198: 2020-05-01 | DD198: 2020-06-01 | DE198: 2020-07-01 | DF198: 2020-08-01 | DG198: 2020-09-01 | DH198: 2020-10-01 | DI198: 2020-11-01 | DJ198: 2020-12-01 | DK198: 2021-01-01 | DL198: 2021-02-01 | DM198: 2021-03-01 | DN198: 2021-04-01 | DO198: 2021-05-01 | DP198: 2021-06-01 | DQ198: 2021-07-01 | DR198: 2021-08-01 | DS198: 2021-09-01 | DT198: 2021-10-01 | DU198: 2021-11-01 | DV198: 2021-12-01 | DW198: 2022-01-01 | DX198: 2022-02-01 | DY198: 2022-03-01 | DZ198: 2022-04-01 | EA198: 2022-05-01 | EB198: 2022-06-01 | EC198: 2022-07-01 | ED198: 2022-08-01 | EE198: 2022-09-01 | EF198: 2022-10-01 | EG198: 2022-11-01 | EH198: 2022-12-01 | EI198: 2023-01-01 | EJ198: 2023-02-01 | EK198: 2023-03-01 | EL198: 2023-04-01 | EM198: 2023-05-01 | EN198: 2023-06-01 | EO198: 2023-07-01 | EP198: 2023-08-01 | EQ198: 2023-09-01 | ER198: 2023-10-01 | ES198: 2023-11-01 | ET198: 2023-12-01 | EU198: 2024-01-01 | EV198: 2024-02-01 | EW198: 2024-03-01 | EX198: 2024-04-01 | EY198: 2024-05-01 | EZ198: 2024-06-01 | FA198: 2024-07-01 | FB198: 2024-08-01 | FC198: 2024-09-01 | FD198: 2024-10-01 | FE198: 2024-11-01 | FF198: 2024-12-01 | FG198: 2025-01-01 | FH198: 2025-02-01 | FI198: 2025-03-01 | FJ198: 2025-04-01 | FK198: 2025-05-01 | FL198: 2025-06-01 | FM198: 2025-07-01 | FN198: 2025-08-01 | FO198: 2025-09-01 | FP198: 2025-10-01 | FQ198: 2025-11-01 | FR198: 2025-12-01
B199: Pospago
C200: 1 | D200: =L.oper.nom -> Comcel | E200: [Abonados] | F200: =J101 -> 4755101 | G200: =F200+(I200-F200)/3 -> 4803693.333 | H200: =F200+(I200-F200)/3*2 -> 4852285.667 | I200: =K101 -> 4900878 | J200: =I200+(L200-I200)/3 -> 4947506.667 | K200: =I200+(L200-I200)/3*2 -> 4994135.333 | L200: =L101 -> 5040764 | M200: =L200+(O200-L200)/3 -> 5092031.333 | N200: =L200+(O200-L200)/3*2 -> 5143298.667 | O200: =M101 -> 5194566 | P200: =O200+(R200-O200)/3 -> 5246896.667 | Q200: =O200+(R200-O200)/3*2 -> 5299227.333 | R200: =N101 -> 5351558 | S200: =R200+(U200-R200)/3 -> 5384841.667 | T200: =R200+(U200-R200)/3*2 -> 5418125.333 | U200: =O101 -> 5451409 | V200: =U200+(X200-U200)/3 -> 5474053.333 | W200: =U200+(X200-U200)/3*2 -> 5496697.667 | X200: =P101 -> 5519342 | Y200: =X200+(AA200-X200)/3 -> 5546560.333 | Z200: =X200+(AA200-X200)/3*2 -> 5573778.667 | AA200: =Q101 -> 5600997 | AB200: =AA200+(AD200-AA200)/3 -> 5638855.333 | AC200: =AA200+(AD200-AA200)/3*2 -> 5676713.667 | AD200: =R101 -> 5714572 | AE200: =AD200+(AG200-AD200)/3 -> 5744436.667 | AF200: =AD200+(AG200-AD200)/3*2 -> 5774301.333 | AG200: =S101 -> 5804166 | AH200: =AG200+(AJ200-AG200)/3 -> 5813710.333 | AI200: =AG200+(AJ200-AG200)/3*2 -> 5823254.667 | AJ200: =T101 -> 5832799 | AK200: =AJ200+(AM200-AJ200)/3 -> 5827023.333 | AL200: =AJ200+(AM200-AJ200)/3*2 -> 5821247.667 | AM200: =U101 -> 5815472 | AN200: =AM200+(AP200-AM200)/3 -> 5830755.667 | AO200: =AM200+(AP200-AM200)/3*2 -> 5846039.333 | AP200: =V101 -> 5861323 | AQ200: =AP200+(AS200-AP200)/3 -> 5854205 | AR200: =AP200+(AS200-AP200)/3*2 -> 5847087 | AS200: =W101 -> 5839969 | AT200: =AS200+(AV200-AS200)/3 -> 5830422.333 | AU200: =AS200+(AV200-AS200)/3*2 -> 5820875.667 | AV200: =X101 -> 5811329 | AW200: =AV200+(AY200-AV200)/3 -> 5816596.333 | AX200: =AV200+(AY200-AV200)/3*2 -> 5821863.667 | AY200: =Y101 -> 5827131 | AZ200: =AY200+(BB200-AY200)/3 -> 5841155 | BA200: =AY200+(BB200-AY200)/3*2 -> 5855179 | BB200: =Z101 -> 5869203 | BC200: =BB200+(BE200-BB200)/3 -> 5892279.333 | BD200: =BB200+(BE200-BB200)/3*2 -> 5915355.667 | BE200: =AA101 -> 5938432 | BF200: =BE200+(BH200-BE200)/3 -> 5986610.667 | BG200: =BE200+(BH200-BE200)/3*2 -> 6034789.333 | BH200: =AB101 -> 6082968 | BI200: =BH200+(BK200-BH200)/3 -> 6129894 | BJ200: =BH200+(BK200-BH200)/3*2 -> 6176820 | BK200: =AC101 -> 6223746 | BL200: =BK200+(BN200-BK200)/3 -> 6273154.333 | BM200: =BK200+(BN200-BK200)/3*2 -> 6322562.667 | BN200: =AD101 -> 6371971 | BO200: =BN200+(BQ200-BN200)/3 -> 6400905.333 | BP200: =BN200+(BQ200-BN200)/3*2 -> 6429839.667 | BQ200: =AE101 -> 6458774 | BR200: =BQ200+(BT200-BQ200)/3 -> 6490285.667 | BS200: =BQ200+(BT200-BQ200)/3*2 -> 6521797.333 | BT200: =AF101 -> 6553309 | BU200: =BT200+(BW200-BT200)/3 -> 6570260.667 | BV200: =BT200+(BW200-BT200)/3*2 -> 6587212.333 | BW200: =AG101 -> 6604164 | BX200: =BW200+(BZ200-BW200)/3 -> 6632191.333 | BY200: =BW200+(BZ200-BW200)/3*2 -> 6660218.667 | BZ200: =AH101 -> 6688246 | CA200: =BZ200+(CC200-BZ200)/3 -> 6686785.667 | CB200: =BZ200+(CC200-BZ200)/3*2 -> 6685325.333 | CC200: =AI101 -> 6683865 | CD200: =CC200+(CF200-CC200)/3 -> 6718088 | CE200: =CC200+(CF200-CC200)/3*2 -> 6752311 | CF200: =AJ101 -> 6786534 | CG200: =CF200+(CI200-CF200)/3 -> 6820010.333 | CH200: =CF200+(CI200-CF200)/3*2 -> 6853486.667 | CI200: =AK101 -> 6886963 | CJ200: =CI200+(CL200-CI200)/3 -> 6903539.667 | CK200: =CI200+(CL200-CI200)/3*2 -> 6920116.333 | CL200: =AL101 -> 6936693 | CM200: =CL200+(CO200-CL200)/3 -> 6956731.667 | CN200: =CL200+(CO200-CL200)/3*2 -> 6976770.333 | CO200: =AM101 -> 6996809 | CP200: =CO200+(CR200-CO200)/3 -> 7036183 | CQ200: =CO200+(CR200-CO200)/3*2 -> 7075557 | CR200: =AN101 -> 7114931 | CS200: =CR200+(CU200-CR200)/3 -> 7159655.333 | CT200: =CR200+(CU200-CR200)/3*2 -> 7204379.667 | CU200: =AO101 -> 7249104 | CV200: =CU200+(CX200-CU200)/3 -> 7282932.667 | CW200: =CU200+(CX200-CU200)/3*2 -> 7316761.333 | CX200: =AP101 -> 7350590 | CY200: =CX200+(DA200-CX200)/3 -> 7361646 | CZ200: =CX200+(DA200-CX200)/3*2 -> 7372702 | DA200: =AQ101 -> 7383758 | DB200: =DA200+(DD200-DA200)/3 -> 7396421.667 | DC200: =DA200+(DD200-DA200)/3*2 -> 7409085.333 | DD200: =AR101 -> 7421749 | DE200: =DD200+(DG200-DD200)/3 -> 7469124.667 | DF200: =DD200+(DG200-DD200)/3*2 -> 7516500.333 | DG200: =AS101 -> 7563876 | DH200: =DG200+(DJ200-DG200)/3 -> 7576902.7 | DI200: =DG200+(DJ200-DG200)/3*2 -> 7589929.401 | DJ200: =AT101 -> 7602956.101 | DK200: =DJ200+(DM200-DJ200)/3 -> 7607478.513 | DL200: =DJ200+(DM200-DJ200)/3*2 -> 7612000.925 | DM200: =AU101 -> 7616523.337 | DN200: =DM200+(DP200-DM200)/3 -> 7647485.03 | DO200: =DM200+(DP200-DM200)/3*2 -> 7678446.723 | DP200: =AV101 -> 7709408.416 | DQ200: =DP200+(DS200-DP200)/3 -> 7745530.399 | DR200: =DP200+(DS200-DP200)/3*2 -> 7781652.383 | DS200: =AW101 -> 7817774.367 | DT200: =DS200+(DV200-DS200)/3 -> 7833349.493 | DU200: =DS200+(DV200-DS200)/3*2 -> 7848924.62 | DV200: =AX101 -> 7864499.746 | DW200: =DV200+(DY200-DV200)/3 -> 7869022.158 | DX200: =DV200+(DY200-DV200)/3*2 -> 7873544.57 | DY200: =AY101 -> 7878066.983 | DZ200: =DY200+(EB200-DY200)/3 -> 7909028.676 | EA200: =DY200+(EB200-DY200)/3*2 -> 7939990.368 | EB200: =AZ101 -> 7970952.061 | EC200: =EB200+(EE200-EB200)/3 -> 8007074.045 | ED200: =EB200+(EE200-EB200)/3*2 -> 8043196.029 | EE200: =BA101 -> 8079318.012 | EF200: =EE200+(EH200-EE200)/3 -> 8094893.139 | EG200: =EE200+(EH200-EE200)/3*2 -> 8110468.265 | EH200: =BB101 -> 8126043.392 | EI200: =EH200+(EK200-EH200)/3 -> 8130565.804 | EJ200: =EH200+(EK200-EH200)/3*2 -> 8135088.216 | EK200: =BC101 -> 8139610.628 | EL200: =EK200+(EN200-EK200)/3 -> 8170572.321 | EM200: =EK200+(EN200-EK200)/3*2 -> 8201534.014 | EN200: =BD101 -> 8232495.707 | EO200: =EN200+(EQ200-EN200)/3 -> 8268617.69 | EP200: =EN200+(EQ200-EN200)/3*2 -> 8304739.674 | EQ200: =BE101 -> 8340861.658 | ER200: =EQ200+(ET200-EQ200)/3 -> 8356436.784 | ES200: =EQ200+(ET200-EQ200)/3*2 -> 8372011.911 | ET200: =BF101 -> 8387587.037 | EU200: =ET200+(EW200-ET200)/3 -> 8392109.449 | EV200: =ET200+(EW200-ET200)/3*2 -> 8396631.861 | EW200: =BG101 -> 8401154.274 | EX200: =EW200+(EZ200-EW200)/3 -> 8432115.967 | EY200: =EW200+(EZ200-EW200)/3*2 -> 8463077.659 | EZ200: =BH101 -> 8494039.352 | FA200: =EZ200+(FC200-EZ200)/3 -> 8530161.336 | FB200: =EZ200+(FC200-EZ200)/3*2 -> 8566283.32 | FC200: =BI101 -> 8602405.303 | FD200: =FC200+(FF200-FC200)/3 -> 8617980.43 | FE200: =FC200+(FF200-FC200)/3*2 -> 8633555.556 | FF200: =BJ101 -> 8649130.683 | FG200: =FF200+(FI200-FF200)/3 -> 8653653.095 | FH200: =FF200+(FI200-FF200)/3*2 -> 8658175.507 | FI200: =BK101 -> 8662697.919 | FJ200: =FI200+(FL200-FI200)/3 -> 8693659.612 | FK200: =FI200+(FL200-FI200)/3*2 -> 8724621.305 | FL200: =BL101 -> 8755582.998 | FM200: =FL200+(FO200-FL200)/3 -> 8791704.981 | FN200: =FL200+(FO200-FL200)/3*2 -> 8827826.965 | FO200: =BM101 -> 8863948.949 | FP200: =FO200+(FR200-FO200)/3 -> 8879524.075 | FQ200: =FO200+(FR200-FO200)/3*2 -> 8895099.202 | FR200: =BN101 -> 8910674.328
C201: 2 | D201: Avantel | E201: [Abonados] | F201: 0 | G201: =F201+(I201-F201)/3 -> 0 | H201: =F201+(I201-F201)/3*2 -> 0 | I201: 0 | J201: =I201+(L201-I201)/3 -> 0 | K201: =I201+(L201-I201)/3*2 -> 0 | L201: 0 | M201: =L201+(O201-L201)/3 -> 0 | N201: =L201+(O201-L201)/3*2 -> 0 | O201: 0 | P201: =O201+(R201-O201)/3 -> 0 | Q201: =O201+(R201-O201)/3*2 -> 0 | R201: 0 | S201: =R201+(U201-R201)/3 -> 0 | T201: =R201+(U201-R201)/3*2 -> 0 | U201: 0 | V201: =U201+(X201-U201)/3 -> 0 | W201: =U201+(X201-U201)/3*2 -> 0 | X201: 0 | Y201: =X201+(AA201-X201)/3 -> 0 | Z201: =X201+(AA201-X201)/3*2 -> 0 | AA201: 0 | AB201: =AA201+(AD201-AA201)/3 -> 52918 | AC201: =AA201+(AD201-AA201)/3*2 -> 105836 | AD201: 158754 | AE201: =AD201+(AG201-AD201)/3 -> 161367.3333 | AF201: =AD201+(AG201-AD201)/3*2 -> 163980.6667 | AG201: 166594 | AH201: =AG201+(AJ201-AG201)/3 -> 166718 | AI201: =AG201+(AJ201-AG201)/3*2 -> 166842 | AJ201: 166966 | AK201: =AJ201+(AM201-AJ201)/3 -> 169114 | AL201: =AJ201+(AM201-AJ201)/3*2 -> 171262 | AM201: 173410 | AN201: =AM201+(AP201-AM201)/3 -> 175456 | AO201: =AM201+(AP201-AM201)/3*2 -> 177502 | AP201: 179548 | AQ201: =AP201+(AS201-AP201)/3 -> 192352 | AR201: =AP201+(AS201-AP201)/3*2 -> 205156 | AS201: 217960 | AT201: =AS201+(AV201-AS201)/3 -> 237672.3333 | AU201: =AS201+(AV201-AS201)/3*2 -> 257384.6667 | AV201: 277097 | AW201: =AV201+(AY201-AV201)/3 -> 288368.3333 | AX201: =AV201+(AY201-AV201)/3*2 -> 299639.6667 | AY201: 310911 | AZ201: =AY201+(BB201-AY201)/3 -> 315876.3333 | BA201: =AY201+(BB201-AY201)/3*2 -> 320841.6667 | BB201: 325807 | BC201: =BB201+(BE201-BB201)/3 -> 330302 | BD201: =BB201+(BE201-BB201)/3*2 -> 334797 | BE201: 339292 | BF201: =BE201+(BH201-BE201)/3 -> 347960.3333 | BG201: =BE201+(BH201-BE201)/3*2 -> 356628.6667 | BH201: 365297 | BI201: =BH201+(BK201-BH201)/3 -> 373669 | BJ201: =BH201+(BK201-BH201)/3*2 -> 382041 | BK201: 390413 | BL201: =BK201+(BN201-BK201)/3 -> 384541 | BM201: =BK201+(BN201-BK201)/3*2 -> 378669 | BN201: 372797 | BO201: =BN201+(BQ201-BN201)/3 -> 367697 | BP201: =BN201+(BQ201-BN201)/3*2 -> 362597 | BQ201: 357497 | BR201: =BQ201+(BT201-BQ201)/3 -> 357812.3333 | BS201: =BQ201+(BT201-BQ201)/3*2 -> 358127.6667 | BT201: 358443 | BU201: =BT201+(BW201-BT201)/3 -> 382039 | BV201: =BT201+(BW201-BT201)/3*2 -> 405635 | BW201: 429231 | BX201: =BW201+(BZ201-BW201)/3 -> 446295.3333 | BY201: =BW201+(BZ201-BW201)/3*2 -> 463359.6667 | BZ201: 480424 | CA201: =BZ201+(CC201-BZ201)/3 -> 500519.6667 | CB201: =BZ201+(CC201-BZ201)/3*2 -> 520615.3333 | CC201: 540711 | CD201: =CC201+(CF201-CC201)/3 -> 557582.6667 | CE201: =CC201+(CF201-CC201)/3*2 -> 574454.3333 | CF201: 591326 | CG201: =CF201+(CI201-CF201)/3 -> 598829.3333 | CH201: =CF201+(CI201-CF201)/3*2 -> 606332.6667 | CI201: 613836 | CJ201: =CI201+(CL201-CI201)/3 -> 622782.6667 | CK201: =CI201+(CL201-CI201)/3*2 -> 631729.3333 | CL201: 640676 | CM201: =CL201+(CO201-CL201)/3 -> 645988.6667 | CN201: =CL201+(CO201-CL201)/3*2 -> 651301.3333 | CO201: 656614 | CP201: =CO201+(CR201-CO201)/3 -> 658081.3333 | CQ201: =CO201+(CR201-CO201)/3*2 -> 659548.6667 | CR201: 661016 | CS201: =CR201+(CU201-CR201)/3 -> 660319.6667 | CT201: =CR201+(CU201-CR201)/3*2 -> 659623.3333 | CU201: 658927 | CV201: =CU201+(CX201-CU201)/3 -> 638376.6667 | CW201: =CU201+(CX201-CU201)/3*2 -> 617826.3333 | CX201: 597276 | CY201: =CX201+(DA201-CX201)/3 -> 579575 | CZ201: =CX201+(DA201-CX201)/3*2 -> 561874 | DA201: 544173 | DB201: =DA201+(DD201-DA201)/3 -> 529285.3333 | DC201: =DA201+(DD201-DA201)/3*2 -> 514397.6667 | DD201: 499510 | DE201: =DD201+(DG201-DD201)/3 -> 489477 | DF201: =DD201+(DG201-DD201)/3*2 -> 479444 | DG201: 469411 | DH201: =DG201+(DJ201-DG201)/3 -> 450485.3278 | DI201: =DG201+(DJ201-DG201)/3*2 -> 431559.6556 | DJ201: 412633.9834 | DK201: =DJ201+(DM201-DJ201)/3 -> 422918.8979 | DL201: =DJ201+(DM201-DJ201)/3*2 -> 433203.8123 | DM201: 443488.7267 | DN201: =DM201+(DP201-DM201)/3 -> 458422.1715 | DO201: =DM201+(DP201-DM201)/3*2 -> 473355.6164 | DP201: 488289.0612 | DQ201: =DP201+(DS201-DP201)/3 -> 497150.8753 | DR201: =DP201+(DS201-DP201)/3*2 -> 506012.6895 | DS201: 514874.5036 | DT201: =DS201+(DV201-DS201)/3 -> 495948.8314 | DU201: =DS201+(DV201-DS201)/3*2 -> 477023.1592 | DV201: 458097.487 | DW201: =DV201+(DY201-DV201)/3 -> 468382.4014 | DX201: =DV201+(DY201-DV201)/3*2 -> 478667.3158 | DY201: 488952.2302 | DZ201: =DY201+(EB201-DY201)/3 -> 503885.6751 | EA201: =DY201+(EB201-DY201)/3*2 -> 518819.12 | EB201: 533752.5648 | EC201: =EB201+(EE201-EB201)/3 -> 542614.3789 | ED201: =EB201+(EE201-EB201)/3*2 -> 551476.193 | EE201: 560338.0071 | EF201: =EE201+(EH201-EE201)/3 -> 541412.335 | EG201: =EE201+(EH201-EE201)/3*2 -> 522486.6628 | EH201: 503560.9906 | EI201: =EH201+(EK201-EH201)/3 -> 513845.905 | EJ201: =EH201+(EK201-EH201)/3*2 -> 524130.8194 | EK201: 534415.7338 | EL201: =EK201+(EN201-EK201)/3 -> 549349.1787 | EM201: =EK201+(EN201-EK201)/3*2 -> 564282.6235 | EN201: 579216.0684 | EO201: =EN201+(EQ201-EN201)/3 -> 588077.8825 | EP201: =EN201+(EQ201-EN201)/3*2 -> 596939.6966 | EQ201: 605801.5107 | ER201: =EQ201+(ET201-EQ201)/3 -> 586875.8385 | ES201: =EQ201+(ET201-EQ201)/3*2 -> 567950.1663 | ET201: 549024.4942 | EU201: =ET201+(EW201-ET201)/3 -> 559309.4086 | EV201: =ET201+(EW201-ET201)/3*2 -> 569594.323 | EW201: 579879.2374 | EX201: =EW201+(EZ201-EW201)/3 -> 594812.6822 | EY201: =EW201+(EZ201-EW201)/3*2 -> 609746.1271 | EZ201: 624679.572 | FA201: =EZ201+(FC201-EZ201)/3 -> 633541.3861 | FB201: =EZ201+(FC201-EZ201)/3*2 -> 642403.2002 | FC201: 651265.0143 | FD201: =FC201+(FF201-FC201)/3 -> 632339.3421 | FE201: =FC201+(FF201-FC201)/3*2 -> 613413.6699 | FF201: 594487.9977 | FG201: =FF201+(FI201-FF201)/3 -> 604772.9121 | FH201: =FF201+(FI201-FF201)/3*2 -> 615057.8266 | FI201: 625342.741 | FJ201: =FI201+(FL201-FI201)/3 -> 640276.1858 | FK201: =FI201+(FL201-FI201)/3*2 -> 655209.6307 | FL201: 670143.0755 | FM201: =FL201+(FO201-FL201)/3 -> 679004.8896 | FN201: =FL201+(FO201-FL201)/3*2 -> 687866.7037 | FO201: 696728.5179 | FP201: =FO201+(FR201-FO201)/3 -> 677802.8457 | FQ201: =FO201+(FR201-FO201)/3*2 -> 658877.1735 | FR201: 639951.5013
C202: 3 | D202: Tigo | E202: [Abonados] | F202: 954561 | G202: 964636.3333 | H202: 974711.6667 | I202: 984787 | J202: 993789.6667 | K202: 1002792.333 | L202: 1011795 | M202: 1018440 | N202: 1025085 | O202: 1031730 | P202: 1039016.333 | Q202: 1046302.667 | R202: 1053589 | S202: 1059988 | T202: 1066387 | U202: 1072786 | V202: 1090578.667 | W202: 1108371.333 | X202: 1126164 | Y202: 1143972 | Z202: 1161780 | AA202: 1179588 | AB202: 1204157.667 | AC202: 1228727.333 | AD202: 1253297 | AE202: 1277040.667 | AF202: 1300784.333 | AG202: 1324528 | AH202: 1341639.333 | AI202: 1358750.667 | AJ202: 1375862 | AK202: 1388328.333 | AL202: 1400794.667 | AM202: 1413261 | AN202: 1427660.667 | AO202: 1442060.333 | AP202: 1456460 | AQ202: 1463891.333 | AR202: 1471322.667 | AS202: 1478754 | AT202: 1474574 | AU202: 1470394 | AV202: 1466214 | AW202: 1470357.333 | AX202: 1474500.667 | AY202: 1478644 | AZ202: 1482907.667 | BA202: 1487171.333 | BB202: 1491435 | BC202: 1467262.667 | BD202: 1443090.333 | BE202: 1418918 | BF202: 1403887.333 | BG202: 1388856.667 | BH202: 1373826 | BI202: 1386512 | BJ202: 1399198 | BK202: 1411884 | BL202: 1414730.333 | BM202: 1417576.667 | BN202: 1420423 | BO202: 1417657.667 | BP202: 1414892.333 | BQ202: 1412127 | BR202: 1424513.333 | BS202: 1436899.667 | BT202: 1449286 | BU202: 1465661.333 | BV202: 1482036.667 | BW202: 1498412 | BX202: 1520228 | BY202: 1542044 | BZ202: 1563860 | CA202: 1573620.333 | CB202: 1583380.667 | CC202: 1593141 | CD202: 1594050 | CE202: 1594959 | CF202: 1595868 | CG202: 1601547.333 | CH202: 1607226.667 | CI202: 1612906 | CJ202: 1625954.333 | CK202: 1639002.667 | CL202: 1652051 | CM202: 1677932.333 | CN202: 1703813.667 | CO202: 1729695 | CP202: 1739492.667 | CQ202: 1749290.333 | CR202: 1759088 | CS202: 1766387.667 | CT202: 1773687.333 | CU202: 1780987 | CV202: 1799736.333 | CW202: 1818485.667 | CX202: 1837235 | CY202: 1832678 | CZ202: 1828121 | DA202: 1823564 | DB202: 1784770 | DC202: 1745976 | DD202: 1707182 | DE202: 1718190 | DF202: 1729198 | DG202: 1740206 | DH202: 1758038.413 | DI202: 1775870.827 | DJ202: 1793703.24 | DK202: 1804845.395 | DL202: 1815987.551 | DM202: 1827129.706 | DN202: 1826021.313 | DO202: 1824912.919 | DP202: 1823804.525 | DQ202: 1832594.251 | DR202: 1841383.978 | DS202: 1850173.704 | DT202: 1868006.117 | DU202: 1885838.53 | DV202: 1903670.944 | DW202: 1914813.099 | DX202: 1925955.254 | DY202: 1937097.41 | DZ202: 1935989.016 | EA202: 1934880.623 | EB202: 1933772.229 | EC202: 1942561.955 | ED202: 1951351.681 | EE202: 1960141.407 | EF202: 1977973.82 | EG202: 1995806.234 | EH202: 2013638.647 | EI202: 2024780.802 | EJ202: 2035922.958 | EK202: 2047065.113 | EL202: 2045956.72 | EM202: 2044848.326 | EN202: 2043739.933 | EO202: 2052529.659 | EP202: 2061319.385 | EQ202: 2070109.111 | ER202: 2087941.524 | ES202: 2105773.937 | ET202: 2123606.351 | EU202: 2134748.506 | EV202: 2145890.661 | EW202: 2157032.817 | EX202: 2155924.423 | EY202: 2154816.03 | EZ202: 2153707.636 | FA202: 2162497.362 | FB202: 2171287.088 | FC202: 2180076.814 | FD202: 2197909.228 | FE202: 2215741.641 | FF202: 2233574.054 | FG202: 2244716.21 | FH202: 2255858.365 | FI202: 2267000.52 | FJ202: 2265892.127 | FK202: 2264783.733 | FL202: 2263675.34 | FM202: 2272465.066 | FN202: 2281254.792 | FO202: 2290044.518 | FP202: 2307876.931 | FQ202: 2325709.345 | FR202: 2343541.758
C203: 4 | D203: Movistar | E203: [Abonados] | F203: 2764249 | G203: 2795017 | H203: 2825785 | I203: 2856553 | J203: 2877221.667 | K203: 2897890.333 | L203: 2918559 | M203: 2932302.333 | N203: 2946045.667 | O203: 2959789 | P203: 2982667.333 | Q203: 3005545.667 | R203: 3028424 | S203: 3042080.667 | T203: 3055737.333 | U203: 3069394 | V203: 3109612.667 | W203: 3149831.333 | X203: 3190050 | Y203: 3214649.333 | Z203: 3239248.667 | AA203: 3263848 | AB203: 3276968 | AC203: 3290088 | AD203: 3303208 | AE203: 3297901.667 | AF203: 3292595.333 | AG203: 3287289 | AH203: 3291351 | AI203: 3295413 | AJ203: 3299475 | AK203: 3289082.667 | AL203: 3278690.333 | AM203: 3268298 | AN203: 3265493.333 | AO203: 3262688.667 | AP203: 3259884 | AQ203: 3257154 | AR203: 3254424 | AS203: 3251694 | AT203: 3252694 | AU203: 3253694 | AV203: 3254694 | AW203: 3274365.667 | AX203: 3294037.333 | AY203: 3313709 | AZ203: 3337652.333 | BA203: 3361595.667 | BB203: 3385539 | BC203: 3401105.333 | BD203: 3416671.667 | BE203: 3432238 | BF203: 3457055.333 | BG203: 3481872.667 | BH203: 3506690 | BI203: 3524741 | BJ203: 3542792 | BK203: 3560843 | BL203: 3570050 | BM203: 3579257 | BN203: 3588464 | BO203: 3601868 | BP203: 3615272 | BQ203: 3628676 | BR203: 3642980 | BS203: 3657284 | BT203: 3671588 | BU203: 3690663.333 | BV203: 3709738.667 | BW203: 3728814 | BX203: 3730170.667 | BY203: 3731527.333 | BZ203: 3732884 | CA203: 3726019.667 | CB203: 3719155.333 | CC203: 3712291 | CD203: 3732294 | CE203: 3752297 | CF203: 3772300 | CG203: 3788634.333 | CH203: 3804968.667 | CI203: 3821303 | CJ203: 3826029.333 | CK203: 3830755.667 | CL203: 3835482 | CM203: 3846643.333 | CN203: 3857804.667 | CO203: 3868966 | CP203: 3889773.333 | CQ203: 3910580.667 | CR203: 3931388 | CS203: 3952727.667 | CT203: 3974067.333 | CU203: 3995407 | CV203: 4022679.667 | CW203: 4049952.333 | CX203: 4077225 | CY203: 4098342 | CZ203: 4119459 | DA203: 4140576 | DB203: 4145261.667 | DC203: 4149947.333 | DD203: 4154633 | DE203: 4213860 | DF203: 4273087 | DG203: 4332314 | DH203: 4352522.022 | DI203: 4372730.043 | DJ203: 4392938.065 | DK203: 4410008.353 | DL203: 4427078.641 | DM203: 4444148.929 | DN203: 4473077.093 | DO203: 4502005.258 | DP203: 4530933.422 | DQ203: 4590058.233 | DR203: 4649183.043 | DS203: 4708307.854 | DT203: 4728548.132 | DU203: 4748788.411 | DV203: 4769028.689 | DW203: 4786098.977 | DX203: 4803169.265 | DY203: 4820239.553 | DZ203: 4849167.717 | EA203: 4878095.882 | EB203: 4907024.046 | EC203: 4966148.857 | ED203: 5025273.668 | EE203: 5084398.478 | EF203: 5104638.757 | EG203: 5124879.035 | EH203: 5145119.314 | EI203: 5162189.601 | EJ203: 5179259.889 | EK203: 5196330.177 | EL203: 5225258.342 | EM203: 5254186.506 | EN203: 5283114.671 | EO203: 5342239.481 | EP203: 5401364.292 | EQ203: 5460489.103 | ER203: 5480729.381 | ES203: 5500969.659 | ET203: 5521209.938 | EU203: 5538280.226 | EV203: 5555350.514 | EW203: 5572420.802 | EX203: 5601348.966 | EY203: 5630277.13 | EZ203: 5659205.295 | FA203: 5718330.106 | FB203: 5777454.916 | FC203: 5836579.727 | FD203: 5856820.005 | FE203: 5877060.284 | FF203: 5897300.562 | FG203: 5914370.85 | FH203: 5931441.138 | FI203: 5948511.426 | FJ203: 5977439.59 | FK203: 6006367.755 | FL203: 6035295.919 | FM203: 6094420.73 | FN203: 6153545.541 | FO203: 6212670.351 | FP203: 6232910.63 | FQ203: 6253150.908 | FR203: 6273391.186
C204: 5 | D204: ETB | E204: [Abonados] | F204: 0 | G204: 0 | H204: 0 | I204: 0 | J204: 0 | K204: 0 | L204: 0 | M204: 0 | N204: 0 | O204: 0 | P204: 0 | Q204: 0 | R204: 0 | S204: 0 | T204: 0 | U204: 0 | V204: 0 | W204: 0 | X204: 0 | Y204: 0 | Z204: 0 | AA204: 0 | AB204: 0 | AC204: 0 | AD204: 0 | AE204: 0 | AF204: 0 | AG204: 0 | AH204: 0 | AI204: 0 | AJ204: 0 | AK204: 0 | AL204: 0 | AM204: 0 | AN204: 5127 | AO204: 10254 | AP204: 15381 | AQ204: 22719 | AR204: 30057 | AS204: 37395 | AT204: 49597 | AU204: 61799 | AV204: 74001 | AW204: 94432.33333 | AX204: 114863.6667 | AY204: 135295 | AZ204: 154349 | BA204: 173403 | BB204: 192457 | BC204: 196238 | BD204: 200019 | BE204: 203800 | BF204: 213368.6667 | BG204: 222937.3333 | BH204: 232506 | BI204: 239917.6667 | BJ204: 247329.3333 | BK204: 254741 | BL204: 258925.6667 | BM204: 263110.3333 | BN204: 267295 | BO204: 261753.3333 | BP204: 256211.6667 | BQ204: 250670 | BR204: 241811.3333 | BS204: 232952.6667 | BT204: 224094 | BU204: 218912.6667 | BV204: 213731.3333 | BW204: 208550 | BX204: 211489.6667 | BY204: 214429.3333 | BZ204: 217369 | CA204: 224564.3333 | CB204: 231759.6667 | CC204: 238955 | CD204: 242884.6667 | CE204: 246814.3333 | CF204: 250744 | CG204: 244416 | CH204: 238088 | CI204: 231760 | CJ204: 220957 | CK204: 210154 | CL204: 199351 | CM204: 197745.6667 | CN204: 196140.3333 | CO204: 194535 | CP204: 197162 | CQ204: 199789 | CR204: 202416 | CS204: 191472.6667 | CT204: 180529.3333 | CU204: 169586 | CV204: 166582.3333 | CW204: 163578.6667 | CX204: 160575 | CY204: 167982 | CZ204: 175389 | DA204: 182796 | DB204: 178389 | DC204: 173982 | DD204: 169575 | DE204: 172851.6667 | DF204: 176128.3333 | DG204: 179405 | DH204: 173806.306 | DI204: 168207.6119 | DJ204: 162608.9179 | DK204: 167838.0486 | DL204: 173067.1792 | DM204: 178296.3099 | DN204: 174808.994 | DO204: 171321.6781 | DP204: 167834.3622 | DQ204: 162680.4312 | DR204: 157526.5002 | DS204: 152372.5691 | DT204: 148843.5972 | DU204: 145314.6253 | DV204: 141785.6533 | DW204: 147014.784 | DX204: 152243.9147 | DY204: 157473.0454 | DZ204: 153985.7294 | EA204: 150498.4135 | EB204: 147011.0976 | EC204: 141857.1666 | ED204: 136703.2356 | EE204: 131549.3046 | EF204: 128020.3326 | EG204: 124491.3607 | EH204: 120962.3888 | EI204: 126191.5194 | EJ204: 131420.6501 | EK204: 136649.7808 | EL204: 133162.4649 | EM204: 129675.149 | EN204: 126187.8331 | EO204: 121033.902 | EP204: 115879.971 | EQ204: 110726.04 | ER204: 107197.0681 | ES204: 103668.0961 | ET204: 100139.1242 | EU204: 105368.2549 | EV204: 110597.3856 | EW204: 115826.5162 | EX204: 112339.2003 | EY204: 108851.8844 | EZ204: 105364.5685 | FA204: 100210.6375 | FB204: 95056.70647 | FC204: 89902.77545 | FD204: 86373.80352 | FE204: 82844.83158 | FF204: 79315.85964 | FG204: 84544.99032 | FH204: 89774.121 | FI204: 95003.25167 | FJ204: 91515.93576 | FK204: 88028.61985 | FL204: 84541.30394 | FM204: 79387.37292 | FN204: 74233.44191 | FO204: 69079.51089 | FP204: 65550.53895 | FQ204: 62021.56702 | FR204: 58492.59508
C205: 6 | D205: EPM | E205: [Abonados] | F205: 0 | G205: 0 | H205: 0 | I205: 0 | J205: 0 | K205: 0 | L205: 0 | M205: 0 | N205: 0 | O205: 0 | P205: 0 | Q205: 0 | R205: 0 | S205: 0 | T205: 0 | U205: 0 | V205: 0 | W205: 0 | X205: 0 | Y205: 0 | Z205: 0 | AA205: 0 | AB205: 107481 | AC205: 214962 | AD205: 322443 | AE205: 297967.3333 | AF205: 273491.6667 | AG205: 249016 | AH205: 252896 | AI205: 256776 | AJ205: 260656 | AK205: 264141 | AL205: 267626 | AM205: 271111 | AN205: 271053 | AO205: 270995 | AP205: 270937 | AQ205: 260925.3333 | AR205: 250913.6667 | AS205: 240902 | AT205: 235015.6667 | AU205: 229129.3333 | AV205: 223243 | AW205: 217598 | AX205: 211953 | AY205: 206308 | AZ205: 198971.3333 | BA205: 191634.6667 | BB205: 184298 | BC205: 172612.3333 | BD205: 160926.6667 | BE205: 149241 | BF205: 142779.6667 | BG205: 136318.3333 | BH205: 129857 | BI205: 126728.3333 | BJ205: 123599.6667 | BK205: 120471 | BL205: 110908 | BM205: 101345 | BN205: 91782 | BO205: 91519.33333 | BP205: 91256.66667 | BQ205: 90994 | BR205: 90610.33333 | BS205: 90226.66667 | BT205: 89843 | BU205: 60812.33333 | BV205: 31781.66667 | BW205: 2751 | BX205: 1834 | BY205: 917 | BZ205: 0 | CA205: 0 | CB205: 0 | CC205: 0 | CD205: 0 | CE205: 0 | CF205: 0 | CG205: 0 | CH205: 0 | CI205: 0 | CJ205: 0 | CK205: 0 | CL205: 0 | CM205: 0 | CN205: 0 | CO205: 0 | CP205: 0 | CQ205: 0 | CR205: 0 | CS205: 0 | CT205: 0 | CU205: 0 | CV205: 0 | CW205: 0 | CX205: 0 | CY205: 0 | CZ205: 0 | DA205: 0 | DB205: 0 | DC205: 0 | DD205: 0 | DE205: 0 | DF205: 0 | DG205: 0 | DH205: 0 | DI205: 0 | DJ205: 0 | DK205: 0 | DL205: 0 | DM205: 0 | DN205: 0 | DO205: 0 | DP205: 0 | DQ205: 0 | DR205: 0 | DS205: 0 | DT205: 0 | DU205: 0 | DV205: 0 | DW205: 0 | DX205: 0 | DY205: 0 | DZ205: 0 | EA205: 0 | EB205: 0 | EC205: 0 | ED205: 0 | EE205: 0 | EF205: 0 | EG205: 0 | EH205: 0 | EI205: 0 | EJ205: 0 | EK205: 0 | EL205: 0 | EM205: 0 | EN205: 0 | EO205: 0 | EP205: 0 | EQ205: 0 | ER205: 0 | ES205: 0 | ET205: 0 | EU205: 0 | EV205: 0 | EW205: 0 | EX205: 0 | EY205: 0 | EZ205: 0 | FA205: 0 | FB205: 0 | FC205: 0 | FD205: 0 | FE205: 0 | FF205: 0 | FG205: 0 | FH205: 0 | FI205: 0 | FJ205: 0 | FK205: 0 | FL205: 0 | FM205: 0 | FN205: 0 | FO205: 0 | FP205: 0 | FQ205: 0 | FR205: 0
C206: 7 | D206: Uff | E206: [Abonados] | F206: 0 | G206: 0 | H206: 0 | I206: 0 | J206: 0 | K206: 0 | L206: 0 | M206: 0 | N206: 0 | O206: 0 | P206: 0 | Q206: 0 | R206: 0 | S206: 0 | T206: 0 | U206: 0 | V206: 0 | W206: 0 | X206: 0 | Y206: 0 | Z206: 0 | AA206: 0 | AB206: 0 | AC206: 0 | AD206: 0 | AE206: 0 | AF206: 0 | AG206: 0 | AH206: 0 | AI206: 0 | AJ206: 0 | AK206: 0 | AL206: 0 | AM206: 0 | AN206: 0 | AO206: 0 | AP206: 0 | AQ206: 0 | AR206: 0 | AS206: 0 | AT206: 0 | AU206: 0 | AV206: 0 | AW206: 0 | AX206: 0 | AY206: 0 | AZ206: 0 | BA206: 0 | BB206: 0 | BC206: 0 | BD206: 0 | BE206: 0 | BF206: 0 | BG206: 0 | BH206: 0 | BI206: 0 | BJ206: 0 | BK206: 0 | BL206: 0 | BM206: 0 | BN206: 0 | BO206: 0 | BP206: 0 | BQ206: 0 | BR206: 0 | BS206: 0 | BT206: 0 | BU206: 0 | BV206: 0 | BW206: 0 | BX206: 0 | BY206: 0 | BZ206: 0 | CA206: 0 | CB206: 0 | CC206: 0 | CD206: 0 | CE206: 0 | CF206: 0 | CG206: 0 | CH206: 0 | CI206: 0 | CJ206: 0 | CK206: 0 | CL206: 0 | CM206: 0 | CN206: 0 | CO206: 0 | CP206: 0 | CQ206: 0 | CR206: 0 | CS206: 0 | CT206: 0 | CU206: 0 | CV206: 0 | CW206: 0 | CX206: 0 | CY206: 0 | CZ206: 0 | DA206: 0 | DB206: 0 | DC206: 0 | DD206: 0 | DE206: 0 | DF206: 0 | DG206: 0 | DH206: 0 | DI206: 0 | DJ206: 0 | DK206: 0 | DL206: 0 | DM206: 0 | DN206: 0 | DO206: 0 | DP206: 0 | DQ206: 0 | DR206: 0 | DS206: 0 | DT206: 0 | DU206: 0 | DV206: 0 | DW206: 0 | DX206: 0 | DY206: 0 | DZ206: 0 | EA206: 0 | EB206: 0 | EC206: 0 | ED206: 0 | EE206: 0 | EF206: 0 | EG206: 0 | EH206: 0 | EI206: 0 | EJ206: 0 | EK206: 0 | EL206: 0 | EM206: 0 | EN206: 0 | EO206: 0 | EP206: 0 | EQ206: 0 | ER206: 0 | ES206: 0 | ET206: 0 | EU206: 0 | EV206: 0 | EW206: 0 | EX206: 0 | EY206: 0 | EZ206: 0 | FA206: 0 | FB206: 0 | FC206: 0 | FD206: 0 | FE206: 0 | FF206: 0 | FG206: 0 | FH206: 0 | FI206: 0 | FJ206: 0 | FK206: 0 | FL206: 0 | FM206: 0 | FN206: 0 | FO206: 0 | FP206: 0 | FQ206: 0 | FR206: 0
C207: 8 | D207: Exito | E207: [Abonados] | F207: 0 | G207: 0 | H207: 0 | I207: 0 | J207: 0 | K207: 0 | L207: 0 | M207: 0 | N207: 0 | O207: 0 | P207: 0 | Q207: 0 | R207: 0 | S207: 0 | T207: 0 | U207: 0 | V207: 0 | W207: 0 | X207: 0 | Y207: 0 | Z207: 0 | AA207: 0 | AB207: 0 | AC207: 0 | AD207: 0 | AE207: 0 | AF207: 0 | AG207: 0 | AH207: 0 | AI207: 0 | AJ207: 0 | AK207: 0 | AL207: 0 | AM207: 0 | AN207: 0 | AO207: 0 | AP207: 0 | AQ207: 0 | AR207: 0 | AS207: 0 | AT207: 0 | AU207: 0 | AV207: 0 | AW207: 0 | AX207: 0 | AY207: 0 | AZ207: 0 | BA207: 0 | BB207: 0 | BC207: 0 | BD207: 0 | BE207: 0 | BF207: 0 | BG207: 0 | BH207: 0 | BI207: 0 | BJ207: 0 | BK207: 0 | BL207: 0 | BM207: 0 | BN207: 0 | BO207: 0 | BP207: 0 | BQ207: 0 | BR207: 0 | BS207: 0 | BT207: 0 | BU207: 0 | BV207: 0 | BW207: 0 | BX207: 0 | BY207: 0 | BZ207: 0 | CA207: 0 | CB207: 0 | CC207: 0 | CD207: 0 | CE207: 0 | CF207: 0 | CG207: 0 | CH207: 0 | CI207: 0 | CJ207: 0 | CK207: 0 | CL207: 0 | CM207: 0 | CN207: 0 | CO207: 0 | CP207: 0 | CQ207: 0 | CR207: 0 | CS207: 0 | CT207: 0 | CU207: 0 | CV207: 0 | CW207: 0 | CX207: 0 | CY207: 0 | CZ207: 0 | DA207: 0 | DB207: 0 | DC207: 0 | DD207: 0 | DE207: 0 | DF207: 0 | DG207: 0 | DH207: 0 | DI207: 0 | DJ207: 0 | DK207: 0 | DL207: 0 | DM207: 0 | DN207: 0 | DO207: 0 | DP207: 0 | DQ207: 0 | DR207: 0 | DS207: 0 | DT207: 0 | DU207: 0 | DV207: 0 | DW207: 0 | DX207: 0 | DY207: 0 | DZ207: 0 | EA207: 0 | EB207: 0 | EC207: 0 | ED207: 0 | EE207: 0 | EF207: 0 | EG207: 0 | EH207: 0 | EI207: 0 | EJ207: 0 | EK207: 0 | EL207: 0 | EM207: 0 | EN207: 0 | EO207: 0 | EP207: 0 | EQ207: 0 | ER207: 0 | ES207: 0 | ET207: 0 | EU207: 0 | EV207: 0 | EW207: 0 | EX207: 0 | EY207: 0 | EZ207: 0 | FA207: 0 | FB207: 0 | FC207: 0 | FD207: 0 | FE207: 0 | FF207: 0 | FG207: 0 | FH207: 0 | FI207: 0 | FJ207: 0 | FK207: 0 | FL207: 0 | FM207: 0 | FN207: 0 | FO207: 0 | FP207: 0 | FQ207: 0 | FR207: 0
C208: 9 | D208: Virgin | E208: [Abonados] | F208: 0 | G208: 0 | H208: 0 | I208: 0 | J208: 0 | K208: 0 | L208: 0 | M208: 0 | N208: 0 | O208: 0 | P208: 0 | Q208: 0 | R208: 0 | S208: 0 | T208: 0 | U208: 0 | V208: 0 | W208: 0 | X208: 0 | Y208: 0 | Z208: 0 | AA208: 0 | AB208: 0 | AC208: 0 | AD208: 0 | AE208: 0 | AF208: 0 | AG208: 0 | AH208: 0 | AI208: 0 | AJ208: 0 | AK208: 0 | AL208: 0 | AM208: 0 | AN208: 0 | AO208: 0 | AP208: 0 | AQ208: 0 | AR208: 0 | AS208: 0 | AT208: 0 | AU208: 0 | AV208: 0 | AW208: 0 | AX208: 0 | AY208: 0 | AZ208: 0 | BA208: 0 | BB208: 0 | BC208: 0 | BD208: 0 | BE208: 0 | BF208: 0 | BG208: 0 | BH208: 0 | BI208: 0 | BJ208: 0 | BK208: 0 | BL208: 0 | BM208: 0 | BN208: 0 | BO208: 0 | BP208: 0 | BQ208: 0 | BR208: 0 | BS208: 0 | BT208: 0 | BU208: 0 | BV208: 0 | BW208: 0 | BX208: 0 | BY208: 0 | BZ208: 0 | CA208: 0 | CB208: 0 | CC208: 0 | CD208: 0 | CE208: 0 | CF208: 0 | CG208: 0 | CH208: 0 | CI208: 0 | CJ208: 0 | CK208: 0 | CL208: 0 | CM208: 0 | CN208: 0 | CO208: 0 | CP208: 0 | CQ208: 0 | CR208: 0 | CS208: 0 | CT208: 0 | CU208: 0 | CV208: 0 | CW208: 0 | CX208: 0 | CY208: 0 | CZ208: 0 | DA208: 0 | DB208: 0 | DC208: 0 | DD208: 0 | DE208: 0 | DF208: 0 | DG208: 0 | DH208: 0 | DI208: 0 | DJ208: 0 | DK208: 0 | DL208: 0 | DM208: 0 | DN208: 0 | DO208: 0 | DP208: 0 | DQ208: 0 | DR208: 0 | DS208: 0 | DT208: 0 | DU208: 0 | DV208: 0 | DW208: 0 | DX208: 0 | DY208: 0 | DZ208: 0 | EA208: 0 | EB208: 0 | EC208: 0 | ED208: 0 | EE208: 0 | EF208: 0 | EG208: 0 | EH208: 0 | EI208: 0 | EJ208: 0 | EK208: 0 | EL208: 0 | EM208: 0 | EN208: 0 | EO208: 0 | EP208: 0 | EQ208: 0 | ER208: 0 | ES208: 0 | ET208: 0 | EU208: 0 | EV208: 0 | EW208: 0 | EX208: 0 | EY208: 0 | EZ208: 0 | FA208: 0 | FB208: 0 | FC208: 0 | FD208: 0 | FE208: 0 | FF208: 0 | FG208: 0 | FH208: 0 | FI208: 0 | FJ208: 0 | FK208: 0 | FL208: 0 | FM208: 0 | FN208: 0 | FO208: 0 | FP208: 0 | FQ208: 0 | FR208: 0
C209: 10 | D209: Suma | E209: [Abonados] | F209: 0 | G209: 0 | H209: 0 | I209: 0 | J209: 0 | K209: 0 | L209: 0 | M209: 0 | N209: 0 | O209: 0 | P209: 0 | Q209: 0 | R209: 0 | S209: 0 | T209: 0 | U209: 0 | V209: 0 | W209: 0 | X209: 0 | Y209: 0 | Z209: 0 | AA209: 0 | AB209: 0 | AC209: 0 | AD209: 0 | AE209: 0 | AF209: 0 | AG209: 0 | AH209: 0 | AI209: 0 | AJ209: 0 | AK209: 0 | AL209: 0 | AM209: 0 | AN209: 0 | AO209: 0 | AP209: 0 | AQ209: 0 | AR209: 0 | AS209: 0 | AT209: 0 | AU209: 0 | AV209: 0 | AW209: 0 | AX209: 0 | AY209: 0 | AZ209: 0 | BA209: 0 | BB209: 0 | BC209: 0 | BD209: 0 | BE209: 0 | BF209: 0 | BG209: 0 | BH209: 0 | BI209: 0 | BJ209: 0 | BK209: 0 | BL209: 0 | BM209: 0 | BN209: 0 | BO209: 0 | BP209: 0 | BQ209: 0 | BR209: 0 | BS209: 0 | BT209: 0 | BU209: 0 | BV209: 0 | BW209: 0 | BX209: 0 | BY209: 0 | BZ209: 0 | CA209: 0 | CB209: 0 | CC209: 0 | CD209: 0 | CE209: 0 | CF209: 0 | CG209: 0 | CH209: 0 | CI209: 0 | CJ209: 0 | CK209: 0 | CL209: 0 | CM209: 0 | CN209: 0 | CO209: 0 | CP209: 0 | CQ209: 0 | CR209: 0 | CS209: 0 | CT209: 0 | CU209: 0 | CV209: 0 | CW209: 0 | CX209: 0 | CY209: 0 | CZ209: 0 | DA209: 0 | DB209: 0 | DC209: 0 | DD209: 0 | DE209: 0 | DF209: 0 | DG209: 0 | DH209: 0 | DI209: 0 | DJ209: 0 | DK209: 0 | DL209: 0 | DM209: 0 | DN209: 0 | DO209: 0 | DP209: 0 | DQ209: 0 | DR209: 0 | DS209: 0 | DT209: 0 | DU209: 0 | DV209: 0 | DW209: 0 | DX209: 0 | DY209: 0 | DZ209: 0 | EA209: 0 | EB209: 0 | EC209: 0 | ED209: 0 | EE209: 0 | EF209: 0 | EG209: 0 | EH209: 0 | EI209: 0 | EJ209: 0 | EK209: 0 | EL209: 0 | EM209: 0 | EN209: 0 | EO209: 0 | EP209: 0 | EQ209: 0 | ER209: 0 | ES209: 0 | ET209: 0 | EU209: 0 | EV209: 0 | EW209: 0 | EX209: 0 | EY209: 0 | EZ209: 0 | FA209: 0 | FB209: 0 | FC209: 0 | FD209: 0 | FE209: 0 | FF209: 0 | FG209: 0 | FH209: 0 | FI209: 0 | FJ209: 0 | FK209: 0 | FL209: 0 | FM209: 0 | FN209: 0 | FO209: 0 | FP209: 0 | FQ209: 0 | FR209: 0
C210: 11 | D210: Flash | E210: [Abonados] | F210: 0 | G210: 0 | H210: 0 | I210: 0 | J210: 0 | K210: 0 | L210: 0 | M210: 0 | N210: 0 | O210: 0 | P210: 0 | Q210: 0 | R210: 0 | S210: 0 | T210: 0 | U210: 0 | V210: 0 | W210: 0 | X210: 0 | Y210: 0 | Z210: 0 | AA210: 0 | AB210: 0 | AC210: 0 | AD210: 0 | AE210: 0 | AF210: 0 | AG210: 0 | AH210: 0 | AI210: 0 | AJ210: 0 | AK210: 0 | AL210: 0 | AM210: 0 | AN210: 0 | AO210: 0 | AP210: 0 | AQ210: 0 | AR210: 0 | AS210: 0 | AT210: 0 | AU210: 0 | AV210: 0 | AW210: 0 | AX210: 0 | AY210: 0 | AZ210: 0 | BA210: 0 | BB210: 0 | BC210: 0 | BD210: 0 | BE210: 0 | BF210: 0 | BG210: 0 | BH210: 0 | BI210: 0 | BJ210: 0 | BK210: 0 | BL210: 0 | BM210: 0 | BN210: 0 | BO210: 0 | BP210: 0 | BQ210: 0 | BR210: 0 | BS210: 0 | BT210: 0 | BU210: 0 | BV210: 0 | BW210: 0 | BX210: 0 | BY210: 0 | BZ210: 0 | CA210: 0 | CB210: 0 | CC210: 0 | CD210: 0 | CE210: 0 | CF210: 0 | CG210: 0 | CH210: 0 | CI210: 0 | CJ210: 0 | CK210: 0 | CL210: 0 | CM210: 0 | CN210: 0 | CO210: 0 | CP210: 0 | CQ210: 0 | CR210: 0 | CS210: 0 | CT210: 0 | CU210: 0 | CV210: 0 | CW210: 0 | CX210: 0 | CY210: 0 | CZ210: 0 | DA210: 0 | DB210: 0 | DC210: 0 | DD210: 0 | DE210: 0 | DF210: 0 | DG210: 0 | DH210: 0 | DI210: 0 | DJ210: 0 | DK210: 0 | DL210: 0 | DM210: 0 | DN210: 0 | DO210: 0 | DP210: 0 | DQ210: 0 | DR210: 0 | DS210: 0 | DT210: 0 | DU210: 0 | DV210: 0 | DW210: 0 | DX210: 0 | DY210: 0 | DZ210: 0 | EA210: 0 | EB210: 0 | EC210: 0 | ED210: 0 | EE210: 0 | EF210: 0 | EG210: 0 | EH210: 0 | EI210: 0 | EJ210: 0 | EK210: 0 | EL210: 0 | EM210: 0 | EN210: 0 | EO210: 0 | EP210: 0 | EQ210: 0 | ER210: 0 | ES210: 0 | ET210: 0 | EU210: 0 | EV210: 0 | EW210: 0 | EX210: 0 | EY210: 0 | EZ210: 0 | FA210: 0 | FB210: 0 | FC210: 0 | FD210: 0 | FE210: 0 | FF210: 0 | FG210: 0 | FH210: 0 | FI210: 0 | FJ210: 0 | FK210: 0 | FL210: 0 | FM210: 0 | FN210: 0 | FO210: 0 | FP210: 0 | FQ210: 0 | FR210: 0
C211: =+C210+1 -> 12 | D211: Setroc | E211: [Abonados]
C212: 13 | D212: Scarlet | E212: [Abonados]
C213: 14 | D213: Vilacom | E213: [Abonados]
C214: 15 | D214: Libre | E214: [Abonados]
C215: T | D215: Total | E215: [Abonados] | F215: =SUM(F200:F214) -> 8473911 | G215: =SUM(G200:G214) -> 8563346.667 | H215: 8652782.333 | I215: 8742218 | J215: 8818518 | K215: 8894818 | L215: 8971118 | M215: 9042773.667 | N215: 9114429.333 | O215: 9186085 | P215: 9268580.333 | Q215: 9351075.667 | R215: 9433571 | S215: 9486910.333 | T215: 9540249.667 | U215: 9593589 | V215: 9674244.667 | W215: 9754900.333 | X215: 9835556 | Y215: 9905181.667 | Z215: 9974807.333 | AA215: 10044433 | AB215: 10280380 | AC215: 10516327 | AD215: 10752274 | AE215: 10778713.67 | AF215: 10805153.33 | AG215: 10831593 | AH215: 10866314.67 | AI215: 10901036.33 | AJ215: 10935758 | AK215: 10937689.33 | AL215: 10939620.67 | AM215: 10941552 | AN215: 10975545.67 | AO215: 11009539.33 | AP215: 11043533 | AQ215: 11051246.67 | AR215: 11058960.33 | AS215: 11066674 | AT215: 11079975.33 | AU215: 11093276.67 | AV215: 11106578 | AW215: 11161718 | AX215: 11216858 | AY215: 11271998 | AZ215: 11330911.67 | BA215: 11389825.33 | BB215: 11448739 | BC215: 11459799.67 | BD215: 11470860.33 | BE215: 11481921 | BF215: 11551662 | BG215: 11621403 | BH215: 11691144 | BI215: 11781462 | BJ215: 11871780 | BK215: 11962098 | BL215: 12012309.33 | BM215: 12062520.67 | BN215: 12112732 | BO215: 12141400.67 | BP215: 12170069.33 | BQ215: 12198738 | BR215: 12248013 | BS215: =SUM(BS200:BS214) -> 12297288 | BT215: 12346563 | BU215: 12388349.33 | BV215: 12430135.67 | BW215: 12471922 | BX215: 12542209 | BY215: 12612496 | BZ215: 12682783 | CA215: 12711509.67 | CB215: 12740236.33 | CC215: 12768963 | CD215: 12844899.33 | CE215: 12920835.67 | CF215: 12996772 | CG215: 13053437.33 | CH215: 13110102.67 | CI215: 13166768 | CJ215: 13199263 | CK215: 13231758 | CL215: 13264253 | CM215: 13325041.67 | CN215: 13385830.33 | CO215: 13446619 | CP215: 13520692.33 | CQ215: 13594765.67 | CR215: 13668839 | CS215: 13730563 | CT215: 13792287 | CU215: 13854011 | CV215: 13910307.67 | CW215: 13966604.33 | CX215: 14022901 | CY215: 14040223 | CZ215: 14057545 | DA215: 14074867 | DB215: 14034127.67 | DC215: 13993388.33 | DD215: 13952649 | DE215: 14063503.33 | DF215: 14174357.67 | DG215: 14285212 | DH215: 14311754.77 | DI215: 14338297.54 | DJ215: 14364840.31 | DK215: 14413089.21 | DL215: 14461338.11 | DM215: 14509587.01 | DN215: 14579814.6 | DO215: 14650042.19 | DP215: 14720269.79 | DQ215: 14828014.19 | DR215: 14935758.59 | DS215: 15043503 | DT215: 15074696.17 | DU215: 15105889.35 | DV215: 15137082.52 | DW215: 15185331.42 | DX215: 15233580.32 | DY215: 15281829.22 | DZ215: 15352056.81 | EA215: 15422284.41 | EB215: 15492512 | EC215: 15600256.4 | ED215: 15708000.81 | EE215: =SUM(EE200:EE214) -> 15815745.21 | EF215: 15846938.38 | EG215: 15878131.56 | EH215: 15909324.73 | EI215: 15957573.63 | EJ215: 16005822.53 | EK215: 16054071.43 | EL215: 16124299.03 | EM215: 16194526.62 | EN215: 16264754.21 | EO215: 16372498.61 | EP215: 16480243.02 | EQ215: 16587987.42 | ER215: 16619180.6 | ES215: 16650373.77 | ET215: 16681566.94 | EU215: 16729815.84 | EV215: 16778064.75 | EW215: 16826313.65 | EX215: 16896541.24 | EY215: 16966768.83 | EZ215: 17036996.42 | FA215: 17144740.83 | FB215: 17252485.23 | FC215: 17360229.63 | FD215: 17391422.81 | FE215: 17422615.98 | FF215: 17453809.16 | FG215: 17502058.06 | FH215: 17550306.96 | FI215: 17598555.86 | FJ215: 17668783.45 | FK215: 17739011.04 | FL215: 17809238.64 | FM215: 17916983.04 | FN215: 18024727.44 | FO215: 18132471.85 | FP215: 18163665.02 | FQ215: 18194858.19 | FR215: 18226051.37
B216: Prepago
C217: 1 | D217: =L.oper.nom -> Comcel | E217: [Abonados] | F217: =J118 -> 24063690 | G217: =F217+(I217-F217)/3 -> 24082165.33 | H217: =F217+(I217-F217)/3*2 -> 24100640.67 | I217: =K118 -> 24119116 | J217: =I217+(L217-I217)/3 -> 24190912.33 | K217: =I217+(L217-I217)/3*2 -> 24262708.67 | L217: =L118 -> 24334505 | M217: =L217+(O217-L217)/3 -> 24478748.33 | N217: =L217+(O217-L217)/3*2 -> 24622991.67 | O217: =M118 -> 24767235 | P217: =O217+(R217-O217)/3 -> 24851331.67 | Q217: =O217+(R217-O217)/3*2 -> 24935428.33 | R217: =N118 -> 25019525 | S217: =R217+(U217-R217)/3 -> 24082836.33 | T217: =R217+(U217-R217)/3*2 -> 23146147.67 | U217: =O118 -> 22209459 | V217: =U217+(X217-U217)/3 -> 22234923.67 | W217: =U217+(X217-U217)/3*2 -> 22260388.33 | X217: =P118 -> 22285853 | Y217: =X217+(AA217-X217)/3 -> 22444815 | Z217: =X217+(AA217-X217)/3*2 -> 22603777 | AA217: =Q118 -> 22762739 | AB217: =AA217+(AD217-AA217)/3 -> 22929401.67 | AC217: =AA217+(AD217-AA217)/3*2 -> 23096064.33 | AD217: =R118 -> 23262727 | AE217: =AD217+(AG217-AD217)/3 -> 23310349 | AF217: =AD217+(AG217-AD217)/3*2 -> 23357971 | AG217: =S118 -> 23405593 | AH217: =AG217+(AJ217-AG217)/3 -> 23362470 | AI217: =AG217+(AJ217-AG217)/3*2 -> 23319347 | AJ217: =T118 -> 23276224 | AK217: =AJ217+(AM217-AJ217)/3 -> 23342597 | AL217: =AJ217+(AM217-AJ217)/3*2 -> 23408970 | AM217: =U118 -> 23475343 | AN217: =AM217+(AP217-AM217)/3 -> 23621700.67 | AO217: =AM217+(AP217-AM217)/3*2 -> 23768058.33 | AP217: =V118 -> 23914416 | AQ217: =AP217+(AS217-AP217)/3 -> 23940827 | AR217: =AP217+(AS217-AP217)/3*2 -> 23967238 | AS217: =W118 -> 23993649 | AT217: =AS217+(AV217-AS217)/3 -> 23848691.33 | AU217: =AS217+(AV217-AS217)/3*2 -> 23703733.67 | AV217: =X118 -> 23558776 | AW217: =AV217+(AY217-AV217)/3 -> 23407157.67 | AX217: =AV217+(AY217-AV217)/3*2 -> 23255539.33 | AY217: =Y118 -> 23103921 | AZ217: =AY217+(BB217-AY217)/3 -> 23103921 | BA217: =AY217+(BB217-AY217)/3*2 -> 23103921 | BB217: =Z118 -> 23103921 | BC217: =BB217+(BE217-BB217)/3 -> 22869757 | BD217: =BB217+(BE217-BB217)/3*2 -> 22635593 | BE217: =AA118 -> 22401429 | BF217: =BE217+(BH217-BE217)/3 -> 22326475.33 | BG217: =BE217+(BH217-BE217)/3*2 -> 22251521.67 | BH217: =AB118 -> 22176568 | BI217: =BH217+(BK217-BH217)/3 -> 22206075.33 | BJ217: =BH217+(BK217-BH217)/3*2 -> 22235582.67 | BK217: =AC118 -> 22265090 | BL217: =BK217+(BN217-BK217)/3 -> 22370697.67 | BM217: =BK217+(BN217-BK217)/3*2 -> 22476305.33 | BN217: =AD118 -> 22581913 | BO217: =BN217+(BQ217-BN217)/3 -> 22619398.67 | BP217: =BN217+(BQ217-BN217)/3*2 -> 22656884.33 | BQ217: =AE118 -> 22694370 | BR217: =BQ217+(BT217-BQ217)/3 -> 22686786 | BS217: =BQ217+(BT217-BQ217)/3*2 -> 22679202 | BT217: =AF118 -> 22671618 | BU217: =BT217+(BW217-BT217)/3 -> 22617144.67 | BV217: =BT217+(BW217-BT217)/3*2 -> 22562671.33 | BW217: =AG118 -> 22508198 | BX217: =BW217+(BZ217-BW217)/3 -> 22560327 | BY217: =BW217+(BZ217-BW217)/3*2 -> 22612456 | BZ217: =AH118 -> 22664585 | CA217: =BZ217+(CC217-BZ217)/3 -> 22682131 | CB217: =BZ217+(CC217-BZ217)/3*2 -> 22699677 | CC217: =AI118 -> 22717223 | CD217: =CC217+(CF217-CC217)/3 -> 22605231.33 | CE217: =CC217+(CF217-CC217)/3*2 -> 22493239.67 | CF217: =AJ118 -> 22381248 | CG217: =CF217+(CI217-CF217)/3 -> 22369473.67 | CH217: =CF217+(CI217-CF217)/3*2 -> 22357699.33 | CI217: =AK118 -> 22345925 | CJ217: =CI217+(CL217-CI217)/3 -> 22478670 | CK217: =CI217+(CL217-CI217)/3*2 -> 22611415 | CL217: =AL118 -> 22744160 | CM217: =CL217+(CO217-CL217)/3 -> 22792870.67 | CN217: =CL217+(CO217-CL217)/3*2 -> 22841581.33 | CO217: =AM118 -> 22890292 | CP217: =CO217+(CR217-CO217)/3 -> 22936590.67 | CQ217: =CO217+(CR217-CO217)/3*2 -> 22982889.33 | CR217: =AN118 -> 23029188 | CS217: =CR217+(CU217-CR217)/3 -> 23128663.33 | CT217: =CR217+(CU217-CR217)/3*2 -> 23228138.67 | CU217: =AO118 -> 23327614 | CV217: =CU217+(CX217-CU217)/3 -> 23469569.33 | CW217: =CU217+(CX217-CU217)/3*2 -> 23611524.67 | CX217: =AP118 -> 23753480 | CY217: =CX217+(DA217-CX217)/3 -> 23788955.33 | CZ217: =CX217+(DA217-CX217)/3*2 -> 23824430.67 | DA217: =AQ118 -> 23859906 | DB217: =DA217+(DD217-DA217)/3 -> 23944212.33 | DC217: =DA217+(DD217-DA217)/3*2 -> 24028518.67 | DD217: =AR118 -> 24112825 | DE217: =DD217+(DG217-DD217)/3 -> 24228518 | DF217: =DD217+(DG217-DD217)/3*2 -> 24344211 | DG217: =AS118 -> 24459904 | DH217: =DG217+(DJ217-DG217)/3 -> 24298497.28 | DI217: =DG217+(DJ217-DG217)/3*2 -> 24137090.56 | DJ217: =AT118 -> 23975683.84 | DK217: =DJ217+(DM217-DJ217)/3 -> 23735794.98 | DL217: =DJ217+(DM217-DJ217)/3*2 -> 23495906.13 | DM217: =AU118 -> 23256017.28 | DN217: =DM217+(DP217-DM217)/3 -> 23435074.57 | DO217: =DM217+(DP217-DM217)/3*2 -> 23614131.85 | DP217: =AV118 -> 23793189.14 | DQ217: =DP217+(DS217-DP217)/3 -> 23951171.16 | DR217: =DP217+(DS217-DP217)/3*2 -> 24109153.18 | DS217: =AW118 -> 24267135.2 | DT217: =DS217+(DV217-DS217)/3 -> 24105728.48 | DU217: =DS217+(DV217-DS217)/3*2 -> 23944321.76 | DV217: =AX118 -> 23782915.04 | DW217: =DV217+(DY217-DV217)/3 -> 23543026.18 | DX217: =DV217+(DY217-DV217)/3*2 -> 23303137.33 | DY217: =AY118 -> 23063248.48 | DZ217: =DY217+(EB217-DY217)/3 -> 23242305.77 | EA217: =DY217+(EB217-DY217)/3*2 -> 23421363.05 | EB217: =AZ118 -> 23600420.34 | EC217: =EB217+(EE217-EB217)/3 -> 23758402.36 | ED217: =EB217+(EE217-EB217)/3*2 -> 23916384.38 | EE217: =BA118 -> 24074366.4 | EF217: =EE217+(EH217-EE217)/3 -> 23912959.68 | EG217: =EE217+(EH217-EE217)/3*2 -> 23751552.96 | EH217: =BB118 -> 23590146.24 | EI217: =EH217+(EK217-EH217)/3 -> 23350257.38 | EJ217: =EH217+(EK217-EH217)/3*2 -> 23110368.53 | EK217: =BC118 -> 22870479.68 | EL217: =EK217+(EN217-EK217)/3 -> 23049536.97 | EM217: =EK217+(EN217-EK217)/3*2 -> 23228594.26 | EN217: =BD118 -> 23407651.54 | EO217: =EN217+(EQ217-EN217)/3 -> 23565633.56 | EP217: =EN217+(EQ217-EN217)/3*2 -> 23723615.58 | EQ217: =BE118 -> 23881597.6 | ER217: =EQ217+(ET217-EQ217)/3 -> 23720190.88 | ES217: =EQ217+(ET217-EQ217)/3*2 -> 23558784.16 | ET217: =BF118 -> 23397377.44 | EU217: =ET217+(EW217-ET217)/3 -> 23157488.58 | EV217: =ET217+(EW217-ET217)/3*2 -> 22917599.73 | EW217: =BG118 -> 22677710.88 | EX217: =EW217+(EZ217-EW217)/3 -> 22856768.17 | EY217: =EW217+(EZ217-EW217)/3*2 -> 23035825.46 | EZ217: =BH118 -> 23214882.74 | FA217: =EZ217+(FC217-EZ217)/3 -> 23372864.76 | FB217: =EZ217+(FC217-EZ217)/3*2 -> 23530846.78 | FC217: =BI118 -> 23688828.8 | FD217: =FC217+(FF217-FC217)/3 -> 23527422.08 | FE217: =FC217+(FF217-FC217)/3*2 -> 23366015.36 | FF217: =BJ118 -> 23204608.64 | FG217: =FF217+(FI217-FF217)/3 -> 22964719.79 | FH217: =FF217+(FI217-FF217)/3*2 -> 22724830.93 | FI217: =BK118 -> 22484942.08 | FJ217: =FI217+(FL217-FI217)/3 -> 22663999.37 | FK217: =FI217+(FL217-FI217)/3*2 -> 22843056.66 | FL217: =BL118 -> 23022113.95 | FM217: =FL217+(FO217-FL217)/3 -> 23180095.96 | FN217: =FL217+(FO217-FL217)/3*2 -> 23338077.98 | FO217: =BM118 -> 23496060 | FP217: =FO217+(FR217-FO217)/3 -> 23334653.28 | FQ217: =FO217+(FR217-FO217)/3*2 -> 23173246.56 | FR217: =BN118 -> 23011839.84
C218: 2 | D218: Avantel | E218: [Abonados] | F218: 0 | G218: =F218+(I218-F218)/3 -> 0 | H218: =F218+(I218-F218)/3*2 -> 0 | I218: 0 | J218: =I218+(L218-I218)/3 -> 0 | K218: =I218+(L218-I218)/3*2 -> 0 | L218: 0 | M218: =L218+(O218-L218)/3 -> 0 | N218: =L218+(O218-L218)/3*2 -> 0 | O218: 0 | P218: =O218+(R218-O218)/3 -> 0 | Q218: =O218+(R218-O218)/3*2 -> 0 | R218: 0 | S218: =R218+(U218-R218)/3 -> 0 | T218: =R218+(U218-R218)/3*2 -> 0 | U218: 0 | V218: =U218+(X218-U218)/3 -> 57000 | W218: =U218+(X218-U218)/3*2 -> 114000 | X218: 171000 | Y218: =X218+(AA218-X218)/3 -> 174578 | Z218: =X218+(AA218-X218)/3*2 -> 178156 | AA218: 181734 | AB218: =AA218+(AD218-AA218)/3 -> 132670.3333 | AC218: =AA218+(AD218-AA218)/3*2 -> 83606.66667 | AD218: 34543 | AE218: =AD218+(AG218-AD218)/3 -> 35300.66667 | AF218: =AD218+(AG218-AD218)/3*2 -> 36058.33333 | AG218: 36816 | AH218: =AG218+(AJ218-AG218)/3 -> 37563 | AI218: =AG218+(AJ218-AG218)/3*2 -> 38310 | AJ218: 39057 | AK218: =AJ218+(AM218-AJ218)/3 -> 49977.66667 | AL218: =AJ218+(AM218-AJ218)/3*2 -> 60898.33333 | AM218: 71819 | AN218: =AM218+(AP218-AM218)/3 -> 77315 | AO218: =AM218+(AP218-AM218)/3*2 -> 82811 | AP218: 88307 | AQ218: =AP218+(AS218-AP218)/3 -> 90533.33333 | AR218: =AP218+(AS218-AP218)/3*2 -> 92759.66667 | AS218: 94986 | AT218: =AS218+(AV218-AS218)/3 -> 115482 | AU218: =AS218+(AV218-AS218)/3*2 -> 135978 | AV218: 156474 | AW218: =AV218+(AY218-AV218)/3 -> 183999 | AX218: =AV218+(AY218-AV218)/3*2 -> 211524 | AY218: 239049 | AZ218: =AY218+(BB218-AY218)/3 -> 283069.3333 | BA218: =AY218+(BB218-AY218)/3*2 -> 327089.6667 | BB218: 371110 | BC218: =BB218+(BE218-BB218)/3 -> 398903.3333 | BD218: =BB218+(BE218-BB218)/3*2 -> 426696.6667 | BE218: 454490 | BF218: =BE218+(BH218-BE218)/3 -> 506905 | BG218: =BE218+(BH218-BE218)/3*2 -> 559320 | BH218: 611735 | BI218: =BH218+(BK218-BH218)/3 -> 643940 | BJ218: =BH218+(BK218-BH218)/3*2 -> 676145 | BK218: 708350 | BL218: =BK218+(BN218-BK218)/3 -> 749741.6667 | BM218: =BK218+(BN218-BK218)/3*2 -> 791133.3333 | BN218: 832525 | BO218: =BN218+(BQ218-BN218)/3 -> 886090.6667 | BP218: =BN218+(BQ218-BN218)/3*2 -> 939656.3333 | BQ218: 993222 | BR218: =BQ218+(BT218-BQ218)/3 -> 1016819.667 | BS218: =BQ218+(BT218-BQ218)/3*2 -> 1040417.333 | BT218: 1064015 | BU218: =BT218+(BW218-BT218)/3 -> 1172781.333 | BV218: =BT218+(BW218-BT218)/3*2 -> 1281547.667 | BW218: 1390314 | BX218: =BW218+(BZ218-BW218)/3 -> 1427542.667 | BY218: =BW218+(BZ218-BW218)/3*2 -> 1464771.333 | BZ218: 1502000 | CA218: =BZ218+(CC218-BZ218)/3 -> 1492942.333 | CB218: =BZ218+(CC218-BZ218)/3*2 -> 1483884.667 | CC218: 1474827 | CD218: =CC218+(CF218-CC218)/3 -> 1470529.333 | CE218: =CC218+(CF218-CC218)/3*2 -> 1466231.667 | CF218: 1461934 | CG218: =CF218+(CI218-CF218)/3 -> 1477022 | CH218: =CF218+(CI218-CF218)/3*2 -> 1492110 | CI218: 1507198 | CJ218: =CI218+(CL218-CI218)/3 -> 1531779.333 | CK218: =CI218+(CL218-CI218)/3*2 -> 1556360.667 | CL218: 1580942 | CM218: =CL218+(CO218-CL218)/3 -> 1597304 | CN218: =CL218+(CO218-CL218)/3*2 -> 1613666 | CO218: 1630028 | CP218: =CO218+(CR218-CO218)/3 -> 1643812 | CQ218: =CO218+(CR218-CO218)/3*2 -> 1657596 | CR218: 1671380 | CS218: =CR218+(CU218-CR218)/3 -> 1686639 | CT218: =CR218+(CU218-CR218)/3*2 -> 1701898 | CU218: 1717157 | CV218: =CU218+(CX218-CU218)/3 -> 1713405 | CW218: =CU218+(CX218-CU218)/3*2 -> 1709653 | CX218: 1705901 | CY218: =CX218+(DA218-CX218)/3 -> 1706133 | CZ218: =CX218+(DA218-CX218)/3*2 -> 1706365 | DA218: 1706597 | DB218: =DA218+(DD218-DA218)/3 -> 1463715 | DC218: =DA218+(DD218-DA218)/3*2 -> 1220833 | DD218: 977951 | DE218: =DD218+(DG218-DD218)/3 -> 959068 | DF218: =DD218+(DG218-DD218)/3*2 -> 940185 | DG218: 921302 | DH218: =DG218+(DJ218-DG218)/3 -> 926458.293 | DI218: =DG218+(DJ218-DG218)/3*2 -> 931614.5859 | DJ218: 936770.8789 | DK218: =DJ218+(DM218-DJ218)/3 -> 945371.3109 | DL218: =DJ218+(DM218-DJ218)/3*2 -> 953971.743 | DM218: 962572.175 | DN218: =DM218+(DP218-DM218)/3 -> 913558.208 | DO218: =DM218+(DP218-DM218)/3*2 -> 864544.2409 | DP218: 815530.2739 | DQ218: =DP218+(DS218-DP218)/3 -> 936896.8311 | DR218: =DP218+(DS218-DP218)/3*2 -> 1058263.388 | DS218: 1179629.945 | DT218: =DS218+(DV218-DS218)/3 -> 1184786.238 | DU218: =DS218+(DV218-DS218)/3*2 -> 1189942.531 | DV218: 1195098.824 | DW218: =DV218+(DY218-DV218)/3 -> 1203699.256 | DX218: =DV218+(DY218-DV218)/3*2 -> 1212299.688 | DY218: 1220900.12 | DZ218: =DY218+(EB218-DY218)/3 -> 1171886.153 | EA218: =DY218+(EB218-DY218)/3*2 -> 1122872.186 | EB218: 1073858.219 | EC218: =EB218+(EE218-EB218)/3 -> 1195224.777 | ED218: =EB218+(EE218-EB218)/3*2 -> 1316591.334 | EE218: 1437957.891 | EF218: =EE218+(EH218-EE218)/3 -> 1443114.184 | EG218: =EE218+(EH218-EE218)/3*2 -> 1448270.477 | EH218: 1453426.77 | EI218: =EH218+(EK218-EH218)/3 -> 1462027.202 | EJ218: =EH218+(EK218-EH218)/3*2 -> 1470627.634 | EK218: 1479228.066 | EL218: =EK218+(EN218-EK218)/3 -> 1430214.099 | EM218: =EK218+(EN218-EK218)/3*2 -> 1381200.132 | EN218: 1332186.165 | EO218: =EN218+(EQ218-EN218)/3 -> 1453552.722 | EP218: =EN218+(EQ218-EN218)/3*2 -> 1574919.279 | EQ218: 1696285.836 | ER218: =EQ218+(ET218-EQ218)/3 -> 1701442.129 | ES218: =EQ218+(ET218-EQ218)/3*2 -> 1706598.422 | ET218: 1711754.715 | EU218: =ET218+(EW218-ET218)/3 -> 1720355.147 | EV218: =ET218+(EW218-ET218)/3*2 -> 1728955.579 | EW218: 1737556.011 | EX218: =EW218+(EZ218-EW218)/3 -> 1688542.044 | EY218: =EW218+(EZ218-EW218)/3*2 -> 1639528.077 | EZ218: 1590514.11 | FA218: =EZ218+(FC218-EZ218)/3 -> 1711880.667 | FB218: =EZ218+(FC218-EZ218)/3*2 -> 1833247.225 | FC218: 1954613.782 | FD218: =FC218+(FF218-FC218)/3 -> 1959770.075 | FE218: =FC218+(FF218-FC218)/3*2 -> 1964926.368 | FF218: 1970082.661 | FG218: =FF218+(FI218-FF218)/3 -> 1978683.093 | FH218: =FF218+(FI218-FF218)/3*2 -> 1987283.525 | FI218: 1995883.957 | FJ218: =FI218+(FL218-FI218)/3 -> 1946869.99 | FK218: =FI218+(FL218-FI218)/3*2 -> 1897856.023 | FL218: 1848842.056 | FM218: =FL218+(FO218-FL218)/3 -> 1970208.613 | FN218: =FL218+(FO218-FL218)/3*2 -> 2091575.17 | FO218: 2212941.727 | FP218: =FO218+(FR218-FO218)/3 -> 2218098.02 | FQ218: =FO218+(FR218-FO218)/3*2 -> 2223254.313 | FR218: 2228410.606
C219: 3 | D219: Tigo | E219: [Abonados] | F219: 4787055 | G219: 4826203.333 | H219: 4865351.667 | I219: 4904500 | J219: 4955891.667 | K219: 5007283.333 | L219: 5058675 | M219: 5146880 | N219: 5235085 | O219: 5323290 | P219: 5402241.667 | Q219: 5481193.333 | R219: 5560145 | S219: 5634218.333 | T219: 5708291.667 | U219: 5782365 | V219: 5820776 | W219: 5859187 | X219: 5897598 | Y219: 5969279.667 | Z219: 6040961.333 | AA219: 6112643 | AB219: 6204075.333 | AC219: 6295507.667 | AD219: 6386940 | AE219: 6468703 | AF219: 6550466 | AG219: 6632229 | AH219: 6736227 | AI219: 6840225 | AJ219: 6944223 | AK219: 7055785.333 | AL219: 7167347.667 | AM219: 7278910 | AN219: 7417747.667 | AO219: 7556585.333 | AP219: 7695423 | AQ219: 7868388.333 | AR219: 8041353.667 | AS219: 8214319 | AT219: 8362391 | AU219: 8510463 | AV219: 8658535 | AW219: 8750342.333 | AX219: 8842149.667 | AY219: 8933957 | AZ219: 9096839 | BA219: 9259721 | BB219: 9422603 | BC219: 9488440.333 | BD219: 9554277.667 | BE219: 9620115 | BF219: 9731545.667 | BG219: 9842976.333 | BH219: 9954407 | BI219: 9820996.667 | BJ219: 9687586.333 | BK219: 9554176 | BL219: 9322377.333 | BM219: 9090578.667 | BN219: 8858780 | BO219: 8906653.333 | BP219: 8954526.667 | BQ219: 9002400 | BR219: 9132265.333 | BS219: 9262130.667 | BT219: 9391996 | BU219: 9478008.667 | BV219: 9564021.333 | BW219: 9650034 | BX219: 9725839.667 | BY219: 9801645.333 | BZ219: 9877451 | CA219: 9908492.667 | CB219: 9939534.333 | CC219: 9970576 | CD219: 9969514.333 | CE219: 9968452.667 | CF219: 9967391 | CG219: 9981145 | CH219: 9994899 | CI219: 10008653 | CJ219: 10059249 | CK219: 10109845 | CL219: 10160441 | CM219: 10049014.33 | CN219: 9937587.667 | CO219: 9826161 | CP219: 9871813.333 | CQ219: 9917465.667 | CR219: 9963118 | CS219: 9796086.667 | CT219: 9629055.333 | CU219: 9462024 | CV219: 9576129 | CW219: 9690234 | CX219: 9804339 | CY219: 9864432.667 | CZ219: 9924526.333 | DA219: 9984620 | DB219: 9766362.667 | DC219: 9548105.333 | DD219: 9329848 | DE219: 9471711 | DF219: 9613574 | DG219: 9755437 | DH219: 9831809.738 | DI219: 9908182.477 | DJ219: 9984555.215 | DK219: 10006029.4 | DL219: 10027503.59 | DM219: 10048977.78 | DN219: 10085772.25 | DO219: 10122566.72 | DP219: 10159361.18 | DQ219: 10243518.23 | DR219: 10327675.28 | DS219: 10411832.33 | DT219: 10488205.07 | DU219: 10564577.81 | DV219: 10640950.55 | DW219: 10662424.74 | DX219: 10683898.92 | DY219: 10705373.11 | DZ219: 10742167.58 | EA219: 10778962.05 | EB219: 10815756.52 | EC219: 10899913.57 | ED219: 10984070.62 | EE219: 11068227.67 | EF219: 11144600.41 | EG219: 11220973.14 | EH219: 11297345.88 | EI219: 11318820.07 | EJ219: 11340294.26 | EK219: 11361768.45 | EL219: 11398562.91 | EM219: 11435357.38 | EN219: 11472151.85 | EO219: 11556308.9 | EP219: 11640465.95 | EQ219: 11724623 | ER219: 11800995.74 | ES219: 11877368.48 | ET219: 11953741.22 | EU219: 11975215.4 | EV219: 11996689.59 | EW219: 12018163.78 | EX219: 12054958.25 | EY219: 12091752.72 | EZ219: 12128547.19 | FA219: 12212704.24 | FB219: 12296861.29 | FC219: 12381018.34 | FD219: 12457391.07 | FE219: 12533763.81 | FF219: 12610136.55 | FG219: 12631610.74 | FH219: 12653084.93 | FI219: 12674559.11 | FJ219: 12711353.58 | FK219: 12748148.05 | FL219: 12784942.52 | FM219: 12869099.57 | FN219: 12953256.62 | FO219: 13037413.67 | FP219: 13113786.41 | FQ219: 13190159.15 | FR219: 13266531.89
C220: 4 | D220: Movistar | E220: [Abonados] | F220: 8626823 | G220: 8776689.667 | H220: 8926556.333 | I220: 9076423 | J220: 9197607.667 | K220: 9318792.333 | L220: 9439977 | M220: 9308375.333 | N220: 9176773.667 | O220: 9045172 | P220: 8921850.667 | Q220: 8798529.333 | R220: 8675208 | S220: 8599093.667 | T220: 8522979.333 | U220: 8446865 | V220: 8461274.333 | W220: 8475683.667 | X220: 8490093 | Y220: 8449942 | Z220: 8409791 | AA220: 8369640 | AB220: 8519268.667 | AC220: 8668897.333 | AD220: 8818526 | AE220: 8905347 | AF220: 8992168 | AG220: 9078989 | AH220: 9046806.667 | AI220: 9014624.333 | AJ220: 8982442 | AK220: 9092713 | AL220: 9202984 | AM220: 9313255 | AN220: 9403041.333 | AO220: 9492827.667 | AP220: 9582614 | AQ220: 9599483 | AR220: 9616352 | AS220: 9633221 | AT220: 9475004.333 | AU220: 9316787.667 | AV220: 9158571 | AW220: 9219663 | AX220: 9280755 | AY220: 9341847 | AZ220: 9398199.667 | BA220: 9454552.333 | BB220: 9510905 | BC220: 9548963.667 | BD220: 9587022.333 | BE220: 9625081 | BF220: 9660132.667 | BG220: 9695184.333 | BH220: 9730236 | BI220: 9826485 | BJ220: 9922734 | BK220: 10018983 | BL220: 10058257.67 | BM220: 10097532.33 | BN220: 10136807 | BO220: 10050685.33 | BP220: 9964563.667 | BQ220: 9878442 | BR220: 9951233.333 | BS220: 10024024.67 | BT220: 10096816 | BU220: 10198238 | BV220: 10299660 | BW220: 10401082 | BX220: 10553278.33 | BY220: 10705474.67 | BZ220: 10857671 | CA220: 10906397 | CB220: 10955123 | CC220: 11003849 | CD220: 11102019.33 | CE220: 11200189.67 | CF220: 11298360 | CG220: 11355333.33 | CH220: 11412306.67 | CI220: 11469280 | CJ220: 11606431.33 | CK220: 11743582.67 | CL220: 11880734 | CM220: 11925584.67 | CN220: 11970435.33 | CO220: 12015286 | CP220: 12042752 | CQ220: 12070218 | CR220: 12097684 | CS220: 12086638.33 | CT220: 12075592.67 | CU220: 12064547 | CV220: 12044080 | CW220: 12023613 | CX220: 12003146 | CY220: 11926560 | CZ220: 11849974 | DA220: 11773388 | DB220: 11666786 | DC220: 11560184 | DD220: 11453582 | DE220: 11437608.67 | DF220: 11421635.33 | DG220: 11405662 | DH220: 11476285.96 | DI220: 11546909.93 | DJ220: 11617533.89 | DK220: 11649589.23 | DL220: 11681644.56 | DM220: 11713699.9 | DN220: 11728333.24 | DO220: 11742966.59 | DP220: 11757599.94 | DQ220: 11788584.53 | DR220: 11819569.13 | DS220: 11850553.73 | DT220: 11921125.36 | DU220: 11991697 | DV220: 12062268.64 | DW220: 12094323.98 | DX220: 12126379.31 | DY220: 12158434.65 | DZ220: 12173067.99 | EA220: 12187701.34 | EB220: 12202334.69 | EC220: 12233319.28 | ED220: 12264303.88 | EE220: 12295288.48 | EF220: 12365860.11 | EG220: 12436431.75 | EH220: 12507003.39 | EI220: 12539058.73 | EJ220: 12571114.06 | EK220: 12603169.39 | EL220: 12617802.74 | EM220: 12632436.09 | EN220: 12647069.44 | EO220: 12678054.03 | EP220: 12709038.63 | EQ220: 12740023.22 | ER220: 12810594.86 | ES220: 12881166.5 | ET220: 12951738.14 | EU220: 12983793.47 | EV220: 13015848.81 | EW220: 13047904.14 | EX220: 13062537.49 | EY220: 13077170.84 | EZ220: 13091804.19 | FA220: 13122788.78 | FB220: 13153773.38 | FC220: 13184757.97 | FD220: 13255329.61 | FE220: 13325901.25 | FF220: 13396472.89 | FG220: 13428528.22 | FH220: 13460583.56 | FI220: 13492638.89 | FJ220: 13507272.24 | FK220: 13521905.59 | FL220: 13536538.94 | FM220: 13567523.53 | FN220: 13598508.13 | FO220: 13629492.72 | FP220: 13700064.36 | FQ220: 13770636 | FR220: 13841207.64
C221: 5 | D221: ETB | E221: [Abonados] | F221: 0 | G221: 0 | H221: 0 | I221: 0 | J221: 0 | K221: 0 | L221: 0 | M221: 0 | N221: 0 | O221: 0 | P221: 0 | Q221: 0 | R221: 0 | S221: 13884.66667 | T221: 27769.33333 | U221: 41654 | V221: 42457.66667 | W221: 43261.33333 | X221: 44065 | Y221: 44351.66667 | Z221: 44638.33333 | AA221: 44925 | AB221: 45554.66667 | AC221: 46184.33333 | AD221: 46814 | AE221: 46888.33333 | AF221: 46962.66667 | AG221: 47037 | AH221: 42919.33333 | AI221: 38801.66667 | AJ221: 34684 | AK221: 23122.66667 | AL221: 11561.33333 | AM221: 0 | AN221: 1929.666667 | AO221: 3859.333333 | AP221: 5789 | AQ221: 15017.66667 | AR221: 24246.33333 | AS221: 33475 | AT221: 51762 | AU221: 70049 | AV221: 88336 | AW221: 105034 | AX221: 121732 | AY221: 138430 | AZ221: 158191.3333 | BA221: 177952.6667 | BB221: 197714 | BC221: 203299.3333 | BD221: 208884.6667 | BE221: 214470 | BF221: 229081.6667 | BG221: 243693.3333 | BH221: 258305 | BI221: 275484.6667 | BJ221: 292664.3333 | BK221: 309844 | BL221: 347401.3333 | BM221: 384958.6667 | BN221: 422516 | BO221: 437712.6667 | BP221: 452909.3333 | BQ221: 468106 | BR221: 469948.6667 | BS221: 471791.3333 | BT221: 473634 | BU221: 440370 | BV221: 407106 | BW221: 373842 | BX221: 375013.3333 | BY221: 376184.6667 | BZ221: 377356 | CA221: 367904.3333 | CB221: 358452.6667 | CC221: 349001 | CD221: 349843.6667 | CE221: 350686.3333 | CF221: 351529 | CG221: 342101.3333 | CH221: 332673.6667 | CI221: 323246 | CJ221: 311179.3333 | CK221: 299112.6667 | CL221: 287046 | CM221: 274579 | CN221: 262112 | CO221: 249645 | CP221: 252464.3333 | CQ221: 255283.6667 | CR221: 258103 | CS221: 253920 | CT221: 249737 | CU221: 245554 | CV221: 239943.3333 | CW221: 234332.6667 | CX221: 228722 | CY221: 222470.3333 | CZ221: 216218.6667 | DA221: 209967 | DB221: 200612.6667 | DC221: 191258.3333 | DD221: 181904 | DE221: 170651.6667 | DF221: 159399.3333 | DG221: 148147 | DH221: 149605.889 | DI221: 151064.7781 | DJ221: 152523.6671 | DK221: 151657.1546 | DL221: 150790.6421 | DM221: 149924.1297 | DN221: 164915.9387 | DO221: 179907.7477 | DP221: 194899.5567 | DQ221: 191725.778 | DR221: 188551.9992 | DS221: 185378.2204 | DT221: 186837.1095 | DU221: 188295.9985 | DV221: 189754.8875 | DW221: 188888.3751 | DX221: 188021.8626 | DY221: 187155.3501 | DZ221: 202147.1591 | EA221: 217138.9681 | EB221: 232130.7772 | EC221: 228956.9984 | ED221: 225783.2196 | EE221: 222609.4409 | EF221: 224068.3299 | EG221: 225527.2189 | EH221: 226986.108 | EI221: 226119.5955 | EJ221: 225253.083 | EK221: 224386.5705 | EL221: 239378.3795 | EM221: 254370.1886 | EN221: 269361.9976 | EO221: 266188.2188 | EP221: 263014.4401 | EQ221: 259840.6613 | ER221: 261299.5503 | ES221: 262758.4394 | ET221: 264217.3284 | EU221: 263350.8159 | EV221: 262484.3034 | EW221: 261617.791 | EX221: 276609.6 | EY221: 291601.409 | EZ221: 306593.218 | FA221: 303419.4393 | FB221: 300245.6605 | FC221: 297071.8817 | FD221: 298530.7708 | FE221: 299989.6598 | FF221: 301448.5488 | FG221: 300582.0363 | FH221: 299715.5239 | FI221: 298849.0114 | FJ221: 313840.8204 | FK221: 328832.6294 | FL221: 343824.4384 | FM221: 340650.6597 | FN221: 337476.8809 | FO221: 334303.1022 | FP221: 335761.9912 | FQ221: 337220.8802 | FR221: 338679.7693
C222: 6 | D222: EPM | E222: [Abonados] | F222: 0 | G222: 24536.66667 | H222: 49073.33333 | I222: 73610 | J222: 76107 | K222: 78604 | L222: 81101 | M222: 77739.66667 | N222: 74378.33333 | O222: 71017 | P222: 63760.33333 | Q222: 56503.66667 | R222: 49247 | S222: 62791 | T222: 76335 | U222: 89879 | V222: 90454.33333 | W222: 91029.66667 | X222: 91605 | Y222: 165718.3333 | Z222: 239831.6667 | AA222: 313945 | AB222: 210522.6667 | AC222: 107100.3333 | AD222: 3678 | AE222: 36240.66667 | AF222: 68803.33333 | AG222: 101366 | AH222: 102392 | AI222: 103418 | AJ222: 104444 | AK222: 105930.6667 | AL222: 107417.3333 | AM222: 108904 | AN222: 111622 | AO222: 114340 | AP222: 117058 | AQ222: 117113.6667 | AR222: 117169.3333 | AS222: 117225 | AT222: 117178 | AU222: 117131 | AV222: 117084 | AW222: 117071.3333 | AX222: 117058.6667 | AY222: 117046 | AZ222: 117007.6667 | BA222: 116969.3333 | BB222: 116931 | BC222: 116910.3333 | BD222: 116889.6667 | BE222: 116869 | BF222: 113270.3333 | BG222: 109671.6667 | BH222: 106073 | BI222: 105683.6667 | BJ222: 105294.3333 | BK222: 104905 | BL222: 69936.66667 | BM222: 34968.33333 | BN222: 0 | BO222: 0 | BP222: 0 | BQ222: 0 | BR222: 0 | BS222: 0 | BT222: 0 | BU222: 0 | BV222: 0 | BW222: 0 | BX222: 0 | BY222: 0 | BZ222: 0 | CA222: 0 | CB222: 0 | CC222: 0 | CD222: 0 | CE222: 0 | CF222: 0 | CG222: 0 | CH222: 0 | CI222: 0 | CJ222: 0 | CK222: 0 | CL222: 0 | CM222: 0 | CN222: 0 | CO222: 0 | CP222: 0 | CQ222: 0 | CR222: 0 | CS222: 0 | CT222: 0 | CU222: 0 | CV222: 0 | CW222: 0 | CX222: 0 | CY222: 0 | CZ222: 0 | DA222: 0 | DB222: 0 | DC222: 0 | DD222: 0 | DE222: 0 | DF222: 0 | DG222: 0 | DH222: 0 | DI222: 0 | DJ222: 0 | DK222: 0 | DL222: 0 | DM222: 0 | DN222: 0 | DO222: 0 | DP222: 0 | DQ222: 0 | DR222: 0 | DS222: 0 | DT222: 0 | DU222: 0 | DV222: 0 | DW222: 0 | DX222: 0 | DY222: 0 | DZ222: 0 | EA222: 0 | EB222: 0 | EC222: 0 | ED222: 0 | EE222: 0 | EF222: 0 | EG222: 0 | EH222: 0 | EI222: 0 | EJ222: 0 | EK222: 0 | EL222: 0 | EM222: 0 | EN222: 0 | EO222: 0 | EP222: 0 | EQ222: 0 | ER222: 0 | ES222: 0 | ET222: 0 | EU222: 0 | EV222: 0 | EW222: 0 | EX222: 0 | EY222: 0 | EZ222: 0 | FA222: 0 | FB222: 0 | FC222: 0 | FD222: 0 | FE222: 0 | FF222: 0 | FG222: 0 | FH222: 0 | FI222: 0 | FJ222: 0 | FK222: 0 | FL222: 0 | FM222: 0 | FN222: 0 | FO222: 0 | FP222: 0 | FQ222: 0 | FR222: 0
C223: 7 | D223: Uff | E223: [Abonados] | F223: 248942 | G223: 251600.6667 | H223: 254259.3333 | I223: 256918 | J223: 261654.6667 | K223: 266391.3333 | L223: 271128 | M223: 282891.3333 | N223: 294654.6667 | O223: 306418 | P223: 313833 | Q223: 321248 | R223: 328663 | S223: 333657 | T223: 338651 | U223: 343645 | V223: 354602 | W223: 365559 | X223: 376516 | Y223: 381202.6667 | Z223: 385889.3333 | AA223: 390576 | AB223: 394500.6667 | AC223: 398425.3333 | AD223: 402350 | AE223: 404657 | AF223: 406964 | AG223: 409271 | AH223: 411617 | AI223: 413963 | AJ223: 416309 | AK223: 415972.6667 | AL223: 415636.3333 | AM223: 415300 | AN223: 453478 | AO223: 491656 | AP223: 529834 | AQ223: 505677.6667 | AR223: 481521.3333 | AS223: 457365 | AT223: 438543.6667 | AU223: 419722.3333 | AV223: 400901 | AW223: 362322 | AX223: 323743 | AY223: 285164 | AZ223: 253580.3333 | BA223: 221996.6667 | BB223: 190413 | BC223: 173678 | BD223: 156943 | BE223: 140208 | BF223: 126520 | BG223: 112832 | BH223: 99144 | BI223: 99707.33333 | BJ223: 100270.6667 | BK223: 100834 | BL223: 102151 | BM223: 103468 | BN223: 104785 | BO223: 107361.3333 | BP223: 109937.6667 | BQ223: 112514 | BR223: 111871.3333 | BS223: 111228.6667 | BT223: 110586 | BU223: 108208 | BV223: 105830 | BW223: 103452 | BX223: 101512.6667 | BY223: 99573.33333 | BZ223: 97634 | CA223: 91968.66667 | CB223: 86303.33333 | CC223: 80638 | CD223: 77463.66667 | CE223: 74289.33333 | CF223: 71115 | CG223: 47410 | CH223: 23705 | CI223: 0 | CJ223: 0 | CK223: 0 | CL223: 0 | CM223: 0 | CN223: 0 | CO223: 0 | CP223: 0 | CQ223: 0 | CR223: 0 | CS223: 0 | CT223: 0 | CU223: 0 | CV223: 0 | CW223: 0 | CX223: 0 | CY223: 0 | CZ223: 0 | DA223: 0 | DB223: 0 | DC223: 0 | DD223: 0 | DE223: 0 | DF223: 0 | DG223: 0 | DH223: 0 | DI223: 0 | DJ223: 0 | DK223: 0 | DL223: 0 | DM223: 0 | DN223: 0 | DO223: 0 | DP223: 0 | DQ223: 0 | DR223: 0 | DS223: 0 | DT223: 0 | DU223: 0 | DV223: 0 | DW223: 0 | DX223: 0 | DY223: 0 | DZ223: 0 | EA223: 0 | EB223: 0 | EC223: 0 | ED223: 0 | EE223: 0 | EF223: 0 | EG223: 0 | EH223: 0 | EI223: 0 | EJ223: 0 | EK223: 0 | EL223: 0 | EM223: 0 | EN223: 0 | EO223: 0 | EP223: 0 | EQ223: 0 | ER223: 0 | ES223: 0 | ET223: 0 | EU223: 0 | EV223: 0 | EW223: 0 | EX223: 0 | EY223: 0 | EZ223: 0 | FA223: 0 | FB223: 0 | FC223: 0 | FD223: 0 | FE223: 0 | FF223: 0 | FG223: 0 | FH223: 0 | FI223: 0 | FJ223: 0 | FK223: 0 | FL223: 0 | FM223: 0 | FN223: 0 | FO223: 0 | FP223: 0 | FQ223: 0 | FR223: 0
C224: 8 | D224: Exito | E224: [Abonados] | F224: 0 | G224: 0 | H224: 0 | I224: 0 | J224: 0 | K224: 0 | L224: 0 | M224: 0 | N224: 0 | O224: 0 | P224: 0 | Q224: 0 | R224: 0 | S224: 0 | T224: 0 | U224: 0 | V224: 0 | W224: 0 | X224: 0 | Y224: 34382 | Z224: 68764 | AA224: 103146 | AB224: 117629 | AC224: 132112 | AD224: 146595 | AE224: 162813.6667 | AF224: 179032.3333 | AG224: 195251 | AH224: 205358.3333 | AI224: 215465.6667 | AJ224: 225573 | AK224: 241654.6667 | AL224: 257736.3333 | AM224: 273818 | AN224: 303474.6667 | AO224: 333131.3333 | AP224: 362788 | AQ224: 378730.3333 | AR224: 394672.6667 | AS224: 410615 | AT224: 433375 | AU224: 456135 | AV224: 478895 | AW224: 510304.6667 | AX224: 541714.3333 | AY224: 573124 | AZ224: 617982.6667 | BA224: 662841.3333 | BB224: 707700 | BC224: 747738.3333 | BD224: 787776.6667 | BE224: 827815 | BF224: 867604.3333 | BG224: 907393.6667 | BH224: 947183 | BI224: 998741.6667 | BJ224: 1050300.333 | BK224: 1101859 | BL224: 1119001.667 | BM224: 1136144.333 | BN224: 1153287 | BO224: 1149627.333 | BP224: 1145967.667 | BQ224: 1142308 | BR224: 1072022 | BS224: 1001736 | BT224: 931450 | BU224: 994600.6667 | BV224: 1057751.333 | BW224: 1120902 | BX224: 1199723.333 | BY224: 1278544.667 | BZ224: 1357366 | CA224: 1430919.333 | CB224: 1504472.667 | CC224: 1578026 | CD224: 1594250.333 | CE224: 1610474.667 | CF224: 1626699 | CG224: 1649321.667 | CH224: 1671944.333 | CI224: 1694567 | CJ224: 1683493.333 | CK224: 1672419.667 | CL224: 1661346 | CM224: 1621656.667 | CN224: 1581967.333 | CO224: 1542278 | CP224: 1618290.667 | CQ224: 1694303.333 | CR224: 1770316 | CS224: 1577420.667 | CT224: 1384525.333 | CU224: 1191630 | CV224: 1272703.667 | CW224: 1353777.333 | CX224: 1434851 | CY224: 1492216.333 | CZ224: 1549581.667 | DA224: 1606947 | DB224: 1656947.333 | DC224: 1706947.667 | DD224: 1756948 | DE224: 1670779.667 | DF224: 1584611.333 | DG224: 1498443 | DH224: 1634028.314 | DI224: 1769613.627 | DJ224: 1905198.941 | DK224: 1924426.408 | DL224: 1943653.875 | DM224: 1962881.342 | DN224: 1980098.437 | DO224: 1997315.531 | DP224: 2014532.625 | DQ224: 2033525.226 | DR224: 2052517.826 | DS224: 2071510.427 | DT224: 2099183.554 | DU224: 2126856.682 | DV224: 2154529.809 | DW224: 2173757.277 | DX224: 2192984.744 | DY224: 2212212.211 | DZ224: 2229429.306 | EA224: 2246646.4 | EB224: 2263863.494 | EC224: 2282856.095 | ED224: 2301848.695 | EE224: 2320841.295 | EF224: 2348514.423 | EG224: 2376187.551 | EH224: 2403860.678 | EI224: 2423088.146 | EJ224: 2442315.613 | EK224: 2461543.08 | EL224: 2478760.175 | EM224: 2495977.269 | EN224: 2513194.363 | EO224: 2532186.964 | EP224: 2551179.564 | EQ224: 2570172.164 | ER224: 2597845.292 | ES224: 2625518.42 | ET224: 2653191.547 | EU224: 2672419.014 | EV224: 2691646.482 | EW224: 2710873.949 | EX224: 2728091.043 | EY224: 2745308.138 | EZ224: 2762525.232 | FA224: 2781517.832 | FB224: 2800510.433 | FC224: 2819503.033 | FD224: 2847176.161 | FE224: 2874849.288 | FF224: 2902522.416 | FG224: 2921749.883 | FH224: 2940977.351 | FI224: 2960204.818 | FJ224: 2977421.912 | FK224: 2994639.007 | FL224: 3011856.101 | FM224: 3030848.701 | FN224: 3049841.302 | FO224: 3068833.902 | FP224: 3096507.03 | FQ224: 3124180.157 | FR224: 3151853.285
C225: 9 | D225: Virgin | E225: [Abonados] | F225: 0 | G225: 0 | H225: 0 | I225: 0 | J225: 0 | K225: 0 | L225: 0 | M225: 0 | N225: 0 | O225: 0 | P225: 0 | Q225: 0 | R225: 0 | S225: 1881.333333 | T225: 3762.666667 | U225: 5644 | V225: 44229.33333 | W225: 82814.66667 | X225: 121400 | Y225: 185676 | Z225: 249952 | AA225: 314228 | AB225: 356374.3333 | AC225: 398520.6667 | AD225: 440667 | AE225: 579269.3333 | AF225: 717871.6667 | AG225: 856474 | AH225: 982748.6667 | AI225: 1109023.333 | AJ225: 1235298 | AK225: 1391786.333 | AL225: 1548274.667 | AM225: 1704763 | AN225: 1800163.667 | AO225: 1895564.333 | AP225: 1990965 | AQ225: 2033431 | AR225: 2075897 | AS225: 2118363 | AT225: 2165010.667 | AU225: 2211658.333 | AV225: 2258306 | AW225: 2256882.333 | AX225: 2255458.667 | AY225: 2254035 | AZ225: 2255168 | BA225: 2256301 | BB225: 2257434 | BC225: 2308363.667 | BD225: 2359293.333 | BE225: 2410223 | BF225: 2391021 | BG225: 2371819 | BH225: 2352617 | BI225: 2367615 | BJ225: 2382613 | BK225: 2397611 | BL225: 2425600.333 | BM225: 2453589.667 | BN225: 2481579 | BO225: 2515975.333 | BP225: 2550371.667 | BQ225: 2584768 | BR225: 2610385.667 | BS225: 2636003.333 | BT225: 2661621 | BU225: 2694130.667 | BV225: 2726640.333 | BW225: 2759150 | BX225: 2773822.667 | BY225: 2788495.333 | BZ225: 2803168 | CA225: 2808940 | CB225: 2814712 | CC225: 2820484 | CD225: 2799420 | CE225: 2778356 | CF225: 2757292 | CG225: 2737592.667 | CH225: 2717893.333 | CI225: 2698194 | CJ225: 2694708.333 | CK225: 2691222.667 | CL225: 2687737 | CM225: 2703618.667 | CN225: 2719500.333 | CO225: 2735382 | CP225: 2749872.667 | CQ225: 2764363.333 | CR225: 2778854 | CS225: 2786001.667 | CT225: 2793149.333 | CU225: 2800297 | CV225: 2862449 | CW225: 2924601 | CX225: 2986753 | CY225: 2982257 | CZ225: 2977761 | DA225: 2973265 | DB225: 2920644.333 | DC225: 2868023.667 | DD225: 2815403 | DE225: 2791879 | DF225: 2768355 | DG225: 2744831 | DH225: 2768774.979 | DI225: 2792718.958 | DJ225: 2816662.936 | DK225: 2878435.259 | DL225: 2940207.581 | DM225: 3001979.903 | DN225: 2985887.902 | DO225: 2969795.901 | DP225: 2953703.899 | DQ225: 2997096.75 | DR225: 3040489.602 | DS225: 3083882.453 | DT225: 3107826.431 | DU225: 3131770.41 | DV225: 3155714.389 | DW225: 3217486.711 | DX225: 3279259.033 | DY225: 3341031.356 | DZ225: 3324939.354 | EA225: 3308847.353 | EB225: 3292755.352 | EC225: 3336148.203 | ED225: 3379541.054 | EE225: 3422933.905 | EF225: 3446877.884 | EG225: 3470821.863 | EH225: 3494765.842 | EI225: 3556538.164 | EJ225: 3618310.486 | EK225: 3680082.808 | EL225: 3663990.807 | EM225: 3647898.806 | EN225: 3631806.805 | EO225: 3675199.656 | EP225: 3718592.507 | EQ225: 3761985.358 | ER225: 3785929.337 | ES225: 3809873.316 | ET225: 3833817.294 | EU225: 3895589.617 | EV225: 3957361.939 | EW225: 4019134.261 | EX225: 4003042.26 | EY225: 3986950.259 | EZ225: 3970858.257 | FA225: 4014251.109 | FB225: 4057643.96 | FC225: 4101036.811 | FD225: 4124980.79 | FE225: 4148924.768 | FF225: 4172868.747 | FG225: 4234641.069 | FH225: 4296413.391 | FI225: 4358185.714 | FJ225: 4342093.712 | FK225: 4326001.711 | FL225: 4309909.71 | FM225: 4353302.561 | FN225: 4396695.412 | FO225: 4440088.263 | FP225: 4464032.242 | FQ225: 4487976.221 | FR225: 4511920.2
C226: 10 | D226: Suma | E226: [Abonados] | F226: 0 | G226: 0 | H226: 0 | I226: 0 | J226: 0 | K226: 0 | L226: 0 | M226: 0 | N226: 0 | O226: 0 | P226: 0 | Q226: 0 | R226: 0 | S226: 0 | T226: 0 | U226: 0 | V226: 0 | W226: 0 | X226: 0 | Y226: 0 | Z226: 0 | AA226: 0 | AB226: 0 | AC226: 0 | AD226: 0 | AE226: 0 | AF226: 0 | AG226: 0 | AH226: 0 | AI226: 0 | AJ226: 0 | AK226: 0 | AL226: 0 | AM226: 0 | AN226: 0 | AO226: 0 | AP226: 0 | AQ226: 0 | AR226: 0 | AS226: 0 | AT226: 0 | AU226: 0 | AV226: 0 | AW226: 0 | AX226: 0 | AY226: 0 | AZ226: 0 | BA226: 0 | BB226: 0 | BC226: 0 | BD226: 0 | BE226: 0 | BF226: 0 | BG226: 0 | BH226: 0 | BI226: 0 | BJ226: 0 | BK226: 0 | BL226: 0 | BM226: 0 | BN226: 0 | BO226: 0 | BP226: 0 | BQ226: 0 | BR226: 0 | BS226: 0 | BT226: 0 | BU226: 0 | BV226: 0 | BW226: 0 | BX226: 0 | BY226: 0 | BZ226: 0 | CA226: 136.3333333 | CB226: 272.6666667 | CC226: 409 | CD226: 464 | CE226: 519 | CF226: 574 | CG226: 782.6666667 | CH226: 991.3333333 | CI226: 1200 | CJ226: 1620 | CK226: 2040 | CL226: 2460 | CM226: 2763.333333 | CN226: 3066.666667 | CO226: 3370 | CP226: 3431.333333 | CQ226: 3492.666667 | CR226: 3554 | CS226: 3616.333333 | CT226: 3678.666667 | CU226: 3741 | CV226: 5601 | CW226: 7461 | CX226: 9321 | CY226: 10124 | CZ226: 10927 | DA226: 11730 | DB226: 12172.66667 | DC226: 12615.33333 | DD226: 13058 | DE226: 13524 | DF226: 13990 | DG226: 14456 | DH226: 14639.46649 | DI226: 14822.93298 | DJ226: 15006.39946 | DK226: 15272.0087 | DL226: 15537.61794 | DM226: 15803.22718 | DN226: 16379.15997 | DO226: 16955.09275 | DP226: 17531.02554 | DQ226: 17701.90828 | DR226: 17872.79103 | DS226: 18043.67378 | DT226: 18764.58908 | DU226: 19485.50438 | DV226: 20206.41968 | DW226: 20472.02892 | DX226: 20737.63816 | DY226: 21003.2474 | DZ226: 21579.18018 | EA226: 22155.11297 | EB226: 22731.04575 | EC226: 22901.9285 | ED226: 23072.81124 | EE226: 23243.69399 | EF226: 23964.60929 | EG226: 24685.52459 | EH226: 25406.43989 | EI226: 25672.04913 | EJ226: 25937.65837 | EK226: 26203.26761 | EL226: 26779.20039 | EM226: 27355.13318 | EN226: 27931.06596 | EO226: 28101.94871 | EP226: 28272.83145 | EQ226: 28443.7142 | ER226: 29164.6295 | ES226: 29885.5448 | ET226: 30606.4601 | EU226: 30872.06934 | EV226: 31137.67858 | EW226: 31403.28782 | EX226: 31979.2206 | EY226: 32555.15339 | EZ226: 33131.08617 | FA226: 33301.96892 | FB226: 33472.85166 | FC226: 33643.73441 | FD226: 34364.64971 | FE226: 35085.56501 | FF226: 35806.48031 | FG226: 36072.08955 | FH226: 36337.69879 | FI226: 36603.30803 | FJ226: 37179.24081 | FK226: 37755.1736 | FL226: 38331.10638 | FM226: 38501.98913 | FN226: 38672.87188 | FO226: 38843.75462 | FP226: 39564.66992 | FQ226: 40285.58522 | FR226: 41006.50052
C227: 11 | D227: Flash | E227: [Abonados] | F227: 0 | G227: 0 | H227: 0 | I227: 0 | J227: 0 | K227: 0 | L227: 0 | M227: 0 | N227: 0 | O227: 0 | P227: 0 | Q227: 0 | R227: 0 | S227: 0 | T227: 0 | U227: 0 | V227: 0 | W227: 0 | X227: 0 | Y227: 0 | Z227: 0 | AA227: 0 | AB227: 0 | AC227: 0 | AD227: 0 | AE227: 0 | AF227: 0 | AG227: 0 | AH227: 0 | AI227: 0 | AJ227: 0 | AK227: 0 | AL227: 0 | AM227: 0 | AN227: 0 | AO227: 0 | AP227: 0 | AQ227: 0 | AR227: 0 | AS227: 0 | AT227: 0 | AU227: 0 | AV227: 0 | AW227: 0 | AX227: 0 | AY227: 0 | AZ227: 0 | BA227: 0 | BB227: 0 | BC227: 0 | BD227: 0 | BE227: 0 | BF227: 0 | BG227: 0 | BH227: 0 | BI227: 0 | BJ227: 0 | BK227: 0 | BL227: 0 | BM227: 0 | BN227: 0 | BO227: 0 | BP227: 0 | BQ227: 0 | BR227: 0 | BS227: 0 | BT227: 0 | BU227: 0 | BV227: 0 | BW227: 0 | BX227: 0 | BY227: 0 | BZ227: 0 | CA227: 0 | CB227: 0 | CC227: 0 | CD227: 0 | CE227: 0 | CF227: 0 | CG227: 70878.66667 | CH227: 141757.3333 | CI227: 212636 | CJ227: 327069.6667 | CK227: 441503.3333 | CL227: 555937 | CM227: 580361.3333 | CN227: 604785.6667 | CO227: 629210 | CP227: 603821.6667 | CQ227: 578433.3333 | CR227: 553045 | CS227: 518522.3333 | CT227: 483999.6667 | CU227: 449477 | CV227: 410905 | CW227: 372333 | CX227: 333761 | CY227: 319577.3333 | CZ227: 305393.6667 | DA227: 291210 | DB227: 285090 | DC227: 278970 | DD227: 272850 | DE227: 263494.3333 | DF227: 254138.6667 | DG227: 244783 | DH227: 305733.2074 | DI227: 366683.4147 | DJ227: 427633.6221 | DK227: 464063.8196 | DL227: 500494.0171 | DM227: 536924.2146 | DN227: 501313.8201 | DO227: 465703.4255 | DP227: 430093.031 | DQ227: 406868.0097 | DR227: 383642.9883 | DS227: 360417.967 | DT227: 421368.1744 | DU227: 482318.3817 | DV227: 543268.5891 | DW227: 579698.7866 | DX227: 616128.9841 | DY227: 652559.1817 | DZ227: 616948.7871 | EA227: 581338.3926 | EB227: 545727.998 | EC227: 522502.9767 | ED227: 499277.9554 | EE227: 476052.9341 | EF227: 537003.1414 | EG227: 597953.3488 | EH227: 658903.5561 | EI227: 695333.7537 | EJ227: 731763.9512 | EK227: 768194.1487 | EL227: 732583.7541 | EM227: 696973.3596 | EN227: 661362.965 | EO227: 638137.9437 | EP227: 614912.9224 | EQ227: 591687.9011 | ER227: 652638.1085 | ES227: 713588.3158 | ET227: 774538.5232 | EU227: 810968.7207 | EV227: 847398.9182 | EW227: 883829.1157 | EX227: 848218.7212 | EY227: 812608.3266 | EZ227: 776997.9321 | FA227: 753772.9108 | FB227: 730547.8894 | FC227: 707322.8681 | FD227: 768273.0755 | FE227: 829223.2828 | FF227: 890173.4902 | FG227: 926603.6877 | FH227: 963033.8852 | FI227: 999464.0828 | FJ227: 963853.6882 | FK227: 928243.2937 | FL227: 892632.8991 | FM227: 869407.8778 | FN227: 846182.8565 | FO227: 822957.8352 | FP227: 883908.0425 | FQ227: 944858.2499 | FR227: 1005808.457
C228: =+C227+1 -> 12 | D228: Setroc | E228: [Abonados]
C229: 13 | D229: Scarlet | E229: [Abonados]
C230: 14 | D230: Vilacom | E230: [Abonados]
C231: 15 | D231: Libre | E231: [Abonados]
C232: T | D232: Total | E232: [Abonados] | F232: =SUM(F217:F231) -> 37726510 | G232: =SUM(G217:G231) -> 37961195.67 | H232: 38195881.33 | I232: 38430567 | J232: 38682173.33 | K232: 38933779.67 | L232: 39185386 | M232: 39294634.67 | N232: 39403883.33 | O232: 39513132 | P232: 39553017.33 | Q232: 39592902.67 | R232: 39632788 | S232: 38728362.33 | T232: 37823936.67 | U232: 36919511 | V232: 37105717.33 | W232: 37291923.67 | X232: 37478130 | Y232: 37849945.33 | Z232: 38221760.67 | AA232: 38593576 | AB232: 38909997.33 | AC232: 39226418.67 | AD232: 39542840 | AE232: 39949568.67 | AF232: 40356297.33 | AG232: 40763026 | AH232: 40928102 | AI232: 41093178 | AJ232: 41258254 | AK232: 41719540 | AL232: 42180826 | AM232: 42642112 | AN232: 43190472.67 | AO232: 43738833.33 | AP232: 44287194 | AQ232: 44549202 | AR232: 44811210 | AS232: 45073218 | AT232: 45007438 | AU232: 44941658 | AV232: 44875878 | AW232: 44912776.33 | AX232: 44949674.67 | AY232: 44986573 | AZ232: 45283959 | BA232: 45581345 | BB232: 45878731 | BC232: 45856054 | BD232: 45833377 | BE232: 45810700 | BF232: 45952556 | BG232: 46094412 | BH232: 46236268 | BI232: 46344729.33 | BJ232: 46453190.67 | BK232: 46561652 | BL232: 46565165.33 | BM232: 46568678.67 | BN232: 46572192 | BO232: 46673504.67 | BP232: 46774817.33 | BQ232: 46876130 | BR232: 47051332 | BS232: =SUM(BS217:BS231) -> 47226534 | BT232: 47401736 | BU232: 47703482 | BV232: 48005228 | BW232: 48306974 | BX232: 48717059.67 | BY232: 49127145.33 | BZ232: 49537231 | CA232: 49689831.67 | CB232: 49842432.33 | CC232: 49995033 | CD232: 49968736 | CE232: 49942439 | CF232: 49916142 | CG232: 50031061 | CH232: 50145980 | CI232: 50260899 | CJ232: 50694200.33 | CK232: 51127501.67 | CL232: 51560803 | CM232: 51547752.67 | CN232: 51534702.33 | CO232: 51521652 | CP232: 51722848.67 | CQ232: 51924045.33 | CR232: 52125242 | CS232: 51837508.33 | CT232: 51549774.67 | CU232: 51262041 | CV232: 51594785.33 | CW232: 51927529.67 | CX232: 52260274 | CY232: 52312726 | CZ232: 52365178 | DA232: 52417630 | DB232: 51916543 | DC232: 51415456 | DD232: 50914369 | DE232: 51007234.33 | DF232: 51100099.67 | DG232: 51192965 | DH232: 51405833.13 | DI232: 51618701.26 | DJ232: 51831569.39 | DK232: 51770639.57 | DL232: 51709709.76 | DM232: 51648779.94 | DN232: 51811333.52 | DO232: 51973887.1 | DP232: 52136440.68 | DQ232: 52567088.43 | DR232: 52997736.19 | DS232: 53428383.95 | DT232: 53533825.01 | DU232: 53639266.08 | DV232: 53744707.15 | DW232: 53683777.33 | DX232: 53622847.52 | DY232: 53561917.7 | DZ232: 53724471.28 | EA232: 53887024.86 | EB232: 54049578.44 | EC232: 54480226.19 | ED232: 54910873.95 | EE232: =SUM(EE217:EE231) -> 55341521.7 | EF232: 55446962.77 | EG232: 55552403.84 | EH232: 55657844.91 | EI232: 55596915.09 | EJ232: 55535985.27 | EK232: 55475055.46 | EL232: 55637609.04 | EM232: 55800162.62 | EN232: 55962716.19 | EO232: 56393363.95 | EP232: 56824011.71 | EQ232: 57254659.46 | ER232: 57360100.53 | ES232: 57465541.6 | ET232: 57570982.66 | EU232: 57510052.85 | EV232: 57449123.03 | EW232: 57388193.22 | EX232: 57550746.8 | EY232: 57713300.37 | EZ232: 57875853.95 | FA232: 58306501.71 | FB232: 58737149.47 | FC232: 59167797.22 | FD232: 59273238.29 | FE232: 59378679.36 | FF232: 59484120.42 | FG232: 59423190.61 | FH232: 59362260.79 | FI232: 59301330.98 | FJ232: 59463884.55 | FK232: 59626438.13 | FL232: 59788991.71 | FM232: 60219639.47 | FN232: 60650287.22 | FO232: 61080934.98 | FP232: 61186376.05 | FQ232: 61291817.11 | FR232: 61397258.18
B233: Total
C234: 1 | D234: =L.oper.nom -> Comcel | E234: [Abonados] | F234: =F200+F217 -> 28818791 | G234: =G200+G217 -> 28885858.67 | H234: 28952926.33 | I234: 29019994 | J234: 29138419 | K234: 29256844 | L234: 29375269 | M234: 29570779.67 | N234: 29766290.33 | O234: 29961801 | P234: 30098228.33 | Q234: 30234655.67 | R234: 30371083 | S234: 29467678 | T234: 28564273 | U234: 27660868 | V234: 27708977 | W234: 27757086 | X234: 27805195 | Y234: 27991375.33 | Z234: 28177555.67 | AA234: 28363736 | AB234: 28568257 | AC234: 28772778 | AD234: 28977299 | AE234: 29054785.67 | AF234: 29132272.33 | AG234: 29209759 | AH234: 29176180.33 | AI234: 29142601.67 | AJ234: 29109023 | AK234: 29169620.33 | AL234: 29230217.67 | AM234: 29290815 | AN234: 29452456.33 | AO234: 29614097.67 | AP234: 29775739 | AQ234: 29795032 | AR234: 29814325 | AS234: 29833618 | AT234: 29679113.67 | AU234: 29524609.33 | AV234: 29370105 | AW234: 29223754 | AX234: 29077403 | AY234: 28931052 | AZ234: 28945076 | BA234: 28959100 | BB234: 28973124 | BC234: 28762036.33 | BD234: 28550948.67 | BE234: 28339861 | BF234: 28313086 | BG234: 28286311 | BH234: 28259536 | BI234: 28335969.33 | BJ234: 28412402.67 | BK234: 28488836 | BL234: 28643852 | BM234: 28798868 | BN234: 28953884 | BO234: 29020304 | BP234: 29086724 | BQ234: 29153144 | BR234: 29177071.67 | BS234: =BS200+BS217 -> 29200999.33 | BT234: 29224927 | BU234: 29187405.33 | BV234: 29149883.67 | BW234: 29112362 | BX234: 29192518.33 | BY234: 29272674.67 | BZ234: 29352831 | CA234: 29368916.67 | CB234: 29385002.33 | CC234: 29401088 | CD234: 29323319.33 | CE234: 29245550.67 | CF234: 29167782 | CG234: 29189484 | CH234: 29211186 | CI234: 29232888 | CJ234: 29382209.67 | CK234: 29531531.33 | CL234: 29680853 | CM234: 29749602.33 | CN234: 29818351.67 | CO234: 29887101 | CP234: 29972773.67 | CQ234: 30058446.33 | CR234: 30144119 | CS234: 30288318.67 | CT234: 30432518.33 | CU234: 30576718 | CV234: 30752502 | CW234: 30928286 | CX234: 31104070 | CY234: 31150601.33 | CZ234: 31197132.67 | DA234: 31243664 | DB234: 31340634 | DC234: 31437604 | DD234: 31534574 | DE234: 31697642.67 | DF234: 31860711.33 | DG234: 32023780 | DH234: 31875399.98 | DI234: 31727019.96 | DJ234: 31578639.94 | DK234: 31343273.5 | DL234: 31107907.05 | DM234: 30872540.61 | DN234: 31082559.6 | DO234: 31292578.58 | DP234: 31502597.56 | DQ234: 31696701.56 | DR234: 31890805.56 | DS234: 32084909.57 | DT234: 31939077.97 | DU234: 31793246.38 | DV234: 31647414.78 | DW234: 31412048.34 | DX234: 31176681.9 | DY234: 30941315.46 | DZ234: 31151334.44 | EA234: 31361353.42 | EB234: 31571372.4 | EC234: 31765476.41 | ED234: 31959580.41 | EE234: =EE200+EE217 -> 32153684.41 | EF234: 32007852.82 | EG234: 31862021.22 | EH234: 31716189.63 | EI234: 31480823.19 | EJ234: 31245456.75 | EK234: 31010090.31 | EL234: 31220109.29 | EM234: 31430128.27 | EN234: 31640147.25 | EO234: 31834251.25 | EP234: 32028355.26 | EQ234: 32222459.26 | ER234: 32076627.66 | ES234: 31930796.07 | ET234: 31784964.48 | EU234: 31549598.03 | EV234: 31314231.59 | EW234: 31078865.15 | EX234: 31288884.13 | EY234: 31498903.12 | EZ234: 31708922.1 | FA234: 31903026.1 | FB234: 32097130.1 | FC234: 32291234.11 | FD234: 32145402.51 | FE234: 31999570.92 | FF234: 31853739.32 | FG234: 31618372.88 | FH234: 31383006.44 | FI234: 31147640 | FJ234: 31357658.98 | FK234: 31567677.96 | FL234: 31777696.94 | FM234: 31971800.95 | FN234: 32165904.95 | FO234: 32360008.95 | FP234: 32214177.36 | FQ234: 32068345.76 | FR234: 31922514.17
C235: 2 | D235: Avantel | E235: [Abonados] | F235: =F201+F218 -> 0 | G235: 0 | H235: 0 | I235: 0 | J235: 0 | K235: 0 | L235: 0 | M235: 0 | N235: 0 | O235: 0 | P235: 0 | Q235: 0 | R235: 0 | S235: 0 | T235: 0 | U235: 0 | V235: 57000 | W235: 114000 | X235: 171000 | Y235: 174578 | Z235: 178156 | AA235: 181734 | AB235: 185588.3333 | AC235: 189442.6667 | AD235: 193297 | AE235: 196668 | AF235: 200039 | AG235: 203410 | AH235: 204281 | AI235: 205152 | AJ235: 206023 | AK235: 219091.6667 | AL235: 232160.3333 | AM235: 245229 | AN235: 252771 | AO235: 260313 | AP235: 267855 | AQ235: 282885.3333 | AR235: 297915.6667 | AS235: 312946 | AT235: 353154.3333 | AU235: 393362.6667 | AV235: 433571 | AW235: 472367.3333 | AX235: 511163.6667 | AY235: 549960 | AZ235: 598945.6667 | BA235: 647931.3333 | BB235: 696917 | BC235: 729205.3333 | BD235: 761493.6667 | BE235: 793782 | BF235: 854865.3333 | BG235: 915948.6667 | BH235: 977032 | BI235: 1017609 | BJ235: 1058186 | BK235: 1098763 | BL235: 1134282.667 | BM235: 1169802.333 | BN235: 1205322 | BO235: 1253787.667 | BP235: 1302253.333 | BQ235: 1350719 | BR235: 1374632 | BS235: 1398545 | BT235: 1422458 | BU235: 1554820.333 | BV235: 1687182.667 | BW235: 1819545 | BX235: 1873838 | BY235: 1928131 | BZ235: 1982424 | CA235: 1993462 | CB235: 2004500 | CC235: 2015538 | CD235: 2028112 | CE235: 2040686 | CF235: 2053260 | CG235: 2075851.333 | CH235: 2098442.667 | CI235: 2121034 | CJ235: 2154562 | CK235: 2188090 | CL235: 2221618 | CM235: 2243292.667 | CN235: 2264967.333 | CO235: 2286642 | CP235: 2301893.333 | CQ235: 2317144.667 | CR235: 2332396 | CS235: 2346958.667 | CT235: 2361521.333 | CU235: 2376084 | CV235: 2351781.667 | CW235: 2327479.333 | CX235: 2303177 | CY235: 2285708 | CZ235: 2268239 | DA235: 2250770 | DB235: 1993000.333 | DC235: 1735230.667 | DD235: 1477461 | DE235: 1448545 | DF235: 1419629 | DG235: 1390713 | DH235: 1376943.621 | DI235: 1363174.242 | DJ235: 1349404.862 | DK235: 1368290.209 | DL235: 1387175.555 | DM235: 1406060.902 | DN235: 1371980.38 | DO235: 1337899.857 | DP235: 1303819.335 | DQ235: 1434047.706 | DR235: 1564276.078 | DS235: 1694504.449 | DT235: 1680735.07 | DU235: 1666965.691 | DV235: 1653196.311 | DW235: 1672081.658 | DX235: 1690967.004 | DY235: 1709852.351 | DZ235: 1675771.829 | EA235: 1641691.306 | EB235: 1607610.784 | EC235: 1737839.155 | ED235: 1868067.527 | EE235: 1998295.898 | EF235: 1984526.519 | EG235: 1970757.14 | EH235: 1956987.76 | EI235: 1975873.107 | EJ235: 1994758.453 | EK235: 2013643.8 | EL235: 1979563.278 | EM235: 1945482.755 | EN235: 1911402.233 | EO235: 2041630.604 | EP235: 2171858.976 | EQ235: 2302087.347 | ER235: 2288317.968 | ES235: 2274548.589 | ET235: 2260779.209 | EU235: 2279664.556 | EV235: 2298549.902 | EW235: 2317435.249 | EX235: 2283354.727 | EY235: 2249274.204 | EZ235: 2215193.682 | FA235: 2345422.053 | FB235: 2475650.425 | FC235: 2605878.796 | FD235: 2592109.417 | FE235: 2578340.038 | FF235: 2564570.658 | FG235: 2583456.005 | FH235: 2602341.351 | FI235: 2621226.698 | FJ235: 2587146.176 | FK235: 2553065.653 | FL235: 2518985.131 | FM235: 2649213.503 | FN235: 2779441.874 | FO235: 2909670.245 | FP235: 2895900.866 | FQ235: 2882131.487 | FR235: 2868362.107
C236: 3 | D236: Tigo | E236: [Abonados] | F236: 5741616 | G236: 5790839.667 | H236: 5840063.333 | I236: 5889287 | J236: 5949681.333 | K236: 6010075.667 | L236: 6070470 | M236: 6165320 | N236: 6260170 | O236: 6355020 | P236: 6441258 | Q236: 6527496 | R236: 6613734 | S236: 6694206.333 | T236: 6774678.667 | U236: 6855151 | V236: 6911354.667 | W236: 6967558.333 | X236: 7023762 | Y236: 7113251.667 | Z236: 7202741.333 | AA236: 7292231 | AB236: 7408233 | AC236: 7524235 | AD236: 7640237 | AE236: 7745743.667 | AF236: 7851250.333 | AG236: 7956757 | AH236: 8077866.333 | AI236: 8198975.667 | AJ236: 8320085 | AK236: 8444113.667 | AL236: 8568142.333 | AM236: 8692171 | AN236: 8845408.333 | AO236: 8998645.667 | AP236: 9151883 | AQ236: 9332279.667 | AR236: 9512676.333 | AS236: 9693073 | AT236: 9836965 | AU236: 9980857 | AV236: 10124749 | AW236: 10220699.67 | AX236: 10316650.33 | AY236: 10412601 | AZ236: 10579746.67 | BA236: 10746892.33 | BB236: 10914038 | BC236: 10955703 | BD236: 10997368 | BE236: 11039033 | BF236: 11135433 | BG236: 11231833 | BH236: 11328233 | BI236: 11207508.67 | BJ236: 11086784.33 | BK236: 10966060 | BL236: 10737107.67 | BM236: 10508155.33 | BN236: 10279203 | BO236: 10324311 | BP236: 10369419 | BQ236: 10414527 | BR236: 10556778.67 | BS236: 10699030.33 | BT236: 10841282 | BU236: 10943670 | BV236: 11046058 | BW236: 11148446 | BX236: 11246067.67 | BY236: 11343689.33 | BZ236: 11441311 | CA236: 11482113 | CB236: 11522915 | CC236: 11563717 | CD236: 11563564.33 | CE236: 11563411.67 | CF236: 11563259 | CG236: 11582692.33 | CH236: 11602125.67 | CI236: 11621559 | CJ236: 11685203.33 | CK236: 11748847.67 | CL236: 11812492 | CM236: 11726946.67 | CN236: 11641401.33 | CO236: 11555856 | CP236: 11611306 | CQ236: 11666756 | CR236: 11722206 | CS236: 11562474.33 | CT236: 11402742.67 | CU236: 11243011 | CV236: 11375865.33 | CW236: 11508719.67 | CX236: 11641574 | CY236: 11697110.67 | CZ236: 11752647.33 | DA236: 11808184 | DB236: 11551132.67 | DC236: 11294081.33 | DD236: 11037030 | DE236: 11189901 | DF236: 11342772 | DG236: 11495643 | DH236: 11589848.15 | DI236: 11684053.3 | DJ236: 11778258.46 | DK236: 11810874.8 | DL236: 11843491.14 | DM236: 11876107.48 | DN236: 11911793.56 | DO236: 11947479.63 | DP236: 11983165.71 | DQ236: 12076112.49 | DR236: 12169059.26 | DS236: 12262006.04 | DT236: 12356211.19 | DU236: 12450416.34 | DV236: 12544621.49 | DW236: 12577237.84 | DX236: 12609854.18 | DY236: 12642470.52 | DZ236: 12678156.6 | EA236: 12713842.67 | EB236: 12749528.75 | EC236: 12842475.52 | ED236: 12935422.3 | EE236: 13028369.08 | EF236: 13122574.23 | EG236: 13216779.38 | EH236: 13310984.53 | EI236: 13343600.87 | EJ236: 13376217.22 | EK236: 13408833.56 | EL236: 13444519.63 | EM236: 13480205.71 | EN236: 13515891.78 | EO236: 13608838.56 | EP236: 13701785.34 | EQ236: 13794732.11 | ER236: 13888937.26 | ES236: 13983142.42 | ET236: 14077347.57 | EU236: 14109963.91 | EV236: 14142580.25 | EW236: 14175196.6 | EX236: 14210882.67 | EY236: 14246568.75 | EZ236: 14282254.82 | FA236: 14375201.6 | FB236: 14468148.37 | FC236: 14561095.15 | FD236: 14655300.3 | FE236: 14749505.45 | FF236: 14843710.61 | FG236: 14876326.95 | FH236: 14908943.29 | FI236: 14941559.63 | FJ236: 14977245.71 | FK236: 15012931.78 | FL236: 15048617.86 | FM236: 15141564.64 | FN236: 15234511.41 | FO236: 15327458.19 | FP236: 15421663.34 | FQ236: 15515868.49 | FR236: 15610073.64
C237: 4 | D237: Movistar | E237: [Abonados] | F237: 11391072 | G237: 11571706.67 | H237: 11752341.33 | I237: 11932976 | J237: 12074829.33 | K237: 12216682.67 | L237: 12358536 | M237: 12240677.67 | N237: 12122819.33 | O237: 12004961 | P237: 11904518 | Q237: 11804075 | R237: 11703632 | S237: 11641174.33 | T237: 11578716.67 | U237: 11516259 | V237: 11570887 | W237: 11625515 | X237: 11680143 | Y237: 11664591.33 | Z237: 11649039.67 | AA237: 11633488 | AB237: 11796236.67 | AC237: 11958985.33 | AD237: 12121734 | AE237: 12203248.67 | AF237: 12284763.33 | AG237: 12366278 | AH237: 12338157.67 | AI237: 12310037.33 | AJ237: 12281917 | AK237: 12381795.67 | AL237: 12481674.33 | AM237: 12581553 | AN237: 12668534.67 | AO237: 12755516.33 | AP237: 12842498 | AQ237: 12856637 | AR237: 12870776 | AS237: 12884915 | AT237: 12727698.33 | AU237: 12570481.67 | AV237: 12413265 | AW237: 12494028.67 | AX237: 12574792.33 | AY237: 12655556 | AZ237: 12735852 | BA237: 12816148 | BB237: 12896444 | BC237: 12950069 | BD237: 13003694 | BE237: 13057319 | BF237: 13117188 | BG237: 13177057 | BH237: 13236926 | BI237: 13351226 | BJ237: 13465526 | BK237: 13579826 | BL237: 13628307.67 | BM237: 13676789.33 | BN237: 13725271 | BO237: 13652553.33 | BP237: 13579835.67 | BQ237: 13507118 | BR237: 13594213.33 | BS237: 13681308.67 | BT237: 13768404 | BU237: 13888901.33 | BV237: 14009398.67 | BW237: 14129896 | BX237: 14283449 | BY237: 14437002 | BZ237: 14590555 | CA237: 14632416.67 | CB237: 14674278.33 | CC237: 14716140 | CD237: 14834313.33 | CE237: 14952486.67 | CF237: 15070660 | CG237: 15143967.67 | CH237: 15217275.33 | CI237: 15290583 | CJ237: 15432460.67 | CK237: 15574338.33 | CL237: 15716216 | CM237: 15772228 | CN237: 15828240 | CO237: 15884252 | CP237: 15932525.33 | CQ237: 15980798.67 | CR237: 16029072 | CS237: 16039366 | CT237: 16049660 | CU237: 16059954 | CV237: 16066759.67 | CW237: 16073565.33 | CX237: 16080371 | CY237: 16024902 | CZ237: 15969433 | DA237: 15913964 | DB237: 15812047.67 | DC237: 15710131.33 | DD237: 15608215 | DE237: 15651468.67 | DF237: 15694722.33 | DG237: 15737976 | DH237: 15828807.99 | DI237: 15919639.97 | DJ237: 16010471.96 | DK237: 16059597.58 | DL237: 16108723.2 | DM237: 16157848.82 | DN237: 16201410.34 | DO237: 16244971.85 | DP237: 16288533.36 | DQ237: 16378642.77 | DR237: 16468752.17 | DS237: 16558861.58 | DT237: 16649673.5 | DU237: 16740485.41 | DV237: 16831297.33 | DW237: 16880422.95 | DX237: 16929548.58 | DY237: 16978674.2 | DZ237: 17022235.71 | EA237: 17065797.22 | EB237: 17109358.73 | EC237: 17199468.14 | ED237: =ED203+ED220 -> 17289577.55 | EE237: 17379686.95 | EF237: 17470498.87 | EG237: 17561310.79 | EH237: 17652122.7 | EI237: 17701248.33 | EJ237: 17750373.95 | EK237: 17799499.57 | EL237: 17843061.08 | EM237: 17886622.6 | EN237: 17930184.11 | EO237: 18020293.51 | EP237: 18110402.92 | EQ237: 18200512.33 | ER237: 18291324.24 | ES237: 18382136.16 | ET237: 18472948.08 | EU237: 18522073.7 | EV237: 18571199.32 | EW237: 18620324.95 | EX237: 18663886.46 | EY237: 18707447.97 | EZ237: 18751009.48 | FA237: 18841118.89 | FB237: 18931228.29 | FC237: 19021337.7 | FD237: 19112149.62 | FE237: 19202961.53 | FF237: 19293773.45 | FG237: 19342899.07 | FH237: 19392024.7 | FI237: 19441150.32 | FJ237: 19484711.83 | FK237: 19528273.34 | FL237: 19571834.85 | FM237: 19661944.26 | FN237: 19752053.67 | FO237: 19842163.07 | FP237: 19932974.99 | FQ237: 20023786.91 | FR237: 20114598.83
C238: 5 | D238: ETB | E238: [Abonados] | F238: 0 | G238: 0 | H238: 0 | I238: 0 | J238: 0 | K238: 0 | L238: 0 | M238: 0 | N238: 0 | O238: 0 | P238: 0 | Q238: 0 | R238: 0 | S238: 13884.66667 | T238: 27769.33333 | U238: 41654 | V238: 42457.66667 | W238: 43261.33333 | X238: 44065 | Y238: 44351.66667 | Z238: 44638.33333 | AA238: 44925 | AB238: 45554.66667 | AC238: 46184.33333 | AD238: 46814 | AE238: 46888.33333 | AF238: 46962.66667 | AG238: 47037 | AH238: 42919.33333 | AI238: 38801.66667 | AJ238: =AJ204+AJ221 -> 34684 | AK238: 23122.66667 | AL238: 11561.33333 | AM238: 0 | AN238: 7056.666667 | AO238: 14113.33333 | AP238: 21170 | AQ238: 37736.66667 | AR238: 54303.33333 | AS238: 70870 | AT238: 101359 | AU238: 131848 | AV238: 162337 | AW238: 199466.3333 | AX238: 236595.6667 | AY238: 273725 | AZ238: 312540.3333 | BA238: 351355.6667 | BB238: 390171 | BC238: 399537.3333 | BD238: 408903.6667 | BE238: 418270 | BF238: 442450.3333 | BG238: 466630.6667 | BH238: 490811 | BI238: 515402.3333 | BJ238: 539993.6667 | BK238: 564585 | BL238: 606327 | BM238: 648069 | BN238: 689811 | BO238: 699466 | BP238: 709121 | BQ238: 718776 | BR238: 711760 | BS238: 704744 | BT238: 697728 | BU238: 659282.6667 | BV238: 620837.3333 | BW238: 582392 | BX238: 586503 | BY238: 590614 | BZ238: 594725 | CA238: 592468.6667 | CB238: 590212.3333 | CC238: 587956 | CD238: 592728.3333 | CE238: 597500.6667 | CF238: 602273 | CG238: 586517.3333 | CH238: 570761.6667 | CI238: 555006 | CJ238: 532136.3333 | CK238: 509266.6667 | CL238: 486397 | CM238: 472324.6667 | CN238: 458252.3333 | CO238: 444180 | CP238: 449626.3333 | CQ238: 455072.6667 | CR238: 460519 | CS238: 445392.6667 | CT238: 430266.3333 | CU238: 415140 | CV238: =CV204+CV221 -> 406525.6667 | CW238: 397911.3333 | CX238: 389297 | CY238: 390452.3333 | CZ238: 391607.6667 | DA238: 392763 | DB238: 379001.6667 | DC238: 365240.3333 | DD238: 351479 | DE238: 343503.3333 | DF238: 335527.6667 | DG238: 327552 | DH238: 323412.195 | DI238: 319272.39 | DJ238: 315132.585 | DK238: 319495.2032 | DL238: 323857.8214 | DM238: 328220.4396 | DN238: 339724.9327 | DO238: 351229.4258 | DP238: 362733.9189 | DQ238: 354406.2091 | DR238: 346078.4994 | DS238: 337750.7896 | DT238: 335680.7067 | DU238: 333610.6238 | DV238: 331540.5409 | DW238: 335903.1591 | DX238: 340265.7773 | DY238: 344628.3955 | DZ238: 356132.8886 | EA238: 367637.3817 | EB238: 379141.8748 | EC238: 370814.165 | ED238: 362486.4552 | EE238: 354158.7454 | EF238: 352088.6625 | EG238: 350018.5796 | EH238: 347948.4967 | EI238: 352311.1149 | EJ238: 356673.7331 | EK238: 361036.3513 | EL238: 372540.8444 | EM238: 384045.3375 | EN238: 395549.8306 | EO238: 387222.1209 | EP238: 378894.4111 | EQ238: 370566.7013 | ER238: 368496.6184 | ES238: 366426.5355 | ET238: 364356.4526 | EU238: 368719.0708 | EV238: 373081.689 | EW238: 377444.3072 | EX238: 388948.8003 | EY238: 400453.2934 | EZ238: 411957.7865 | FA238: 403630.0767 | FB238: 395302.367 | FC238: 386974.6572 | FD238: 384904.5743 | FE238: 382834.4914 | FF238: 380764.4085 | FG238: 385127.0267 | FH238: 389489.6449 | FI238: 393852.2631 | FJ238: 405356.7562 | FK238: 416861.2493 | FL238: 428365.7424 | FM238: 420038.0326 | FN238: 411710.3228 | FO238: 403382.613 | FP238: 401312.5301 | FQ238: 399242.4472 | FR238: 397172.3643
C239: 6 | D239: EPM | E239: [Abonados] | F239: 0 | G239: 24536.66667 | H239: 49073.33333 | I239: 73610 | J239: 76107 | K239: 78604 | L239: 81101 | M239: 77739.66667 | N239: 74378.33333 | O239: 71017 | P239: 63760.33333 | Q239: 56503.66667 | R239: 49247 | S239: 62791 | T239: 76335 | U239: 89879 | V239: =V205+V222 -> 90454.33333 | W239: 91029.66667 | X239: 91605 | Y239: 165718.3333 | Z239: 239831.6667 | AA239: 313945 | AB239: 318003.6667 | AC239: 322062.3333 | AD239: 326121 | AE239: 334208 | AF239: 342295 | AG239: 350382 | AH239: 355288 | AI239: 360194 | AJ239: 365100 | AK239: 370071.6667 | AL239: 375043.3333 | AM239: 380015 | AN239: 382675 | AO239: 385335 | AP239: 387995 | AQ239: 378039 | AR239: 368083 | AS239: 358127 | AT239: 352193.6667 | AU239: 346260.3333 | AV239: 340327 | AW239: 334669.3333 | AX239: 329011.6667 | AY239: 323354 | AZ239: 315979 | BA239: 308604 | BB239: 301229 | BC239: 289522.6667 | BD239: 277816.3333 | BE239: 266110 | BF239: 256050 | BG239: 245990 | BH239: 235930 | BI239: 232412 | BJ239: 228894 | BK239: 225376 | BL239: 180844.6667 | BM239: 136313.3333 | BN239: 91782 | BO239: 91519.33333 | BP239: 91256.66667 | BQ239: 90994 | BR239: 90610.33333 | BS239: 90226.66667 | BT239: 89843 | BU239: 60812.33333 | BV239: 31781.66667 | BW239: 2751 | BX239: 1834 | BY239: 917 | BZ239: 0 | CA239: 0 | CB239: 0 | CC239: 0 | CD239: 0 | CE239: 0 | CF239: 0 | CG239: 0 | CH239: 0 | CI239: 0 | CJ239: 0 | CK239: 0 | CL239: 0 | CM239: 0 | CN239: 0 | CO239: 0 | CP239: 0 | CQ239: 0 | CR239: 0 | CS239: 0 | CT239: 0 | CU239: 0 | CV239: 0 | CW239: 0 | CX239: 0 | CY239: 0 | CZ239: 0 | DA239: 0 | DB239: 0 | DC239: 0 | DD239: 0 | DE239: 0 | DF239: 0 | DG239: 0 | DH239: 0 | DI239: 0 | DJ239: 0 | DK239: 0 | DL239: 0 | DM239: 0 | DN239: 0 | DO239: 0 | DP239: 0 | DQ239: 0 | DR239: 0 | DS239: 0 | DT239: 0 | DU239: 0 | DV239: 0 | DW239: 0 | DX239: 0 | DY239: 0 | DZ239: 0 | EA239: 0 | EB239: 0 | EC239: 0 | ED239: 0 | EE239: 0 | EF239: 0 | EG239: 0 | EH239: 0 | EI239: 0 | EJ239: 0 | EK239: 0 | EL239: 0 | EM239: 0 | EN239: 0 | EO239: 0 | EP239: 0 | EQ239: 0 | ER239: 0 | ES239: 0 | ET239: 0 | EU239: 0 | EV239: 0 | EW239: 0 | EX239: 0 | EY239: 0 | EZ239: 0 | FA239: 0 | FB239: 0 | FC239: 0 | FD239: 0 | FE239: 0 | FF239: 0 | FG239: 0 | FH239: 0 | FI239: 0 | FJ239: 0 | FK239: 0 | FL239: 0 | FM239: 0 | FN239: 0 | FO239: 0 | FP239: 0 | FQ239: 0 | FR239: 0
C240: 7 | D240: Uff | E240: [Abonados] | F240: 248942 | G240: 251600.6667 | H240: 254259.3333 | I240: 256918 | J240: 261654.6667 | K240: 266391.3333 | L240: 271128 | M240: 282891.3333 | N240: 294654.6667 | O240: 306418 | P240: 313833 | Q240: 321248 | R240: 328663 | S240: 333657 | T240: 338651 | U240: 343645 | V240: 354602 | W240: 365559 | X240: 376516 | Y240: 381202.6667 | Z240: 385889.3333 | AA240: 390576 | AB240: 394500.6667 | AC240: 398425.3333 | AD240: 402350 | AE240: 404657 | AF240: 406964 | AG240: 409271 | AH240: 411617 | AI240: 413963 | AJ240: 416309 | AK240: 415972.6667 | AL240: 415636.3333 | AM240: 415300 | AN240: 453478 | AO240: 491656 | AP240: 529834 | AQ240: 505677.6667 | AR240: 481521.3333 | AS240: 457365 | AT240: 438543.6667 | AU240: 419722.3333 | AV240: 400901 | AW240: 362322 | AX240: 323743 | AY240: 285164 | AZ240: 253580.3333 | BA240: 221996.6667 | BB240: 190413 | BC240: 173678 | BD240: 156943 | BE240: 140208 | BF240: 126520 | BG240: 112832 | BH240: 99144 | BI240: 99707.33333 | BJ240: 100270.6667 | BK240: 100834 | BL240: 102151 | BM240: 103468 | BN240: 104785 | BO240: 107361.3333 | BP240: 109937.6667 | BQ240: 112514 | BR240: 111871.3333 | BS240: 111228.6667 | BT240: 110586 | BU240: 108208 | BV240: 105830 | BW240: 103452 | BX240: 101512.6667 | BY240: 99573.33333 | BZ240: 97634 | CA240: 91968.66667 | CB240: 86303.33333 | CC240: 80638 | CD240: 77463.66667 | CE240: 74289.33333 | CF240: 71115 | CG240: 47410 | CH240: 23705 | CI240: 0 | CJ240: 0 | CK240: 0 | CL240: 0 | CM240: 0 | CN240: 0 | CO240: 0 | CP240: 0 | CQ240: 0 | CR240: 0 | CS240: 0 | CT240: 0 | CU240: 0 | CV240: 0 | CW240: 0 | CX240: 0 | CY240: 0 | CZ240: 0 | DA240: 0 | DB240: 0 | DC240: 0 | DD240: 0 | DE240: 0 | DF240: 0 | DG240: 0 | DH240: 0 | DI240: 0 | DJ240: 0 | DK240: 0 | DL240: 0 | DM240: 0 | DN240: 0 | DO240: 0 | DP240: 0 | DQ240: 0 | DR240: 0 | DS240: 0 | DT240: 0 | DU240: 0 | DV240: 0 | DW240: 0 | DX240: 0 | DY240: 0 | DZ240: 0 | EA240: 0 | EB240: 0 | EC240: 0 | ED240: 0 | EE240: 0 | EF240: 0 | EG240: 0 | EH240: 0 | EI240: 0 | EJ240: 0 | EK240: 0 | EL240: 0 | EM240: 0 | EN240: 0 | EO240: 0 | EP240: 0 | EQ240: 0 | ER240: 0 | ES240: 0 | ET240: 0 | EU240: 0 | EV240: 0 | EW240: 0 | EX240: 0 | EY240: 0 | EZ240: 0 | FA240: 0 | FB240: 0 | FC240: 0 | FD240: 0 | FE240: 0 | FF240: 0 | FG240: 0 | FH240: 0 | FI240: 0 | FJ240: 0 | FK240: 0 | FL240: 0 | FM240: 0 | FN240: 0 | FO240: 0 | FP240: 0 | FQ240: 0 | FR240: 0
C241: 8 | D241: Exito | E241: [Abonados] | F241: 0 | G241: 0 | H241: 0 | I241: 0 | J241: 0 | K241: 0 | L241: 0 | M241: 0 | N241: 0 | O241: 0 | P241: 0 | Q241: 0 | R241: 0 | S241: 0 | T241: 0 | U241: 0 | V241: 0 | W241: 0 | X241: 0 | Y241: 34382 | Z241: 68764 | AA241: 103146 | AB241: 117629 | AC241: 132112 | AD241: 146595 | AE241: 162813.6667 | AF241: 179032.3333 | AG241: 195251 | AH241: 205358.3333 | AI241: 215465.6667 | AJ241: 225573 | AK241: 241654.6667 | AL241: 257736.3333 | AM241: 273818 | AN241: 303474.6667 | AO241: 333131.3333 | AP241: 362788 | AQ241: 378730.3333 | AR241: 394672.6667 | AS241: 410615 | AT241: 433375 | AU241: 456135 | AV241: 478895 | AW241: 510304.6667 | AX241: 541714.3333 | AY241: 573124 | AZ241: 617982.6667 | BA241: 662841.3333 | BB241: 707700 | BC241: 747738.3333 | BD241: 787776.6667 | BE241: 827815 | BF241: 867604.3333 | BG241: 907393.6667 | BH241: 947183 | BI241: 998741.6667 | BJ241: 1050300.333 | BK241: 1101859 | BL241: 1119001.667 | BM241: 1136144.333 | BN241: 1153287 | BO241: 1149627.333 | BP241: 1145967.667 | BQ241: 1142308 | BR241: 1072022 | BS241: 1001736 | BT241: 931450 | BU241: 994600.6667 | BV241: 1057751.333 | BW241: 1120902 | BX241: 1199723.333 | BY241: 1278544.667 | BZ241: 1357366 | CA241: 1430919.333 | CB241: 1504472.667 | CC241: 1578026 | CD241: 1594250.333 | CE241: 1610474.667 | CF241: 1626699 | CG241: 1649321.667 | CH241: 1671944.333 | CI241: 1694567 | CJ241: 1683493.333 | CK241: 1672419.667 | CL241: 1661346 | CM241: 1621656.667 | CN241: 1581967.333 | CO241: 1542278 | CP241: 1618290.667 | CQ241: 1694303.333 | CR241: 1770316 | CS241: 1577420.667 | CT241: 1384525.333 | CU241: 1191630 | CV241: 1272703.667 | CW241: 1353777.333 | CX241: 1434851 | CY241: 1492216.333 | CZ241: 1549581.667 | DA241: 1606947 | DB241: 1656947.333 | DC241: 1706947.667 | DD241: 1756948 | DE241: 1670779.667 | DF241: 1584611.333 | DG241: 1498443 | DH241: 1634028.314 | DI241: 1769613.627 | DJ241: 1905198.941 | DK241: 1924426.408 | DL241: 1943653.875 | DM241: 1962881.342 | DN241: 1980098.437 | DO241: 1997315.531 | DP241: 2014532.625 | DQ241: 2033525.226 | DR241: 2052517.826 | DS241: 2071510.427 | DT241: 2099183.554 | DU241: 2126856.682 | DV241: 2154529.809 | DW241: 2173757.277 | DX241: 2192984.744 | DY241: 2212212.211 | DZ241: 2229429.306 | EA241: 2246646.4 | EB241: 2263863.494 | EC241: 2282856.095 | ED241: 2301848.695 | EE241: 2320841.295 | EF241: 2348514.423 | EG241: 2376187.551 | EH241: 2403860.678 | EI241: 2423088.146 | EJ241: 2442315.613 | EK241: 2461543.08 | EL241: 2478760.175 | EM241: 2495977.269 | EN241: 2513194.363 | EO241: 2532186.964 | EP241: 2551179.564 | EQ241: 2570172.164 | ER241: 2597845.292 | ES241: 2625518.42 | ET241: 2653191.547 | EU241: 2672419.014 | EV241: 2691646.482 | EW241: 2710873.949 | EX241: 2728091.043 | EY241: 2745308.138 | EZ241: 2762525.232 | FA241: 2781517.832 | FB241: 2800510.433 | FC241: 2819503.033 | FD241: 2847176.161 | FE241: 2874849.288 | FF241: 2902522.416 | FG241: =FG207+FG224 -> 2921749.883 | FH241: 2940977.351 | FI241: 2960204.818 | FJ241: 2977421.912 | FK241: 2994639.007 | FL241: 3011856.101 | FM241: 3030848.701 | FN241: 3049841.302 | FO241: 3068833.902 | FP241: 3096507.03 | FQ241: 3124180.157 | FR241: 3151853.285
C242: 9 | D242: Virgin | E242: [Abonados] | F242: 0 | G242: 0 | H242: 0 | I242: 0 | J242: 0 | K242: 0 | L242: 0 | M242: 0 | N242: 0 | O242: 0 | P242: 0 | Q242: 0 | R242: 0 | S242: 1881.333333 | T242: 3762.666667 | U242: 5644 | V242: 44229.33333 | W242: 82814.66667 | X242: 121400 | Y242: 185676 | Z242: 249952 | AA242: 314228 | AB242: 356374.3333 | AC242: 398520.6667 | AD242: 440667 | AE242: 579269.3333 | AF242: 717871.6667 | AG242: 856474 | AH242: 982748.6667 | AI242: 1109023.333 | AJ242: 1235298 | AK242: 1391786.333 | AL242: 1548274.667 | AM242: 1704763 | AN242: 1800163.667 | AO242: 1895564.333 | AP242: 1990965 | AQ242: 2033431 | AR242: 2075897 | AS242: 2118363 | AT242: 2165010.667 | AU242: 2211658.333 | AV242: 2258306 | AW242: 2256882.333 | AX242: 2255458.667 | AY242: 2254035 | AZ242: 2255168 | BA242: 2256301 | BB242: 2257434 | BC242: 2308363.667 | BD242: 2359293.333 | BE242: 2410223 | BF242: 2391021 | BG242: 2371819 | BH242: 2352617 | BI242: 2367615 | BJ242: 2382613 | BK242: 2397611 | BL242: 2425600.333 | BM242: 2453589.667 | BN242: 2481579 | BO242: 2515975.333 | BP242: 2550371.667 | BQ242: 2584768 | BR242: 2610385.667 | BS242: 2636003.333 | BT242: 2661621 | BU242: 2694130.667 | BV242: 2726640.333 | BW242: 2759150 | BX242: 2773822.667 | BY242: 2788495.333 | BZ242: 2803168 | CA242: 2808940 | CB242: 2814712 | CC242: 2820484 | CD242: 2799420 | CE242: 2778356 | CF242: 2757292 | CG242: 2737592.667 | CH242: 2717893.333 | CI242: 2698194 | CJ242: 2694708.333 | CK242: 2691222.667 | CL242: 2687737 | CM242: 2703618.667 | CN242: 2719500.333 | CO242: 2735382 | CP242: 2749872.667 | CQ242: 2764363.333 | CR242: 2778854 | CS242: 2786001.667 | CT242: 2793149.333 | CU242: 2800297 | CV242: =CV208+CV225 -> 2862449 | CW242: 2924601 | CX242: 2986753 | CY242: 2982257 | CZ242: 2977761 | DA242: 2973265 | DB242: 2920644.333 | DC242: 2868023.667 | DD242: 2815403 | DE242: 2791879 | DF242: 2768355 | DG242: 2744831 | DH242: 2768774.979 | DI242: 2792718.958 | DJ242: 2816662.936 | DK242: 2878435.259 | DL242: 2940207.581 | DM242: 3001979.903 | DN242: 2985887.902 | DO242: 2969795.901 | DP242: 2953703.899 | DQ242: 2997096.75 | DR242: 3040489.602 | DS242: 3083882.453 | DT242: 3107826.431 | DU242: 3131770.41 | DV242: 3155714.389 | DW242: 3217486.711 | DX242: 3279259.033 | DY242: 3341031.356 | DZ242: 3324939.354 | EA242: 3308847.353 | EB242: 3292755.352 | EC242: 3336148.203 | ED242: 3379541.054 | EE242: 3422933.905 | EF242: 3446877.884 | EG242: 3470821.863 | EH242: 3494765.842 | EI242: 3556538.164 | EJ242: 3618310.486 | EK242: 3680082.808 | EL242: 3663990.807 | EM242: 3647898.806 | EN242: 3631806.805 | EO242: 3675199.656 | EP242: 3718592.507 | EQ242: 3761985.358 | ER242: 3785929.337 | ES242: 3809873.316 | ET242: 3833817.294 | EU242: 3895589.617 | EV242: 3957361.939 | EW242: 4019134.261 | EX242: 4003042.26 | EY242: 3986950.259 | EZ242: 3970858.257 | FA242: 4014251.109 | FB242: 4057643.96 | FC242: 4101036.811 | FD242: 4124980.79 | FE242: 4148924.768 | FF242: 4172868.747 | FG242: 4234641.069 | FH242: 4296413.391 | FI242: 4358185.714 | FJ242: 4342093.712 | FK242: 4326001.711 | FL242: 4309909.71 | FM242: 4353302.561 | FN242: 4396695.412 | FO242: 4440088.263 | FP242: 4464032.242 | FQ242: 4487976.221 | FR242: 4511920.2
C243: 10 | D243: Suma | E243: [Abonados] | F243: 0 | G243: 0 | H243: 0 | I243: 0 | J243: 0 | K243: 0 | L243: 0 | M243: 0 | N243: 0 | O243: 0 | P243: 0 | Q243: 0 | R243: 0 | S243: 0 | T243: 0 | U243: 0 | V243: 0 | W243: 0 | X243: 0 | Y243: 0 | Z243: 0 | AA243: 0 | AB243: 0 | AC243: 0 | AD243: 0 | AE243: 0 | AF243: 0 | AG243: 0 | AH243: 0 | AI243: 0 | AJ243: 0 | AK243: 0 | AL243: 0 | AM243: 0 | AN243: 0 | AO243: 0 | AP243: 0 | AQ243: 0 | AR243: 0 | AS243: 0 | AT243: 0 | AU243: 0 | AV243: 0 | AW243: 0 | AX243: 0 | AY243: 0 | AZ243: 0 | BA243: 0 | BB243: 0 | BC243: 0 | BD243: 0 | BE243: 0 | BF243: 0 | BG243: 0 | BH243: 0 | BI243: 0 | BJ243: 0 | BK243: 0 | BL243: 0 | BM243: 0 | BN243: 0 | BO243: 0 | BP243: 0 | BQ243: 0 | BR243: 0 | BS243: 0 | BT243: 0 | BU243: 0 | BV243: 0 | BW243: 0 | BX243: 0 | BY243: 0 | BZ243: 0 | CA243: 136.3333333 | CB243: 272.6666667 | CC243: 409 | CD243: 464 | CE243: 519 | CF243: 574 | CG243: 782.6666667 | CH243: 991.3333333 | CI243: 1200 | CJ243: 1620 | CK243: 2040 | CL243: 2460 | CM243: 2763.333333 | CN243: 3066.666667 | CO243: 3370 | CP243: 3431.333333 | CQ243: 3492.666667 | CR243: 3554 | CS243: 3616.333333 | CT243: 3678.666667 | CU243: 3741 | CV243: 5601 | CW243: 7461 | CX243: 9321 | CY243: 10124 | CZ243: 10927 | DA243: 11730 | DB243: 12172.66667 | DC243: 12615.33333 | DD243: 13058 | DE243: 13524 | DF243: 13990 | DG243: 14456 | DH243: 14639.46649 | DI243: 14822.93298 | DJ243: 15006.39946 | DK243: 15272.0087 | DL243: 15537.61794 | DM243: 15803.22718 | DN243: 16379.15997 | DO243: 16955.09275 | DP243: 17531.02554 | DQ243: 17701.90828 | DR243: 17872.79103 | DS243: 18043.67378 | DT243: 18764.58908 | DU243: 19485.50438 | DV243: 20206.41968 | DW243: 20472.02892 | DX243: 20737.63816 | DY243: 21003.2474 | DZ243: 21579.18018 | EA243: 22155.11297 | EB243: 22731.04575 | EC243: 22901.9285 | ED243: 23072.81124 | EE243: 23243.69399 | EF243: 23964.60929 | EG243: 24685.52459 | EH243: 25406.43989 | EI243: 25672.04913 | EJ243: 25937.65837 | EK243: 26203.26761 | EL243: 26779.20039 | EM243: 27355.13318 | EN243: 27931.06596 | EO243: 28101.94871 | EP243: 28272.83145 | EQ243: 28443.7142 | ER243: 29164.6295 | ES243: 29885.5448 | ET243: 30606.4601 | EU243: 30872.06934 | EV243: 31137.67858 | EW243: 31403.28782 | EX243: 31979.2206 | EY243: 32555.15339 | EZ243: 33131.08617 | FA243: 33301.96892 | FB243: 33472.85166 | FC243: 33643.73441 | FD243: 34364.64971 | FE243: 35085.56501 | FF243: 35806.48031 | FG243: 36072.08955 | FH243: 36337.69879 | FI243: 36603.30803 | FJ243: 37179.24081 | FK243: 37755.1736 | FL243: 38331.10638 | FM243: 38501.98913 | FN243: 38672.87188 | FO243: 38843.75462 | FP243: 39564.66992 | FQ243: 40285.58522 | FR243: 41006.50052
C244: 11 | D244: Flash | E244: [Abonados] | F244: 0 | G244: 0 | H244: 0 | I244: 0 | J244: 0 | K244: 0 | L244: 0 | M244: 0 | N244: 0 | O244: 0 | P244: 0 | Q244: 0 | R244: 0 | S244: 0 | T244: 0 | U244: 0 | V244: =V210+V227 -> 0 | W244: 0 | X244: 0 | Y244: 0 | Z244: 0 | AA244: 0 | AB244: 0 | AC244: 0 | AD244: 0 | AE244: 0 | AF244: 0 | AG244: 0 | AH244: 0 | AI244: 0 | AJ244: 0 | AK244: 0 | AL244: 0 | AM244: 0 | AN244: 0 | AO244: 0 | AP244: 0 | AQ244: 0 | AR244: 0 | AS244: 0 | AT244: 0 | AU244: 0 | AV244: 0 | AW244: 0 | AX244: 0 | AY244: 0 | AZ244: 0 | BA244: 0 | BB244: 0 | BC244: 0 | BD244: 0 | BE244: 0 | BF244: 0 | BG244: 0 | BH244: 0 | BI244: 0 | BJ244: 0 | BK244: 0 | BL244: 0 | BM244: 0 | BN244: 0 | BO244: 0 | BP244: 0 | BQ244: 0 | BR244: 0 | BS244: 0 | BT244: 0 | BU244: 0 | BV244: 0 | BW244: 0 | BX244: 0 | BY244: 0 | BZ244: 0 | CA244: 0 | CB244: 0 | CC244: 0 | CD244: 0 | CE244: 0 | CF244: 0 | CG244: 70878.66667 | CH244: 141757.3333 | CI244: 212636 | CJ244: 327069.6667 | CK244: 441503.3333 | CL244: 555937 | CM244: 580361.3333 | CN244: 604785.6667 | CO244: 629210 | CP244: 603821.6667 | CQ244: 578433.3333 | CR244: 553045 | CS244: 518522.3333 | CT244: 483999.6667 | CU244: 449477 | CV244: 410905 | CW244: 372333 | CX244: 333761 | CY244: 319577.3333 | CZ244: 305393.6667 | DA244: 291210 | DB244: 285090 | DC244: 278970 | DD244: 272850 | DE244: 263494.3333 | DF244: 254138.6667 | DG244: 244783 | DH244: 305733.2074 | DI244: 366683.4147 | DJ244: 427633.6221 | DK244: 464063.8196 | DL244: 500494.0171 | DM244: 536924.2146 | DN244: 501313.8201 | DO244: 465703.4255 | DP244: 430093.031 | DQ244: 406868.0097 | DR244: 383642.9883 | DS244: 360417.967 | DT244: 421368.1744 | DU244: 482318.3817 | DV244: 543268.5891 | DW244: 579698.7866 | DX244: 616128.9841 | DY244: 652559.1817 | DZ244: 616948.7871 | EA244: 581338.3926 | EB244: 545727.998 | EC244: 522502.9767 | ED244: 499277.9554 | EE244: 476052.9341 | EF244: 537003.1414 | EG244: 597953.3488 | EH244: 658903.5561 | EI244: 695333.7537 | EJ244: 731763.9512 | EK244: 768194.1487 | EL244: 732583.7541 | EM244: 696973.3596 | EN244: 661362.965 | EO244: 638137.9437 | EP244: 614912.9224 | EQ244: 591687.9011 | ER244: 652638.1085 | ES244: 713588.3158 | ET244: 774538.5232 | EU244: 810968.7207 | EV244: 847398.9182 | EW244: 883829.1157 | EX244: 848218.7212 | EY244: 812608.3266 | EZ244: 776997.9321 | FA244: 753772.9108 | FB244: 730547.8894 | FC244: 707322.8681 | FD244: 768273.0755 | FE244: 829223.2828 | FF244: 890173.4902 | FG244: 926603.6877 | FH244: 963033.8852 | FI244: 999464.0828 | FJ244: 963853.6882 | FK244: 928243.2937 | FL244: 892632.8991 | FM244: 869407.8778 | FN244: 846182.8565 | FO244: 822957.8352 | FP244: 883908.0425 | FQ244: 944858.2499 | FR244: 1005808.457
C245: =+C244+1 -> 12 | D245: Setroc | E245: [Abonados] | F245: 0 | G245: 0 | H245: 0 | I245: 0 | J245: 0 | K245: 0 | L245: 0 | M245: 0 | N245: 0 | O245: 0 | P245: 0 | Q245: 0 | R245: 0 | S245: 0 | T245: 0 | U245: 0 | V245: 0 | W245: 0 | X245: 0 | Y245: 0 | Z245: 0 | AA245: 0 | AB245: 0 | AC245: 0 | AD245: 0 | AE245: 0 | AF245: 0 | AG245: 0 | AH245: 0 | AI245: 0 | AJ245: 0 | AK245: 0 | AL245: 0 | AM245: 0 | AN245: 0 | AO245: 0 | AP245: 0 | AQ245: 0 | AR245: 0 | AS245: 0 | AT245: 0 | AU245: 0 | AV245: 0 | AW245: 0 | AX245: 0 | AY245: 0 | AZ245: 0 | BA245: 0 | BB245: 0 | BC245: 0 | BD245: 0 | BE245: 0 | BF245: 0 | BG245: 0 | BH245: 0 | BI245: 0 | BJ245: 0 | BK245: 0 | BL245: 0 | BM245: 0 | BN245: 0 | BO245: 0 | BP245: 0 | BQ245: 0 | BR245: 0 | BS245: 0 | BT245: 0 | BU245: 0 | BV245: 0 | BW245: 0 | BX245: 0 | BY245: 0 | BZ245: 0 | CA245: 0 | CB245: 0 | CC245: 0 | CD245: 0 | CE245: 0 | CF245: 0 | CG245: 0 | CH245: 0 | CI245: 0 | CJ245: 0 | CK245: 0 | CL245: 0 | CM245: 0 | CN245: 0 | CO245: 0 | CP245: 0 | CQ245: 0 | CR245: 0 | CS245: 0 | CT245: 0 | CU245: 0 | CV245: 0 | CW245: 0 | CX245: 0 | CY245: 0 | CZ245: 0 | DA245: 0 | DB245: 0 | DC245: 0 | DD245: 0 | DE245: 0 | DF245: 0 | DG245: 0 | DH245: 0 | DI245: 0 | DJ245: 0 | DK245: 0 | DL245: 0 | DM245: 0 | DN245: 0 | DO245: 0 | DP245: 0 | DQ245: 0 | DR245: 0 | DS245: 0 | DT245: 0 | DU245: 0 | DV245: 0 | DW245: 0 | DX245: 0 | DY245: 0 | DZ245: 0 | EA245: 0 | EB245: 0 | EC245: 0 | ED245: 0 | EE245: 0 | EF245: 0 | EG245: 0 | EH245: 0 | EI245: 0 | EJ245: 0 | EK245: 0 | EL245: 0 | EM245: 0 | EN245: 0 | EO245: 0 | EP245: 0 | EQ245: 0 | ER245: 0 | ES245: 0 | ET245: 0 | EU245: 0 | EV245: 0 | EW245: 0 | EX245: 0 | EY245: 0 | EZ245: 0 | FA245: 0 | FB245: 0 | FC245: 0 | FD245: 0 | FE245: 0 | FF245: 0 | FG245: =FG211+FG228 -> 0 | FH245: 0 | FI245: 0 | FJ245: 0 | FK245: 0 | FL245: 0 | FM245: 0 | FN245: 0 | FO245: 0 | FP245: 0 | FQ245: 0 | FR245: 0
C246: 13 | D246: Scarlet | E246: [Abonados] | F246: 0 | G246: 0 | H246: 0 | I246: 0 | J246: 0 | K246: 0 | L246: 0 | M246: 0 | N246: 0 | O246: 0 | P246: 0 | Q246: 0 | R246: 0 | S246: 0 | T246: 0 | U246: 0 | V246: 0 | W246: 0 | X246: 0 | Y246: 0 | Z246: 0 | AA246: 0 | AB246: 0 | AC246: 0 | AD246: 0 | AE246: 0 | AF246: 0 | AG246: 0 | AH246: 0 | AI246: 0 | AJ246: 0 | AK246: 0 | AL246: 0 | AM246: 0 | AN246: 0 | AO246: 0 | AP246: 0 | AQ246: 0 | AR246: 0 | AS246: 0 | AT246: 0 | AU246: 0 | AV246: 0 | AW246: 0 | AX246: 0 | AY246: 0 | AZ246: 0 | BA246: 0 | BB246: 0 | BC246: 0 | BD246: 0 | BE246: 0 | BF246: 0 | BG246: 0 | BH246: 0 | BI246: 0 | BJ246: 0 | BK246: 0 | BL246: 0 | BM246: 0 | BN246: 0 | BO246: 0 | BP246: 0 | BQ246: 0 | BR246: 0 | BS246: 0 | BT246: 0 | BU246: 0 | BV246: 0 | BW246: 0 | BX246: 0 | BY246: 0 | BZ246: 0 | CA246: 0 | CB246: 0 | CC246: 0 | CD246: 0 | CE246: 0 | CF246: 0 | CG246: 0 | CH246: 0 | CI246: 0 | CJ246: 0 | CK246: 0 | CL246: 0 | CM246: 0 | CN246: 0 | CO246: 0 | CP246: 0 | CQ246: 0 | CR246: 0 | CS246: 0 | CT246: 0 | CU246: 0 | CV246: =CV212+CV229 -> 0 | CW246: 0 | CX246: 0 | CY246: 0 | CZ246: 0 | DA246: 0 | DB246: 0 | DC246: 0 | DD246: 0 | DE246: 0 | DF246: 0 | DG246: 0 | DH246: 0 | DI246: 0 | DJ246: 0 | DK246: 0 | DL246: 0 | DM246: 0 | DN246: 0 | DO246: 0 | DP246: 0 | DQ246: 0 | DR246: 0 | DS246: 0 | DT246: 0 | DU246: 0 | DV246: 0 | DW246: 0 | DX246: 0 | DY246: 0 | DZ246: 0 | EA246: 0 | EB246: 0 | EC246: 0 | ED246: 0 | EE246: 0 | EF246: 0 | EG246: 0 | EH246: 0 | EI246: 0 | EJ246: 0 | EK246: 0 | EL246: 0 | EM246: 0 | EN246: 0 | EO246: 0 | EP246: 0 | EQ246: 0 | ER246: 0 | ES246: 0 | ET246: 0 | EU246: 0 | EV246: 0 | EW246: 0 | EX246: 0 | EY246: 0 | EZ246: 0 | FA246: 0 | FB246: 0 | FC246: 0 | FD246: 0 | FE246: 0 | FF246: 0 | FG246: 0 | FH246: 0 | FI246: 0 | FJ246: 0 | FK246: 0 | FL246: 0 | FM246: 0 | FN246: 0 | FO246: 0 | FP246: 0 | FQ246: 0 | FR246: 0
